Workbook

Sheet LotInfo
A1: LotInfo Worksheet | H1: Contractor QC Mgr Job # | M1: Enter Lot Number:
A3: BETA PWL Spreadsheet (SPFPay): For use with Caltrans Statistical Pay Factor (SPF) Specifications | R3: © 2020 California Department of Transportation
A4: (Always visit the website below and use the most recent version of this spreadsheet.) | O4: Vers 1.02 issued 6/30/2020
A5: https://dot.ca.gov/programs/construction/hot-mix-asphalt-construction | H5: Project Name:
B6: for version update history see cell B100 | H6: EA (or Project ID): | L6: Contractor:
B7: Need help w/ setting "Trusted Folders"? See cell BA100 | H7: JMF No. | L7: HMA Plant:
H8: Co/Rte/PM: | L8: QC Manager:
L9: Resident Engineer:
H10: HMA Type: | J10: 3/4" HMA Type A | L10: QC Lab:
M11: Item Price:
H12: Projects Specified PG Grade: | M12: Bid Item #
H13: PG Grade used in JMF: | S13: (Enter data into the underlined unprotected cells to the left)
H14: =IF(OR(hmatype=mixa1,hmatype=mixa2,hmatype=mixb1,hmatype=mixb2,hmatype=mixc1),"%RAP Agg in Agg Blend:","") -> %RAP Agg in Agg Blend: | J14: =IF(OR(hmatype=mixa1,hmatype=mixa2,hmatype=mixb1,hmatype=mixb2,hmatype=mixc1),"% (Type A HMA Only)","") -> % (Type A HMA Only)
E15: `
H16: Binder Source:
H17: Add'l Binder Desc:
B25: Quality Characteristic | C25: 2" | D25: 1-1/2" | E25: 1" | F25: 3/4" | G25: 1/2" | H25: 3/8" | I25: #4 | J25: #8 | K25: #16 | L25: #30 | M25: #50 | N25: #100 | O25: #200 | P25: B.C. | Q25: %MTD | R25: % Air Voids
B26: Max JMF Target Value | C26: =_tvu2 -> 100 | D26: =_tvu3 -> 100 | E26: =_tvu4 -> 100 | F26: =_tvu5 -> 98 | G26: =_tvu6 -> 90 | H26: =_tvu7 -> 90 | I26: =_tvu8 -> 58 | J26: =_tvu9 -> 43 | K26: =_tvu10 -> 43 | L26: =_tvu11 -> 23 | M26: =_tvu12 -> 23 | N26: =_tvu13 -> 23 | O26: =_tvu14 -> 7
B27: Target Value | R27: 4
B28: Max JMF Target Value | C28: =_tvl2 -> 100 | D28: =_tvl3 -> 100 | E28: =_tvl4 -> 100 | F28: =_tvl5 -> 90 | G28: =_tvl6 -> 70 | H28: =_tvl7 -> 42 | I28: =_tvl8 -> 42 | J28: =_tvl9 -> 29 | K28: =_tvl10 -> 10 | L28: =_tvl11 -> 10 | M28: =_tvl12 -> 2 | N28: =_tvl13 -> 2 | O28: =_tvl14 -> 2 | P28: =IF(_tvl15=0,"",_tvl15) -> 
B29: Production Tolerance | C29: =IF(VLOOKUP(hmatype,$AB$269:$AQ$296,2,FALSE)="","",VLOOKUP(hmatype,$AB$269:$AQ$296,2,FALSE)) ->  | D29: =IF(VLOOKUP(hmatype,$AB$269:$AQ$296,3,FALSE)="","",VLOOKUP(hmatype,$AB$269:$AQ$296,3,FALSE)) ->  | E29: =IF(VLOOKUP(hmatype,$AB$269:$AQ$296,4,FALSE)="","",VLOOKUP(hmatype,$AB$269:$AQ$296,4,FALSE)) -> 0 | F29: =IF(VLOOKUP(hmatype,$AB$269:$AQ$296,5,FALSE)="","",VLOOKUP(hmatype,$AB$269:$AQ$296,5,FALSE)) -> 5 | G29: =IF(VLOOKUP(hmatype,$AB$269:$AQ$296,6,FALSE)="","",VLOOKUP(hmatype,$AB$269:$AQ$296,6,FALSE)) -> 6 | H29: =IF(VLOOKUP(hmatype,$AB$269:$AQ$296,7,FALSE)="","",VLOOKUP(hmatype,$AB$269:$AQ$296,7,FALSE)) -> nsl / mr | I29: =IF(VLOOKUP(hmatype,$AB$269:$AQ$296,8,FALSE)="","",VLOOKUP(hmatype,$AB$269:$AQ$296,8,FALSE)) -> 5 | J29: =IF(VLOOKUP(hmatype,$AB$269:$AQ$296,9,FALSE)="","",VLOOKUP(hmatype,$AB$269:$AQ$296,9,FALSE)) -> 5 | K29: =IF(VLOOKUP(hmatype,$AB$269:$AQ$296,10,FALSE)="","",VLOOKUP(hmatype,$AB$269:$AQ$296,10,FALSE)) -> nsl / mr | L29: =IF(VLOOKUP(hmatype,$AB$269:$AQ$296,11,FALSE)="","",VLOOKUP(hmatype,$AB$269:$AQ$296,11,FALSE)) -> 4 | M29: =IF(VLOOKUP(hmatype,$AB$269:$AQ$296,12,FALSE)="","",VLOOKUP(hmatype,$AB$269:$AQ$296,12,FALSE)) -> nsl / mr | N29: =IF(VLOOKUP(hmatype,$AB$269:$AQ$296,13,FALSE)="","",VLOOKUP(hmatype,$AB$269:$AQ$296,13,FALSE)) -> nsl / mr | O29: =IF(VLOOKUP(hmatype,$AB$269:$AQ$296,14,FALSE)="","",VLOOKUP(hmatype,$AB$269:$AQ$296,14,FALSE)) -> 2 | P29: =IF(VLOOKUP(hmatype,$AB$269:$AQ$296,15,FALSE)="","",VLOOKUP(hmatype,$AB$269:$AQ$296,15,FALSE)) -> 0.4 | R29: =VLOOKUP(hmatype,$AB$269:$AR$296,17,FALSE) -> 1.5
B30: Upper Specification Limit | C30: =IFERROR(IF(C27="","",IF(C29="n/a","n/a",(IF(C27+C29>100,100,C27+C29)))),"") ->  | E30: =IFERROR(IF(E27="","",IF(E29="n/a","n/a",(IF(E27+E29>100,100,E27+E29)))),"") ->  | F30: =IF(F27="","",IF(F29="n/a","n/a",(IF(F27+F29>100,100,F27+F29)))) ->  | G30: =IF(G27="","",IF(G29="n/a","n/a",(IF(G27+G29>100,100,G27+G29)))) ->  | H30: =IF(H27="","",IF(H29="nsl / mr","nsl / mr",(IF(H27+H29>100,100,H27+H29)))) ->  | Q30: =_tvu16 -> 96 | R30: =IF(OR(R27="",R27="n/a"),"",IF(R29="nsl / mr","nsl / mr",(IF(R27+R29>100,100,R27+R29)))) -> 5.5
B31: Lower Specification Limit | C31: =IFERROR(IF(C27="","",IF(C29="n/a","n/a",(IF(C27-C29<0,0,C27-C29)))),"") ->  | E31: =IFERROR(IF(E27="","",IF(E29="n/a","n/a",(IF(E27-E29<0,0,E27-E29)))),"") ->  | F31: =IF(F27="","",IF(F29="n/a","n/a",(IF(F27-F29<0,0,F27-F29)))) ->  | G31: =IF(G27="","",IF(G29="n/a","n/a",(IF(G27-G29<0,0,G27-G29)))) ->  | H31: =IF(H27="","",IF(H29="nsl / mr","nsl / mr",(IF(H27-H29<0,0,H27-H29)))) ->  | I31: =IF(I27="","",IF(I29="nsl / mr","nsl / mr",(IF(I27-I29<0,0,I27-I29)))) ->  | Q31: =_tvl16 -> 92 | R31: =IF(OR(R27="",R27="n/a"),"",IF(R29="nsl / mr","nsl / mr",(IF(R27-R29<0,0,R27-R29)))) -> 2.5
B32: Weighting Factor (w) | J32: =VLOOKUP(hmatype,$AB$197:$AQ$224,9,FALSE) -> 0.05 | O32: =VLOOKUP(hmatype,$AB$197:$AQ$224,14,FALSE) -> 0.1 | P32: =VLOOKUP(hmatype,$AB$197:$AQ$224,15,FALSE) -> 0.25 | Q32: =VLOOKUP(hmatype,$AB$197:$AQ$224,16,FALSE) -> 0.4 | R32: =VLOOKUP(hmatype,$AB$197:$AR$224,17,FALSE) -> 0.2
J34: *nsl / mr = no spec limit / must report
B102: Summary of Revisions to SPFPay Program. (report any bugs or recommendations to kee.foo@dot.ca.gov -or- pete.spector@dot.ca.gov) | BA102: Instructions for Setting up Trusted Folders (Eliminates the need to enable Macros each time you open HMAPay)
A104: Vers 1.00 | B104: Initial Release 5/20/2020 (AM)
A105: Vers 1.01 | B105: 5/20/2020 (1PM) Updated to correct conditional formatting of Target Values, and a few QC Data references on the Verification Sheet. | BA105: 1. Click the Microsoft Office Button (top left corner), then click Excel Options.
A106: Vers 1.02 | B106: 6/20/2020, Added QC and Verification Averages and Standard Deviations to rows 11 and 12 on the Verificaiton Worksheet
C107: Made modifications to the normal distribution curves to ensure plots show USL and LSL and a wider view of the curve. | BA107: 2. Click Trust Center, click Trust Center Settings, and then click Trusted Locations.
C108: Added an additional note on the QCData worksheet on row 76 to explain an occurance where a Beta distribution may indicate 100 percent within limits while a normal distribution may not.
C109: Updated the link in cell A5 on this worksheet to check for the latest update to this spreadsheet. | BA109: 3. If you want to create a trusted location that is not local to your computer, select the Allow trusted locations on my network (not recommended) check box.
BA111: 4. Click Add new location.
BB113: It is recommended that you don't make your entire Documents or My Documents folder a trusted location. Doing so creates
BB114: a larger target for a hacker to potentially exploit and increases your security risk. Create a subfolder within Documents or My Documents,
BB115: and make only that folder a trusted location.
BA117: 5. In the Path box, type the name of the folder that you want to use as a trusted location, or click Browse to locate the folder.
AB118: 3 Out in One Day
BA119: 6. If you want to include subfolders as trusted locations, select the Subfolders of this location are also trusted check box.
AB120: YES
AB121: NO | BA121: 7. In the Description box, type what you want to describe the purpose of the trusted location.
BA123: 8. Click OK.
AB128: Data Valadation list for to allow users to determine if the want worksheets to open up at top left corner when sheet is selected.
AM129: Project Spec | AN129: Hamburg Wheel Tr. | AQ129: Lot Number Selection List
AM130: PG Binder | AN130: 0.5" rut | AO130: at inflect
AM131: Grade | AQ131: 1
AQ132: 2
AM133: PG 58-22 | AN133: 10000 | AO133: 10000 | AQ133: 3
AB134: Initial file name assembled below, DO NOT MODIFY AB133!! | AM134: PG 64-10 | AN134: 15000 | AO134: 10000 | AQ134: 4
AB135: ="SPFPayV1-00_"&ea&".xlsm" -> SPFPayV1-00_.xlsm | AM135: PG 64-16 | AN135: 15000 | AO135: 10000 | AQ135: 5
AM136: PG 64-28 | AN136: 15000 | AO136: 10000 | AQ136: 6
AB137: Comment: | AM137: PG 70-10 | AN137: 20000 | AO137: 12500 | AQ137: 7
AB138: This table provided for info only. During design of the program, it was originally intended to be automated by the user selection. | AM138: PG 58-34 M | AN138: 10000 | AO138: 10000 | AQ138: 8
AB139: For rubberized HMA mixes, spec writer is supposed to specify these air void values. | AM139: PG 64-28 M | AN139: 15000 | AO139: 10000 | AQ139: 9
AB140: This table not used in | AI140: Std | AM140: PG 76-22 M | AN140: 25000 | AO140: 15000 | AQ140: 10
AB141: Traffic Index | AD141: Region | AI141: Spec
AC142: mountain | AD142: coast | AE142: valley | AF142: desert | AI142: dropdown
AB143: 0 to 6 | AC143: 3 | AD143: 3 | AE143: 3 | AF143: 3
AB144: > 6 to 10 | AC144: 4 | AD144: 4 | AE144: 4 | AF144: 5 | AI144: OBC(WDA) ..old spec
AB145: > 10 | AC145: 4 | AD145: 5 | AE145: 5 | AF145: 5 | AI145: OBC(TWM) ..new spec
AB151: WHEN ADDING MIX DESIGN(S), ONLY ENTER THE MIX TYPE TEXT IN THE GRAY CELLS, ALL OTHERS MIX TYPE NAMES IN COLUMN AB REFERENCE THE GREY CELLS.
AB152: DON’T FORGET TO INCREASE THE DATA VALIDATION LIST WHERE THE MIX TYPE IS SELECTED BY THE USER (in CELL I10)
AB154: vlookupcolumns
AB155: 1 | AC155: 2 | AD155: 3 | AE155: 4 | AF155: 5 | AG155: 6 | AH155: 7 | AI155: 8 | AJ155: 9 | AK155: 10 | AL155: 11 | AM155: 12 | AN155: 13 | AO155: 14 | AP155: 15 | AQ155: 16
AB157: "mixxx" namedcell | AG157: Percent Crushed (%min) | AJ157: LA Rattler | AL157: FAA(min) | AM157: F&E(max) | AN157: VMA(min) | AO157: VFA | AP157: VFA | AQ157: DP | AR157: DP
AC158: SE (min) | AD158: Stab (min) | AE158: Air Voids | AF158: %moist (max) | AG158: crs 1face | AH158: crs 2faces | AI158: #4to#8 | AJ158: 100 rev | AK158: 500rev | AO158: min | AP158: max | AQ158: min | AR158: max
AA159: a1 | AB159: =mixa1 -> 1" HMA Type A | AC159: 47 | AF159: 1 | AG159: -- | AH159: 90 | AI159: 70 | AJ159: 12 | AK159: 40 | AL159: 45 | AM159: 10 | AN159: 13 | AO159: 65 | AP159: 75 | AQ159: 0.6 | AR159: 1.2
AA160: a2 | AB160: =mixa2 -> 3/4" HMA Type A | AC160: 47 | AF160: 1 | AG160: -- | AH160: 90 | AI160: 70 | AJ160: 12 | AK160: 40 | AL160: 45 | AM160: 10 | AN160: 13 | AO160: 65 | AP160: 75 | AQ160: 0.6 | AR160: 1.2
AA161: b1 | AB161: =mixb1 -> 1/2" HMA Type A | AC161: 47 | AF161: 1 | AG161: -- | AH161: 90 | AI161: 70 | AJ161: 12 | AK161: 40 | AL161: 45 | AM161: 10 | AN161: 14 | AO161: 65 | AP161: 75 | AQ161: 0.6 | AR161: 1.2
AA162: b2 | AB162: =mixb2 -> 3/8' HMA Type A | AC162: 47 | AF162: 1 | AG162: -- | AH162: 90 | AI162: 70 | AJ162: 12 | AK162: 40 | AL162: 45 | AM162: 10 | AN162: 14 | AO162: 65 | AP162: 75 | AQ162: 0.6 | AR162: 1.2
AA163: c1 | AB163: =mixc1 -> No.4 HMA Type A | AC163: 47 | AF163: 1 | AG163: -- | AH163: 90 | AI163: 70 | AJ163: 12 | AK163: 40 | AL163: 45 | AM163: 10 | AN163: 15 | AO163: 65 | AP163: 75 | AQ163: 0.6 | AR163: 1.2
AA164: c2 | AB164: =mixc2 -> 0
AA165: d1 | AB165: =mixd1 -> 3/4" RHMA-G | AC165: 47 | AF165: 1 | AG165: -- | AH165: 90 | AI165: 70 | AJ165: 12 | AK165: 40 | AL165: 45 | AM165: Report Only
AA166: d2 | AB166: =mixd2 -> 1/2" RHMA-G | AC166: 47 | AF166: 1 | AG166: -- | AH166: 90 | AI166: 70 | AJ166: 12 | AK166: 40 | AL166: 45 | AM166: Report Only | AN166: 18.0 - 23.0 | AO166: 65 | AP166: 75 | AQ166: 0.6 | AR166: 1.2
AA167: e | AB167: =mixe -> 0
AA168: f | AB168: =mixf -> 0
AA169: g | AB169: =mixg -> 0
AA170: h | AB170: =mixh -> 0
AA171: i | AB171: =mixi -> 0
AA172: j | AB172: =mixj -> 0
AA173: k | AB173: =mixk -> 0
AA174: l | AB174: =mixl -> 0
AA175: m | AB175: =mixm -> 0
AA176: n | AB176: =mixn -> 0
AA177: o | AB177: =mixo -> 0
AA178: p | AB178: =mixp -> 0
AA179: q | AB179: =mixq -> 0
AA180: r | AB180: =mixr -> 0
AA181: s | AB181: =mixs -> 0
AA182: t | AB182: =mixt -> 0
AA183: u | AB183: =mixu -> 0
AA184: v | AB184: =mixv -> 0
AA185: w | AB185: =mixw -> 0
AA186: x | AB186: =mixx -> 0
AB187: spec limit for
AJ190: Not in the specs but need to make weighting factor add up to 1.00
AJ191: is there a limit on this?
AC192: 2" | AD192: 1-1/2" | AE192: 1" | AF192: 3/4" | AG192: 1/2" | AH192: 3/8" | AI192: #4 | AJ192: #8 | AK192: #16 | AL192: #30 | AM192: #50 | AN192: #100 | AO192: #200 | AP192: B.C. | AQ192: %MTD | AR192: Air Voids
AB193: vlookupcolumns
AB194: 1 | AC194: 2 | AD194: 3 | AE194: 4 | AF194: 5 | AG194: 6 | AH194: 7 | AI194: 8 | AJ194: 9 | AK194: 10 | AL194: 11 | AM194: 12 | AN194: 13 | AO194: 14 | AP194: 15 | AQ194: 16 | AR194: 17 | AS194: 18 | AT194: 19 | AU194: 20 | AV194: 21 | AW194: 22
AB195: "mixxx" namedcell | AJ195: V1.09 changed from "n/a" to "nsl / mr" | AN195: nsl / mr
AG196: Weighting Factor Table (for Rule 3 ensure cell states nsl / mr, not n/a. N/A's set Rule 1 text on qc and qa data sheets when it should state rule 3)
AA197: a1 | AB197: =mixa1 -> 1" HMA Type A | AC197: 0 | AD197: 0 | AE197: 0 | AF197: 0 | AG197: 0 | AH197: 0 | AI197: 0 | AJ197: 0.05 | AK197: 0 | AL197: 0 | AM197: 0 | AN197: 0 | AO197: 0.1 | AP197: 0.25 | AQ197: 0.4 | AR197: 0.2
AA198: a2 | AB198: =mixa2 -> 3/4" HMA Type A | AC198: 0 | AD198: 0 | AE198: 0 | AF198: 0 | AG198: 0 | AH198: 0 | AI198: 0 | AJ198: 0.05 | AK198: 0 | AL198: 0 | AM198: 0 | AN198: 0 | AO198: 0.1 | AP198: 0.25 | AQ198: 0.4 | AR198: 0.2
AA199: b1 | AB199: =mixb1 -> 1/2" HMA Type A | AC199: 0 | AD199: 0 | AE199: 0 | AF199: 0 | AG199: 0 | AH199: 0 | AI199: 0 | AJ199: 0.05 | AK199: 0 | AL199: 0 | AM199: 0 | AN199: 0 | AO199: 0.1 | AP199: 0.25 | AQ199: 0.4 | AR199: 0.2
AA200: b2 | AB200: =mixb2 -> 3/8' HMA Type A | AC200: 0 | AD200: 0 | AE200: 0 | AF200: 0 | AG200: 0 | AH200: 0 | AI200: 0 | AJ200: 0.05 | AK200: 0 | AL200: 0 | AM200: 0 | AN200: 0 | AO200: 0.1 | AP200: 0.25 | AQ200: 0.4 | AR200: 0.2
AA201: c1 | AB201: =mixc1 -> No.4 HMA Type A | AC201: 0 | AD201: 0 | AE201: 0 | AF201: 0 | AG201: 0 | AH201: 0 | AI201: 0 | AJ201: 0.05 | AK201: 0 | AL201: 0 | AM201: 0 | AN201: 0 | AO201: 0.1 | AP201: 0.25 | AQ201: 0.4 | AR201: 0.2
AA202: c2 | AB202: =mixc2 -> 0
AA203: d1 | AB203: =mixd1 -> 3/4" RHMA-G | AC203: 0 | AD203: 0 | AE203: 0 | AF203: 0 | AG203: 0 | AH203: 0 | AI203: 0 | AJ203: 0.05 | AK203: 0 | AL203: 0 | AM203: 0 | AN203: 0 | AO203: 0.1 | AP203: 0.25 | AQ203: 0.4 | AR203: 0.2
AA204: d2 | AB204: =mixd2 -> 1/2" RHMA-G | AC204: 0 | AD204: 0 | AE204: 0 | AF204: 0 | AG204: 0 | AH204: 0 | AI204: 0 | AJ204: 0.05 | AK204: 0 | AL204: 0 | AM204: 0 | AN204: 0 | AO204: 0.1 | AP204: 0.25 | AQ204: 0.4 | AR204: 0.2
AA205: e | AB205: =mixe -> 0
AA206: f | AB206: =mixf -> 0
AA207: g | AB207: =mixg -> 0
AA208: h | AB208: =mixh -> 0
AA209: i | AB209: =mixi -> 0
AA210: j | AB210: =mixj -> 0
AA211: k | AB211: =mixk -> 0
AA212: l | AB212: =mixl -> 0
AA213: m | AB213: =mixm -> 0
AA214: n | AB214: =mixn -> 0
AA215: o | AB215: =mixo -> 0
AA216: p | AB216: =mixp -> 0
AA217: q | AB217: =mixq -> 0
AA218: r | AB218: =mixr -> 0
AA219: s | AB219: =mixs -> 0
AA220: t | AB220: =mixt -> 0
AA221: u | AB221: =mixu -> 0
AA222: v | AB222: =mixv -> 0
AA223: w | AB223: =mixw -> 0
AA224: x | AB224: =mixx -> 0
AB225: =AB261 -> spec limit for | AE225: a,e | AF225: a,b,e,f | AG225: a,b,c,e,f | AH225: b,c,d,e,f | AI225: a,b,c,d,e,f | AJ225: a,b,c,d,e,f | AL225: a,b,c,d | AM225: g | AO225: a,b,c,d,e,f
AB228: vlookupcolumns
AB229: 1 | AC229: 2 | AD229: 3 | AE229: 4 | AF229: 5 | AG229: 6 | AH229: 7 | AI229: 8 | AJ229: 9 | AK229: 10 | AL229: 11 | AM229: 12 | AN229: 13 | AO229: 14 | AP229: 15 | AQ229: 16 | AR229: 17
AC230: 2" | AD230: 1-1/2" | AE230: 1" | AF230: 3/4" | AG230: 1/2" | AH230: 3/8" | AI230: #4 | AJ230: #8 | AK230: #16 | AL230: #30 | AM230: #50 | AN230: #100 | AO230: #200 | AP230: B.C. | AQ230: %MTD | AR230: %Air Voids
AB231: "mixxx" named cells enter mix name text here only
AG232: Index (i) shown below:
AA233: a1 | AB233: 1" HMA Type A | AJ233: 1 | AO233: 2 | AP233: 3 | AQ233: 5 | AR233: 4
AA234: a2 | AB234: 3/4" HMA Type A | AJ234: 1 | AO234: 2 | AP234: 3 | AQ234: 5 | AR234: 4
AA235: b1 | AB235: 1/2" HMA Type A | AJ235: 1 | AO235: 2 | AP235: 3 | AQ235: 5 | AR235: 4
AA236: b2 | AB236: 3/8' HMA Type A | AJ236: 1 | AO236: 2 | AP236: 3 | AQ236: 5 | AR236: 4
AA237: c1 | AB237: No.4 HMA Type A | AJ237: 1 | AO237: 2 | AP237: 3 | AQ237: 5 | AR237: 4
AA238: c2
AA239: d1 | AB239: 3/4" RHMA-G | AJ239: 1 | AO239: 2 | AP239: 3 | AQ239: 5 | AR239: 4
AA240: d2 | AB240: 1/2" RHMA-G | AJ240: 1 | AO240: 2 | AP240: 3 | AQ240: 5 | AR240: 4
AA241: e
AA242: f
AA243: g
AA244: h
AA245: i
AA246: j
AA247: k
AA248: l
AA249: m
AA250: n
AA251: o
AA252: p
AA253: q
AA254: r
AA255: s
AA256: t
AA257: u
AA258: v
AA259: w
AA260: x
AB261: spec limit for | AE261: a,e | AF261: a,b,e,f | AG261: a,b,c,e,f | AH261: b,c,d,e,f | AI261: a,b,c,d,e,f | AJ261: a,b,c,d,e,f | AL261: a,b,c,d | AM261: g | AO261: a,b,c,d,e,f
AC263: 2" | AD263: 1-1/2" | AE263: 1" | AF263: 3/4" | AG263: 1/2" | AH263: 3/8" | AI263: #4 | AJ263: #8 | AK263: #16 | AL263: #30 | AM263: #50 | AN263: #100 | AO263: #200 | AP263: B.C. | AQ263: %MTD | AR263: %Air Voids
AV264: col for info only.Used for AX287toAX289
AC265: 2" | AD265: 1-1/2" | AE265: 1" | AF265: 3/4" | AG265: 1/2" | AH265: 3/8" | AI265: #4 | AJ265: #8 | AK265: #16 | AL265: #30 | AM265: #50 | AN265: #100 | AO265: #200 | AP265: B.C. | AQ265: %MTD | AR265: %Air Voids
AB266: vlookupcolumns | AE266: changed n/a to 0 | AR266: air voids + | AW266: Lower MTD | AX266: Upper MTD
AB267: 1 | AC267: 2 | AD267: 3 | AE267: 4 | AF267: 5 | AG267: 6 | AH267: 7 | AI267: 8 | AJ267: 9 | AK267: 10 | AL267: 11 | AM267: 12 | AN267: 13 | AO267: 14 | AP267: 15 | AQ267: 16 | AR267: 17 | AS267: 18 | AT267: 19 | AV267: 21 | AW267: 22 | AX267: 23 | AY267: 24 | AZ267: 25 | BA267: 26
AA268: mixdesx | AG268: + or - % Allowable Tolerances shown below (if 0, then only applys to usl) | AT268: mixdesx - hmatype
AA269: a1 | AB269: =mixa1 -> 1" HMA Type A | AE269: 0 | AF269: 5 | AG269: 6 | AH269: 6 | AI269: 7 | AJ269: 5 | AK269: nsl / mr | AL269: 4 | AM269: 4 | AN269: nsl / mr | AO269: 2 | AP269: 0.4 | AR269: 1.5 | AT269: ="mix"&AA269&" - "&AB269 -> mixa1 - 1" HMA Type A | AV269: 0.04 | AW269: 92 | AX269: 96
AA270: a2 | AB270: =mixa2 -> 3/4" HMA Type A | AE270: 0 | AF270: 5 | AG270: 6 | AH270: nsl / mr | AI270: 5 | AJ270: 5 | AK270: nsl / mr | AL270: 4 | AM270: nsl / mr | AN270: nsl / mr | AO270: 2 | AP270: 0.4 | AR270: 1.5 | AT270: ="mix"&AA270&" - "&AB270 -> mixa2 - 3/4" HMA Type A | AV270: 0.04 | AW270: 92 | AX270: 96
AA271: b1 | AB271: =mixb1 -> 1/2" HMA Type A | AF271: 0 | AG271: 5 | AH271: 5 | AI271: 5 | AJ271: 5 | AK271: nsl / mr | AL271: 4 | AM271: nsl / mr | AN271: nsl / mr | AO271: 2 | AP271: 0.4 | AR271: 1.5 | AT271: mixb1 - 1/2" HMA Type A | AV271: 0.04 | AW271: 92 | AX271: 96
AA272: b2 | AB272: =mixb2 -> 3/8' HMA Type A | AG272: 0 | AH272: 5 | AI272: 5 | AJ272: 5 | AK272: nsl / mr | AL272: 5 | AM272: nsl / mr | AN272: nsl / mr | AO272: 2 | AP272: 0.4 | AR272: 1.5 | AT272: mixb2 - 3/8' HMA Type A | AV272: 0.04 | AW272: 92 | AX272: 96
AA273: c1 | AB273: =mixc1 -> No.4 HMA Type A | AH273: 0 | AI273: 5 | AJ273: 6 | AK273: nsl / mr | AL273: 5 | AM273: nsl / mr | AN273: nsl / mr | AO273: 4 | AP273: 0.4 | AR273: 1.5 | AT273: mixc1 - No.4 HMA Type A | AV273: 0.04 | AW273: 92 | AX273: 96
AA274: c2 | AB274: =mixc2 -> 0 | AT274: mixc2 - 0 | AV274: 0.04
AA275: d1 | AB275: =mixd1 -> 3/4" RHMA-G | AE275: 0 | AF275: 5 | AG275: 6 | AH275: 5 | AI275: 6 | AJ275: 5 | AK275: nsl / mr | AL275: nsl / mr | AM275: nsl / mr | AN275: nsl / mr | AO275: 2 | AP275: 0.45 | AR275: 2 | AT275: mixd1 - 3/4" RHMA-G | AV275: 0.04 | AW275: 91 | AX275: 96
AA276: d2 | AB276: =mixd2 -> 1/2" RHMA-G | AF276: 0 | AG276: 6 | AH276: 5 | AI276: 6 | AJ276: 5 | AK276: nsl / mr | AL276: nsl / mr | AM276: nsl / mr | AN276: nsl / mr | AO276: 2 | AP276: 0.45 | AR276: 2 | AT276: mixd2 - 1/2" RHMA-G | AV276: 0.04 | AW276: 91 | AX276: 96
AA277: e | AB277: =mixe -> 0 | AT277: mixe - 0 | AV277: "3,4, or 5%
AA278: f | AB278: =mixf -> 0 | AT278: mixf - 0 | AV278: "3,4, or 5%
AA279: g | AB279: =mixg -> 0 | AT279: mixg - 0 | AV279: 0.05
AA280: h | AB280: =mixh -> 0 | AT280: mixh - 0 | AV280: 0.04
AA281: i | AB281: =mixi -> 0 | AT281: mixi - 0 | AV281: 0.05
AA282: j | AB282: =mixj -> 0 | AT282: mixj - 0 | AV282: 0.04
AA283: k | AB283: =mixk -> 0 | AT283: mixk - 0 | AV283: 0.05
AA284: l | AB284: =mixl -> 0 | AT284: mixl - 0 | AV284: 0.04
AA285: m | AB285: =mixm -> 0 | AT285: mixm - 0 | AV285: n/a
AA286: n | AB286: =mixn -> 0 | AT286: mixn - 0 | AV286: n/a
AA287: o | AB287: =mixo -> 0 | AT287: mixo - 0 | AV287: "3,4, or 5% | AW287: Data Validation for air voids entry
AA288: p | AB288: =mixp -> 0 | AT288: mixp - 0 | AW288: After selecting a mix type, the range below will yield indicating which air voids are possible
AA289: q | AB289: =mixq -> 0 | AT289: mixq - 0 | AW289: "4% | AX289: =IF(OR(hmatype=mixa1,hmatype=mixa2, hmatype=mixb1,hmatype=mixb2, hmatype=mixc1,hmatype=mixc2,hmatype=mixd1,hmatype=mixd2,hmatype=mixh,hmatype=mixj,hmatype=mixl,hmatype=mixt,hmatype=mixv,hmatype=mixw,hmatype=mixx), 1,0) -> 1 | AY289: <=add to equation when hmatypes are added (if necessary)
AA290: r | AB290: =mixr -> 0 | AT290: mixr - 0 | AW290: "5% | AX290: =IF(OR(hmatype=mixg,hmatype=mixi,hmatype=mixk),1,0) -> 0 | AY290: <=add to equation when hmatypes are added (if necessary)
AA291: s | AB291: =mixs -> 0 | AT291: mixs - 0 | AW291: "3,4, or 5% | AX291: =IF(OR(hmatype=mixe,hmatype=mixf,hmatype=mixs,hmatype=mixo),1,0) -> 0 | AY291: <=add to equation when hmatypes are added (if necessary)
AA292: t | AB292: =mixt -> 0 | AT292: mixt - 0 | AV292: 0.04 | AW292: "n/a" | AX292: =IF(OR(hmatype=mixm,hmatype=mixn),1,0) -> 0 | AY292: <=add to equation when hmatypes are added (if necessary)
AA293: u | AB293: =mixu -> 0 | AT293: mixu - 0
AA294: v | AB294: =mixv -> 0 | AT294: mixv - 0
AA295: w | AB295: =mixw -> 0 | AT295: mixw - 0
AA296: x | AB296: =mixx -> 0 | AT296: mixx - 0
AB298: vlookupcolumns
... 69 more rows

Sheet QCData
A1: QCData Worksheet
O2: EA(or Project ID): | P2: =IF(ea="","",dist_ea) ->  | W2: © 2020 California Department of Transportation
O3: Resident Engineer: | P3: =IF(resengrname="","",resengrname) ->  | AD3: Count test values violating Rule 1 or Rule 2
O4: Quality Control Manager: | P4: =IF(qcmanagername="","",qcmanagername) ->  | U4: Contractor QC Mgr Job #: | V4: =IF(QCjobno="","",QCjobno) ->  | AD4: Code (for Rule 1): 0, 1, 2, 3, …….===> Number of times QC data out of tolerance
O5: HMA Type: | P5: =IF(hmatype="","",hmatype) -> 3/4" HMA Type A | U5: Contractor: | V5: =IF(contractorname="","",contractorname) ->  | AD5: Code (for Rule 2): 888 ===> QF less than 0.75; 999 ===> QF less than 0.9
O6: JMF No: | P6: =IF(jmf="","",jmf) ->  | U6: HMA Plant: | V6: =IF(hmaplant="","",hmaplant) -> 
O7: Lot No: | P7: =IF(lotno="","",lotno) ->  | U7: QC Lab: | V7: =IF(QClab="","",QClab) -> 
K9: exported QCdata file name => | L9: =dist_ea&"_QCData" &"_"&jmf&"_LotNo" &TEXT(lotno,"00")&"_"&(YEAR(TODAY())&"-"&TEXT(MONTH(TODAY()),"dd")&"-"&TEXT(DAY(TODAY()),"dd")) -> _QCData__LotNo00_2020-06-30 | AD9: Documentation on logic used in this section:
AD10: If there is a weighting factor, and the test value is out of spec limits then cell equals 1, no reason to count number out in a row if a weighting factor exists.
AD11: Otherwise cell could still have a weighting factor and test value is in spec, …. If so, then cell value is set to 0.
E12: Rule 1 | G12: If no weighting factor, but has a specification limit, two failed tests in a row highlights red, requires stop production, terminate lot. Contrctor must also manually check for 3 consecutive in one day. | AD12: Also, if charachteristic not reportable ("nr"), or no spec limit exists, but the values must be reported ("nsl / mr"), then also set the cell value equal to 0.
E13: Rule 2 | G13: If weighting factor, a QFQC must be calculated. If cell goes red, QFQC is too low, stop production, terminate lot. | AD13: If none of the above, then charachteristic has a spec limit, now count how many in a row are out of spec.
E15: Rule 3 | G15: No specification limits. Report test value only (per CT 202) | AD15: Rule 1 | AE15: If no weighting factor, but has spec limit, then two failed tests in a row requires ending lot.
E16: Rule 4 | G16: 3 Failing Tests in 1 Day | AD16: Rule 2 | AE16: If weighting factor, a QFQC must be calculated for the last 20 tests (including overlap from previous lots) | BD16: n | BE16: =COUNT(N30:N56) -> 0 | BF16: =COUNT(S30:S56) -> 0 | BG16: =COUNT(T30:T56) -> 0 | BH16: =COUNT(AA30:AA56) -> 0 | BI16: =COUNT(AB30:AB56) -> 0
G17: 2" | H17: 1-1/2" | I17: 1" | J17: 3/4" | K17: 1/2" | L17: 3/8" | M17: #4 | N17: #8 | O17: #16 | P17: #30 | Q17: #50 | R17: #100 | S17: #200 | T17: B.C. | AA17: %MTD | AB17: % Air Voids | AF17: The QFQC will also be calculated for on through 5, 5, …20 until twenty tests are recorded. | BD17: Mean | BE17: =AVERAGE(N30:N56) ->  | BF17: =AVERAGE(S30:S56) ->  | BG17: =AVERAGE(T30:T56) ->  | BH17: =AVERAGE(AA30:AA56) ->  | BI17: =AVERAGE(AB30:AB56) -> 
AD18: Rule 3 | AE18: No Specification Check Rules, Simply report value | BD18: Std Dev | BE18: =IF(_n8<3,"",STDEV(N30:N56)) ->  | BF18: =IF(_n200<3,"",STDEV(S30:S56)) ->  | BG18: =IF(_nBC<3,"",STDEV(T30:T56)) ->  | BH18: =IF(_nMTD<3,"",STDEV(AA30:AA56)) ->  | BI18: =IF(_nAV<3,"",STDEV(AB30:AB56)) -> 
F19: JMF Target Value | H19: =IF(LotInfo!D27="","",LotInfo!D27) ->  | I19: =IF(LotInfo!E27="","",LotInfo!E27) ->  | J19: =IF(LotInfo!F27="","",LotInfo!F27) ->  | K19: =IF(LotInfo!G27="","",LotInfo!G27) ->  | L19: =IF(LotInfo!H27="","",LotInfo!H27) ->  | M19: =IF(LotInfo!I27="","",LotInfo!I27) ->  | N19: =IF(LotInfo!J27="","",LotInfo!J27) ->  | O19: =IF(LotInfo!K27="","",LotInfo!K27) ->  | P19: =IF(LotInfo!L27="","",LotInfo!L27) ->  | Q19: =IF(LotInfo!M27="","",LotInfo!M27) ->  | R19: =IF(LotInfo!N27="","",LotInfo!N27) ->  | S19: =IF(LotInfo!O27="","",LotInfo!O27) ->  | T19: =IF(LotInfo!P27="","",LotInfo!P27) ->  | AA19: =IF(LotInfo!Q27="","",LotInfo!Q27) ->  | AB19: =IF(LotInfo!R27="","",LotInfo!R27) -> 4 | AD19: Rule 4 | AE19: No reporting required. | BE19: #8 | BF19: #200 | BG19: B.C. | BH19: %MTD | BI19: %AV
F20: Production Tolerance | G20: =LotInfo!C29 ->  | H20: =LotInfo!D29 ->  | I20: =LotInfo!E29 -> 0 | J20: =LotInfo!F29 -> 5 | K20: =LotInfo!G29 -> 6 | L20: =LotInfo!H29 -> nsl / mr | M20: =LotInfo!I29 -> 5 | N20: =LotInfo!J29 -> 5 | O20: =LotInfo!K29 -> nsl / mr | P20: =LotInfo!L29 -> 4 | Q20: =LotInfo!M29 -> nsl / mr | R20: =LotInfo!N29 -> nsl / mr | S20: =LotInfo!O29 -> 2 | T20: =LotInfo!P29 -> 0.4 | BD20: index (i)= | BE20: 1 | BF20: 2 | BG20: 3 | BH20: 5 | BI20: 4
F21: Upper Specification Limit | G21: =LotInfo!C30 ->  | H21: =LotInfo!D30 ->  | I21: =LotInfo!E30 ->  | J21: =LotInfo!F30 ->  | K21: =LotInfo!G30 ->  | L21: =LotInfo!H30 ->  | M21: =LotInfo!I30 ->  | N21: =LotInfo!J30 ->  | O21: =LotInfo!K30 ->  | P21: =LotInfo!L30 ->  | Q21: =LotInfo!M30 ->  | R21: =LotInfo!N30 ->  | S21: =LotInfo!O30 ->  | T21: =LotInfo!P30 ->  | AA21: =LotInfo!Q30 -> 96 | AB21: =LotInfo!R30 -> 5.5 | AD21: =F21 -> Upper Specification Limit | AE21: =LotInfo!C30 ->  | AF21: =LotInfo!D30 ->  | AG21: =LotInfo!E30 ->  | AH21: =LotInfo!F30 ->  | AI21: =LotInfo!G30 ->  | AJ21: =LotInfo!H30 ->  | AK21: =LotInfo!I30 ->  | AL21: =LotInfo!J30 ->  | AM21: =LotInfo!K30 ->  | AN21: =LotInfo!L30 ->  | AO21: =LotInfo!M30 ->  | AP21: =LotInfo!N30 ->  | AQ21: =LotInfo!O30 ->  | AR21: =LotInfo!P30 ->  | AS21: =LotInfo!Q30 -> 96 | AT21: =LotInfo!R30 -> 5.5 | AW21: =LotInfo!J30 ->  | AX21: =LotInfo!O30 ->  | AY21: =LotInfo!P30 ->  | AZ21: =LotInfo!Q30 -> 96 | BA21: =LotInfo!R30 -> 5.5 | BD21: Upper Specification Limit | BE21: =LotInfo!J30 ->  | BF21: =LotInfo!O30 ->  | BG21: =LotInfo!P30 ->  | BH21: =LotInfo!Q30 -> 96 | BI21: =LotInfo!R30 -> 5.5
F22: Lower Specification Limit | G22: =LotInfo!C31 ->  | H22: =LotInfo!D31 ->  | I22: =LotInfo!E31 ->  | J22: =LotInfo!F31 ->  | K22: =LotInfo!G31 ->  | L22: =LotInfo!H31 ->  | M22: =LotInfo!I31 ->  | N22: =LotInfo!J31 ->  | O22: =LotInfo!K31 ->  | P22: =LotInfo!L31 ->  | Q22: =LotInfo!M31 ->  | R22: =LotInfo!N31 ->  | S22: =LotInfo!O31 ->  | T22: =LotInfo!P31 ->  | AA22: =LotInfo!Q31 -> 92 | AB22: =LotInfo!R31 -> 2.5 | AD22: =F22 -> Lower Specification Limit | AE22: =LotInfo!C31 ->  | AF22: =LotInfo!D31 ->  | AG22: =LotInfo!E31 ->  | AH22: =LotInfo!F31 ->  | AI22: =LotInfo!G31 ->  | AJ22: =LotInfo!H31 ->  | AK22: =LotInfo!I31 ->  | AL22: =LotInfo!J31 ->  | AM22: =LotInfo!K31 ->  | AN22: =LotInfo!L31 ->  | AO22: =LotInfo!M31 ->  | AP22: =LotInfo!N31 ->  | AQ22: =LotInfo!O31 ->  | AR22: =LotInfo!P31 ->  | AS22: =LotInfo!Q31 -> 92 | AT22: =LotInfo!R31 -> 2.5 | AW22: =LotInfo!J31 ->  | AX22: =LotInfo!O31 ->  | AY22: =LotInfo!P31 ->  | AZ22: =LotInfo!Q31 -> 92 | BA22: =LotInfo!R31 -> 2.5 | BD22: Lower Specification Limit | BE22: =LotInfo!J31 ->  | BF22: =LotInfo!O31 ->  | BG22: =LotInfo!P31 ->  | BH22: =LotInfo!Q31 -> 92 | BI22: =LotInfo!R31 -> 2.5
F23: =LotInfo!B32 -> Weighting Factor (w) | N23: =LotInfo!J32 -> 0.05 | S23: =LotInfo!O32 -> 0.1 | T23: =LotInfo!P32 -> 0.25 | AA23: =LotInfo!Q32 -> 0.4 | AB23: =LotInfo!R32 -> 0.2 | AD23: =LotInfo!B32 -> Weighting Factor (w) | AE23: =LotInfo!C32 -> 0 | AF23: =LotInfo!D32 -> 0 | AG23: =LotInfo!E32 -> 0 | AH23: =LotInfo!F32 -> 0 | AI23: =LotInfo!G32 -> 0 | AJ23: =LotInfo!H32 -> 0 | AK23: =LotInfo!I32 -> 0 | AL23: =LotInfo!J32 -> 0.05 | AM23: =LotInfo!K32 -> 0 | AN23: =LotInfo!L32 -> 0 | AO23: =LotInfo!M32 -> 0 | AP23: =LotInfo!N32 -> 0 | AQ23: =LotInfo!O32 -> 0.1 | AR23: =LotInfo!P32 -> 0.25 | AS23: =LotInfo!Q32 -> 0.4 | AT23: =LotInfo!R32 -> 0.2 | AW23: =LotInfo!J32 -> 0.05 | AX23: =LotInfo!O32 -> 0.1 | AY23: =LotInfo!P32 -> 0.25 | AZ23: =LotInfo!Q32 -> 0.4 | BA23: =LotInfo!R32 -> 0.2 | BD23: Weighting Factor (w) | BE23: =LotInfo!J32 -> 0.05 | BF23: =LotInfo!O32 -> 0.1 | BG23: =LotInfo!P32 -> 0.25 | BH23: =LotInfo!Q32 -> 0.4 | BI23: =LotInfo!R32 -> 0.2
F24: Rule used to check Quality | G24: =IF(LotInfo!C29="","",IF((AND(G$22="nsl / mr", G$23=0)),rule3,IF(G$23=0,rule1,rule2))) ->  | H24: =IF(LotInfo!D29="","",IF((AND(H$22="nsl / mr", H$23=0)),rule3,IF(H$23=0,rule1,rule2))) ->  | I24: =IF(LotInfo!E29="","",IF((AND(I$22="nsl / mr", I$23=0)),rule3,IF(I$23=0,rule1,rule2))) -> Rule 1 | J24: =IF(LotInfo!F29="","",IF((AND(J$22="nsl / mr", J$23=0)),rule3,IF(J$23=0,rule1,rule2))) -> Rule 1 | K24: =IF(LotInfo!G29="","",IF((AND(K$22="nsl / mr", K$23=0)),rule3,IF(K$23=0,rule1,rule2))) -> Rule 1 | L24: =IF(LotInfo!H29="","",IF((AND(L$22="nsl / mr", L$23=0)),rule3,IF(L$23=0,rule1,rule2))) -> Rule 1 | M24: =IF(LotInfo!I29="","",IF((AND(M$22="nsl / mr", M$23=0)),rule3,IF(M$23=0,rule1,rule2))) -> Rule 1 | N24: =IF(LotInfo!J29="","",IF((AND(N$22="nsl / mr", N$23=0)),rule3,IF(N$23=0,rule1,rule2))) -> Rule 2 | O24: =IF(LotInfo!K29="","",IF((AND(O$22="nsl / mr", O$23=0)),rule3,IF(O$23=0,rule1,rule2))) -> Rule 1 | P24: =IF(LotInfo!L29="","",IF((AND(P$22="nsl / mr", P$23=0)),rule3,IF(P$23=0,rule1,rule2))) -> Rule 1 | Q24: =IF(LotInfo!M29="","",IF((AND(Q$22="nsl / mr", Q$23=0)),rule3,IF(Q$23=0,rule1,rule2))) -> Rule 1 | R24: =IF(LotInfo!N29="","",IF((AND(R$22="nsl / mr", R$23=0)),rule3,IF(R$23=0,rule1,rule2))) -> Rule 1 | S24: =IF(LotInfo!O29="","",IF((AND(S$22="nsl / mr", S$23=0)),rule3,IF(S$23=0,rule1,rule2))) -> Rule 2 | T24: =IF(LotInfo!P29="","",IF((AND(T$22="nsl / mr", T$23=0)),rule3,IF(T$23=0,rule1,rule2))) -> Rule 2 | AA24: =IF((AND(AA$22="nsl / mr", AA$23=0)),rule3,IF(AA$23=0,rule1,rule2)) -> Rule 2 | AB24: =IF((AND(AB$22="nsl / mr", AB$23=0)),rule3,IF(AB$23=0,rule1,rule2)) -> Rule 2 | AE24: =G24 ->  | AG24: Rule 1 | AH24: Rule 1 | AI24: Rule 1 | AJ24: Rule 1 | AK24: Rule 1 | AL24: Rule 2 | AM24: Rule 1 | AN24: Rule 1 | AO24: Rule 1 | AP24: Rule 1 | AQ24: Rule 2 | AR24: Rule 2 | AS24: =AA24 -> Rule 2 | AT24: =AB24 -> Rule 2 | AW24: =N24 -> Rule 2 | AX24: =S24 -> Rule 2 | AY24: =T24 -> Rule 2 | AZ24: =AA24 -> Rule 2 | BA24: =AB24 -> Rule 2 | BE24: =N24 -> Rule 2 | BF24: =S24 -> Rule 2 | BG24: =T24 -> Rule 2 | BH24: =AA24 -> Rule 2 | BI24: =AB24 -> Rule 2
F25: Quality Characteristic | G25: 2" | H25: 1-1/2" | I25: 1" | J25: 3/4" | K25: 1/2" | L25: 3/8" | M25: #4 | N25: #8 | O25: #16 | P25: #30 | Q25: #50 | R25: #100 | S25: #200 | T25: B.C. | AA25: %MTD | AB25: % Air Voids | AD25: Quality Characteristic | AE25: 2" | AF25: 1-1/2" | AG25: 1" | AH25: 3/4" | AI25: 1/2" | AJ25: 3/8" | AK25: #4 | AL25: #8 | AM25: #16 | AN25: #30 | AO25: #50 | AP25: #100 | AQ25: #200 | AR25: B.C. | AS25: %MTD | AT25: Air Voids | AW25: #8 | AX25: #200 | AY25: B.C. | AZ25: %MTD | BA25: Air Voids | BD25: Quality Characteristic | BE25: #8 | BF25: #200 | BG25: B.C. | BH25: %MTD | BI25: %AV
N26: QFqc1 in Column BE | S26: QFqc2 in Column BF | T26: QFqc3 in Column BG | AA26: QFqc5 in Column BH | AB26: QFqc4 in Column BI | BE26: QFqci= [(0.5 x PWLqci) + 55]
A27: TEST NO. | B27: Date | C27: Tons in sublot | D27: Lot No. | E27: Sublot No | F27: 3 Out | AL27: Beta PWL UL Xs | AY27: Beta PWL LL Xs | BE27: Running | BF27: Running | BG27: Running | BH27: Running | BI27: Running | BJ27: Running
B28: (Beg of | C28: using Method | F28: in 1 Day? | U28: %MTD | V28: %MTD | W28: %MTD | X28: Briquette 1 | Y28: Briquette 2 | Z28: Briquette 3 | AA28: Average | AB28: Average | BE28: QFqc1 | BF28: QFqc2 | BG28: QFqc3 | BH28: QFqc5 | BI28: QFqc4 | BJ28: Composite
B29: sublot) | C29: Compaction | F29: Yes or NO | G29: 2" | H29: 1-1/2" | I29: 1" | J29: 3/4" | K29: 1/2" | L29: 3/8" | M29: #4 | N29: #8 | O29: #16 | P29: #30 | Q29: #50 | R29: #100 | S29: #200 | T29: B.C. | U29: Core 1 | V29: Core 2 | W29: Core 3 | X29: Air Voids | Y29: Air Voids | Z29: Air Voids | AA29: %MTD | AB29: Air Voids | BE29: #8 | BF29: #200 | BG29: B.C. | BH29: %MTD | BI29: %AV | BJ29: QFc
AA30: =IF(OR(U30="",V30="",W30=""),"",AVERAGE(U30:W30)) ->  | AB30: =IF(OR(X30="",Y30="",Z30=""),"",AVERAGE(X30:Z30)) ->  | AE30: =IF((AND(AE$24=rule1,AND(G30>0.01,OR(G30>AE$21,G30<AE$22)))),AE29+1,0) -> 0 | AF30: =IF((AND(AF$24=rule1,AND(H30>0.01,OR(H30>AF$21,H30<AF$22)))),AF29+1,0) -> 0 | AG30: =IF((AND(AG$24=rule1,AND(I30>0.01,OR(I30>AG$21,I30<AG$22)))),AG29+1,0) -> 0 | AH30: =IF((AND(AH$24=rule1,AND(J30>0.01,OR(J30>AH$21,J30<AH$22)))),AH29+1,0) -> 0 | AI30: =IF((AND(AI$24=rule1,AND(K30>0.01,OR(K30>AI$21,K30<AI$22)))),AI29+1,0) -> 0 | AJ30: =IF((AND(AJ$24=rule1,AND(L30>0.01,OR(L30>AJ$21,L30<AJ$22)))),AJ29+1,0) -> 0 | AK30: =IF((AND(AK$24=rule1,AND(M30>0.01,OR(M30>AK$21,M30<AK$22)))),AK29+1,0) -> 0 | AL30: No Calc | AM30: =IF((AND(AM$24=rule1,AND(O30>0.01,OR(O30>AM$21,O30<AM$22)))),AM29+1,0) -> 0 | AN30: =IF((AND(AN$24=rule1,AND(P30>0.01,OR(P30>AN$21,P30<AN$22)))),AN29+1,0) -> 0 | AO30: =IF((AND(AO$24=rule1,AND(Q30>0.01,OR(Q30>AO$21,Q30<AO$22)))),AO29+1,0) -> 0 | AP30: =IF((AND(AP$24=rule1,AND(R30>0.01,OR(R30>AP$21,R30<AP$22)))),AP29+1,0) -> 0 | AQ30: No Calc | AR30: No Calc | AS30: No Calc | AT30: No Calc | AW30: No Calc | AX30: No Calc | AY30: No Calc | AZ30: No Calc | BA30: No Calc | BE30: No Calc | BF30: No Calc | BG30: No Calc | BH30: No Calc | BI30: No Calc | BJ30: No Calc
AE31: 0 | AF31: 0 | AG31: 0 | AH31: 0 | AI31: 0 | AJ31: 0 | AK31: 0 | AL31: No Calc | AM31: 0 | AN31: 0 | AO31: 0 | AP31: 0 | AQ31: No Calc | AR31: No Calc | AS31: No Calc | AT31: No Calc | AW31: No Calc | AX31: No Calc | AY31: No Calc | AZ31: No Calc | BA31: No Calc | BE31: No Calc | BF31: No Calc | BG31: No Calc | BH31: No Calc | BI31: No Calc | BJ31: No Calc
AE32: 0 | AF32: 0 | AG32: 0 | AH32: 0 | AI32: 0 | AJ32: 0 | AK32: 0 | AL32: =IF((MAX(0,(0.5-(($AL$21-AVERAGE($N$30:N32))/(IF(STDEV($N$30:N32)<0.01,0.01,STDEV($N$30:N32)))*SQRT(COUNT($N$30:N32))/(2*(COUNT($N$30:N32)-1))))))>1,1,(MAX(0,(0.5-(($AL$21-AVERAGE($N$30:N32))/(IF(STDEV($N$30:N32)<0.01,0.01,STDEV($N$30:N32)))*SQRT(COUNT($N$30:N32))/(2*(COUNT($N$30:N32)-1))))))) ->  | AM32: 0 | AN32: 0 | AO32: 0 | AP32: 0 | AQ32: =IF((MAX(0,(0.5-(($AQ$21-AVERAGE($S$30:S32))/(IF(STDEV($S$30:S32)<0.01,0.01,STDEV($S$30:S32)))*SQRT(COUNT($S$30:S32))/(2*(COUNT($S$30:S32)-1))))))>1,1,(MAX(0,(0.5-(($AQ$21-AVERAGE($S$30:S32))/(IF(STDEV($S$30:S32)<0.01,0.01,STDEV($S$30:S32)))*SQRT(COUNT($S$30:S32))/(2*(COUNT($S$30:S32)-1))))))) ->  | AR32: =IF((MAX(0,(0.5-(($AR$21-AVERAGE($T$30:T32))/(IF(STDEV($T$30:T32)<0.01,0.01,STDEV($T$30:T32)))*SQRT(COUNT($T$30:T32))/(2*(COUNT($T$30:T32)-1))))))>1,1,(MAX(0,(0.5-(($AR$21-AVERAGE($T$30:T32))/(IF(STDEV($T$30:T32)<0.01,0.01,STDEV($T$30:T32)))*SQRT(COUNT($T$30:T32))/(2*(COUNT($T$30:T32)-1))))))) ->  | AS32: =IF((MAX(0,(0.5-(($AS$21-AVERAGE($AA$30:AA32))/(IF(STDEV($AA$30:AA32)<0.01,0.01,STDEV($AA$30:AA32)))*SQRT(COUNT($AA$30:AA32))/(2*(COUNT($AA$30:AA32)-1))))))>1,1,(MAX(0,(0.5-(($AS$21-AVERAGE($AA$30:AA32))/(IF(STDEV($AA$30:AA32)<0.01,0.01,STDEV($AA$30:AA32)))*SQRT(COUNT($AA$30:AA32))/(2*(COUNT($AA$30:AA32)-1))))))) ->  | AT32: =IF((MAX(0,(0.5-(($AT$21-AVERAGE($AB$30:AB32))/(IF(STDEV($AB$30:AB32)<0.01,0.01,STDEV($AB$30:AB32)))*SQRT(COUNT($AB$30:AB32))/(2*(COUNT($AB$30:AB32)-1))))))>1,1,(MAX(0,(0.5-(($AT$21-AVERAGE($AB$30:AB32))/(IF(STDEV($AB$30:AB32)<0.01,0.01,STDEV($AB$30:AB32)))*SQRT(COUNT($AB$30:AB32))/(2*(COUNT($AB$30:AB32)-1))))))) ->  | AW32: =IF((MAX(0,(0.5-((AVERAGE($N$30:N32)-$AW$22)/(IF(STDEV($N$30:N32)<0.01,0.01,STDEV($N$30:N32)))*SQRT(COUNT($N$30:N32))/(2*(COUNT($N$30:N32)-1))))))>1,1,(MAX(0,(0.5-((AVERAGE($N$30:N32)-$AW$22)/(IF(STDEV($N$30:N32)<0.01,0.01,STDEV($N$30:N32)))*SQRT(COUNT($N$30:N32))/(2*(COUNT($N$30:N32)-1))))))) ->  | AX32: =IF((MAX(0,(0.5-((AVERAGE($S$30:S32)-$AX$22)/(IF(STDEV($S$30:S32)<0.01,0.01,STDEV($S$30:S32)))*SQRT(COUNT($S$30:S32))/(2*(COUNT($S$30:S32)-1))))))>1,1,(MAX(0,(0.5-((AVERAGE($S$30:S32)-$AX$22)/(IF(STDEV($S$30:S32)<0.01,0.01,STDEV($S$30:S32)))*SQRT(COUNT($S$30:S32))/(2*(COUNT($S$30:S32)-1))))))) ->  | AY32: =IF((MAX(0,(0.5-((AVERAGE($T$30:T32)-$AY$22)/(IF(STDEV($T$30:T32)<0.01,0.01,STDEV($T$30:T32)))*SQRT(COUNT($T$30:T32))/(2*(COUNT($T$30:T32)-1))))))>1,1,(MAX(0,(0.5-((AVERAGE($T$30:T32)-$AY$22)/(IF(STDEV($T$30:T32)<0.01,0.01,STDEV($T$30:T32)))*SQRT(COUNT($T$30:T32))/(2*(COUNT($T$30:T32)-1))))))) ->  | AZ32: =IF((MAX(0,(0.5-((AVERAGE($AA$30:AA32)-$AZ$22)/(IF(STDEV($AA$30:AA32)<0.01,0.01,STDEV($AA$30:AA32)))*SQRT(COUNT($AA$30:AA32))/(2*(COUNT($AA$30:AA32)-1))))))>1,1,(MAX(0,(0.5-((AVERAGE($AA$30:AA32)-$AZ$22)/(IF(STDEV($AA$30:AA32)<0.01,0.01,STDEV($AA$30:AA32)))*SQRT(COUNT($AA$30:AA32))/(2*(COUNT($AA$30:AA32)-1))))))) ->  | BA32: =IF((MAX(0,(0.5-((AVERAGE($AB$30:AB32)-$BA$22)/(IF(STDEV($AB$30:AB32)<0.01,0.01,STDEV($AB$30:AB32)))*SQRT(COUNT($AB$30:AB32))/(2*(COUNT($AB$30:AB32)-1))))))>1,1,(MAX(0,(0.5-((AVERAGE($AB$30:AB32)-$BA$22)/(IF(STDEV($AB$30:AB32)<0.01,0.01,STDEV($AB$30:AB32)))*SQRT(COUNT($AB$30:AB32))/(2*(COUNT($AB$30:AB32)-1))))))) ->  | BE32: =(0.5 * ((100-(BETADIST(AL32,((COUNT(N$30:N32))/2)-1,((COUNT(N$30:N32))/2)-1))*100) + (100-(BETADIST(AW32,((COUNT(N$30:N32))/2)-1,((COUNT(N$30:N32))/2)-1))*100) - 100) + 55) / 100 ->  | BF32: =(0.5 * ((100-(BETADIST(AQ32,((COUNT(S$30:S32))/2)-1,((COUNT(S$30:S32))/2)-1))*100) + (100-(BETADIST(AX32,((COUNT(S$30:S32))/2)-1,((COUNT(S$30:S32))/2)-1))*100) - 100) + 55) / 100 ->  | BG32: =(0.5 * ((100-(BETADIST(AR32,((COUNT(T$30:T32))/2)-1,((COUNT(T$30:T32))/2)-1))*100) + (100-(BETADIST(AY32,((COUNT(T$30:T32))/2)-1,((COUNT(T$30:T32))/2)-1))*100) - 100) + 55) / 100 ->  | BH32: =(0.5 * ((100-(BETADIST(AS32,((COUNT(AA$30:AA32))/2)-1,((COUNT(AA$30:AA32))/2)-1))*100) + (100-(BETADIST(AZ32,((COUNT(AA$30:AA32))/2)-1,((COUNT(AA$30:AA32))/2)-1))*100) - 100) + 55) / 100 ->  | BI32: =(0.5 * ((100-(BETADIST(AT32,((COUNT(AB$30:AB32))/2)-1,((COUNT(AB$30:AB32))/2)-1))*100) + (100-(BETADIST(BA32,((COUNT(AB$30:AB32))/2)-1,((COUNT(AB$30:AB32))/2)-1))*100) - 100) + 55) / 100 ->  | BJ32: =(BE32*BE$23)+(BF32*BF$23)+(BG32*BG$23)+(BH32*BH$23)+(BI32*BI$23) -> 
AE33: 0 | AF33: 0 | AG33: 0 | AH33: 0 | AI33: 0 | AJ33: 0 | AK33: 0 | AL33: =IF((MAX(0,(0.5-(($AL$21-AVERAGE($N$30:N33))/(IF(STDEV($N$30:N33)<0.01,0.01,STDEV($N$30:N33)))*SQRT(COUNT($N$30:N33))/(2*(COUNT($N$30:N33)-1))))))>1,1,(MAX(0,(0.5-(($AL$21-AVERAGE($N$30:N33))/(IF(STDEV($N$30:N33)<0.01,0.01,STDEV($N$30:N33)))*SQRT(COUNT($N$30:N33))/(2*(COUNT($N$30:N33)-1))))))) ->  | AM33: 0 | AN33: 0 | AO33: 0 | AP33: 0 | AQ33: =IF((MAX(0,(0.5-(($AQ$21-AVERAGE($S$30:S33))/(IF(STDEV($S$30:S33)<0.01,0.01,STDEV($S$30:S33)))*SQRT(COUNT($S$30:S33))/(2*(COUNT($S$30:S33)-1))))))>1,1,(MAX(0,(0.5-(($AQ$21-AVERAGE($S$30:S33))/(IF(STDEV($S$30:S33)<0.01,0.01,STDEV($S$30:S33)))*SQRT(COUNT($S$30:S33))/(2*(COUNT($S$30:S33)-1))))))) ->  | AR33: =IF((MAX(0,(0.5-(($AR$21-AVERAGE($T$30:T33))/(IF(STDEV($T$30:T33)<0.01,0.01,STDEV($T$30:T33)))*SQRT(COUNT($T$30:T33))/(2*(COUNT($T$30:T33)-1))))))>1,1,(MAX(0,(0.5-(($AR$21-AVERAGE($T$30:T33))/(IF(STDEV($T$30:T33)<0.01,0.01,STDEV($T$30:T33)))*SQRT(COUNT($T$30:T33))/(2*(COUNT($T$30:T33)-1))))))) ->  | AS33: =IF((MAX(0,(0.5-(($AS$21-AVERAGE($AA$30:AA33))/(IF(STDEV($AA$30:AA33)<0.01,0.01,STDEV($AA$30:AA33)))*SQRT(COUNT($AA$30:AA33))/(2*(COUNT($AA$30:AA33)-1))))))>1,1,(MAX(0,(0.5-(($AS$21-AVERAGE($AA$30:AA33))/(IF(STDEV($AA$30:AA33)<0.01,0.01,STDEV($AA$30:AA33)))*SQRT(COUNT($AA$30:AA33))/(2*(COUNT($AA$30:AA33)-1))))))) ->  | AT33: =IF((MAX(0,(0.5-(($AT$21-AVERAGE($AB$30:AB33))/(IF(STDEV($AB$30:AB33)<0.01,0.01,STDEV($AB$30:AB33)))*SQRT(COUNT($AB$30:AB33))/(2*(COUNT($AB$30:AB33)-1))))))>1,1,(MAX(0,(0.5-(($AT$21-AVERAGE($AB$30:AB33))/(IF(STDEV($AB$30:AB33)<0.01,0.01,STDEV($AB$30:AB33)))*SQRT(COUNT($AB$30:AB33))/(2*(COUNT($AB$30:AB33)-1))))))) ->  | AW33: =IF((MAX(0,(0.5-((AVERAGE($N$30:N33)-$AW$22)/(IF(STDEV($N$30:N33)<0.01,0.01,STDEV($N$30:N33)))*SQRT(COUNT($N$30:N33))/(2*(COUNT($N$30:N33)-1))))))>1,1,(MAX(0,(0.5-((AVERAGE($N$30:N33)-$AW$22)/(IF(STDEV($N$30:N33)<0.01,0.01,STDEV($N$30:N33)))*SQRT(COUNT($N$30:N33))/(2*(COUNT($N$30:N33)-1))))))) ->  | AX33: =IF((MAX(0,(0.5-((AVERAGE($S$30:S33)-$AX$22)/(IF(STDEV($S$30:S33)<0.01,0.01,STDEV($S$30:S33)))*SQRT(COUNT($S$30:S33))/(2*(COUNT($S$30:S33)-1))))))>1,1,(MAX(0,(0.5-((AVERAGE($S$30:S33)-$AX$22)/(IF(STDEV($S$30:S33)<0.01,0.01,STDEV($S$30:S33)))*SQRT(COUNT($S$30:S33))/(2*(COUNT($S$30:S33)-1))))))) ->  | AY33: =IF((MAX(0,(0.5-((AVERAGE($T$30:T33)-$AY$22)/(IF(STDEV($T$30:T33)<0.01,0.01,STDEV($T$30:T33)))*SQRT(COUNT($T$30:T33))/(2*(COUNT($T$30:T33)-1))))))>1,1,(MAX(0,(0.5-((AVERAGE($T$30:T33)-$AY$22)/(IF(STDEV($T$30:T33)<0.01,0.01,STDEV($T$30:T33)))*SQRT(COUNT($T$30:T33))/(2*(COUNT($T$30:T33)-1))))))) ->  | AZ33: =IF((MAX(0,(0.5-((AVERAGE($AA$30:AA33)-$AZ$22)/(IF(STDEV($AA$30:AA33)<0.01,0.01,STDEV($AA$30:AA33)))*SQRT(COUNT($AA$30:AA33))/(2*(COUNT($AA$30:AA33)-1))))))>1,1,(MAX(0,(0.5-((AVERAGE($AA$30:AA33)-$AZ$22)/(IF(STDEV($AA$30:AA33)<0.01,0.01,STDEV($AA$30:AA33)))*SQRT(COUNT($AA$30:AA33))/(2*(COUNT($AA$30:AA33)-1))))))) ->  | BA33: =IF((MAX(0,(0.5-((AVERAGE($AB$30:AB33)-$BA$22)/(IF(STDEV($AB$30:AB33)<0.01,0.01,STDEV($AB$30:AB33)))*SQRT(COUNT($AB$30:AB33))/(2*(COUNT($AB$30:AB33)-1))))))>1,1,(MAX(0,(0.5-((AVERAGE($AB$30:AB33)-$BA$22)/(IF(STDEV($AB$30:AB33)<0.01,0.01,STDEV($AB$30:AB33)))*SQRT(COUNT($AB$30:AB33))/(2*(COUNT($AB$30:AB33)-1))))))) ->  | BE33: =(0.5 * ((100-(BETADIST(AL33,((COUNT(N$30:N33))/2)-1,((COUNT(N$30:N33))/2)-1))*100) + (100-(BETADIST(AW33,((COUNT(N$30:N33))/2)-1,((COUNT(N$30:N33))/2)-1))*100) - 100) + 55) / 100 ->  | BF33: =(0.5 * ((100-(BETADIST(AQ33,((COUNT(S$30:S33))/2)-1,((COUNT(S$30:S33))/2)-1))*100) + (100-(BETADIST(AX33,((COUNT(S$30:S33))/2)-1,((COUNT(S$30:S33))/2)-1))*100) - 100) + 55) / 100 ->  | BG33: =(0.5 * ((100-(BETADIST(AR33,((COUNT(T$30:T33))/2)-1,((COUNT(T$30:T33))/2)-1))*100) + (100-(BETADIST(AY33,((COUNT(T$30:T33))/2)-1,((COUNT(T$30:T33))/2)-1))*100) - 100) + 55) / 100 ->  | BH33: =(0.5 * ((100-(BETADIST(AS33,((COUNT(AA$30:AA33))/2)-1,((COUNT(AA$30:AA33))/2)-1))*100) + (100-(BETADIST(AZ33,((COUNT(AA$30:AA33))/2)-1,((COUNT(AA$30:AA33))/2)-1))*100) - 100) + 55) / 100 ->  | BI33: =(0.5 * ((100-(BETADIST(AT33,((COUNT(AB$30:AB33))/2)-1,((COUNT(AB$30:AB33))/2)-1))*100) + (100-(BETADIST(BA33,((COUNT(AB$30:AB33))/2)-1,((COUNT(AB$30:AB33))/2)-1))*100) - 100) + 55) / 100 -> 
AE34: 0 | AF34: 0 | AG34: 0 | AH34: 0 | AI34: 0 | AJ34: 0 | AK34: 0 | AL34: =IF((MAX(0,(0.5-(($AL$21-AVERAGE($N$30:N34))/(IF(STDEV($N$30:N34)<0.01,0.01,STDEV($N$30:N34)))*SQRT(COUNT($N$30:N34))/(2*(COUNT($N$30:N34)-1))))))>1,1,(MAX(0,(0.5-(($AL$21-AVERAGE($N$30:N34))/(IF(STDEV($N$30:N34)<0.01,0.01,STDEV($N$30:N34)))*SQRT(COUNT($N$30:N34))/(2*(COUNT($N$30:N34)-1))))))) ->  | AM34: 0 | AN34: 0 | AO34: 0 | AP34: 0 | AQ34: =IF((MAX(0,(0.5-(($AQ$21-AVERAGE($S$30:S34))/(IF(STDEV($S$30:S34)<0.01,0.01,STDEV($S$30:S34)))*SQRT(COUNT($S$30:S34))/(2*(COUNT($S$30:S34)-1))))))>1,1,(MAX(0,(0.5-(($AQ$21-AVERAGE($S$30:S34))/(IF(STDEV($S$30:S34)<0.01,0.01,STDEV($S$30:S34)))*SQRT(COUNT($S$30:S34))/(2*(COUNT($S$30:S34)-1))))))) ->  | AR34: =IF((MAX(0,(0.5-(($AR$21-AVERAGE($T$30:T34))/(IF(STDEV($T$30:T34)<0.01,0.01,STDEV($T$30:T34)))*SQRT(COUNT($T$30:T34))/(2*(COUNT($T$30:T34)-1))))))>1,1,(MAX(0,(0.5-(($AR$21-AVERAGE($T$30:T34))/(IF(STDEV($T$30:T34)<0.01,0.01,STDEV($T$30:T34)))*SQRT(COUNT($T$30:T34))/(2*(COUNT($T$30:T34)-1))))))) ->  | AS34: =IF((MAX(0,(0.5-(($AS$21-AVERAGE($AA$30:AA34))/(IF(STDEV($AA$30:AA34)<0.01,0.01,STDEV($AA$30:AA34)))*SQRT(COUNT($AA$30:AA34))/(2*(COUNT($AA$30:AA34)-1))))))>1,1,(MAX(0,(0.5-(($AS$21-AVERAGE($AA$30:AA34))/(IF(STDEV($AA$30:AA34)<0.01,0.01,STDEV($AA$30:AA34)))*SQRT(COUNT($AA$30:AA34))/(2*(COUNT($AA$30:AA34)-1))))))) ->  | AT34: =IF((MAX(0,(0.5-(($AT$21-AVERAGE($AB$30:AB34))/(IF(STDEV($AB$30:AB34)<0.01,0.01,STDEV($AB$30:AB34)))*SQRT(COUNT($AB$30:AB34))/(2*(COUNT($AB$30:AB34)-1))))))>1,1,(MAX(0,(0.5-(($AT$21-AVERAGE($AB$30:AB34))/(IF(STDEV($AB$30:AB34)<0.01,0.01,STDEV($AB$30:AB34)))*SQRT(COUNT($AB$30:AB34))/(2*(COUNT($AB$30:AB34)-1))))))) ->  | AW34: =IF((MAX(0,(0.5-((AVERAGE($N$30:N34)-$AW$22)/(IF(STDEV($N$30:N34)<0.01,0.01,STDEV($N$30:N34)))*SQRT(COUNT($N$30:N34))/(2*(COUNT($N$30:N34)-1))))))>1,1,(MAX(0,(0.5-((AVERAGE($N$30:N34)-$AW$22)/(IF(STDEV($N$30:N34)<0.01,0.01,STDEV($N$30:N34)))*SQRT(COUNT($N$30:N34))/(2*(COUNT($N$30:N34)-1))))))) ->  | AX34: =IF((MAX(0,(0.5-((AVERAGE($S$30:S34)-$AX$22)/(IF(STDEV($S$30:S34)<0.01,0.01,STDEV($S$30:S34)))*SQRT(COUNT($S$30:S34))/(2*(COUNT($S$30:S34)-1))))))>1,1,(MAX(0,(0.5-((AVERAGE($S$30:S34)-$AX$22)/(IF(STDEV($S$30:S34)<0.01,0.01,STDEV($S$30:S34)))*SQRT(COUNT($S$30:S34))/(2*(COUNT($S$30:S34)-1))))))) ->  | AY34: =IF((MAX(0,(0.5-((AVERAGE($T$30:T34)-$AY$22)/(IF(STDEV($T$30:T34)<0.01,0.01,STDEV($T$30:T34)))*SQRT(COUNT($T$30:T34))/(2*(COUNT($T$30:T34)-1))))))>1,1,(MAX(0,(0.5-((AVERAGE($T$30:T34)-$AY$22)/(IF(STDEV($T$30:T34)<0.01,0.01,STDEV($T$30:T34)))*SQRT(COUNT($T$30:T34))/(2*(COUNT($T$30:T34)-1))))))) ->  | AZ34: =IF((MAX(0,(0.5-((AVERAGE($AA$30:AA34)-$AZ$22)/(IF(STDEV($AA$30:AA34)<0.01,0.01,STDEV($AA$30:AA34)))*SQRT(COUNT($AA$30:AA34))/(2*(COUNT($AA$30:AA34)-1))))))>1,1,(MAX(0,(0.5-((AVERAGE($AA$30:AA34)-$AZ$22)/(IF(STDEV($AA$30:AA34)<0.01,0.01,STDEV($AA$30:AA34)))*SQRT(COUNT($AA$30:AA34))/(2*(COUNT($AA$30:AA34)-1))))))) ->  | BA34: =IF((MAX(0,(0.5-((AVERAGE($AB$30:AB34)-$BA$22)/(IF(STDEV($AB$30:AB34)<0.01,0.01,STDEV($AB$30:AB34)))*SQRT(COUNT($AB$30:AB34))/(2*(COUNT($AB$30:AB34)-1))))))>1,1,(MAX(0,(0.5-((AVERAGE($AB$30:AB34)-$BA$22)/(IF(STDEV($AB$30:AB34)<0.01,0.01,STDEV($AB$30:AB34)))*SQRT(COUNT($AB$30:AB34))/(2*(COUNT($AB$30:AB34)-1))))))) ->  | BE34: =(0.5 * ((100-(BETADIST(AL34,((COUNT(N$30:N34))/2)-1,((COUNT(N$30:N34))/2)-1))*100) + (100-(BETADIST(AW34,((COUNT(N$30:N34))/2)-1,((COUNT(N$30:N34))/2)-1))*100) - 100) + 55) / 100 ->  | BF34: =(0.5 * ((100-(BETADIST(AQ34,((COUNT(S$30:S34))/2)-1,((COUNT(S$30:S34))/2)-1))*100) + (100-(BETADIST(AX34,((COUNT(S$30:S34))/2)-1,((COUNT(S$30:S34))/2)-1))*100) - 100) + 55) / 100 ->  | BG34: =(0.5 * ((100-(BETADIST(AR34,((COUNT(T$30:T34))/2)-1,((COUNT(T$30:T34))/2)-1))*100) + (100-(BETADIST(AY34,((COUNT(T$30:T34))/2)-1,((COUNT(T$30:T34))/2)-1))*100) - 100) + 55) / 100 ->  | BH34: =(0.5 * ((100-(BETADIST(AS34,((COUNT(AA$30:AA34))/2)-1,((COUNT(AA$30:AA34))/2)-1))*100) + (100-(BETADIST(AZ34,((COUNT(AA$30:AA34))/2)-1,((COUNT(AA$30:AA34))/2)-1))*100) - 100) + 55) / 100 ->  | BI34: =(0.5 * ((100-(BETADIST(AT34,((COUNT(AB$30:AB34))/2)-1,((COUNT(AB$30:AB34))/2)-1))*100) + (100-(BETADIST(BA34,((COUNT(AB$30:AB34))/2)-1,((COUNT(AB$30:AB34))/2)-1))*100) - 100) + 55) / 100 -> 
AE35: 0 | AF35: 0 | AG35: 0 | AH35: 0 | AI35: 0 | AJ35: 0 | AK35: 0 | AL35: =IF((MAX(0,(0.5-(($AL$21-AVERAGE($N$30:N35))/(IF(STDEV($N$30:N35)<0.01,0.01,STDEV($N$30:N35)))*SQRT(COUNT($N$30:N35))/(2*(COUNT($N$30:N35)-1))))))>1,1,(MAX(0,(0.5-(($AL$21-AVERAGE($N$30:N35))/(IF(STDEV($N$30:N35)<0.01,0.01,STDEV($N$30:N35)))*SQRT(COUNT($N$30:N35))/(2*(COUNT($N$30:N35)-1))))))) ->  | AM35: 0 | AN35: 0 | AO35: 0 | AP35: 0 | AQ35: =IF((MAX(0,(0.5-(($AQ$21-AVERAGE($S$30:S35))/(IF(STDEV($S$30:S35)<0.01,0.01,STDEV($S$30:S35)))*SQRT(COUNT($S$30:S35))/(2*(COUNT($S$30:S35)-1))))))>1,1,(MAX(0,(0.5-(($AQ$21-AVERAGE($S$30:S35))/(IF(STDEV($S$30:S35)<0.01,0.01,STDEV($S$30:S35)))*SQRT(COUNT($S$30:S35))/(2*(COUNT($S$30:S35)-1))))))) ->  | AR35: =IF((MAX(0,(0.5-(($AR$21-AVERAGE($T$30:T35))/(IF(STDEV($T$30:T35)<0.01,0.01,STDEV($T$30:T35)))*SQRT(COUNT($T$30:T35))/(2*(COUNT($T$30:T35)-1))))))>1,1,(MAX(0,(0.5-(($AR$21-AVERAGE($T$30:T35))/(IF(STDEV($T$30:T35)<0.01,0.01,STDEV($T$30:T35)))*SQRT(COUNT($T$30:T35))/(2*(COUNT($T$30:T35)-1))))))) ->  | AS35: =IF((MAX(0,(0.5-(($AS$21-AVERAGE($AA$30:AA35))/(IF(STDEV($AA$30:AA35)<0.01,0.01,STDEV($AA$30:AA35)))*SQRT(COUNT($AA$30:AA35))/(2*(COUNT($AA$30:AA35)-1))))))>1,1,(MAX(0,(0.5-(($AS$21-AVERAGE($AA$30:AA35))/(IF(STDEV($AA$30:AA35)<0.01,0.01,STDEV($AA$30:AA35)))*SQRT(COUNT($AA$30:AA35))/(2*(COUNT($AA$30:AA35)-1))))))) ->  | AT35: =IF((MAX(0,(0.5-(($AT$21-AVERAGE($AB$30:AB35))/(IF(STDEV($AB$30:AB35)<0.01,0.01,STDEV($AB$30:AB35)))*SQRT(COUNT($AB$30:AB35))/(2*(COUNT($AB$30:AB35)-1))))))>1,1,(MAX(0,(0.5-(($AT$21-AVERAGE($AB$30:AB35))/(IF(STDEV($AB$30:AB35)<0.01,0.01,STDEV($AB$30:AB35)))*SQRT(COUNT($AB$30:AB35))/(2*(COUNT($AB$30:AB35)-1))))))) ->  | AW35: =IF((MAX(0,(0.5-((AVERAGE($N$30:N35)-$AW$22)/(IF(STDEV($N$30:N35)<0.01,0.01,STDEV($N$30:N35)))*SQRT(COUNT($N$30:N35))/(2*(COUNT($N$30:N35)-1))))))>1,1,(MAX(0,(0.5-((AVERAGE($N$30:N35)-$AW$22)/(IF(STDEV($N$30:N35)<0.01,0.01,STDEV($N$30:N35)))*SQRT(COUNT($N$30:N35))/(2*(COUNT($N$30:N35)-1))))))) ->  | AX35: =IF((MAX(0,(0.5-((AVERAGE($S$30:S35)-$AX$22)/(IF(STDEV($S$30:S35)<0.01,0.01,STDEV($S$30:S35)))*SQRT(COUNT($S$30:S35))/(2*(COUNT($S$30:S35)-1))))))>1,1,(MAX(0,(0.5-((AVERAGE($S$30:S35)-$AX$22)/(IF(STDEV($S$30:S35)<0.01,0.01,STDEV($S$30:S35)))*SQRT(COUNT($S$30:S35))/(2*(COUNT($S$30:S35)-1))))))) ->  | AY35: =IF((MAX(0,(0.5-((AVERAGE($T$30:T35)-$AY$22)/(IF(STDEV($T$30:T35)<0.01,0.01,STDEV($T$30:T35)))*SQRT(COUNT($T$30:T35))/(2*(COUNT($T$30:T35)-1))))))>1,1,(MAX(0,(0.5-((AVERAGE($T$30:T35)-$AY$22)/(IF(STDEV($T$30:T35)<0.01,0.01,STDEV($T$30:T35)))*SQRT(COUNT($T$30:T35))/(2*(COUNT($T$30:T35)-1))))))) ->  | AZ35: =IF((MAX(0,(0.5-((AVERAGE($AA$30:AA35)-$AZ$22)/(IF(STDEV($AA$30:AA35)<0.01,0.01,STDEV($AA$30:AA35)))*SQRT(COUNT($AA$30:AA35))/(2*(COUNT($AA$30:AA35)-1))))))>1,1,(MAX(0,(0.5-((AVERAGE($AA$30:AA35)-$AZ$22)/(IF(STDEV($AA$30:AA35)<0.01,0.01,STDEV($AA$30:AA35)))*SQRT(COUNT($AA$30:AA35))/(2*(COUNT($AA$30:AA35)-1))))))) ->  | BA35: =IF((MAX(0,(0.5-((AVERAGE($AB$30:AB35)-$BA$22)/(IF(STDEV($AB$30:AB35)<0.01,0.01,STDEV($AB$30:AB35)))*SQRT(COUNT($AB$30:AB35))/(2*(COUNT($AB$30:AB35)-1))))))>1,1,(MAX(0,(0.5-((AVERAGE($AB$30:AB35)-$BA$22)/(IF(STDEV($AB$30:AB35)<0.01,0.01,STDEV($AB$30:AB35)))*SQRT(COUNT($AB$30:AB35))/(2*(COUNT($AB$30:AB35)-1))))))) ->  | BE35: =(0.5 * ((100-(BETADIST(AL35,((COUNT(N$30:N35))/2)-1,((COUNT(N$30:N35))/2)-1))*100) + (100-(BETADIST(AW35,((COUNT(N$30:N35))/2)-1,((COUNT(N$30:N35))/2)-1))*100) - 100) + 55) / 100 ->  | BF35: =(0.5 * ((100-(BETADIST(AQ35,((COUNT(S$30:S35))/2)-1,((COUNT(S$30:S35))/2)-1))*100) + (100-(BETADIST(AX35,((COUNT(S$30:S35))/2)-1,((COUNT(S$30:S35))/2)-1))*100) - 100) + 55) / 100 ->  | BG35: =(0.5 * ((100-(BETADIST(AR35,((COUNT(T$30:T35))/2)-1,((COUNT(T$30:T35))/2)-1))*100) + (100-(BETADIST(AY35,((COUNT(T$30:T35))/2)-1,((COUNT(T$30:T35))/2)-1))*100) - 100) + 55) / 100 ->  | BH35: =(0.5 * ((100-(BETADIST(AS35,((COUNT(AA$30:AA35))/2)-1,((COUNT(AA$30:AA35))/2)-1))*100) + (100-(BETADIST(AZ35,((COUNT(AA$30:AA35))/2)-1,((COUNT(AA$30:AA35))/2)-1))*100) - 100) + 55) / 100 ->  | BI35: =(0.5 * ((100-(BETADIST(AT35,((COUNT(AB$30:AB35))/2)-1,((COUNT(AB$30:AB35))/2)-1))*100) + (100-(BETADIST(BA35,((COUNT(AB$30:AB35))/2)-1,((COUNT(AB$30:AB35))/2)-1))*100) - 100) + 55) / 100 -> 
AE36: 0 | AF36: 0 | AG36: 0 | AH36: 0 | AI36: 0 | AJ36: 0 | AK36: 0 | AL36: =IF((MAX(0,(0.5-(($AL$21-AVERAGE($N$30:N36))/(IF(STDEV($N$30:N36)<0.01,0.01,STDEV($N$30:N36)))*SQRT(COUNT($N$30:N36))/(2*(COUNT($N$30:N36)-1))))))>1,1,(MAX(0,(0.5-(($AL$21-AVERAGE($N$30:N36))/(IF(STDEV($N$30:N36)<0.01,0.01,STDEV($N$30:N36)))*SQRT(COUNT($N$30:N36))/(2*(COUNT($N$30:N36)-1))))))) ->  | AM36: 0 | AN36: 0 | AO36: 0 | AP36: 0 | AQ36: =IF((MAX(0,(0.5-(($AQ$21-AVERAGE($S$30:S36))/(IF(STDEV($S$30:S36)<0.01,0.01,STDEV($S$30:S36)))*SQRT(COUNT($S$30:S36))/(2*(COUNT($S$30:S36)-1))))))>1,1,(MAX(0,(0.5-(($AQ$21-AVERAGE($S$30:S36))/(IF(STDEV($S$30:S36)<0.01,0.01,STDEV($S$30:S36)))*SQRT(COUNT($S$30:S36))/(2*(COUNT($S$30:S36)-1))))))) ->  | AR36: =IF((MAX(0,(0.5-(($AR$21-AVERAGE($T$30:T36))/(IF(STDEV($T$30:T36)<0.01,0.01,STDEV($T$30:T36)))*SQRT(COUNT($T$30:T36))/(2*(COUNT($T$30:T36)-1))))))>1,1,(MAX(0,(0.5-(($AR$21-AVERAGE($T$30:T36))/(IF(STDEV($T$30:T36)<0.01,0.01,STDEV($T$30:T36)))*SQRT(COUNT($T$30:T36))/(2*(COUNT($T$30:T36)-1))))))) ->  | AS36: =IF((MAX(0,(0.5-(($AS$21-AVERAGE($AA$30:AA36))/(IF(STDEV($AA$30:AA36)<0.01,0.01,STDEV($AA$30:AA36)))*SQRT(COUNT($AA$30:AA36))/(2*(COUNT($AA$30:AA36)-1))))))>1,1,(MAX(0,(0.5-(($AS$21-AVERAGE($AA$30:AA36))/(IF(STDEV($AA$30:AA36)<0.01,0.01,STDEV($AA$30:AA36)))*SQRT(COUNT($AA$30:AA36))/(2*(COUNT($AA$30:AA36)-1))))))) ->  | AT36: =IF((MAX(0,(0.5-(($AT$21-AVERAGE($AB$30:AB36))/(IF(STDEV($AB$30:AB36)<0.01,0.01,STDEV($AB$30:AB36)))*SQRT(COUNT($AB$30:AB36))/(2*(COUNT($AB$30:AB36)-1))))))>1,1,(MAX(0,(0.5-(($AT$21-AVERAGE($AB$30:AB36))/(IF(STDEV($AB$30:AB36)<0.01,0.01,STDEV($AB$30:AB36)))*SQRT(COUNT($AB$30:AB36))/(2*(COUNT($AB$30:AB36)-1))))))) ->  | AW36: =IF((MAX(0,(0.5-((AVERAGE($N$30:N36)-$AW$22)/(IF(STDEV($N$30:N36)<0.01,0.01,STDEV($N$30:N36)))*SQRT(COUNT($N$30:N36))/(2*(COUNT($N$30:N36)-1))))))>1,1,(MAX(0,(0.5-((AVERAGE($N$30:N36)-$AW$22)/(IF(STDEV($N$30:N36)<0.01,0.01,STDEV($N$30:N36)))*SQRT(COUNT($N$30:N36))/(2*(COUNT($N$30:N36)-1))))))) ->  | AX36: =IF((MAX(0,(0.5-((AVERAGE($S$30:S36)-$AX$22)/(IF(STDEV($S$30:S36)<0.01,0.01,STDEV($S$30:S36)))*SQRT(COUNT($S$30:S36))/(2*(COUNT($S$30:S36)-1))))))>1,1,(MAX(0,(0.5-((AVERAGE($S$30:S36)-$AX$22)/(IF(STDEV($S$30:S36)<0.01,0.01,STDEV($S$30:S36)))*SQRT(COUNT($S$30:S36))/(2*(COUNT($S$30:S36)-1))))))) ->  | AY36: =IF((MAX(0,(0.5-((AVERAGE($T$30:T36)-$AY$22)/(IF(STDEV($T$30:T36)<0.01,0.01,STDEV($T$30:T36)))*SQRT(COUNT($T$30:T36))/(2*(COUNT($T$30:T36)-1))))))>1,1,(MAX(0,(0.5-((AVERAGE($T$30:T36)-$AY$22)/(IF(STDEV($T$30:T36)<0.01,0.01,STDEV($T$30:T36)))*SQRT(COUNT($T$30:T36))/(2*(COUNT($T$30:T36)-1))))))) ->  | AZ36: =IF((MAX(0,(0.5-((AVERAGE($AA$30:AA36)-$AZ$22)/(IF(STDEV($AA$30:AA36)<0.01,0.01,STDEV($AA$30:AA36)))*SQRT(COUNT($AA$30:AA36))/(2*(COUNT($AA$30:AA36)-1))))))>1,1,(MAX(0,(0.5-((AVERAGE($AA$30:AA36)-$AZ$22)/(IF(STDEV($AA$30:AA36)<0.01,0.01,STDEV($AA$30:AA36)))*SQRT(COUNT($AA$30:AA36))/(2*(COUNT($AA$30:AA36)-1))))))) ->  | BA36: =IF((MAX(0,(0.5-((AVERAGE($AB$30:AB36)-$BA$22)/(IF(STDEV($AB$30:AB36)<0.01,0.01,STDEV($AB$30:AB36)))*SQRT(COUNT($AB$30:AB36))/(2*(COUNT($AB$30:AB36)-1))))))>1,1,(MAX(0,(0.5-((AVERAGE($AB$30:AB36)-$BA$22)/(IF(STDEV($AB$30:AB36)<0.01,0.01,STDEV($AB$30:AB36)))*SQRT(COUNT($AB$30:AB36))/(2*(COUNT($AB$30:AB36)-1))))))) ->  | BE36: =(0.5 * ((100-(BETADIST(AL36,((COUNT(N$30:N36))/2)-1,((COUNT(N$30:N36))/2)-1))*100) + (100-(BETADIST(AW36,((COUNT(N$30:N36))/2)-1,((COUNT(N$30:N36))/2)-1))*100) - 100) + 55) / 100 ->  | BF36: =(0.5 * ((100-(BETADIST(AQ36,((COUNT(S$30:S36))/2)-1,((COUNT(S$30:S36))/2)-1))*100) + (100-(BETADIST(AX36,((COUNT(S$30:S36))/2)-1,((COUNT(S$30:S36))/2)-1))*100) - 100) + 55) / 100 ->  | BG36: =(0.5 * ((100-(BETADIST(AR36,((COUNT(T$30:T36))/2)-1,((COUNT(T$30:T36))/2)-1))*100) + (100-(BETADIST(AY36,((COUNT(T$30:T36))/2)-1,((COUNT(T$30:T36))/2)-1))*100) - 100) + 55) / 100 ->  | BH36: =(0.5 * ((100-(BETADIST(AS36,((COUNT(AA$30:AA36))/2)-1,((COUNT(AA$30:AA36))/2)-1))*100) + (100-(BETADIST(AZ36,((COUNT(AA$30:AA36))/2)-1,((COUNT(AA$30:AA36))/2)-1))*100) - 100) + 55) / 100 ->  | BI36: =(0.5 * ((100-(BETADIST(AT36,((COUNT(AB$30:AB36))/2)-1,((COUNT(AB$30:AB36))/2)-1))*100) + (100-(BETADIST(BA36,((COUNT(AB$30:AB36))/2)-1,((COUNT(AB$30:AB36))/2)-1))*100) - 100) + 55) / 100 -> 
AE37: 0 | AF37: 0 | AG37: 0 | AH37: 0 | AI37: 0 | AJ37: 0 | AK37: 0 | AL37: =IF((MAX(0,(0.5-(($AL$21-AVERAGE($N$30:N37))/(IF(STDEV($N$30:N37)<0.01,0.01,STDEV($N$30:N37)))*SQRT(COUNT($N$30:N37))/(2*(COUNT($N$30:N37)-1))))))>1,1,(MAX(0,(0.5-(($AL$21-AVERAGE($N$30:N37))/(IF(STDEV($N$30:N37)<0.01,0.01,STDEV($N$30:N37)))*SQRT(COUNT($N$30:N37))/(2*(COUNT($N$30:N37)-1))))))) ->  | AM37: 0 | AN37: 0 | AO37: 0 | AP37: 0 | AQ37: =IF((MAX(0,(0.5-(($AQ$21-AVERAGE($S$30:S37))/(IF(STDEV($S$30:S37)<0.01,0.01,STDEV($S$30:S37)))*SQRT(COUNT($S$30:S37))/(2*(COUNT($S$30:S37)-1))))))>1,1,(MAX(0,(0.5-(($AQ$21-AVERAGE($S$30:S37))/(IF(STDEV($S$30:S37)<0.01,0.01,STDEV($S$30:S37)))*SQRT(COUNT($S$30:S37))/(2*(COUNT($S$30:S37)-1))))))) ->  | AR37: =IF((MAX(0,(0.5-(($AR$21-AVERAGE($T$30:T37))/(IF(STDEV($T$30:T37)<0.01,0.01,STDEV($T$30:T37)))*SQRT(COUNT($T$30:T37))/(2*(COUNT($T$30:T37)-1))))))>1,1,(MAX(0,(0.5-(($AR$21-AVERAGE($T$30:T37))/(IF(STDEV($T$30:T37)<0.01,0.01,STDEV($T$30:T37)))*SQRT(COUNT($T$30:T37))/(2*(COUNT($T$30:T37)-1))))))) ->  | AS37: =IF((MAX(0,(0.5-(($AS$21-AVERAGE($AA$30:AA37))/(IF(STDEV($AA$30:AA37)<0.01,0.01,STDEV($AA$30:AA37)))*SQRT(COUNT($AA$30:AA37))/(2*(COUNT($AA$30:AA37)-1))))))>1,1,(MAX(0,(0.5-(($AS$21-AVERAGE($AA$30:AA37))/(IF(STDEV($AA$30:AA37)<0.01,0.01,STDEV($AA$30:AA37)))*SQRT(COUNT($AA$30:AA37))/(2*(COUNT($AA$30:AA37)-1))))))) ->  | AT37: =IF((MAX(0,(0.5-(($AT$21-AVERAGE($AB$30:AB37))/(IF(STDEV($AB$30:AB37)<0.01,0.01,STDEV($AB$30:AB37)))*SQRT(COUNT($AB$30:AB37))/(2*(COUNT($AB$30:AB37)-1))))))>1,1,(MAX(0,(0.5-(($AT$21-AVERAGE($AB$30:AB37))/(IF(STDEV($AB$30:AB37)<0.01,0.01,STDEV($AB$30:AB37)))*SQRT(COUNT($AB$30:AB37))/(2*(COUNT($AB$30:AB37)-1))))))) ->  | AW37: =IF((MAX(0,(0.5-((AVERAGE($N$30:N37)-$AW$22)/(IF(STDEV($N$30:N37)<0.01,0.01,STDEV($N$30:N37)))*SQRT(COUNT($N$30:N37))/(2*(COUNT($N$30:N37)-1))))))>1,1,(MAX(0,(0.5-((AVERAGE($N$30:N37)-$AW$22)/(IF(STDEV($N$30:N37)<0.01,0.01,STDEV($N$30:N37)))*SQRT(COUNT($N$30:N37))/(2*(COUNT($N$30:N37)-1))))))) ->  | AX37: =IF((MAX(0,(0.5-((AVERAGE($S$30:S37)-$AX$22)/(IF(STDEV($S$30:S37)<0.01,0.01,STDEV($S$30:S37)))*SQRT(COUNT($S$30:S37))/(2*(COUNT($S$30:S37)-1))))))>1,1,(MAX(0,(0.5-((AVERAGE($S$30:S37)-$AX$22)/(IF(STDEV($S$30:S37)<0.01,0.01,STDEV($S$30:S37)))*SQRT(COUNT($S$30:S37))/(2*(COUNT($S$30:S37)-1))))))) ->  | AY37: =IF((MAX(0,(0.5-((AVERAGE($T$30:T37)-$AY$22)/(IF(STDEV($T$30:T37)<0.01,0.01,STDEV($T$30:T37)))*SQRT(COUNT($T$30:T37))/(2*(COUNT($T$30:T37)-1))))))>1,1,(MAX(0,(0.5-((AVERAGE($T$30:T37)-$AY$22)/(IF(STDEV($T$30:T37)<0.01,0.01,STDEV($T$30:T37)))*SQRT(COUNT($T$30:T37))/(2*(COUNT($T$30:T37)-1))))))) ->  | AZ37: =IF((MAX(0,(0.5-((AVERAGE($AA$30:AA37)-$AZ$22)/(IF(STDEV($AA$30:AA37)<0.01,0.01,STDEV($AA$30:AA37)))*SQRT(COUNT($AA$30:AA37))/(2*(COUNT($AA$30:AA37)-1))))))>1,1,(MAX(0,(0.5-((AVERAGE($AA$30:AA37)-$AZ$22)/(IF(STDEV($AA$30:AA37)<0.01,0.01,STDEV($AA$30:AA37)))*SQRT(COUNT($AA$30:AA37))/(2*(COUNT($AA$30:AA37)-1))))))) ->  | BA37: =IF((MAX(0,(0.5-((AVERAGE($AB$30:AB37)-$BA$22)/(IF(STDEV($AB$30:AB37)<0.01,0.01,STDEV($AB$30:AB37)))*SQRT(COUNT($AB$30:AB37))/(2*(COUNT($AB$30:AB37)-1))))))>1,1,(MAX(0,(0.5-((AVERAGE($AB$30:AB37)-$BA$22)/(IF(STDEV($AB$30:AB37)<0.01,0.01,STDEV($AB$30:AB37)))*SQRT(COUNT($AB$30:AB37))/(2*(COUNT($AB$30:AB37)-1))))))) ->  | BE37: =(0.5 * ((100-(BETADIST(AL37,((COUNT(N$30:N37))/2)-1,((COUNT(N$30:N37))/2)-1))*100) + (100-(BETADIST(AW37,((COUNT(N$30:N37))/2)-1,((COUNT(N$30:N37))/2)-1))*100) - 100) + 55) / 100 ->  | BF37: =(0.5 * ((100-(BETADIST(AQ37,((COUNT(S$30:S37))/2)-1,((COUNT(S$30:S37))/2)-1))*100) + (100-(BETADIST(AX37,((COUNT(S$30:S37))/2)-1,((COUNT(S$30:S37))/2)-1))*100) - 100) + 55) / 100 ->  | BG37: =(0.5 * ((100-(BETADIST(AR37,((COUNT(T$30:T37))/2)-1,((COUNT(T$30:T37))/2)-1))*100) + (100-(BETADIST(AY37,((COUNT(T$30:T37))/2)-1,((COUNT(T$30:T37))/2)-1))*100) - 100) + 55) / 100 ->  | BH37: =(0.5 * ((100-(BETADIST(AS37,((COUNT(AA$30:AA37))/2)-1,((COUNT(AA$30:AA37))/2)-1))*100) + (100-(BETADIST(AZ37,((COUNT(AA$30:AA37))/2)-1,((COUNT(AA$30:AA37))/2)-1))*100) - 100) + 55) / 100 ->  | BI37: =(0.5 * ((100-(BETADIST(AT37,((COUNT(AB$30:AB37))/2)-1,((COUNT(AB$30:AB37))/2)-1))*100) + (100-(BETADIST(BA37,((COUNT(AB$30:AB37))/2)-1,((COUNT(AB$30:AB37))/2)-1))*100) - 100) + 55) / 100 -> 
AE38: 0 | AF38: 0 | AG38: 0 | AH38: 0 | AI38: 0 | AJ38: 0 | AK38: 0 | AL38: =IF((MAX(0,(0.5-(($AL$21-AVERAGE($N$30:N38))/(IF(STDEV($N$30:N38)<0.01,0.01,STDEV($N$30:N38)))*SQRT(COUNT($N$30:N38))/(2*(COUNT($N$30:N38)-1))))))>1,1,(MAX(0,(0.5-(($AL$21-AVERAGE($N$30:N38))/(IF(STDEV($N$30:N38)<0.01,0.01,STDEV($N$30:N38)))*SQRT(COUNT($N$30:N38))/(2*(COUNT($N$30:N38)-1))))))) ->  | AM38: 0 | AN38: 0 | AO38: 0 | AP38: 0 | AQ38: =IF((MAX(0,(0.5-(($AQ$21-AVERAGE($S$30:S38))/(IF(STDEV($S$30:S38)<0.01,0.01,STDEV($S$30:S38)))*SQRT(COUNT($S$30:S38))/(2*(COUNT($S$30:S38)-1))))))>1,1,(MAX(0,(0.5-(($AQ$21-AVERAGE($S$30:S38))/(IF(STDEV($S$30:S38)<0.01,0.01,STDEV($S$30:S38)))*SQRT(COUNT($S$30:S38))/(2*(COUNT($S$30:S38)-1))))))) ->  | AR38: =IF((MAX(0,(0.5-(($AR$21-AVERAGE($T$30:T38))/(IF(STDEV($T$30:T38)<0.01,0.01,STDEV($T$30:T38)))*SQRT(COUNT($T$30:T38))/(2*(COUNT($T$30:T38)-1))))))>1,1,(MAX(0,(0.5-(($AR$21-AVERAGE($T$30:T38))/(IF(STDEV($T$30:T38)<0.01,0.01,STDEV($T$30:T38)))*SQRT(COUNT($T$30:T38))/(2*(COUNT($T$30:T38)-1))))))) ->  | AS38: =IF((MAX(0,(0.5-(($AS$21-AVERAGE($AA$30:AA38))/(IF(STDEV($AA$30:AA38)<0.01,0.01,STDEV($AA$30:AA38)))*SQRT(COUNT($AA$30:AA38))/(2*(COUNT($AA$30:AA38)-1))))))>1,1,(MAX(0,(0.5-(($AS$21-AVERAGE($AA$30:AA38))/(IF(STDEV($AA$30:AA38)<0.01,0.01,STDEV($AA$30:AA38)))*SQRT(COUNT($AA$30:AA38))/(2*(COUNT($AA$30:AA38)-1))))))) ->  | AT38: =IF((MAX(0,(0.5-(($AT$21-AVERAGE($AB$30:AB38))/(IF(STDEV($AB$30:AB38)<0.01,0.01,STDEV($AB$30:AB38)))*SQRT(COUNT($AB$30:AB38))/(2*(COUNT($AB$30:AB38)-1))))))>1,1,(MAX(0,(0.5-(($AT$21-AVERAGE($AB$30:AB38))/(IF(STDEV($AB$30:AB38)<0.01,0.01,STDEV($AB$30:AB38)))*SQRT(COUNT($AB$30:AB38))/(2*(COUNT($AB$30:AB38)-1))))))) ->  | AW38: =IF((MAX(0,(0.5-((AVERAGE($N$30:N38)-$AW$22)/(IF(STDEV($N$30:N38)<0.01,0.01,STDEV($N$30:N38)))*SQRT(COUNT($N$30:N38))/(2*(COUNT($N$30:N38)-1))))))>1,1,(MAX(0,(0.5-((AVERAGE($N$30:N38)-$AW$22)/(IF(STDEV($N$30:N38)<0.01,0.01,STDEV($N$30:N38)))*SQRT(COUNT($N$30:N38))/(2*(COUNT($N$30:N38)-1))))))) ->  | AX38: =IF((MAX(0,(0.5-((AVERAGE($S$30:S38)-$AX$22)/(IF(STDEV($S$30:S38)<0.01,0.01,STDEV($S$30:S38)))*SQRT(COUNT($S$30:S38))/(2*(COUNT($S$30:S38)-1))))))>1,1,(MAX(0,(0.5-((AVERAGE($S$30:S38)-$AX$22)/(IF(STDEV($S$30:S38)<0.01,0.01,STDEV($S$30:S38)))*SQRT(COUNT($S$30:S38))/(2*(COUNT($S$30:S38)-1))))))) ->  | AY38: =IF((MAX(0,(0.5-((AVERAGE($T$30:T38)-$AY$22)/(IF(STDEV($T$30:T38)<0.01,0.01,STDEV($T$30:T38)))*SQRT(COUNT($T$30:T38))/(2*(COUNT($T$30:T38)-1))))))>1,1,(MAX(0,(0.5-((AVERAGE($T$30:T38)-$AY$22)/(IF(STDEV($T$30:T38)<0.01,0.01,STDEV($T$30:T38)))*SQRT(COUNT($T$30:T38))/(2*(COUNT($T$30:T38)-1))))))) ->  | AZ38: =IF((MAX(0,(0.5-((AVERAGE($AA$30:AA38)-$AZ$22)/(IF(STDEV($AA$30:AA38)<0.01,0.01,STDEV($AA$30:AA38)))*SQRT(COUNT($AA$30:AA38))/(2*(COUNT($AA$30:AA38)-1))))))>1,1,(MAX(0,(0.5-((AVERAGE($AA$30:AA38)-$AZ$22)/(IF(STDEV($AA$30:AA38)<0.01,0.01,STDEV($AA$30:AA38)))*SQRT(COUNT($AA$30:AA38))/(2*(COUNT($AA$30:AA38)-1))))))) ->  | BA38: =IF((MAX(0,(0.5-((AVERAGE($AB$30:AB38)-$BA$22)/(IF(STDEV($AB$30:AB38)<0.01,0.01,STDEV($AB$30:AB38)))*SQRT(COUNT($AB$30:AB38))/(2*(COUNT($AB$30:AB38)-1))))))>1,1,(MAX(0,(0.5-((AVERAGE($AB$30:AB38)-$BA$22)/(IF(STDEV($AB$30:AB38)<0.01,0.01,STDEV($AB$30:AB38)))*SQRT(COUNT($AB$30:AB38))/(2*(COUNT($AB$30:AB38)-1))))))) ->  | BE38: =(0.5 * ((100-(BETADIST(AL38,((COUNT(N$30:N38))/2)-1,((COUNT(N$30:N38))/2)-1))*100) + (100-(BETADIST(AW38,((COUNT(N$30:N38))/2)-1,((COUNT(N$30:N38))/2)-1))*100) - 100) + 55) / 100 ->  | BF38: =(0.5 * ((100-(BETADIST(AQ38,((COUNT(S$30:S38))/2)-1,((COUNT(S$30:S38))/2)-1))*100) + (100-(BETADIST(AX38,((COUNT(S$30:S38))/2)-1,((COUNT(S$30:S38))/2)-1))*100) - 100) + 55) / 100 ->  | BG38: =(0.5 * ((100-(BETADIST(AR38,((COUNT(T$30:T38))/2)-1,((COUNT(T$30:T38))/2)-1))*100) + (100-(BETADIST(AY38,((COUNT(T$30:T38))/2)-1,((COUNT(T$30:T38))/2)-1))*100) - 100) + 55) / 100 ->  | BH38: =(0.5 * ((100-(BETADIST(AS38,((COUNT(AA$30:AA38))/2)-1,((COUNT(AA$30:AA38))/2)-1))*100) + (100-(BETADIST(AZ38,((COUNT(AA$30:AA38))/2)-1,((COUNT(AA$30:AA38))/2)-1))*100) - 100) + 55) / 100 ->  | BI38: =(0.5 * ((100-(BETADIST(AT38,((COUNT(AB$30:AB38))/2)-1,((COUNT(AB$30:AB38))/2)-1))*100) + (100-(BETADIST(BA38,((COUNT(AB$30:AB38))/2)-1,((COUNT(AB$30:AB38))/2)-1))*100) - 100) + 55) / 100 -> 
AE39: 0 | AF39: 0 | AG39: 0 | AH39: 0 | AI39: 0 | AJ39: 0 | AK39: 0 | AL39: =IF((MAX(0,(0.5-(($AL$21-AVERAGE($N$30:N39))/(IF(STDEV($N$30:N39)<0.01,0.01,STDEV($N$30:N39)))*SQRT(COUNT($N$30:N39))/(2*(COUNT($N$30:N39)-1))))))>1,1,(MAX(0,(0.5-(($AL$21-AVERAGE($N$30:N39))/(IF(STDEV($N$30:N39)<0.01,0.01,STDEV($N$30:N39)))*SQRT(COUNT($N$30:N39))/(2*(COUNT($N$30:N39)-1))))))) ->  | AM39: 0 | AN39: 0 | AO39: 0 | AP39: 0 | AQ39: =IF((MAX(0,(0.5-(($AQ$21-AVERAGE($S$30:S39))/(IF(STDEV($S$30:S39)<0.01,0.01,STDEV($S$30:S39)))*SQRT(COUNT($S$30:S39))/(2*(COUNT($S$30:S39)-1))))))>1,1,(MAX(0,(0.5-(($AQ$21-AVERAGE($S$30:S39))/(IF(STDEV($S$30:S39)<0.01,0.01,STDEV($S$30:S39)))*SQRT(COUNT($S$30:S39))/(2*(COUNT($S$30:S39)-1))))))) ->  | AR39: =IF((MAX(0,(0.5-(($AR$21-AVERAGE($T$30:T39))/(IF(STDEV($T$30:T39)<0.01,0.01,STDEV($T$30:T39)))*SQRT(COUNT($T$30:T39))/(2*(COUNT($T$30:T39)-1))))))>1,1,(MAX(0,(0.5-(($AR$21-AVERAGE($T$30:T39))/(IF(STDEV($T$30:T39)<0.01,0.01,STDEV($T$30:T39)))*SQRT(COUNT($T$30:T39))/(2*(COUNT($T$30:T39)-1))))))) ->  | AS39: =IF((MAX(0,(0.5-(($AS$21-AVERAGE($AA$30:AA39))/(IF(STDEV($AA$30:AA39)<0.01,0.01,STDEV($AA$30:AA39)))*SQRT(COUNT($AA$30:AA39))/(2*(COUNT($AA$30:AA39)-1))))))>1,1,(MAX(0,(0.5-(($AS$21-AVERAGE($AA$30:AA39))/(IF(STDEV($AA$30:AA39)<0.01,0.01,STDEV($AA$30:AA39)))*SQRT(COUNT($AA$30:AA39))/(2*(COUNT($AA$30:AA39)-1))))))) ->  | AT39: =IF((MAX(0,(0.5-(($AT$21-AVERAGE($AB$30:AB39))/(IF(STDEV($AB$30:AB39)<0.01,0.01,STDEV($AB$30:AB39)))*SQRT(COUNT($AB$30:AB39))/(2*(COUNT($AB$30:AB39)-1))))))>1,1,(MAX(0,(0.5-(($AT$21-AVERAGE($AB$30:AB39))/(IF(STDEV($AB$30:AB39)<0.01,0.01,STDEV($AB$30:AB39)))*SQRT(COUNT($AB$30:AB39))/(2*(COUNT($AB$30:AB39)-1))))))) ->  | AW39: =IF((MAX(0,(0.5-((AVERAGE($N$30:N39)-$AW$22)/(IF(STDEV($N$30:N39)<0.01,0.01,STDEV($N$30:N39)))*SQRT(COUNT($N$30:N39))/(2*(COUNT($N$30:N39)-1))))))>1,1,(MAX(0,(0.5-((AVERAGE($N$30:N39)-$AW$22)/(IF(STDEV($N$30:N39)<0.01,0.01,STDEV($N$30:N39)))*SQRT(COUNT($N$30:N39))/(2*(COUNT($N$30:N39)-1))))))) ->  | AX39: =IF((MAX(0,(0.5-((AVERAGE($S$30:S39)-$AX$22)/(IF(STDEV($S$30:S39)<0.01,0.01,STDEV($S$30:S39)))*SQRT(COUNT($S$30:S39))/(2*(COUNT($S$30:S39)-1))))))>1,1,(MAX(0,(0.5-((AVERAGE($S$30:S39)-$AX$22)/(IF(STDEV($S$30:S39)<0.01,0.01,STDEV($S$30:S39)))*SQRT(COUNT($S$30:S39))/(2*(COUNT($S$30:S39)-1))))))) ->  | AY39: =IF((MAX(0,(0.5-((AVERAGE($T$30:T39)-$AY$22)/(IF(STDEV($T$30:T39)<0.01,0.01,STDEV($T$30:T39)))*SQRT(COUNT($T$30:T39))/(2*(COUNT($T$30:T39)-1))))))>1,1,(MAX(0,(0.5-((AVERAGE($T$30:T39)-$AY$22)/(IF(STDEV($T$30:T39)<0.01,0.01,STDEV($T$30:T39)))*SQRT(COUNT($T$30:T39))/(2*(COUNT($T$30:T39)-1))))))) ->  | AZ39: =IF((MAX(0,(0.5-((AVERAGE($AA$30:AA39)-$AZ$22)/(IF(STDEV($AA$30:AA39)<0.01,0.01,STDEV($AA$30:AA39)))*SQRT(COUNT($AA$30:AA39))/(2*(COUNT($AA$30:AA39)-1))))))>1,1,(MAX(0,(0.5-((AVERAGE($AA$30:AA39)-$AZ$22)/(IF(STDEV($AA$30:AA39)<0.01,0.01,STDEV($AA$30:AA39)))*SQRT(COUNT($AA$30:AA39))/(2*(COUNT($AA$30:AA39)-1))))))) ->  | BA39: =IF((MAX(0,(0.5-((AVERAGE($AB$30:AB39)-$BA$22)/(IF(STDEV($AB$30:AB39)<0.01,0.01,STDEV($AB$30:AB39)))*SQRT(COUNT($AB$30:AB39))/(2*(COUNT($AB$30:AB39)-1))))))>1,1,(MAX(0,(0.5-((AVERAGE($AB$30:AB39)-$BA$22)/(IF(STDEV($AB$30:AB39)<0.01,0.01,STDEV($AB$30:AB39)))*SQRT(COUNT($AB$30:AB39))/(2*(COUNT($AB$30:AB39)-1))))))) ->  | BE39: =(0.5 * ((100-(BETADIST(AL39,((COUNT(N$30:N39))/2)-1,((COUNT(N$30:N39))/2)-1))*100) + (100-(BETADIST(AW39,((COUNT(N$30:N39))/2)-1,((COUNT(N$30:N39))/2)-1))*100) - 100) + 55) / 100 ->  | BF39: =(0.5 * ((100-(BETADIST(AQ39,((COUNT(S$30:S39))/2)-1,((COUNT(S$30:S39))/2)-1))*100) + (100-(BETADIST(AX39,((COUNT(S$30:S39))/2)-1,((COUNT(S$30:S39))/2)-1))*100) - 100) + 55) / 100 ->  | BG39: =(0.5 * ((100-(BETADIST(AR39,((COUNT(T$30:T39))/2)-1,((COUNT(T$30:T39))/2)-1))*100) + (100-(BETADIST(AY39,((COUNT(T$30:T39))/2)-1,((COUNT(T$30:T39))/2)-1))*100) - 100) + 55) / 100 ->  | BH39: =(0.5 * ((100-(BETADIST(AS39,((COUNT(AA$30:AA39))/2)-1,((COUNT(AA$30:AA39))/2)-1))*100) + (100-(BETADIST(AZ39,((COUNT(AA$30:AA39))/2)-1,((COUNT(AA$30:AA39))/2)-1))*100) - 100) + 55) / 100 ->  | BI39: =(0.5 * ((100-(BETADIST(AT39,((COUNT(AB$30:AB39))/2)-1,((COUNT(AB$30:AB39))/2)-1))*100) + (100-(BETADIST(BA39,((COUNT(AB$30:AB39))/2)-1,((COUNT(AB$30:AB39))/2)-1))*100) - 100) + 55) / 100 -> 
AE40: 0 | AF40: 0 | AG40: 0 | AH40: 0 | AI40: 0 | AJ40: 0 | AK40: 0 | AL40: =IF((MAX(0,(0.5-(($AL$21-AVERAGE($N$30:N40))/(IF(STDEV($N$30:N40)<0.01,0.01,STDEV($N$30:N40)))*SQRT(COUNT($N$30:N40))/(2*(COUNT($N$30:N40)-1))))))>1,1,(MAX(0,(0.5-(($AL$21-AVERAGE($N$30:N40))/(IF(STDEV($N$30:N40)<0.01,0.01,STDEV($N$30:N40)))*SQRT(COUNT($N$30:N40))/(2*(COUNT($N$30:N40)-1))))))) ->  | AM40: 0 | AN40: 0 | AO40: 0 | AP40: 0 | AQ40: =IF((MAX(0,(0.5-(($AQ$21-AVERAGE($S$30:S40))/(IF(STDEV($S$30:S40)<0.01,0.01,STDEV($S$30:S40)))*SQRT(COUNT($S$30:S40))/(2*(COUNT($S$30:S40)-1))))))>1,1,(MAX(0,(0.5-(($AQ$21-AVERAGE($S$30:S40))/(IF(STDEV($S$30:S40)<0.01,0.01,STDEV($S$30:S40)))*SQRT(COUNT($S$30:S40))/(2*(COUNT($S$30:S40)-1))))))) ->  | AR40: =IF((MAX(0,(0.5-(($AR$21-AVERAGE($T$30:T40))/(IF(STDEV($T$30:T40)<0.01,0.01,STDEV($T$30:T40)))*SQRT(COUNT($T$30:T40))/(2*(COUNT($T$30:T40)-1))))))>1,1,(MAX(0,(0.5-(($AR$21-AVERAGE($T$30:T40))/(IF(STDEV($T$30:T40)<0.01,0.01,STDEV($T$30:T40)))*SQRT(COUNT($T$30:T40))/(2*(COUNT($T$30:T40)-1))))))) ->  | AS40: =IF((MAX(0,(0.5-(($AS$21-AVERAGE($AA$30:AA40))/(IF(STDEV($AA$30:AA40)<0.01,0.01,STDEV($AA$30:AA40)))*SQRT(COUNT($AA$30:AA40))/(2*(COUNT($AA$30:AA40)-1))))))>1,1,(MAX(0,(0.5-(($AS$21-AVERAGE($AA$30:AA40))/(IF(STDEV($AA$30:AA40)<0.01,0.01,STDEV($AA$30:AA40)))*SQRT(COUNT($AA$30:AA40))/(2*(COUNT($AA$30:AA40)-1))))))) ->  | AT40: =IF((MAX(0,(0.5-(($AT$21-AVERAGE($AB$30:AB40))/(IF(STDEV($AB$30:AB40)<0.01,0.01,STDEV($AB$30:AB40)))*SQRT(COUNT($AB$30:AB40))/(2*(COUNT($AB$30:AB40)-1))))))>1,1,(MAX(0,(0.5-(($AT$21-AVERAGE($AB$30:AB40))/(IF(STDEV($AB$30:AB40)<0.01,0.01,STDEV($AB$30:AB40)))*SQRT(COUNT($AB$30:AB40))/(2*(COUNT($AB$30:AB40)-1))))))) ->  | AW40: =IF((MAX(0,(0.5-((AVERAGE($N$30:N40)-$AW$22)/(IF(STDEV($N$30:N40)<0.01,0.01,STDEV($N$30:N40)))*SQRT(COUNT($N$30:N40))/(2*(COUNT($N$30:N40)-1))))))>1,1,(MAX(0,(0.5-((AVERAGE($N$30:N40)-$AW$22)/(IF(STDEV($N$30:N40)<0.01,0.01,STDEV($N$30:N40)))*SQRT(COUNT($N$30:N40))/(2*(COUNT($N$30:N40)-1))))))) ->  | AX40: =IF((MAX(0,(0.5-((AVERAGE($S$30:S40)-$AX$22)/(IF(STDEV($S$30:S40)<0.01,0.01,STDEV($S$30:S40)))*SQRT(COUNT($S$30:S40))/(2*(COUNT($S$30:S40)-1))))))>1,1,(MAX(0,(0.5-((AVERAGE($S$30:S40)-$AX$22)/(IF(STDEV($S$30:S40)<0.01,0.01,STDEV($S$30:S40)))*SQRT(COUNT($S$30:S40))/(2*(COUNT($S$30:S40)-1))))))) ->  | AY40: =IF((MAX(0,(0.5-((AVERAGE($T$30:T40)-$AY$22)/(IF(STDEV($T$30:T40)<0.01,0.01,STDEV($T$30:T40)))*SQRT(COUNT($T$30:T40))/(2*(COUNT($T$30:T40)-1))))))>1,1,(MAX(0,(0.5-((AVERAGE($T$30:T40)-$AY$22)/(IF(STDEV($T$30:T40)<0.01,0.01,STDEV($T$30:T40)))*SQRT(COUNT($T$30:T40))/(2*(COUNT($T$30:T40)-1))))))) ->  | AZ40: =IF((MAX(0,(0.5-((AVERAGE($AA$30:AA40)-$AZ$22)/(IF(STDEV($AA$30:AA40)<0.01,0.01,STDEV($AA$30:AA40)))*SQRT(COUNT($AA$30:AA40))/(2*(COUNT($AA$30:AA40)-1))))))>1,1,(MAX(0,(0.5-((AVERAGE($AA$30:AA40)-$AZ$22)/(IF(STDEV($AA$30:AA40)<0.01,0.01,STDEV($AA$30:AA40)))*SQRT(COUNT($AA$30:AA40))/(2*(COUNT($AA$30:AA40)-1))))))) ->  | BA40: =IF((MAX(0,(0.5-((AVERAGE($AB$30:AB40)-$BA$22)/(IF(STDEV($AB$30:AB40)<0.01,0.01,STDEV($AB$30:AB40)))*SQRT(COUNT($AB$30:AB40))/(2*(COUNT($AB$30:AB40)-1))))))>1,1,(MAX(0,(0.5-((AVERAGE($AB$30:AB40)-$BA$22)/(IF(STDEV($AB$30:AB40)<0.01,0.01,STDEV($AB$30:AB40)))*SQRT(COUNT($AB$30:AB40))/(2*(COUNT($AB$30:AB40)-1))))))) ->  | BE40: =(0.5 * ((100-(BETADIST(AL40,((COUNT(N$30:N40))/2)-1,((COUNT(N$30:N40))/2)-1))*100) + (100-(BETADIST(AW40,((COUNT(N$30:N40))/2)-1,((COUNT(N$30:N40))/2)-1))*100) - 100) + 55) / 100 ->  | BF40: =(0.5 * ((100-(BETADIST(AQ40,((COUNT(S$30:S40))/2)-1,((COUNT(S$30:S40))/2)-1))*100) + (100-(BETADIST(AX40,((COUNT(S$30:S40))/2)-1,((COUNT(S$30:S40))/2)-1))*100) - 100) + 55) / 100 ->  | BG40: =(0.5 * ((100-(BETADIST(AR40,((COUNT(T$30:T40))/2)-1,((COUNT(T$30:T40))/2)-1))*100) + (100-(BETADIST(AY40,((COUNT(T$30:T40))/2)-1,((COUNT(T$30:T40))/2)-1))*100) - 100) + 55) / 100 ->  | BH40: =(0.5 * ((100-(BETADIST(AS40,((COUNT(AA$30:AA40))/2)-1,((COUNT(AA$30:AA40))/2)-1))*100) + (100-(BETADIST(AZ40,((COUNT(AA$30:AA40))/2)-1,((COUNT(AA$30:AA40))/2)-1))*100) - 100) + 55) / 100 ->  | BI40: =(0.5 * ((100-(BETADIST(AT40,((COUNT(AB$30:AB40))/2)-1,((COUNT(AB$30:AB40))/2)-1))*100) + (100-(BETADIST(BA40,((COUNT(AB$30:AB40))/2)-1,((COUNT(AB$30:AB40))/2)-1))*100) - 100) + 55) / 100 -> 
AE41: 0 | AF41: 0 | AG41: 0 | AH41: 0 | AI41: 0 | AJ41: 0 | AK41: 0 | AL41: =IF((MAX(0,(0.5-(($AL$21-AVERAGE($N$30:N41))/(IF(STDEV($N$30:N41)<0.01,0.01,STDEV($N$30:N41)))*SQRT(COUNT($N$30:N41))/(2*(COUNT($N$30:N41)-1))))))>1,1,(MAX(0,(0.5-(($AL$21-AVERAGE($N$30:N41))/(IF(STDEV($N$30:N41)<0.01,0.01,STDEV($N$30:N41)))*SQRT(COUNT($N$30:N41))/(2*(COUNT($N$30:N41)-1))))))) ->  | AM41: 0 | AN41: 0 | AO41: 0 | AP41: 0 | AQ41: =IF((MAX(0,(0.5-(($AQ$21-AVERAGE($S$30:S41))/(IF(STDEV($S$30:S41)<0.01,0.01,STDEV($S$30:S41)))*SQRT(COUNT($S$30:S41))/(2*(COUNT($S$30:S41)-1))))))>1,1,(MAX(0,(0.5-(($AQ$21-AVERAGE($S$30:S41))/(IF(STDEV($S$30:S41)<0.01,0.01,STDEV($S$30:S41)))*SQRT(COUNT($S$30:S41))/(2*(COUNT($S$30:S41)-1))))))) ->  | AR41: =IF((MAX(0,(0.5-(($AR$21-AVERAGE($T$30:T41))/(IF(STDEV($T$30:T41)<0.01,0.01,STDEV($T$30:T41)))*SQRT(COUNT($T$30:T41))/(2*(COUNT($T$30:T41)-1))))))>1,1,(MAX(0,(0.5-(($AR$21-AVERAGE($T$30:T41))/(IF(STDEV($T$30:T41)<0.01,0.01,STDEV($T$30:T41)))*SQRT(COUNT($T$30:T41))/(2*(COUNT($T$30:T41)-1))))))) ->  | AS41: =IF((MAX(0,(0.5-(($AS$21-AVERAGE($AA$30:AA41))/(IF(STDEV($AA$30:AA41)<0.01,0.01,STDEV($AA$30:AA41)))*SQRT(COUNT($AA$30:AA41))/(2*(COUNT($AA$30:AA41)-1))))))>1,1,(MAX(0,(0.5-(($AS$21-AVERAGE($AA$30:AA41))/(IF(STDEV($AA$30:AA41)<0.01,0.01,STDEV($AA$30:AA41)))*SQRT(COUNT($AA$30:AA41))/(2*(COUNT($AA$30:AA41)-1))))))) ->  | AT41: =IF((MAX(0,(0.5-(($AT$21-AVERAGE($AB$30:AB41))/(IF(STDEV($AB$30:AB41)<0.01,0.01,STDEV($AB$30:AB41)))*SQRT(COUNT($AB$30:AB41))/(2*(COUNT($AB$30:AB41)-1))))))>1,1,(MAX(0,(0.5-(($AT$21-AVERAGE($AB$30:AB41))/(IF(STDEV($AB$30:AB41)<0.01,0.01,STDEV($AB$30:AB41)))*SQRT(COUNT($AB$30:AB41))/(2*(COUNT($AB$30:AB41)-1))))))) ->  | AW41: =IF((MAX(0,(0.5-((AVERAGE($N$30:N41)-$AW$22)/(IF(STDEV($N$30:N41)<0.01,0.01,STDEV($N$30:N41)))*SQRT(COUNT($N$30:N41))/(2*(COUNT($N$30:N41)-1))))))>1,1,(MAX(0,(0.5-((AVERAGE($N$30:N41)-$AW$22)/(IF(STDEV($N$30:N41)<0.01,0.01,STDEV($N$30:N41)))*SQRT(COUNT($N$30:N41))/(2*(COUNT($N$30:N41)-1))))))) ->  | AX41: =IF((MAX(0,(0.5-((AVERAGE($S$30:S41)-$AX$22)/(IF(STDEV($S$30:S41)<0.01,0.01,STDEV($S$30:S41)))*SQRT(COUNT($S$30:S41))/(2*(COUNT($S$30:S41)-1))))))>1,1,(MAX(0,(0.5-((AVERAGE($S$30:S41)-$AX$22)/(IF(STDEV($S$30:S41)<0.01,0.01,STDEV($S$30:S41)))*SQRT(COUNT($S$30:S41))/(2*(COUNT($S$30:S41)-1))))))) ->  | AY41: =IF((MAX(0,(0.5-((AVERAGE($T$30:T41)-$AY$22)/(IF(STDEV($T$30:T41)<0.01,0.01,STDEV($T$30:T41)))*SQRT(COUNT($T$30:T41))/(2*(COUNT($T$30:T41)-1))))))>1,1,(MAX(0,(0.5-((AVERAGE($T$30:T41)-$AY$22)/(IF(STDEV($T$30:T41)<0.01,0.01,STDEV($T$30:T41)))*SQRT(COUNT($T$30:T41))/(2*(COUNT($T$30:T41)-1))))))) ->  | AZ41: =IF((MAX(0,(0.5-((AVERAGE($AA$30:AA41)-$AZ$22)/(IF(STDEV($AA$30:AA41)<0.01,0.01,STDEV($AA$30:AA41)))*SQRT(COUNT($AA$30:AA41))/(2*(COUNT($AA$30:AA41)-1))))))>1,1,(MAX(0,(0.5-((AVERAGE($AA$30:AA41)-$AZ$22)/(IF(STDEV($AA$30:AA41)<0.01,0.01,STDEV($AA$30:AA41)))*SQRT(COUNT($AA$30:AA41))/(2*(COUNT($AA$30:AA41)-1))))))) ->  | BA41: =IF((MAX(0,(0.5-((AVERAGE($AB$30:AB41)-$BA$22)/(IF(STDEV($AB$30:AB41)<0.01,0.01,STDEV($AB$30:AB41)))*SQRT(COUNT($AB$30:AB41))/(2*(COUNT($AB$30:AB41)-1))))))>1,1,(MAX(0,(0.5-((AVERAGE($AB$30:AB41)-$BA$22)/(IF(STDEV($AB$30:AB41)<0.01,0.01,STDEV($AB$30:AB41)))*SQRT(COUNT($AB$30:AB41))/(2*(COUNT($AB$30:AB41)-1))))))) ->  | BE41: =(0.5 * ((100-(BETADIST(AL41,((COUNT(N$30:N41))/2)-1,((COUNT(N$30:N41))/2)-1))*100) + (100-(BETADIST(AW41,((COUNT(N$30:N41))/2)-1,((COUNT(N$30:N41))/2)-1))*100) - 100) + 55) / 100 ->  | BF41: =(0.5 * ((100-(BETADIST(AQ41,((COUNT(S$30:S41))/2)-1,((COUNT(S$30:S41))/2)-1))*100) + (100-(BETADIST(AX41,((COUNT(S$30:S41))/2)-1,((COUNT(S$30:S41))/2)-1))*100) - 100) + 55) / 100 ->  | BG41: =(0.5 * ((100-(BETADIST(AR41,((COUNT(T$30:T41))/2)-1,((COUNT(T$30:T41))/2)-1))*100) + (100-(BETADIST(AY41,((COUNT(T$30:T41))/2)-1,((COUNT(T$30:T41))/2)-1))*100) - 100) + 55) / 100 ->  | BH41: =(0.5 * ((100-(BETADIST(AS41,((COUNT(AA$30:AA41))/2)-1,((COUNT(AA$30:AA41))/2)-1))*100) + (100-(BETADIST(AZ41,((COUNT(AA$30:AA41))/2)-1,((COUNT(AA$30:AA41))/2)-1))*100) - 100) + 55) / 100 ->  | BI41: =(0.5 * ((100-(BETADIST(AT41,((COUNT(AB$30:AB41))/2)-1,((COUNT(AB$30:AB41))/2)-1))*100) + (100-(BETADIST(BA41,((COUNT(AB$30:AB41))/2)-1,((COUNT(AB$30:AB41))/2)-1))*100) - 100) + 55) / 100 -> 
AE42: 0 | AF42: 0 | AG42: 0 | AH42: 0 | AI42: 0 | AJ42: 0 | AK42: 0 | AL42: =IF((MAX(0,(0.5-(($AL$21-AVERAGE($N$30:N42))/(IF(STDEV($N$30:N42)<0.01,0.01,STDEV($N$30:N42)))*SQRT(COUNT($N$30:N42))/(2*(COUNT($N$30:N42)-1))))))>1,1,(MAX(0,(0.5-(($AL$21-AVERAGE($N$30:N42))/(IF(STDEV($N$30:N42)<0.01,0.01,STDEV($N$30:N42)))*SQRT(COUNT($N$30:N42))/(2*(COUNT($N$30:N42)-1))))))) ->  | AM42: 0 | AN42: 0 | AO42: 0 | AP42: 0 | AQ42: =IF((MAX(0,(0.5-(($AQ$21-AVERAGE($S$30:S42))/(IF(STDEV($S$30:S42)<0.01,0.01,STDEV($S$30:S42)))*SQRT(COUNT($S$30:S42))/(2*(COUNT($S$30:S42)-1))))))>1,1,(MAX(0,(0.5-(($AQ$21-AVERAGE($S$30:S42))/(IF(STDEV($S$30:S42)<0.01,0.01,STDEV($S$30:S42)))*SQRT(COUNT($S$30:S42))/(2*(COUNT($S$30:S42)-1))))))) ->  | AR42: =IF((MAX(0,(0.5-(($AR$21-AVERAGE($T$30:T42))/(IF(STDEV($T$30:T42)<0.01,0.01,STDEV($T$30:T42)))*SQRT(COUNT($T$30:T42))/(2*(COUNT($T$30:T42)-1))))))>1,1,(MAX(0,(0.5-(($AR$21-AVERAGE($T$30:T42))/(IF(STDEV($T$30:T42)<0.01,0.01,STDEV($T$30:T42)))*SQRT(COUNT($T$30:T42))/(2*(COUNT($T$30:T42)-1))))))) ->  | AS42: =IF((MAX(0,(0.5-(($AS$21-AVERAGE($AA$30:AA42))/(IF(STDEV($AA$30:AA42)<0.01,0.01,STDEV($AA$30:AA42)))*SQRT(COUNT($AA$30:AA42))/(2*(COUNT($AA$30:AA42)-1))))))>1,1,(MAX(0,(0.5-(($AS$21-AVERAGE($AA$30:AA42))/(IF(STDEV($AA$30:AA42)<0.01,0.01,STDEV($AA$30:AA42)))*SQRT(COUNT($AA$30:AA42))/(2*(COUNT($AA$30:AA42)-1))))))) ->  | AT42: =IF((MAX(0,(0.5-(($AT$21-AVERAGE($AB$30:AB42))/(IF(STDEV($AB$30:AB42)<0.01,0.01,STDEV($AB$30:AB42)))*SQRT(COUNT($AB$30:AB42))/(2*(COUNT($AB$30:AB42)-1))))))>1,1,(MAX(0,(0.5-(($AT$21-AVERAGE($AB$30:AB42))/(IF(STDEV($AB$30:AB42)<0.01,0.01,STDEV($AB$30:AB42)))*SQRT(COUNT($AB$30:AB42))/(2*(COUNT($AB$30:AB42)-1))))))) ->  | AW42: =IF((MAX(0,(0.5-((AVERAGE($N$30:N42)-$AW$22)/(IF(STDEV($N$30:N42)<0.01,0.01,STDEV($N$30:N42)))*SQRT(COUNT($N$30:N42))/(2*(COUNT($N$30:N42)-1))))))>1,1,(MAX(0,(0.5-((AVERAGE($N$30:N42)-$AW$22)/(IF(STDEV($N$30:N42)<0.01,0.01,STDEV($N$30:N42)))*SQRT(COUNT($N$30:N42))/(2*(COUNT($N$30:N42)-1))))))) ->  | AX42: =IF((MAX(0,(0.5-((AVERAGE($S$30:S42)-$AX$22)/(IF(STDEV($S$30:S42)<0.01,0.01,STDEV($S$30:S42)))*SQRT(COUNT($S$30:S42))/(2*(COUNT($S$30:S42)-1))))))>1,1,(MAX(0,(0.5-((AVERAGE($S$30:S42)-$AX$22)/(IF(STDEV($S$30:S42)<0.01,0.01,STDEV($S$30:S42)))*SQRT(COUNT($S$30:S42))/(2*(COUNT($S$30:S42)-1))))))) ->  | AY42: =IF((MAX(0,(0.5-((AVERAGE($T$30:T42)-$AY$22)/(IF(STDEV($T$30:T42)<0.01,0.01,STDEV($T$30:T42)))*SQRT(COUNT($T$30:T42))/(2*(COUNT($T$30:T42)-1))))))>1,1,(MAX(0,(0.5-((AVERAGE($T$30:T42)-$AY$22)/(IF(STDEV($T$30:T42)<0.01,0.01,STDEV($T$30:T42)))*SQRT(COUNT($T$30:T42))/(2*(COUNT($T$30:T42)-1))))))) ->  | AZ42: =IF((MAX(0,(0.5-((AVERAGE($AA$30:AA42)-$AZ$22)/(IF(STDEV($AA$30:AA42)<0.01,0.01,STDEV($AA$30:AA42)))*SQRT(COUNT($AA$30:AA42))/(2*(COUNT($AA$30:AA42)-1))))))>1,1,(MAX(0,(0.5-((AVERAGE($AA$30:AA42)-$AZ$22)/(IF(STDEV($AA$30:AA42)<0.01,0.01,STDEV($AA$30:AA42)))*SQRT(COUNT($AA$30:AA42))/(2*(COUNT($AA$30:AA42)-1))))))) ->  | BA42: =IF((MAX(0,(0.5-((AVERAGE($AB$30:AB42)-$BA$22)/(IF(STDEV($AB$30:AB42)<0.01,0.01,STDEV($AB$30:AB42)))*SQRT(COUNT($AB$30:AB42))/(2*(COUNT($AB$30:AB42)-1))))))>1,1,(MAX(0,(0.5-((AVERAGE($AB$30:AB42)-$BA$22)/(IF(STDEV($AB$30:AB42)<0.01,0.01,STDEV($AB$30:AB42)))*SQRT(COUNT($AB$30:AB42))/(2*(COUNT($AB$30:AB42)-1))))))) ->  | BE42: =(0.5 * ((100-(BETADIST(AL42,((COUNT(N$30:N42))/2)-1,((COUNT(N$30:N42))/2)-1))*100) + (100-(BETADIST(AW42,((COUNT(N$30:N42))/2)-1,((COUNT(N$30:N42))/2)-1))*100) - 100) + 55) / 100 ->  | BF42: =(0.5 * ((100-(BETADIST(AQ42,((COUNT(S$30:S42))/2)-1,((COUNT(S$30:S42))/2)-1))*100) + (100-(BETADIST(AX42,((COUNT(S$30:S42))/2)-1,((COUNT(S$30:S42))/2)-1))*100) - 100) + 55) / 100 ->  | BG42: =(0.5 * ((100-(BETADIST(AR42,((COUNT(T$30:T42))/2)-1,((COUNT(T$30:T42))/2)-1))*100) + (100-(BETADIST(AY42,((COUNT(T$30:T42))/2)-1,((COUNT(T$30:T42))/2)-1))*100) - 100) + 55) / 100 ->  | BH42: =(0.5 * ((100-(BETADIST(AS42,((COUNT(AA$30:AA42))/2)-1,((COUNT(AA$30:AA42))/2)-1))*100) + (100-(BETADIST(AZ42,((COUNT(AA$30:AA42))/2)-1,((COUNT(AA$30:AA42))/2)-1))*100) - 100) + 55) / 100 ->  | BI42: =(0.5 * ((100-(BETADIST(AT42,((COUNT(AB$30:AB42))/2)-1,((COUNT(AB$30:AB42))/2)-1))*100) + (100-(BETADIST(BA42,((COUNT(AB$30:AB42))/2)-1,((COUNT(AB$30:AB42))/2)-1))*100) - 100) + 55) / 100 -> 
AE43: 0 | AF43: 0 | AG43: 0 | AH43: 0 | AI43: 0 | AJ43: 0 | AK43: 0 | AL43: =IF((MAX(0,(0.5-(($AL$21-AVERAGE($N$30:N43))/(IF(STDEV($N$30:N43)<0.01,0.01,STDEV($N$30:N43)))*SQRT(COUNT($N$30:N43))/(2*(COUNT($N$30:N43)-1))))))>1,1,(MAX(0,(0.5-(($AL$21-AVERAGE($N$30:N43))/(IF(STDEV($N$30:N43)<0.01,0.01,STDEV($N$30:N43)))*SQRT(COUNT($N$30:N43))/(2*(COUNT($N$30:N43)-1))))))) ->  | AM43: 0 | AN43: 0 | AO43: 0 | AP43: 0 | AQ43: =IF((MAX(0,(0.5-(($AQ$21-AVERAGE($S$30:S43))/(IF(STDEV($S$30:S43)<0.01,0.01,STDEV($S$30:S43)))*SQRT(COUNT($S$30:S43))/(2*(COUNT($S$30:S43)-1))))))>1,1,(MAX(0,(0.5-(($AQ$21-AVERAGE($S$30:S43))/(IF(STDEV($S$30:S43)<0.01,0.01,STDEV($S$30:S43)))*SQRT(COUNT($S$30:S43))/(2*(COUNT($S$30:S43)-1))))))) ->  | AR43: =IF((MAX(0,(0.5-(($AR$21-AVERAGE($T$30:T43))/(IF(STDEV($T$30:T43)<0.01,0.01,STDEV($T$30:T43)))*SQRT(COUNT($T$30:T43))/(2*(COUNT($T$30:T43)-1))))))>1,1,(MAX(0,(0.5-(($AR$21-AVERAGE($T$30:T43))/(IF(STDEV($T$30:T43)<0.01,0.01,STDEV($T$30:T43)))*SQRT(COUNT($T$30:T43))/(2*(COUNT($T$30:T43)-1))))))) ->  | AS43: =IF((MAX(0,(0.5-(($AS$21-AVERAGE($AA$30:AA43))/(IF(STDEV($AA$30:AA43)<0.01,0.01,STDEV($AA$30:AA43)))*SQRT(COUNT($AA$30:AA43))/(2*(COUNT($AA$30:AA43)-1))))))>1,1,(MAX(0,(0.5-(($AS$21-AVERAGE($AA$30:AA43))/(IF(STDEV($AA$30:AA43)<0.01,0.01,STDEV($AA$30:AA43)))*SQRT(COUNT($AA$30:AA43))/(2*(COUNT($AA$30:AA43)-1))))))) ->  | AT43: =IF((MAX(0,(0.5-(($AT$21-AVERAGE($AB$30:AB43))/(IF(STDEV($AB$30:AB43)<0.01,0.01,STDEV($AB$30:AB43)))*SQRT(COUNT($AB$30:AB43))/(2*(COUNT($AB$30:AB43)-1))))))>1,1,(MAX(0,(0.5-(($AT$21-AVERAGE($AB$30:AB43))/(IF(STDEV($AB$30:AB43)<0.01,0.01,STDEV($AB$30:AB43)))*SQRT(COUNT($AB$30:AB43))/(2*(COUNT($AB$30:AB43)-1))))))) ->  | AW43: =IF((MAX(0,(0.5-((AVERAGE($N$30:N43)-$AW$22)/(IF(STDEV($N$30:N43)<0.01,0.01,STDEV($N$30:N43)))*SQRT(COUNT($N$30:N43))/(2*(COUNT($N$30:N43)-1))))))>1,1,(MAX(0,(0.5-((AVERAGE($N$30:N43)-$AW$22)/(IF(STDEV($N$30:N43)<0.01,0.01,STDEV($N$30:N43)))*SQRT(COUNT($N$30:N43))/(2*(COUNT($N$30:N43)-1))))))) ->  | AX43: =IF((MAX(0,(0.5-((AVERAGE($S$30:S43)-$AX$22)/(IF(STDEV($S$30:S43)<0.01,0.01,STDEV($S$30:S43)))*SQRT(COUNT($S$30:S43))/(2*(COUNT($S$30:S43)-1))))))>1,1,(MAX(0,(0.5-((AVERAGE($S$30:S43)-$AX$22)/(IF(STDEV($S$30:S43)<0.01,0.01,STDEV($S$30:S43)))*SQRT(COUNT($S$30:S43))/(2*(COUNT($S$30:S43)-1))))))) ->  | AY43: =IF((MAX(0,(0.5-((AVERAGE($T$30:T43)-$AY$22)/(IF(STDEV($T$30:T43)<0.01,0.01,STDEV($T$30:T43)))*SQRT(COUNT($T$30:T43))/(2*(COUNT($T$30:T43)-1))))))>1,1,(MAX(0,(0.5-((AVERAGE($T$30:T43)-$AY$22)/(IF(STDEV($T$30:T43)<0.01,0.01,STDEV($T$30:T43)))*SQRT(COUNT($T$30:T43))/(2*(COUNT($T$30:T43)-1))))))) ->  | AZ43: =IF((MAX(0,(0.5-((AVERAGE($AA$30:AA43)-$AZ$22)/(IF(STDEV($AA$30:AA43)<0.01,0.01,STDEV($AA$30:AA43)))*SQRT(COUNT($AA$30:AA43))/(2*(COUNT($AA$30:AA43)-1))))))>1,1,(MAX(0,(0.5-((AVERAGE($AA$30:AA43)-$AZ$22)/(IF(STDEV($AA$30:AA43)<0.01,0.01,STDEV($AA$30:AA43)))*SQRT(COUNT($AA$30:AA43))/(2*(COUNT($AA$30:AA43)-1))))))) ->  | BA43: =IF((MAX(0,(0.5-((AVERAGE($AB$30:AB43)-$BA$22)/(IF(STDEV($AB$30:AB43)<0.01,0.01,STDEV($AB$30:AB43)))*SQRT(COUNT($AB$30:AB43))/(2*(COUNT($AB$30:AB43)-1))))))>1,1,(MAX(0,(0.5-((AVERAGE($AB$30:AB43)-$BA$22)/(IF(STDEV($AB$30:AB43)<0.01,0.01,STDEV($AB$30:AB43)))*SQRT(COUNT($AB$30:AB43))/(2*(COUNT($AB$30:AB43)-1))))))) ->  | BE43: =(0.5 * ((100-(BETADIST(AL43,((COUNT(N$30:N43))/2)-1,((COUNT(N$30:N43))/2)-1))*100) + (100-(BETADIST(AW43,((COUNT(N$30:N43))/2)-1,((COUNT(N$30:N43))/2)-1))*100) - 100) + 55) / 100 ->  | BF43: =(0.5 * ((100-(BETADIST(AQ43,((COUNT(S$30:S43))/2)-1,((COUNT(S$30:S43))/2)-1))*100) + (100-(BETADIST(AX43,((COUNT(S$30:S43))/2)-1,((COUNT(S$30:S43))/2)-1))*100) - 100) + 55) / 100 ->  | BG43: =(0.5 * ((100-(BETADIST(AR43,((COUNT(T$30:T43))/2)-1,((COUNT(T$30:T43))/2)-1))*100) + (100-(BETADIST(AY43,((COUNT(T$30:T43))/2)-1,((COUNT(T$30:T43))/2)-1))*100) - 100) + 55) / 100 ->  | BH43: =(0.5 * ((100-(BETADIST(AS43,((COUNT(AA$30:AA43))/2)-1,((COUNT(AA$30:AA43))/2)-1))*100) + (100-(BETADIST(AZ43,((COUNT(AA$30:AA43))/2)-1,((COUNT(AA$30:AA43))/2)-1))*100) - 100) + 55) / 100 ->  | BI43: =(0.5 * ((100-(BETADIST(AT43,((COUNT(AB$30:AB43))/2)-1,((COUNT(AB$30:AB43))/2)-1))*100) + (100-(BETADIST(BA43,((COUNT(AB$30:AB43))/2)-1,((COUNT(AB$30:AB43))/2)-1))*100) - 100) + 55) / 100 -> 
AE44: 0 | AF44: 0 | AG44: 0 | AH44: 0 | AI44: 0 | AJ44: 0 | AK44: 0 | AL44: =IF((MAX(0,(0.5-(($AL$21-AVERAGE($N$30:N44))/(IF(STDEV($N$30:N44)<0.01,0.01,STDEV($N$30:N44)))*SQRT(COUNT($N$30:N44))/(2*(COUNT($N$30:N44)-1))))))>1,1,(MAX(0,(0.5-(($AL$21-AVERAGE($N$30:N44))/(IF(STDEV($N$30:N44)<0.01,0.01,STDEV($N$30:N44)))*SQRT(COUNT($N$30:N44))/(2*(COUNT($N$30:N44)-1))))))) ->  | AM44: 0 | AN44: 0 | AO44: 0 | AP44: 0 | AQ44: =IF((MAX(0,(0.5-(($AQ$21-AVERAGE($S$30:S44))/(IF(STDEV($S$30:S44)<0.01,0.01,STDEV($S$30:S44)))*SQRT(COUNT($S$30:S44))/(2*(COUNT($S$30:S44)-1))))))>1,1,(MAX(0,(0.5-(($AQ$21-AVERAGE($S$30:S44))/(IF(STDEV($S$30:S44)<0.01,0.01,STDEV($S$30:S44)))*SQRT(COUNT($S$30:S44))/(2*(COUNT($S$30:S44)-1))))))) ->  | AR44: =IF((MAX(0,(0.5-(($AR$21-AVERAGE($T$30:T44))/(IF(STDEV($T$30:T44)<0.01,0.01,STDEV($T$30:T44)))*SQRT(COUNT($T$30:T44))/(2*(COUNT($T$30:T44)-1))))))>1,1,(MAX(0,(0.5-(($AR$21-AVERAGE($T$30:T44))/(IF(STDEV($T$30:T44)<0.01,0.01,STDEV($T$30:T44)))*SQRT(COUNT($T$30:T44))/(2*(COUNT($T$30:T44)-1))))))) ->  | AS44: =IF((MAX(0,(0.5-(($AS$21-AVERAGE($AA$30:AA44))/(IF(STDEV($AA$30:AA44)<0.01,0.01,STDEV($AA$30:AA44)))*SQRT(COUNT($AA$30:AA44))/(2*(COUNT($AA$30:AA44)-1))))))>1,1,(MAX(0,(0.5-(($AS$21-AVERAGE($AA$30:AA44))/(IF(STDEV($AA$30:AA44)<0.01,0.01,STDEV($AA$30:AA44)))*SQRT(COUNT($AA$30:AA44))/(2*(COUNT($AA$30:AA44)-1))))))) ->  | AT44: =IF((MAX(0,(0.5-(($AT$21-AVERAGE($AB$30:AB44))/(IF(STDEV($AB$30:AB44)<0.01,0.01,STDEV($AB$30:AB44)))*SQRT(COUNT($AB$30:AB44))/(2*(COUNT($AB$30:AB44)-1))))))>1,1,(MAX(0,(0.5-(($AT$21-AVERAGE($AB$30:AB44))/(IF(STDEV($AB$30:AB44)<0.01,0.01,STDEV($AB$30:AB44)))*SQRT(COUNT($AB$30:AB44))/(2*(COUNT($AB$30:AB44)-1))))))) ->  | AW44: =IF((MAX(0,(0.5-((AVERAGE($N$30:N44)-$AW$22)/(IF(STDEV($N$30:N44)<0.01,0.01,STDEV($N$30:N44)))*SQRT(COUNT($N$30:N44))/(2*(COUNT($N$30:N44)-1))))))>1,1,(MAX(0,(0.5-((AVERAGE($N$30:N44)-$AW$22)/(IF(STDEV($N$30:N44)<0.01,0.01,STDEV($N$30:N44)))*SQRT(COUNT($N$30:N44))/(2*(COUNT($N$30:N44)-1))))))) ->  | AX44: =IF((MAX(0,(0.5-((AVERAGE($S$30:S44)-$AX$22)/(IF(STDEV($S$30:S44)<0.01,0.01,STDEV($S$30:S44)))*SQRT(COUNT($S$30:S44))/(2*(COUNT($S$30:S44)-1))))))>1,1,(MAX(0,(0.5-((AVERAGE($S$30:S44)-$AX$22)/(IF(STDEV($S$30:S44)<0.01,0.01,STDEV($S$30:S44)))*SQRT(COUNT($S$30:S44))/(2*(COUNT($S$30:S44)-1))))))) ->  | AY44: =IF((MAX(0,(0.5-((AVERAGE($T$30:T44)-$AY$22)/(IF(STDEV($T$30:T44)<0.01,0.01,STDEV($T$30:T44)))*SQRT(COUNT($T$30:T44))/(2*(COUNT($T$30:T44)-1))))))>1,1,(MAX(0,(0.5-((AVERAGE($T$30:T44)-$AY$22)/(IF(STDEV($T$30:T44)<0.01,0.01,STDEV($T$30:T44)))*SQRT(COUNT($T$30:T44))/(2*(COUNT($T$30:T44)-1))))))) ->  | AZ44: =IF((MAX(0,(0.5-((AVERAGE($AA$30:AA44)-$AZ$22)/(IF(STDEV($AA$30:AA44)<0.01,0.01,STDEV($AA$30:AA44)))*SQRT(COUNT($AA$30:AA44))/(2*(COUNT($AA$30:AA44)-1))))))>1,1,(MAX(0,(0.5-((AVERAGE($AA$30:AA44)-$AZ$22)/(IF(STDEV($AA$30:AA44)<0.01,0.01,STDEV($AA$30:AA44)))*SQRT(COUNT($AA$30:AA44))/(2*(COUNT($AA$30:AA44)-1))))))) ->  | BA44: =IF((MAX(0,(0.5-((AVERAGE($AB$30:AB44)-$BA$22)/(IF(STDEV($AB$30:AB44)<0.01,0.01,STDEV($AB$30:AB44)))*SQRT(COUNT($AB$30:AB44))/(2*(COUNT($AB$30:AB44)-1))))))>1,1,(MAX(0,(0.5-((AVERAGE($AB$30:AB44)-$BA$22)/(IF(STDEV($AB$30:AB44)<0.01,0.01,STDEV($AB$30:AB44)))*SQRT(COUNT($AB$30:AB44))/(2*(COUNT($AB$30:AB44)-1))))))) ->  | BE44: =(0.5 * ((100-(BETADIST(AL44,((COUNT(N$30:N44))/2)-1,((COUNT(N$30:N44))/2)-1))*100) + (100-(BETADIST(AW44,((COUNT(N$30:N44))/2)-1,((COUNT(N$30:N44))/2)-1))*100) - 100) + 55) / 100 ->  | BF44: =(0.5 * ((100-(BETADIST(AQ44,((COUNT(S$30:S44))/2)-1,((COUNT(S$30:S44))/2)-1))*100) + (100-(BETADIST(AX44,((COUNT(S$30:S44))/2)-1,((COUNT(S$30:S44))/2)-1))*100) - 100) + 55) / 100 ->  | BG44: =(0.5 * ((100-(BETADIST(AR44,((COUNT(T$30:T44))/2)-1,((COUNT(T$30:T44))/2)-1))*100) + (100-(BETADIST(AY44,((COUNT(T$30:T44))/2)-1,((COUNT(T$30:T44))/2)-1))*100) - 100) + 55) / 100 ->  | BH44: =(0.5 * ((100-(BETADIST(AS44,((COUNT(AA$30:AA44))/2)-1,((COUNT(AA$30:AA44))/2)-1))*100) + (100-(BETADIST(AZ44,((COUNT(AA$30:AA44))/2)-1,((COUNT(AA$30:AA44))/2)-1))*100) - 100) + 55) / 100 ->  | BI44: =(0.5 * ((100-(BETADIST(AT44,((COUNT(AB$30:AB44))/2)-1,((COUNT(AB$30:AB44))/2)-1))*100) + (100-(BETADIST(BA44,((COUNT(AB$30:AB44))/2)-1,((COUNT(AB$30:AB44))/2)-1))*100) - 100) + 55) / 100 -> 
AE45: 0 | AF45: 0 | AG45: 0 | AH45: 0 | AI45: 0 | AJ45: 0 | AK45: 0 | AL45: =IF((MAX(0,(0.5-(($AL$21-AVERAGE($N$30:N45))/(IF(STDEV($N$30:N45)<0.01,0.01,STDEV($N$30:N45)))*SQRT(COUNT($N$30:N45))/(2*(COUNT($N$30:N45)-1))))))>1,1,(MAX(0,(0.5-(($AL$21-AVERAGE($N$30:N45))/(IF(STDEV($N$30:N45)<0.01,0.01,STDEV($N$30:N45)))*SQRT(COUNT($N$30:N45))/(2*(COUNT($N$30:N45)-1))))))) ->  | AM45: 0 | AN45: 0 | AO45: 0 | AP45: 0 | AQ45: =IF((MAX(0,(0.5-(($AQ$21-AVERAGE($S$30:S45))/(IF(STDEV($S$30:S45)<0.01,0.01,STDEV($S$30:S45)))*SQRT(COUNT($S$30:S45))/(2*(COUNT($S$30:S45)-1))))))>1,1,(MAX(0,(0.5-(($AQ$21-AVERAGE($S$30:S45))/(IF(STDEV($S$30:S45)<0.01,0.01,STDEV($S$30:S45)))*SQRT(COUNT($S$30:S45))/(2*(COUNT($S$30:S45)-1))))))) ->  | AR45: =IF((MAX(0,(0.5-(($AR$21-AVERAGE($T$30:T45))/(IF(STDEV($T$30:T45)<0.01,0.01,STDEV($T$30:T45)))*SQRT(COUNT($T$30:T45))/(2*(COUNT($T$30:T45)-1))))))>1,1,(MAX(0,(0.5-(($AR$21-AVERAGE($T$30:T45))/(IF(STDEV($T$30:T45)<0.01,0.01,STDEV($T$30:T45)))*SQRT(COUNT($T$30:T45))/(2*(COUNT($T$30:T45)-1))))))) ->  | AS45: =IF((MAX(0,(0.5-(($AS$21-AVERAGE($AA$30:AA45))/(IF(STDEV($AA$30:AA45)<0.01,0.01,STDEV($AA$30:AA45)))*SQRT(COUNT($AA$30:AA45))/(2*(COUNT($AA$30:AA45)-1))))))>1,1,(MAX(0,(0.5-(($AS$21-AVERAGE($AA$30:AA45))/(IF(STDEV($AA$30:AA45)<0.01,0.01,STDEV($AA$30:AA45)))*SQRT(COUNT($AA$30:AA45))/(2*(COUNT($AA$30:AA45)-1))))))) ->  | AT45: =IF((MAX(0,(0.5-(($AT$21-AVERAGE($AB$30:AB45))/(IF(STDEV($AB$30:AB45)<0.01,0.01,STDEV($AB$30:AB45)))*SQRT(COUNT($AB$30:AB45))/(2*(COUNT($AB$30:AB45)-1))))))>1,1,(MAX(0,(0.5-(($AT$21-AVERAGE($AB$30:AB45))/(IF(STDEV($AB$30:AB45)<0.01,0.01,STDEV($AB$30:AB45)))*SQRT(COUNT($AB$30:AB45))/(2*(COUNT($AB$30:AB45)-1))))))) ->  | AW45: =IF((MAX(0,(0.5-((AVERAGE($N$30:N45)-$AW$22)/(IF(STDEV($N$30:N45)<0.01,0.01,STDEV($N$30:N45)))*SQRT(COUNT($N$30:N45))/(2*(COUNT($N$30:N45)-1))))))>1,1,(MAX(0,(0.5-((AVERAGE($N$30:N45)-$AW$22)/(IF(STDEV($N$30:N45)<0.01,0.01,STDEV($N$30:N45)))*SQRT(COUNT($N$30:N45))/(2*(COUNT($N$30:N45)-1))))))) ->  | AX45: =IF((MAX(0,(0.5-((AVERAGE($S$30:S45)-$AX$22)/(IF(STDEV($S$30:S45)<0.01,0.01,STDEV($S$30:S45)))*SQRT(COUNT($S$30:S45))/(2*(COUNT($S$30:S45)-1))))))>1,1,(MAX(0,(0.5-((AVERAGE($S$30:S45)-$AX$22)/(IF(STDEV($S$30:S45)<0.01,0.01,STDEV($S$30:S45)))*SQRT(COUNT($S$30:S45))/(2*(COUNT($S$30:S45)-1))))))) ->  | AY45: =IF((MAX(0,(0.5-((AVERAGE($T$30:T45)-$AY$22)/(IF(STDEV($T$30:T45)<0.01,0.01,STDEV($T$30:T45)))*SQRT(COUNT($T$30:T45))/(2*(COUNT($T$30:T45)-1))))))>1,1,(MAX(0,(0.5-((AVERAGE($T$30:T45)-$AY$22)/(IF(STDEV($T$30:T45)<0.01,0.01,STDEV($T$30:T45)))*SQRT(COUNT($T$30:T45))/(2*(COUNT($T$30:T45)-1))))))) ->  | AZ45: =IF((MAX(0,(0.5-((AVERAGE($AA$30:AA45)-$AZ$22)/(IF(STDEV($AA$30:AA45)<0.01,0.01,STDEV($AA$30:AA45)))*SQRT(COUNT($AA$30:AA45))/(2*(COUNT($AA$30:AA45)-1))))))>1,1,(MAX(0,(0.5-((AVERAGE($AA$30:AA45)-$AZ$22)/(IF(STDEV($AA$30:AA45)<0.01,0.01,STDEV($AA$30:AA45)))*SQRT(COUNT($AA$30:AA45))/(2*(COUNT($AA$30:AA45)-1))))))) ->  | BA45: =IF((MAX(0,(0.5-((AVERAGE($AB$30:AB45)-$BA$22)/(IF(STDEV($AB$30:AB45)<0.01,0.01,STDEV($AB$30:AB45)))*SQRT(COUNT($AB$30:AB45))/(2*(COUNT($AB$30:AB45)-1))))))>1,1,(MAX(0,(0.5-((AVERAGE($AB$30:AB45)-$BA$22)/(IF(STDEV($AB$30:AB45)<0.01,0.01,STDEV($AB$30:AB45)))*SQRT(COUNT($AB$30:AB45))/(2*(COUNT($AB$30:AB45)-1))))))) ->  | BE45: =(0.5 * ((100-(BETADIST(AL45,((COUNT(N$30:N45))/2)-1,((COUNT(N$30:N45))/2)-1))*100) + (100-(BETADIST(AW45,((COUNT(N$30:N45))/2)-1,((COUNT(N$30:N45))/2)-1))*100) - 100) + 55) / 100 ->  | BF45: =(0.5 * ((100-(BETADIST(AQ45,((COUNT(S$30:S45))/2)-1,((COUNT(S$30:S45))/2)-1))*100) + (100-(BETADIST(AX45,((COUNT(S$30:S45))/2)-1,((COUNT(S$30:S45))/2)-1))*100) - 100) + 55) / 100 ->  | BG45: =(0.5 * ((100-(BETADIST(AR45,((COUNT(T$30:T45))/2)-1,((COUNT(T$30:T45))/2)-1))*100) + (100-(BETADIST(AY45,((COUNT(T$30:T45))/2)-1,((COUNT(T$30:T45))/2)-1))*100) - 100) + 55) / 100 ->  | BH45: =(0.5 * ((100-(BETADIST(AS45,((COUNT(AA$30:AA45))/2)-1,((COUNT(AA$30:AA45))/2)-1))*100) + (100-(BETADIST(AZ45,((COUNT(AA$30:AA45))/2)-1,((COUNT(AA$30:AA45))/2)-1))*100) - 100) + 55) / 100 ->  | BI45: =(0.5 * ((100-(BETADIST(AT45,((COUNT(AB$30:AB45))/2)-1,((COUNT(AB$30:AB45))/2)-1))*100) + (100-(BETADIST(BA45,((COUNT(AB$30:AB45))/2)-1,((COUNT(AB$30:AB45))/2)-1))*100) - 100) + 55) / 100 -> 
AE46: 0 | AF46: 0 | AG46: 0 | AH46: 0 | AI46: 0 | AJ46: 0 | AK46: 0 | AL46: =IF((MAX(0,(0.5-(($AL$21-AVERAGE($N$30:N46))/(IF(STDEV($N$30:N46)<0.01,0.01,STDEV($N$30:N46)))*SQRT(COUNT($N$30:N46))/(2*(COUNT($N$30:N46)-1))))))>1,1,(MAX(0,(0.5-(($AL$21-AVERAGE($N$30:N46))/(IF(STDEV($N$30:N46)<0.01,0.01,STDEV($N$30:N46)))*SQRT(COUNT($N$30:N46))/(2*(COUNT($N$30:N46)-1))))))) ->  | AM46: 0 | AN46: 0 | AO46: 0 | AP46: 0 | AQ46: =IF((MAX(0,(0.5-(($AQ$21-AVERAGE($S$30:S46))/(IF(STDEV($S$30:S46)<0.01,0.01,STDEV($S$30:S46)))*SQRT(COUNT($S$30:S46))/(2*(COUNT($S$30:S46)-1))))))>1,1,(MAX(0,(0.5-(($AQ$21-AVERAGE($S$30:S46))/(IF(STDEV($S$30:S46)<0.01,0.01,STDEV($S$30:S46)))*SQRT(COUNT($S$30:S46))/(2*(COUNT($S$30:S46)-1))))))) ->  | AR46: =IF((MAX(0,(0.5-(($AR$21-AVERAGE($T$30:T46))/(IF(STDEV($T$30:T46)<0.01,0.01,STDEV($T$30:T46)))*SQRT(COUNT($T$30:T46))/(2*(COUNT($T$30:T46)-1))))))>1,1,(MAX(0,(0.5-(($AR$21-AVERAGE($T$30:T46))/(IF(STDEV($T$30:T46)<0.01,0.01,STDEV($T$30:T46)))*SQRT(COUNT($T$30:T46))/(2*(COUNT($T$30:T46)-1))))))) ->  | AS46: =IF((MAX(0,(0.5-(($AS$21-AVERAGE($AA$30:AA46))/(IF(STDEV($AA$30:AA46)<0.01,0.01,STDEV($AA$30:AA46)))*SQRT(COUNT($AA$30:AA46))/(2*(COUNT($AA$30:AA46)-1))))))>1,1,(MAX(0,(0.5-(($AS$21-AVERAGE($AA$30:AA46))/(IF(STDEV($AA$30:AA46)<0.01,0.01,STDEV($AA$30:AA46)))*SQRT(COUNT($AA$30:AA46))/(2*(COUNT($AA$30:AA46)-1))))))) ->  | AT46: =IF((MAX(0,(0.5-(($AT$21-AVERAGE($AB$30:AB46))/(IF(STDEV($AB$30:AB46)<0.01,0.01,STDEV($AB$30:AB46)))*SQRT(COUNT($AB$30:AB46))/(2*(COUNT($AB$30:AB46)-1))))))>1,1,(MAX(0,(0.5-(($AT$21-AVERAGE($AB$30:AB46))/(IF(STDEV($AB$30:AB46)<0.01,0.01,STDEV($AB$30:AB46)))*SQRT(COUNT($AB$30:AB46))/(2*(COUNT($AB$30:AB46)-1))))))) ->  | AW46: =IF((MAX(0,(0.5-((AVERAGE($N$30:N46)-$AW$22)/(IF(STDEV($N$30:N46)<0.01,0.01,STDEV($N$30:N46)))*SQRT(COUNT($N$30:N46))/(2*(COUNT($N$30:N46)-1))))))>1,1,(MAX(0,(0.5-((AVERAGE($N$30:N46)-$AW$22)/(IF(STDEV($N$30:N46)<0.01,0.01,STDEV($N$30:N46)))*SQRT(COUNT($N$30:N46))/(2*(COUNT($N$30:N46)-1))))))) ->  | AX46: =IF((MAX(0,(0.5-((AVERAGE($S$30:S46)-$AX$22)/(IF(STDEV($S$30:S46)<0.01,0.01,STDEV($S$30:S46)))*SQRT(COUNT($S$30:S46))/(2*(COUNT($S$30:S46)-1))))))>1,1,(MAX(0,(0.5-((AVERAGE($S$30:S46)-$AX$22)/(IF(STDEV($S$30:S46)<0.01,0.01,STDEV($S$30:S46)))*SQRT(COUNT($S$30:S46))/(2*(COUNT($S$30:S46)-1))))))) ->  | AY46: =IF((MAX(0,(0.5-((AVERAGE($T$30:T46)-$AY$22)/(IF(STDEV($T$30:T46)<0.01,0.01,STDEV($T$30:T46)))*SQRT(COUNT($T$30:T46))/(2*(COUNT($T$30:T46)-1))))))>1,1,(MAX(0,(0.5-((AVERAGE($T$30:T46)-$AY$22)/(IF(STDEV($T$30:T46)<0.01,0.01,STDEV($T$30:T46)))*SQRT(COUNT($T$30:T46))/(2*(COUNT($T$30:T46)-1))))))) ->  | AZ46: =IF((MAX(0,(0.5-((AVERAGE($AA$30:AA46)-$AZ$22)/(IF(STDEV($AA$30:AA46)<0.01,0.01,STDEV($AA$30:AA46)))*SQRT(COUNT($AA$30:AA46))/(2*(COUNT($AA$30:AA46)-1))))))>1,1,(MAX(0,(0.5-((AVERAGE($AA$30:AA46)-$AZ$22)/(IF(STDEV($AA$30:AA46)<0.01,0.01,STDEV($AA$30:AA46)))*SQRT(COUNT($AA$30:AA46))/(2*(COUNT($AA$30:AA46)-1))))))) ->  | BA46: =IF((MAX(0,(0.5-((AVERAGE($AB$30:AB46)-$BA$22)/(IF(STDEV($AB$30:AB46)<0.01,0.01,STDEV($AB$30:AB46)))*SQRT(COUNT($AB$30:AB46))/(2*(COUNT($AB$30:AB46)-1))))))>1,1,(MAX(0,(0.5-((AVERAGE($AB$30:AB46)-$BA$22)/(IF(STDEV($AB$30:AB46)<0.01,0.01,STDEV($AB$30:AB46)))*SQRT(COUNT($AB$30:AB46))/(2*(COUNT($AB$30:AB46)-1))))))) ->  | BE46: =(0.5 * ((100-(BETADIST(AL46,((COUNT(N$30:N46))/2)-1,((COUNT(N$30:N46))/2)-1))*100) + (100-(BETADIST(AW46,((COUNT(N$30:N46))/2)-1,((COUNT(N$30:N46))/2)-1))*100) - 100) + 55) / 100 ->  | BF46: =(0.5 * ((100-(BETADIST(AQ46,((COUNT(S$30:S46))/2)-1,((COUNT(S$30:S46))/2)-1))*100) + (100-(BETADIST(AX46,((COUNT(S$30:S46))/2)-1,((COUNT(S$30:S46))/2)-1))*100) - 100) + 55) / 100 ->  | BG46: =(0.5 * ((100-(BETADIST(AR46,((COUNT(T$30:T46))/2)-1,((COUNT(T$30:T46))/2)-1))*100) + (100-(BETADIST(AY46,((COUNT(T$30:T46))/2)-1,((COUNT(T$30:T46))/2)-1))*100) - 100) + 55) / 100 ->  | BH46: =(0.5 * ((100-(BETADIST(AS46,((COUNT(AA$30:AA46))/2)-1,((COUNT(AA$30:AA46))/2)-1))*100) + (100-(BETADIST(AZ46,((COUNT(AA$30:AA46))/2)-1,((COUNT(AA$30:AA46))/2)-1))*100) - 100) + 55) / 100 ->  | BI46: =(0.5 * ((100-(BETADIST(AT46,((COUNT(AB$30:AB46))/2)-1,((COUNT(AB$30:AB46))/2)-1))*100) + (100-(BETADIST(BA46,((COUNT(AB$30:AB46))/2)-1,((COUNT(AB$30:AB46))/2)-1))*100) - 100) + 55) / 100 -> 
AE47: 0 | AF47: 0 | AG47: 0 | AH47: 0 | AI47: 0 | AJ47: 0 | AK47: 0 | AL47: =IF((MAX(0,(0.5-(($AL$21-AVERAGE($N$30:N47))/(IF(STDEV($N$30:N47)<0.01,0.01,STDEV($N$30:N47)))*SQRT(COUNT($N$30:N47))/(2*(COUNT($N$30:N47)-1))))))>1,1,(MAX(0,(0.5-(($AL$21-AVERAGE($N$30:N47))/(IF(STDEV($N$30:N47)<0.01,0.01,STDEV($N$30:N47)))*SQRT(COUNT($N$30:N47))/(2*(COUNT($N$30:N47)-1))))))) ->  | AM47: 0 | AN47: 0 | AO47: 0 | AP47: 0 | AQ47: =IF((MAX(0,(0.5-(($AQ$21-AVERAGE($S$30:S47))/(IF(STDEV($S$30:S47)<0.01,0.01,STDEV($S$30:S47)))*SQRT(COUNT($S$30:S47))/(2*(COUNT($S$30:S47)-1))))))>1,1,(MAX(0,(0.5-(($AQ$21-AVERAGE($S$30:S47))/(IF(STDEV($S$30:S47)<0.01,0.01,STDEV($S$30:S47)))*SQRT(COUNT($S$30:S47))/(2*(COUNT($S$30:S47)-1))))))) ->  | AR47: =IF((MAX(0,(0.5-(($AR$21-AVERAGE($T$30:T47))/(IF(STDEV($T$30:T47)<0.01,0.01,STDEV($T$30:T47)))*SQRT(COUNT($T$30:T47))/(2*(COUNT($T$30:T47)-1))))))>1,1,(MAX(0,(0.5-(($AR$21-AVERAGE($T$30:T47))/(IF(STDEV($T$30:T47)<0.01,0.01,STDEV($T$30:T47)))*SQRT(COUNT($T$30:T47))/(2*(COUNT($T$30:T47)-1))))))) ->  | AS47: =IF((MAX(0,(0.5-(($AS$21-AVERAGE($AA$30:AA47))/(IF(STDEV($AA$30:AA47)<0.01,0.01,STDEV($AA$30:AA47)))*SQRT(COUNT($AA$30:AA47))/(2*(COUNT($AA$30:AA47)-1))))))>1,1,(MAX(0,(0.5-(($AS$21-AVERAGE($AA$30:AA47))/(IF(STDEV($AA$30:AA47)<0.01,0.01,STDEV($AA$30:AA47)))*SQRT(COUNT($AA$30:AA47))/(2*(COUNT($AA$30:AA47)-1))))))) ->  | AT47: =IF((MAX(0,(0.5-(($AT$21-AVERAGE($AB$30:AB47))/(IF(STDEV($AB$30:AB47)<0.01,0.01,STDEV($AB$30:AB47)))*SQRT(COUNT($AB$30:AB47))/(2*(COUNT($AB$30:AB47)-1))))))>1,1,(MAX(0,(0.5-(($AT$21-AVERAGE($AB$30:AB47))/(IF(STDEV($AB$30:AB47)<0.01,0.01,STDEV($AB$30:AB47)))*SQRT(COUNT($AB$30:AB47))/(2*(COUNT($AB$30:AB47)-1))))))) ->  | AW47: =IF((MAX(0,(0.5-((AVERAGE($N$30:N47)-$AW$22)/(IF(STDEV($N$30:N47)<0.01,0.01,STDEV($N$30:N47)))*SQRT(COUNT($N$30:N47))/(2*(COUNT($N$30:N47)-1))))))>1,1,(MAX(0,(0.5-((AVERAGE($N$30:N47)-$AW$22)/(IF(STDEV($N$30:N47)<0.01,0.01,STDEV($N$30:N47)))*SQRT(COUNT($N$30:N47))/(2*(COUNT($N$30:N47)-1))))))) ->  | AX47: =IF((MAX(0,(0.5-((AVERAGE($S$30:S47)-$AX$22)/(IF(STDEV($S$30:S47)<0.01,0.01,STDEV($S$30:S47)))*SQRT(COUNT($S$30:S47))/(2*(COUNT($S$30:S47)-1))))))>1,1,(MAX(0,(0.5-((AVERAGE($S$30:S47)-$AX$22)/(IF(STDEV($S$30:S47)<0.01,0.01,STDEV($S$30:S47)))*SQRT(COUNT($S$30:S47))/(2*(COUNT($S$30:S47)-1))))))) ->  | AY47: =IF((MAX(0,(0.5-((AVERAGE($T$30:T47)-$AY$22)/(IF(STDEV($T$30:T47)<0.01,0.01,STDEV($T$30:T47)))*SQRT(COUNT($T$30:T47))/(2*(COUNT($T$30:T47)-1))))))>1,1,(MAX(0,(0.5-((AVERAGE($T$30:T47)-$AY$22)/(IF(STDEV($T$30:T47)<0.01,0.01,STDEV($T$30:T47)))*SQRT(COUNT($T$30:T47))/(2*(COUNT($T$30:T47)-1))))))) ->  | AZ47: =IF((MAX(0,(0.5-((AVERAGE($AA$30:AA47)-$AZ$22)/(IF(STDEV($AA$30:AA47)<0.01,0.01,STDEV($AA$30:AA47)))*SQRT(COUNT($AA$30:AA47))/(2*(COUNT($AA$30:AA47)-1))))))>1,1,(MAX(0,(0.5-((AVERAGE($AA$30:AA47)-$AZ$22)/(IF(STDEV($AA$30:AA47)<0.01,0.01,STDEV($AA$30:AA47)))*SQRT(COUNT($AA$30:AA47))/(2*(COUNT($AA$30:AA47)-1))))))) ->  | BA47: =IF((MAX(0,(0.5-((AVERAGE($AB$30:AB47)-$BA$22)/(IF(STDEV($AB$30:AB47)<0.01,0.01,STDEV($AB$30:AB47)))*SQRT(COUNT($AB$30:AB47))/(2*(COUNT($AB$30:AB47)-1))))))>1,1,(MAX(0,(0.5-((AVERAGE($AB$30:AB47)-$BA$22)/(IF(STDEV($AB$30:AB47)<0.01,0.01,STDEV($AB$30:AB47)))*SQRT(COUNT($AB$30:AB47))/(2*(COUNT($AB$30:AB47)-1))))))) ->  | BE47: =(0.5 * ((100-(BETADIST(AL47,((COUNT(N$30:N47))/2)-1,((COUNT(N$30:N47))/2)-1))*100) + (100-(BETADIST(AW47,((COUNT(N$30:N47))/2)-1,((COUNT(N$30:N47))/2)-1))*100) - 100) + 55) / 100 ->  | BF47: =(0.5 * ((100-(BETADIST(AQ47,((COUNT(S$30:S47))/2)-1,((COUNT(S$30:S47))/2)-1))*100) + (100-(BETADIST(AX47,((COUNT(S$30:S47))/2)-1,((COUNT(S$30:S47))/2)-1))*100) - 100) + 55) / 100 ->  | BG47: =(0.5 * ((100-(BETADIST(AR47,((COUNT(T$30:T47))/2)-1,((COUNT(T$30:T47))/2)-1))*100) + (100-(BETADIST(AY47,((COUNT(T$30:T47))/2)-1,((COUNT(T$30:T47))/2)-1))*100) - 100) + 55) / 100 ->  | BH47: =(0.5 * ((100-(BETADIST(AS47,((COUNT(AA$30:AA47))/2)-1,((COUNT(AA$30:AA47))/2)-1))*100) + (100-(BETADIST(AZ47,((COUNT(AA$30:AA47))/2)-1,((COUNT(AA$30:AA47))/2)-1))*100) - 100) + 55) / 100 ->  | BI47: =(0.5 * ((100-(BETADIST(AT47,((COUNT(AB$30:AB47))/2)-1,((COUNT(AB$30:AB47))/2)-1))*100) + (100-(BETADIST(BA47,((COUNT(AB$30:AB47))/2)-1,((COUNT(AB$30:AB47))/2)-1))*100) - 100) + 55) / 100 -> 
AE48: 0 | AF48: 0 | AG48: 0 | AH48: 0 | AI48: 0 | AJ48: 0 | AK48: 0 | AL48: =IF((MAX(0,(0.5-(($AL$21-AVERAGE($N$30:N48))/(IF(STDEV($N$30:N48)<0.01,0.01,STDEV($N$30:N48)))*SQRT(COUNT($N$30:N48))/(2*(COUNT($N$30:N48)-1))))))>1,1,(MAX(0,(0.5-(($AL$21-AVERAGE($N$30:N48))/(IF(STDEV($N$30:N48)<0.01,0.01,STDEV($N$30:N48)))*SQRT(COUNT($N$30:N48))/(2*(COUNT($N$30:N48)-1))))))) ->  | AM48: 0 | AN48: 0 | AO48: 0 | AP48: 0 | AQ48: =IF((MAX(0,(0.5-(($AQ$21-AVERAGE($S$30:S48))/(IF(STDEV($S$30:S48)<0.01,0.01,STDEV($S$30:S48)))*SQRT(COUNT($S$30:S48))/(2*(COUNT($S$30:S48)-1))))))>1,1,(MAX(0,(0.5-(($AQ$21-AVERAGE($S$30:S48))/(IF(STDEV($S$30:S48)<0.01,0.01,STDEV($S$30:S48)))*SQRT(COUNT($S$30:S48))/(2*(COUNT($S$30:S48)-1))))))) ->  | AR48: =IF((MAX(0,(0.5-(($AR$21-AVERAGE($T$30:T48))/(IF(STDEV($T$30:T48)<0.01,0.01,STDEV($T$30:T48)))*SQRT(COUNT($T$30:T48))/(2*(COUNT($T$30:T48)-1))))))>1,1,(MAX(0,(0.5-(($AR$21-AVERAGE($T$30:T48))/(IF(STDEV($T$30:T48)<0.01,0.01,STDEV($T$30:T48)))*SQRT(COUNT($T$30:T48))/(2*(COUNT($T$30:T48)-1))))))) ->  | AS48: =IF((MAX(0,(0.5-(($AS$21-AVERAGE($AA$30:AA48))/(IF(STDEV($AA$30:AA48)<0.01,0.01,STDEV($AA$30:AA48)))*SQRT(COUNT($AA$30:AA48))/(2*(COUNT($AA$30:AA48)-1))))))>1,1,(MAX(0,(0.5-(($AS$21-AVERAGE($AA$30:AA48))/(IF(STDEV($AA$30:AA48)<0.01,0.01,STDEV($AA$30:AA48)))*SQRT(COUNT($AA$30:AA48))/(2*(COUNT($AA$30:AA48)-1))))))) ->  | AT48: =IF((MAX(0,(0.5-(($AT$21-AVERAGE($AB$30:AB48))/(IF(STDEV($AB$30:AB48)<0.01,0.01,STDEV($AB$30:AB48)))*SQRT(COUNT($AB$30:AB48))/(2*(COUNT($AB$30:AB48)-1))))))>1,1,(MAX(0,(0.5-(($AT$21-AVERAGE($AB$30:AB48))/(IF(STDEV($AB$30:AB48)<0.01,0.01,STDEV($AB$30:AB48)))*SQRT(COUNT($AB$30:AB48))/(2*(COUNT($AB$30:AB48)-1))))))) ->  | AW48: =IF((MAX(0,(0.5-((AVERAGE($N$30:N48)-$AW$22)/(IF(STDEV($N$30:N48)<0.01,0.01,STDEV($N$30:N48)))*SQRT(COUNT($N$30:N48))/(2*(COUNT($N$30:N48)-1))))))>1,1,(MAX(0,(0.5-((AVERAGE($N$30:N48)-$AW$22)/(IF(STDEV($N$30:N48)<0.01,0.01,STDEV($N$30:N48)))*SQRT(COUNT($N$30:N48))/(2*(COUNT($N$30:N48)-1))))))) ->  | AX48: =IF((MAX(0,(0.5-((AVERAGE($S$30:S48)-$AX$22)/(IF(STDEV($S$30:S48)<0.01,0.01,STDEV($S$30:S48)))*SQRT(COUNT($S$30:S48))/(2*(COUNT($S$30:S48)-1))))))>1,1,(MAX(0,(0.5-((AVERAGE($S$30:S48)-$AX$22)/(IF(STDEV($S$30:S48)<0.01,0.01,STDEV($S$30:S48)))*SQRT(COUNT($S$30:S48))/(2*(COUNT($S$30:S48)-1))))))) ->  | AY48: =IF((MAX(0,(0.5-((AVERAGE($T$30:T48)-$AY$22)/(IF(STDEV($T$30:T48)<0.01,0.01,STDEV($T$30:T48)))*SQRT(COUNT($T$30:T48))/(2*(COUNT($T$30:T48)-1))))))>1,1,(MAX(0,(0.5-((AVERAGE($T$30:T48)-$AY$22)/(IF(STDEV($T$30:T48)<0.01,0.01,STDEV($T$30:T48)))*SQRT(COUNT($T$30:T48))/(2*(COUNT($T$30:T48)-1))))))) ->  | AZ48: =IF((MAX(0,(0.5-((AVERAGE($AA$30:AA48)-$AZ$22)/(IF(STDEV($AA$30:AA48)<0.01,0.01,STDEV($AA$30:AA48)))*SQRT(COUNT($AA$30:AA48))/(2*(COUNT($AA$30:AA48)-1))))))>1,1,(MAX(0,(0.5-((AVERAGE($AA$30:AA48)-$AZ$22)/(IF(STDEV($AA$30:AA48)<0.01,0.01,STDEV($AA$30:AA48)))*SQRT(COUNT($AA$30:AA48))/(2*(COUNT($AA$30:AA48)-1))))))) ->  | BA48: =IF((MAX(0,(0.5-((AVERAGE($AB$30:AB48)-$BA$22)/(IF(STDEV($AB$30:AB48)<0.01,0.01,STDEV($AB$30:AB48)))*SQRT(COUNT($AB$30:AB48))/(2*(COUNT($AB$30:AB48)-1))))))>1,1,(MAX(0,(0.5-((AVERAGE($AB$30:AB48)-$BA$22)/(IF(STDEV($AB$30:AB48)<0.01,0.01,STDEV($AB$30:AB48)))*SQRT(COUNT($AB$30:AB48))/(2*(COUNT($AB$30:AB48)-1))))))) ->  | BE48: =(0.5 * ((100-(BETADIST(AL48,((COUNT(N$30:N48))/2)-1,((COUNT(N$30:N48))/2)-1))*100) + (100-(BETADIST(AW48,((COUNT(N$30:N48))/2)-1,((COUNT(N$30:N48))/2)-1))*100) - 100) + 55) / 100 ->  | BF48: =(0.5 * ((100-(BETADIST(AQ48,((COUNT(S$30:S48))/2)-1,((COUNT(S$30:S48))/2)-1))*100) + (100-(BETADIST(AX48,((COUNT(S$30:S48))/2)-1,((COUNT(S$30:S48))/2)-1))*100) - 100) + 55) / 100 ->  | BG48: =(0.5 * ((100-(BETADIST(AR48,((COUNT(T$30:T48))/2)-1,((COUNT(T$30:T48))/2)-1))*100) + (100-(BETADIST(AY48,((COUNT(T$30:T48))/2)-1,((COUNT(T$30:T48))/2)-1))*100) - 100) + 55) / 100 ->  | BH48: =(0.5 * ((100-(BETADIST(AS48,((COUNT(AA$30:AA48))/2)-1,((COUNT(AA$30:AA48))/2)-1))*100) + (100-(BETADIST(AZ48,((COUNT(AA$30:AA48))/2)-1,((COUNT(AA$30:AA48))/2)-1))*100) - 100) + 55) / 100 ->  | BI48: =(0.5 * ((100-(BETADIST(AT48,((COUNT(AB$30:AB48))/2)-1,((COUNT(AB$30:AB48))/2)-1))*100) + (100-(BETADIST(BA48,((COUNT(AB$30:AB48))/2)-1,((COUNT(AB$30:AB48))/2)-1))*100) - 100) + 55) / 100 -> 
AE49: 0 | AF49: 0 | AG49: 0 | AH49: 0 | AI49: 0 | AJ49: 0 | AK49: 0 | AL49: =IF((MAX(0,(0.5-(($AL$21-AVERAGE($N$30:N49))/(IF(STDEV($N$30:N49)<0.01,0.01,STDEV($N$30:N49)))*SQRT(COUNT($N$30:N49))/(2*(COUNT($N$30:N49)-1))))))>1,1,(MAX(0,(0.5-(($AL$21-AVERAGE($N$30:N49))/(IF(STDEV($N$30:N49)<0.01,0.01,STDEV($N$30:N49)))*SQRT(COUNT($N$30:N49))/(2*(COUNT($N$30:N49)-1))))))) ->  | AM49: 0 | AN49: 0 | AO49: 0 | AP49: 0 | AQ49: =IF((MAX(0,(0.5-(($AQ$21-AVERAGE($S$30:S49))/(IF(STDEV($S$30:S49)<0.01,0.01,STDEV($S$30:S49)))*SQRT(COUNT($S$30:S49))/(2*(COUNT($S$30:S49)-1))))))>1,1,(MAX(0,(0.5-(($AQ$21-AVERAGE($S$30:S49))/(IF(STDEV($S$30:S49)<0.01,0.01,STDEV($S$30:S49)))*SQRT(COUNT($S$30:S49))/(2*(COUNT($S$30:S49)-1))))))) ->  | AR49: =IF((MAX(0,(0.5-(($AR$21-AVERAGE($T$30:T49))/(IF(STDEV($T$30:T49)<0.01,0.01,STDEV($T$30:T49)))*SQRT(COUNT($T$30:T49))/(2*(COUNT($T$30:T49)-1))))))>1,1,(MAX(0,(0.5-(($AR$21-AVERAGE($T$30:T49))/(IF(STDEV($T$30:T49)<0.01,0.01,STDEV($T$30:T49)))*SQRT(COUNT($T$30:T49))/(2*(COUNT($T$30:T49)-1))))))) ->  | AS49: =IF((MAX(0,(0.5-(($AS$21-AVERAGE($AA$30:AA49))/(IF(STDEV($AA$30:AA49)<0.01,0.01,STDEV($AA$30:AA49)))*SQRT(COUNT($AA$30:AA49))/(2*(COUNT($AA$30:AA49)-1))))))>1,1,(MAX(0,(0.5-(($AS$21-AVERAGE($AA$30:AA49))/(IF(STDEV($AA$30:AA49)<0.01,0.01,STDEV($AA$30:AA49)))*SQRT(COUNT($AA$30:AA49))/(2*(COUNT($AA$30:AA49)-1))))))) ->  | AT49: =IF((MAX(0,(0.5-(($AT$21-AVERAGE($AB$30:AB49))/(IF(STDEV($AB$30:AB49)<0.01,0.01,STDEV($AB$30:AB49)))*SQRT(COUNT($AB$30:AB49))/(2*(COUNT($AB$30:AB49)-1))))))>1,1,(MAX(0,(0.5-(($AT$21-AVERAGE($AB$30:AB49))/(IF(STDEV($AB$30:AB49)<0.01,0.01,STDEV($AB$30:AB49)))*SQRT(COUNT($AB$30:AB49))/(2*(COUNT($AB$30:AB49)-1))))))) ->  | AW49: =IF((MAX(0,(0.5-((AVERAGE($N$30:N49)-$AW$22)/(IF(STDEV($N$30:N49)<0.01,0.01,STDEV($N$30:N49)))*SQRT(COUNT($N$30:N49))/(2*(COUNT($N$30:N49)-1))))))>1,1,(MAX(0,(0.5-((AVERAGE($N$30:N49)-$AW$22)/(IF(STDEV($N$30:N49)<0.01,0.01,STDEV($N$30:N49)))*SQRT(COUNT($N$30:N49))/(2*(COUNT($N$30:N49)-1))))))) ->  | AX49: =IF((MAX(0,(0.5-((AVERAGE($S$30:S49)-$AX$22)/(IF(STDEV($S$30:S49)<0.01,0.01,STDEV($S$30:S49)))*SQRT(COUNT($S$30:S49))/(2*(COUNT($S$30:S49)-1))))))>1,1,(MAX(0,(0.5-((AVERAGE($S$30:S49)-$AX$22)/(IF(STDEV($S$30:S49)<0.01,0.01,STDEV($S$30:S49)))*SQRT(COUNT($S$30:S49))/(2*(COUNT($S$30:S49)-1))))))) ->  | AY49: =IF((MAX(0,(0.5-((AVERAGE($T$30:T49)-$AY$22)/(IF(STDEV($T$30:T49)<0.01,0.01,STDEV($T$30:T49)))*SQRT(COUNT($T$30:T49))/(2*(COUNT($T$30:T49)-1))))))>1,1,(MAX(0,(0.5-((AVERAGE($T$30:T49)-$AY$22)/(IF(STDEV($T$30:T49)<0.01,0.01,STDEV($T$30:T49)))*SQRT(COUNT($T$30:T49))/(2*(COUNT($T$30:T49)-1))))))) ->  | AZ49: =IF((MAX(0,(0.5-((AVERAGE($AA$30:AA49)-$AZ$22)/(IF(STDEV($AA$30:AA49)<0.01,0.01,STDEV($AA$30:AA49)))*SQRT(COUNT($AA$30:AA49))/(2*(COUNT($AA$30:AA49)-1))))))>1,1,(MAX(0,(0.5-((AVERAGE($AA$30:AA49)-$AZ$22)/(IF(STDEV($AA$30:AA49)<0.01,0.01,STDEV($AA$30:AA49)))*SQRT(COUNT($AA$30:AA49))/(2*(COUNT($AA$30:AA49)-1))))))) ->  | BA49: =IF((MAX(0,(0.5-((AVERAGE($AB$30:AB49)-$BA$22)/(IF(STDEV($AB$30:AB49)<0.01,0.01,STDEV($AB$30:AB49)))*SQRT(COUNT($AB$30:AB49))/(2*(COUNT($AB$30:AB49)-1))))))>1,1,(MAX(0,(0.5-((AVERAGE($AB$30:AB49)-$BA$22)/(IF(STDEV($AB$30:AB49)<0.01,0.01,STDEV($AB$30:AB49)))*SQRT(COUNT($AB$30:AB49))/(2*(COUNT($AB$30:AB49)-1))))))) ->  | BE49: =(0.5 * ((100-(BETADIST(AL49,((COUNT(N$30:N49))/2)-1,((COUNT(N$30:N49))/2)-1))*100) + (100-(BETADIST(AW49,((COUNT(N$30:N49))/2)-1,((COUNT(N$30:N49))/2)-1))*100) - 100) + 55) / 100 ->  | BF49: =(0.5 * ((100-(BETADIST(AQ49,((COUNT(S$30:S49))/2)-1,((COUNT(S$30:S49))/2)-1))*100) + (100-(BETADIST(AX49,((COUNT(S$30:S49))/2)-1,((COUNT(S$30:S49))/2)-1))*100) - 100) + 55) / 100 ->  | BG49: =(0.5 * ((100-(BETADIST(AR49,((COUNT(T$30:T49))/2)-1,((COUNT(T$30:T49))/2)-1))*100) + (100-(BETADIST(AY49,((COUNT(T$30:T49))/2)-1,((COUNT(T$30:T49))/2)-1))*100) - 100) + 55) / 100 ->  | BH49: =(0.5 * ((100-(BETADIST(AS49,((COUNT(AA$30:AA49))/2)-1,((COUNT(AA$30:AA49))/2)-1))*100) + (100-(BETADIST(AZ49,((COUNT(AA$30:AA49))/2)-1,((COUNT(AA$30:AA49))/2)-1))*100) - 100) + 55) / 100 ->  | BI49: =(0.5 * ((100-(BETADIST(AT49,((COUNT(AB$30:AB49))/2)-1,((COUNT(AB$30:AB49))/2)-1))*100) + (100-(BETADIST(BA49,((COUNT(AB$30:AB49))/2)-1,((COUNT(AB$30:AB49))/2)-1))*100) - 100) + 55) / 100 -> 
AE50: 0 | AF50: 0 | AG50: 0 | AH50: 0 | AI50: 0 | AJ50: 0 | AK50: 0 | AL50: =IF((MAX(0,(0.5-(($AL$21-AVERAGE($N$30:N50))/(IF(STDEV($N$30:N50)<0.01,0.01,STDEV($N$30:N50)))*SQRT(COUNT($N$30:N50))/(2*(COUNT($N$30:N50)-1))))))>1,1,(MAX(0,(0.5-(($AL$21-AVERAGE($N$30:N50))/(IF(STDEV($N$30:N50)<0.01,0.01,STDEV($N$30:N50)))*SQRT(COUNT($N$30:N50))/(2*(COUNT($N$30:N50)-1))))))) ->  | AM50: 0 | AN50: 0 | AO50: 0 | AP50: 0 | AQ50: =IF((MAX(0,(0.5-(($AQ$21-AVERAGE($S$30:S50))/(IF(STDEV($S$30:S50)<0.01,0.01,STDEV($S$30:S50)))*SQRT(COUNT($S$30:S50))/(2*(COUNT($S$30:S50)-1))))))>1,1,(MAX(0,(0.5-(($AQ$21-AVERAGE($S$30:S50))/(IF(STDEV($S$30:S50)<0.01,0.01,STDEV($S$30:S50)))*SQRT(COUNT($S$30:S50))/(2*(COUNT($S$30:S50)-1))))))) ->  | AR50: =IF((MAX(0,(0.5-(($AR$21-AVERAGE($T$30:T50))/(IF(STDEV($T$30:T50)<0.01,0.01,STDEV($T$30:T50)))*SQRT(COUNT($T$30:T50))/(2*(COUNT($T$30:T50)-1))))))>1,1,(MAX(0,(0.5-(($AR$21-AVERAGE($T$30:T50))/(IF(STDEV($T$30:T50)<0.01,0.01,STDEV($T$30:T50)))*SQRT(COUNT($T$30:T50))/(2*(COUNT($T$30:T50)-1))))))) ->  | AS50: =IF((MAX(0,(0.5-(($AS$21-AVERAGE($AA$30:AA50))/(IF(STDEV($AA$30:AA50)<0.01,0.01,STDEV($AA$30:AA50)))*SQRT(COUNT($AA$30:AA50))/(2*(COUNT($AA$30:AA50)-1))))))>1,1,(MAX(0,(0.5-(($AS$21-AVERAGE($AA$30:AA50))/(IF(STDEV($AA$30:AA50)<0.01,0.01,STDEV($AA$30:AA50)))*SQRT(COUNT($AA$30:AA50))/(2*(COUNT($AA$30:AA50)-1))))))) ->  | AT50: =IF((MAX(0,(0.5-(($AT$21-AVERAGE($AB$30:AB50))/(IF(STDEV($AB$30:AB50)<0.01,0.01,STDEV($AB$30:AB50)))*SQRT(COUNT($AB$30:AB50))/(2*(COUNT($AB$30:AB50)-1))))))>1,1,(MAX(0,(0.5-(($AT$21-AVERAGE($AB$30:AB50))/(IF(STDEV($AB$30:AB50)<0.01,0.01,STDEV($AB$30:AB50)))*SQRT(COUNT($AB$30:AB50))/(2*(COUNT($AB$30:AB50)-1))))))) ->  | AW50: =IF((MAX(0,(0.5-((AVERAGE($N$30:N50)-$AW$22)/(IF(STDEV($N$30:N50)<0.01,0.01,STDEV($N$30:N50)))*SQRT(COUNT($N$30:N50))/(2*(COUNT($N$30:N50)-1))))))>1,1,(MAX(0,(0.5-((AVERAGE($N$30:N50)-$AW$22)/(IF(STDEV($N$30:N50)<0.01,0.01,STDEV($N$30:N50)))*SQRT(COUNT($N$30:N50))/(2*(COUNT($N$30:N50)-1))))))) ->  | AX50: =IF((MAX(0,(0.5-((AVERAGE($S$30:S50)-$AX$22)/(IF(STDEV($S$30:S50)<0.01,0.01,STDEV($S$30:S50)))*SQRT(COUNT($S$30:S50))/(2*(COUNT($S$30:S50)-1))))))>1,1,(MAX(0,(0.5-((AVERAGE($S$30:S50)-$AX$22)/(IF(STDEV($S$30:S50)<0.01,0.01,STDEV($S$30:S50)))*SQRT(COUNT($S$30:S50))/(2*(COUNT($S$30:S50)-1))))))) ->  | AY50: =IF((MAX(0,(0.5-((AVERAGE($T$30:T50)-$AY$22)/(IF(STDEV($T$30:T50)<0.01,0.01,STDEV($T$30:T50)))*SQRT(COUNT($T$30:T50))/(2*(COUNT($T$30:T50)-1))))))>1,1,(MAX(0,(0.5-((AVERAGE($T$30:T50)-$AY$22)/(IF(STDEV($T$30:T50)<0.01,0.01,STDEV($T$30:T50)))*SQRT(COUNT($T$30:T50))/(2*(COUNT($T$30:T50)-1))))))) ->  | AZ50: =IF((MAX(0,(0.5-((AVERAGE($AA$30:AA50)-$AZ$22)/(IF(STDEV($AA$30:AA50)<0.01,0.01,STDEV($AA$30:AA50)))*SQRT(COUNT($AA$30:AA50))/(2*(COUNT($AA$30:AA50)-1))))))>1,1,(MAX(0,(0.5-((AVERAGE($AA$30:AA50)-$AZ$22)/(IF(STDEV($AA$30:AA50)<0.01,0.01,STDEV($AA$30:AA50)))*SQRT(COUNT($AA$30:AA50))/(2*(COUNT($AA$30:AA50)-1))))))) ->  | BA50: =IF((MAX(0,(0.5-((AVERAGE($AB$30:AB50)-$BA$22)/(IF(STDEV($AB$30:AB50)<0.01,0.01,STDEV($AB$30:AB50)))*SQRT(COUNT($AB$30:AB50))/(2*(COUNT($AB$30:AB50)-1))))))>1,1,(MAX(0,(0.5-((AVERAGE($AB$30:AB50)-$BA$22)/(IF(STDEV($AB$30:AB50)<0.01,0.01,STDEV($AB$30:AB50)))*SQRT(COUNT($AB$30:AB50))/(2*(COUNT($AB$30:AB50)-1))))))) ->  | BE50: =(0.5 * ((100-(BETADIST(AL50,((COUNT(N$30:N50))/2)-1,((COUNT(N$30:N50))/2)-1))*100) + (100-(BETADIST(AW50,((COUNT(N$30:N50))/2)-1,((COUNT(N$30:N50))/2)-1))*100) - 100) + 55) / 100 ->  | BF50: =(0.5 * ((100-(BETADIST(AQ50,((COUNT(S$30:S50))/2)-1,((COUNT(S$30:S50))/2)-1))*100) + (100-(BETADIST(AX50,((COUNT(S$30:S50))/2)-1,((COUNT(S$30:S50))/2)-1))*100) - 100) + 55) / 100 ->  | BG50: =(0.5 * ((100-(BETADIST(AR50,((COUNT(T$30:T50))/2)-1,((COUNT(T$30:T50))/2)-1))*100) + (100-(BETADIST(AY50,((COUNT(T$30:T50))/2)-1,((COUNT(T$30:T50))/2)-1))*100) - 100) + 55) / 100 ->  | BH50: =(0.5 * ((100-(BETADIST(AS50,((COUNT(AA$30:AA50))/2)-1,((COUNT(AA$30:AA50))/2)-1))*100) + (100-(BETADIST(AZ50,((COUNT(AA$30:AA50))/2)-1,((COUNT(AA$30:AA50))/2)-1))*100) - 100) + 55) / 100 ->  | BI50: =(0.5 * ((100-(BETADIST(AT50,((COUNT(AB$30:AB50))/2)-1,((COUNT(AB$30:AB50))/2)-1))*100) + (100-(BETADIST(BA50,((COUNT(AB$30:AB50))/2)-1,((COUNT(AB$30:AB50))/2)-1))*100) - 100) + 55) / 100 -> 
AE51: 0 | AF51: 0 | AG51: 0 | AH51: 0 | AI51: 0 | AJ51: 0 | AK51: 0 | AL51: =IF((MAX(0,(0.5-(($AL$21-AVERAGE($N$30:N51))/(IF(STDEV($N$30:N51)<0.01,0.01,STDEV($N$30:N51)))*SQRT(COUNT($N$30:N51))/(2*(COUNT($N$30:N51)-1))))))>1,1,(MAX(0,(0.5-(($AL$21-AVERAGE($N$30:N51))/(IF(STDEV($N$30:N51)<0.01,0.01,STDEV($N$30:N51)))*SQRT(COUNT($N$30:N51))/(2*(COUNT($N$30:N51)-1))))))) ->  | AM51: 0 | AN51: 0 | AO51: 0 | AP51: 0 | AQ51: =IF((MAX(0,(0.5-(($AQ$21-AVERAGE($S$30:S51))/(IF(STDEV($S$30:S51)<0.01,0.01,STDEV($S$30:S51)))*SQRT(COUNT($S$30:S51))/(2*(COUNT($S$30:S51)-1))))))>1,1,(MAX(0,(0.5-(($AQ$21-AVERAGE($S$30:S51))/(IF(STDEV($S$30:S51)<0.01,0.01,STDEV($S$30:S51)))*SQRT(COUNT($S$30:S51))/(2*(COUNT($S$30:S51)-1))))))) ->  | AR51: =IF((MAX(0,(0.5-(($AR$21-AVERAGE($T$30:T51))/(IF(STDEV($T$30:T51)<0.01,0.01,STDEV($T$30:T51)))*SQRT(COUNT($T$30:T51))/(2*(COUNT($T$30:T51)-1))))))>1,1,(MAX(0,(0.5-(($AR$21-AVERAGE($T$30:T51))/(IF(STDEV($T$30:T51)<0.01,0.01,STDEV($T$30:T51)))*SQRT(COUNT($T$30:T51))/(2*(COUNT($T$30:T51)-1))))))) ->  | AS51: =IF((MAX(0,(0.5-(($AS$21-AVERAGE($AA$30:AA51))/(IF(STDEV($AA$30:AA51)<0.01,0.01,STDEV($AA$30:AA51)))*SQRT(COUNT($AA$30:AA51))/(2*(COUNT($AA$30:AA51)-1))))))>1,1,(MAX(0,(0.5-(($AS$21-AVERAGE($AA$30:AA51))/(IF(STDEV($AA$30:AA51)<0.01,0.01,STDEV($AA$30:AA51)))*SQRT(COUNT($AA$30:AA51))/(2*(COUNT($AA$30:AA51)-1))))))) ->  | AT51: =IF((MAX(0,(0.5-(($AT$21-AVERAGE($AB$30:AB51))/(IF(STDEV($AB$30:AB51)<0.01,0.01,STDEV($AB$30:AB51)))*SQRT(COUNT($AB$30:AB51))/(2*(COUNT($AB$30:AB51)-1))))))>1,1,(MAX(0,(0.5-(($AT$21-AVERAGE($AB$30:AB51))/(IF(STDEV($AB$30:AB51)<0.01,0.01,STDEV($AB$30:AB51)))*SQRT(COUNT($AB$30:AB51))/(2*(COUNT($AB$30:AB51)-1))))))) ->  | AW51: =IF((MAX(0,(0.5-((AVERAGE($N$30:N51)-$AW$22)/(IF(STDEV($N$30:N51)<0.01,0.01,STDEV($N$30:N51)))*SQRT(COUNT($N$30:N51))/(2*(COUNT($N$30:N51)-1))))))>1,1,(MAX(0,(0.5-((AVERAGE($N$30:N51)-$AW$22)/(IF(STDEV($N$30:N51)<0.01,0.01,STDEV($N$30:N51)))*SQRT(COUNT($N$30:N51))/(2*(COUNT($N$30:N51)-1))))))) ->  | AX51: =IF((MAX(0,(0.5-((AVERAGE($S$30:S51)-$AX$22)/(IF(STDEV($S$30:S51)<0.01,0.01,STDEV($S$30:S51)))*SQRT(COUNT($S$30:S51))/(2*(COUNT($S$30:S51)-1))))))>1,1,(MAX(0,(0.5-((AVERAGE($S$30:S51)-$AX$22)/(IF(STDEV($S$30:S51)<0.01,0.01,STDEV($S$30:S51)))*SQRT(COUNT($S$30:S51))/(2*(COUNT($S$30:S51)-1))))))) ->  | AY51: =IF((MAX(0,(0.5-((AVERAGE($T$30:T51)-$AY$22)/(IF(STDEV($T$30:T51)<0.01,0.01,STDEV($T$30:T51)))*SQRT(COUNT($T$30:T51))/(2*(COUNT($T$30:T51)-1))))))>1,1,(MAX(0,(0.5-((AVERAGE($T$30:T51)-$AY$22)/(IF(STDEV($T$30:T51)<0.01,0.01,STDEV($T$30:T51)))*SQRT(COUNT($T$30:T51))/(2*(COUNT($T$30:T51)-1))))))) ->  | AZ51: =IF((MAX(0,(0.5-((AVERAGE($AA$30:AA51)-$AZ$22)/(IF(STDEV($AA$30:AA51)<0.01,0.01,STDEV($AA$30:AA51)))*SQRT(COUNT($AA$30:AA51))/(2*(COUNT($AA$30:AA51)-1))))))>1,1,(MAX(0,(0.5-((AVERAGE($AA$30:AA51)-$AZ$22)/(IF(STDEV($AA$30:AA51)<0.01,0.01,STDEV($AA$30:AA51)))*SQRT(COUNT($AA$30:AA51))/(2*(COUNT($AA$30:AA51)-1))))))) ->  | BA51: =IF((MAX(0,(0.5-((AVERAGE($AB$30:AB51)-$BA$22)/(IF(STDEV($AB$30:AB51)<0.01,0.01,STDEV($AB$30:AB51)))*SQRT(COUNT($AB$30:AB51))/(2*(COUNT($AB$30:AB51)-1))))))>1,1,(MAX(0,(0.5-((AVERAGE($AB$30:AB51)-$BA$22)/(IF(STDEV($AB$30:AB51)<0.01,0.01,STDEV($AB$30:AB51)))*SQRT(COUNT($AB$30:AB51))/(2*(COUNT($AB$30:AB51)-1))))))) ->  | BE51: =(0.5 * ((100-(BETADIST(AL51,((COUNT(N$30:N51))/2)-1,((COUNT(N$30:N51))/2)-1))*100) + (100-(BETADIST(AW51,((COUNT(N$30:N51))/2)-1,((COUNT(N$30:N51))/2)-1))*100) - 100) + 55) / 100 ->  | BF51: =(0.5 * ((100-(BETADIST(AQ51,((COUNT(S$30:S51))/2)-1,((COUNT(S$30:S51))/2)-1))*100) + (100-(BETADIST(AX51,((COUNT(S$30:S51))/2)-1,((COUNT(S$30:S51))/2)-1))*100) - 100) + 55) / 100 ->  | BG51: =(0.5 * ((100-(BETADIST(AR51,((COUNT(T$30:T51))/2)-1,((COUNT(T$30:T51))/2)-1))*100) + (100-(BETADIST(AY51,((COUNT(T$30:T51))/2)-1,((COUNT(T$30:T51))/2)-1))*100) - 100) + 55) / 100 ->  | BH51: =(0.5 * ((100-(BETADIST(AS51,((COUNT(AA$30:AA51))/2)-1,((COUNT(AA$30:AA51))/2)-1))*100) + (100-(BETADIST(AZ51,((COUNT(AA$30:AA51))/2)-1,((COUNT(AA$30:AA51))/2)-1))*100) - 100) + 55) / 100 ->  | BI51: =(0.5 * ((100-(BETADIST(AT51,((COUNT(AB$30:AB51))/2)-1,((COUNT(AB$30:AB51))/2)-1))*100) + (100-(BETADIST(BA51,((COUNT(AB$30:AB51))/2)-1,((COUNT(AB$30:AB51))/2)-1))*100) - 100) + 55) / 100 -> 
AE52: 0 | AF52: 0 | AG52: 0 | AH52: 0 | AI52: 0 | AJ52: 0 | AK52: 0 | AL52: =IF((MAX(0,(0.5-(($AL$21-AVERAGE($N$30:N52))/(IF(STDEV($N$30:N52)<0.01,0.01,STDEV($N$30:N52)))*SQRT(COUNT($N$30:N52))/(2*(COUNT($N$30:N52)-1))))))>1,1,(MAX(0,(0.5-(($AL$21-AVERAGE($N$30:N52))/(IF(STDEV($N$30:N52)<0.01,0.01,STDEV($N$30:N52)))*SQRT(COUNT($N$30:N52))/(2*(COUNT($N$30:N52)-1))))))) ->  | AM52: 0 | AN52: 0 | AO52: 0 | AP52: 0 | AQ52: =IF((MAX(0,(0.5-(($AQ$21-AVERAGE($S$30:S52))/(IF(STDEV($S$30:S52)<0.01,0.01,STDEV($S$30:S52)))*SQRT(COUNT($S$30:S52))/(2*(COUNT($S$30:S52)-1))))))>1,1,(MAX(0,(0.5-(($AQ$21-AVERAGE($S$30:S52))/(IF(STDEV($S$30:S52)<0.01,0.01,STDEV($S$30:S52)))*SQRT(COUNT($S$30:S52))/(2*(COUNT($S$30:S52)-1))))))) ->  | AR52: =IF((MAX(0,(0.5-(($AR$21-AVERAGE($T$30:T52))/(IF(STDEV($T$30:T52)<0.01,0.01,STDEV($T$30:T52)))*SQRT(COUNT($T$30:T52))/(2*(COUNT($T$30:T52)-1))))))>1,1,(MAX(0,(0.5-(($AR$21-AVERAGE($T$30:T52))/(IF(STDEV($T$30:T52)<0.01,0.01,STDEV($T$30:T52)))*SQRT(COUNT($T$30:T52))/(2*(COUNT($T$30:T52)-1))))))) ->  | AS52: =IF((MAX(0,(0.5-(($AS$21-AVERAGE($AA$30:AA52))/(IF(STDEV($AA$30:AA52)<0.01,0.01,STDEV($AA$30:AA52)))*SQRT(COUNT($AA$30:AA52))/(2*(COUNT($AA$30:AA52)-1))))))>1,1,(MAX(0,(0.5-(($AS$21-AVERAGE($AA$30:AA52))/(IF(STDEV($AA$30:AA52)<0.01,0.01,STDEV($AA$30:AA52)))*SQRT(COUNT($AA$30:AA52))/(2*(COUNT($AA$30:AA52)-1))))))) ->  | AT52: =IF((MAX(0,(0.5-(($AT$21-AVERAGE($AB$30:AB52))/(IF(STDEV($AB$30:AB52)<0.01,0.01,STDEV($AB$30:AB52)))*SQRT(COUNT($AB$30:AB52))/(2*(COUNT($AB$30:AB52)-1))))))>1,1,(MAX(0,(0.5-(($AT$21-AVERAGE($AB$30:AB52))/(IF(STDEV($AB$30:AB52)<0.01,0.01,STDEV($AB$30:AB52)))*SQRT(COUNT($AB$30:AB52))/(2*(COUNT($AB$30:AB52)-1))))))) ->  | AW52: =IF((MAX(0,(0.5-((AVERAGE($N$30:N52)-$AW$22)/(IF(STDEV($N$30:N52)<0.01,0.01,STDEV($N$30:N52)))*SQRT(COUNT($N$30:N52))/(2*(COUNT($N$30:N52)-1))))))>1,1,(MAX(0,(0.5-((AVERAGE($N$30:N52)-$AW$22)/(IF(STDEV($N$30:N52)<0.01,0.01,STDEV($N$30:N52)))*SQRT(COUNT($N$30:N52))/(2*(COUNT($N$30:N52)-1))))))) ->  | AX52: =IF((MAX(0,(0.5-((AVERAGE($S$30:S52)-$AX$22)/(IF(STDEV($S$30:S52)<0.01,0.01,STDEV($S$30:S52)))*SQRT(COUNT($S$30:S52))/(2*(COUNT($S$30:S52)-1))))))>1,1,(MAX(0,(0.5-((AVERAGE($S$30:S52)-$AX$22)/(IF(STDEV($S$30:S52)<0.01,0.01,STDEV($S$30:S52)))*SQRT(COUNT($S$30:S52))/(2*(COUNT($S$30:S52)-1))))))) ->  | AY52: =IF((MAX(0,(0.5-((AVERAGE($T$30:T52)-$AY$22)/(IF(STDEV($T$30:T52)<0.01,0.01,STDEV($T$30:T52)))*SQRT(COUNT($T$30:T52))/(2*(COUNT($T$30:T52)-1))))))>1,1,(MAX(0,(0.5-((AVERAGE($T$30:T52)-$AY$22)/(IF(STDEV($T$30:T52)<0.01,0.01,STDEV($T$30:T52)))*SQRT(COUNT($T$30:T52))/(2*(COUNT($T$30:T52)-1))))))) ->  | AZ52: =IF((MAX(0,(0.5-((AVERAGE($AA$30:AA52)-$AZ$22)/(IF(STDEV($AA$30:AA52)<0.01,0.01,STDEV($AA$30:AA52)))*SQRT(COUNT($AA$30:AA52))/(2*(COUNT($AA$30:AA52)-1))))))>1,1,(MAX(0,(0.5-((AVERAGE($AA$30:AA52)-$AZ$22)/(IF(STDEV($AA$30:AA52)<0.01,0.01,STDEV($AA$30:AA52)))*SQRT(COUNT($AA$30:AA52))/(2*(COUNT($AA$30:AA52)-1))))))) ->  | BA52: =IF((MAX(0,(0.5-((AVERAGE($AB$30:AB52)-$BA$22)/(IF(STDEV($AB$30:AB52)<0.01,0.01,STDEV($AB$30:AB52)))*SQRT(COUNT($AB$30:AB52))/(2*(COUNT($AB$30:AB52)-1))))))>1,1,(MAX(0,(0.5-((AVERAGE($AB$30:AB52)-$BA$22)/(IF(STDEV($AB$30:AB52)<0.01,0.01,STDEV($AB$30:AB52)))*SQRT(COUNT($AB$30:AB52))/(2*(COUNT($AB$30:AB52)-1))))))) ->  | BE52: =(0.5 * ((100-(BETADIST(AL52,((COUNT(N$30:N52))/2)-1,((COUNT(N$30:N52))/2)-1))*100) + (100-(BETADIST(AW52,((COUNT(N$30:N52))/2)-1,((COUNT(N$30:N52))/2)-1))*100) - 100) + 55) / 100 ->  | BF52: =(0.5 * ((100-(BETADIST(AQ52,((COUNT(S$30:S52))/2)-1,((COUNT(S$30:S52))/2)-1))*100) + (100-(BETADIST(AX52,((COUNT(S$30:S52))/2)-1,((COUNT(S$30:S52))/2)-1))*100) - 100) + 55) / 100 ->  | BG52: =(0.5 * ((100-(BETADIST(AR52,((COUNT(T$30:T52))/2)-1,((COUNT(T$30:T52))/2)-1))*100) + (100-(BETADIST(AY52,((COUNT(T$30:T52))/2)-1,((COUNT(T$30:T52))/2)-1))*100) - 100) + 55) / 100 ->  | BH52: =(0.5 * ((100-(BETADIST(AS52,((COUNT(AA$30:AA52))/2)-1,((COUNT(AA$30:AA52))/2)-1))*100) + (100-(BETADIST(AZ52,((COUNT(AA$30:AA52))/2)-1,((COUNT(AA$30:AA52))/2)-1))*100) - 100) + 55) / 100 ->  | BI52: =(0.5 * ((100-(BETADIST(AT52,((COUNT(AB$30:AB52))/2)-1,((COUNT(AB$30:AB52))/2)-1))*100) + (100-(BETADIST(BA52,((COUNT(AB$30:AB52))/2)-1,((COUNT(AB$30:AB52))/2)-1))*100) - 100) + 55) / 100 -> 
AE53: 0 | AF53: 0 | AG53: 0 | AH53: 0 | AI53: 0 | AJ53: 0 | AK53: 0 | AL53: =IF((MAX(0,(0.5-(($AL$21-AVERAGE($N$30:N53))/(IF(STDEV($N$30:N53)<0.01,0.01,STDEV($N$30:N53)))*SQRT(COUNT($N$30:N53))/(2*(COUNT($N$30:N53)-1))))))>1,1,(MAX(0,(0.5-(($AL$21-AVERAGE($N$30:N53))/(IF(STDEV($N$30:N53)<0.01,0.01,STDEV($N$30:N53)))*SQRT(COUNT($N$30:N53))/(2*(COUNT($N$30:N53)-1))))))) ->  | AM53: 0 | AN53: 0 | AO53: 0 | AP53: 0 | AQ53: =IF((MAX(0,(0.5-(($AQ$21-AVERAGE($S$30:S53))/(IF(STDEV($S$30:S53)<0.01,0.01,STDEV($S$30:S53)))*SQRT(COUNT($S$30:S53))/(2*(COUNT($S$30:S53)-1))))))>1,1,(MAX(0,(0.5-(($AQ$21-AVERAGE($S$30:S53))/(IF(STDEV($S$30:S53)<0.01,0.01,STDEV($S$30:S53)))*SQRT(COUNT($S$30:S53))/(2*(COUNT($S$30:S53)-1))))))) ->  | AR53: =IF((MAX(0,(0.5-(($AR$21-AVERAGE($T$30:T53))/(IF(STDEV($T$30:T53)<0.01,0.01,STDEV($T$30:T53)))*SQRT(COUNT($T$30:T53))/(2*(COUNT($T$30:T53)-1))))))>1,1,(MAX(0,(0.5-(($AR$21-AVERAGE($T$30:T53))/(IF(STDEV($T$30:T53)<0.01,0.01,STDEV($T$30:T53)))*SQRT(COUNT($T$30:T53))/(2*(COUNT($T$30:T53)-1))))))) ->  | AS53: =IF((MAX(0,(0.5-(($AS$21-AVERAGE($AA$30:AA53))/(IF(STDEV($AA$30:AA53)<0.01,0.01,STDEV($AA$30:AA53)))*SQRT(COUNT($AA$30:AA53))/(2*(COUNT($AA$30:AA53)-1))))))>1,1,(MAX(0,(0.5-(($AS$21-AVERAGE($AA$30:AA53))/(IF(STDEV($AA$30:AA53)<0.01,0.01,STDEV($AA$30:AA53)))*SQRT(COUNT($AA$30:AA53))/(2*(COUNT($AA$30:AA53)-1))))))) ->  | AT53: =IF((MAX(0,(0.5-(($AT$21-AVERAGE($AB$30:AB53))/(IF(STDEV($AB$30:AB53)<0.01,0.01,STDEV($AB$30:AB53)))*SQRT(COUNT($AB$30:AB53))/(2*(COUNT($AB$30:AB53)-1))))))>1,1,(MAX(0,(0.5-(($AT$21-AVERAGE($AB$30:AB53))/(IF(STDEV($AB$30:AB53)<0.01,0.01,STDEV($AB$30:AB53)))*SQRT(COUNT($AB$30:AB53))/(2*(COUNT($AB$30:AB53)-1))))))) ->  | AW53: =IF((MAX(0,(0.5-((AVERAGE($N$30:N53)-$AW$22)/(IF(STDEV($N$30:N53)<0.01,0.01,STDEV($N$30:N53)))*SQRT(COUNT($N$30:N53))/(2*(COUNT($N$30:N53)-1))))))>1,1,(MAX(0,(0.5-((AVERAGE($N$30:N53)-$AW$22)/(IF(STDEV($N$30:N53)<0.01,0.01,STDEV($N$30:N53)))*SQRT(COUNT($N$30:N53))/(2*(COUNT($N$30:N53)-1))))))) ->  | AX53: =IF((MAX(0,(0.5-((AVERAGE($S$30:S53)-$AX$22)/(IF(STDEV($S$30:S53)<0.01,0.01,STDEV($S$30:S53)))*SQRT(COUNT($S$30:S53))/(2*(COUNT($S$30:S53)-1))))))>1,1,(MAX(0,(0.5-((AVERAGE($S$30:S53)-$AX$22)/(IF(STDEV($S$30:S53)<0.01,0.01,STDEV($S$30:S53)))*SQRT(COUNT($S$30:S53))/(2*(COUNT($S$30:S53)-1))))))) ->  | AY53: =IF((MAX(0,(0.5-((AVERAGE($T$30:T53)-$AY$22)/(IF(STDEV($T$30:T53)<0.01,0.01,STDEV($T$30:T53)))*SQRT(COUNT($T$30:T53))/(2*(COUNT($T$30:T53)-1))))))>1,1,(MAX(0,(0.5-((AVERAGE($T$30:T53)-$AY$22)/(IF(STDEV($T$30:T53)<0.01,0.01,STDEV($T$30:T53)))*SQRT(COUNT($T$30:T53))/(2*(COUNT($T$30:T53)-1))))))) ->  | AZ53: =IF((MAX(0,(0.5-((AVERAGE($AA$30:AA53)-$AZ$22)/(IF(STDEV($AA$30:AA53)<0.01,0.01,STDEV($AA$30:AA53)))*SQRT(COUNT($AA$30:AA53))/(2*(COUNT($AA$30:AA53)-1))))))>1,1,(MAX(0,(0.5-((AVERAGE($AA$30:AA53)-$AZ$22)/(IF(STDEV($AA$30:AA53)<0.01,0.01,STDEV($AA$30:AA53)))*SQRT(COUNT($AA$30:AA53))/(2*(COUNT($AA$30:AA53)-1))))))) ->  | BA53: =IF((MAX(0,(0.5-((AVERAGE($AB$30:AB53)-$BA$22)/(IF(STDEV($AB$30:AB53)<0.01,0.01,STDEV($AB$30:AB53)))*SQRT(COUNT($AB$30:AB53))/(2*(COUNT($AB$30:AB53)-1))))))>1,1,(MAX(0,(0.5-((AVERAGE($AB$30:AB53)-$BA$22)/(IF(STDEV($AB$30:AB53)<0.01,0.01,STDEV($AB$30:AB53)))*SQRT(COUNT($AB$30:AB53))/(2*(COUNT($AB$30:AB53)-1))))))) ->  | BE53: =(0.5 * ((100-(BETADIST(AL53,((COUNT(N$30:N53))/2)-1,((COUNT(N$30:N53))/2)-1))*100) + (100-(BETADIST(AW53,((COUNT(N$30:N53))/2)-1,((COUNT(N$30:N53))/2)-1))*100) - 100) + 55) / 100 ->  | BF53: =(0.5 * ((100-(BETADIST(AQ53,((COUNT(S$30:S53))/2)-1,((COUNT(S$30:S53))/2)-1))*100) + (100-(BETADIST(AX53,((COUNT(S$30:S53))/2)-1,((COUNT(S$30:S53))/2)-1))*100) - 100) + 55) / 100 ->  | BG53: =(0.5 * ((100-(BETADIST(AR53,((COUNT(T$30:T53))/2)-1,((COUNT(T$30:T53))/2)-1))*100) + (100-(BETADIST(AY53,((COUNT(T$30:T53))/2)-1,((COUNT(T$30:T53))/2)-1))*100) - 100) + 55) / 100 ->  | BH53: =(0.5 * ((100-(BETADIST(AS53,((COUNT(AA$30:AA53))/2)-1,((COUNT(AA$30:AA53))/2)-1))*100) + (100-(BETADIST(AZ53,((COUNT(AA$30:AA53))/2)-1,((COUNT(AA$30:AA53))/2)-1))*100) - 100) + 55) / 100 ->  | BI53: =(0.5 * ((100-(BETADIST(AT53,((COUNT(AB$30:AB53))/2)-1,((COUNT(AB$30:AB53))/2)-1))*100) + (100-(BETADIST(BA53,((COUNT(AB$30:AB53))/2)-1,((COUNT(AB$30:AB53))/2)-1))*100) - 100) + 55) / 100 -> 
AE54: 0 | AF54: 0 | AG54: 0 | AH54: 0 | AI54: 0 | AJ54: 0 | AK54: 0 | AL54: =IF((MAX(0,(0.5-(($AL$21-AVERAGE($N$30:N54))/(IF(STDEV($N$30:N54)<0.01,0.01,STDEV($N$30:N54)))*SQRT(COUNT($N$30:N54))/(2*(COUNT($N$30:N54)-1))))))>1,1,(MAX(0,(0.5-(($AL$21-AVERAGE($N$30:N54))/(IF(STDEV($N$30:N54)<0.01,0.01,STDEV($N$30:N54)))*SQRT(COUNT($N$30:N54))/(2*(COUNT($N$30:N54)-1))))))) ->  | AM54: 0 | AN54: 0 | AO54: 0 | AP54: 0 | AQ54: =IF((MAX(0,(0.5-(($AQ$21-AVERAGE($S$30:S54))/(IF(STDEV($S$30:S54)<0.01,0.01,STDEV($S$30:S54)))*SQRT(COUNT($S$30:S54))/(2*(COUNT($S$30:S54)-1))))))>1,1,(MAX(0,(0.5-(($AQ$21-AVERAGE($S$30:S54))/(IF(STDEV($S$30:S54)<0.01,0.01,STDEV($S$30:S54)))*SQRT(COUNT($S$30:S54))/(2*(COUNT($S$30:S54)-1))))))) ->  | AR54: =IF((MAX(0,(0.5-(($AR$21-AVERAGE($T$30:T54))/(IF(STDEV($T$30:T54)<0.01,0.01,STDEV($T$30:T54)))*SQRT(COUNT($T$30:T54))/(2*(COUNT($T$30:T54)-1))))))>1,1,(MAX(0,(0.5-(($AR$21-AVERAGE($T$30:T54))/(IF(STDEV($T$30:T54)<0.01,0.01,STDEV($T$30:T54)))*SQRT(COUNT($T$30:T54))/(2*(COUNT($T$30:T54)-1))))))) ->  | AS54: =IF((MAX(0,(0.5-(($AS$21-AVERAGE($AA$30:AA54))/(IF(STDEV($AA$30:AA54)<0.01,0.01,STDEV($AA$30:AA54)))*SQRT(COUNT($AA$30:AA54))/(2*(COUNT($AA$30:AA54)-1))))))>1,1,(MAX(0,(0.5-(($AS$21-AVERAGE($AA$30:AA54))/(IF(STDEV($AA$30:AA54)<0.01,0.01,STDEV($AA$30:AA54)))*SQRT(COUNT($AA$30:AA54))/(2*(COUNT($AA$30:AA54)-1))))))) ->  | AT54: =IF((MAX(0,(0.5-(($AT$21-AVERAGE($AB$30:AB54))/(IF(STDEV($AB$30:AB54)<0.01,0.01,STDEV($AB$30:AB54)))*SQRT(COUNT($AB$30:AB54))/(2*(COUNT($AB$30:AB54)-1))))))>1,1,(MAX(0,(0.5-(($AT$21-AVERAGE($AB$30:AB54))/(IF(STDEV($AB$30:AB54)<0.01,0.01,STDEV($AB$30:AB54)))*SQRT(COUNT($AB$30:AB54))/(2*(COUNT($AB$30:AB54)-1))))))) ->  | AW54: =IF((MAX(0,(0.5-((AVERAGE($N$30:N54)-$AW$22)/(IF(STDEV($N$30:N54)<0.01,0.01,STDEV($N$30:N54)))*SQRT(COUNT($N$30:N54))/(2*(COUNT($N$30:N54)-1))))))>1,1,(MAX(0,(0.5-((AVERAGE($N$30:N54)-$AW$22)/(IF(STDEV($N$30:N54)<0.01,0.01,STDEV($N$30:N54)))*SQRT(COUNT($N$30:N54))/(2*(COUNT($N$30:N54)-1))))))) ->  | AX54: =IF((MAX(0,(0.5-((AVERAGE($S$30:S54)-$AX$22)/(IF(STDEV($S$30:S54)<0.01,0.01,STDEV($S$30:S54)))*SQRT(COUNT($S$30:S54))/(2*(COUNT($S$30:S54)-1))))))>1,1,(MAX(0,(0.5-((AVERAGE($S$30:S54)-$AX$22)/(IF(STDEV($S$30:S54)<0.01,0.01,STDEV($S$30:S54)))*SQRT(COUNT($S$30:S54))/(2*(COUNT($S$30:S54)-1))))))) ->  | AY54: =IF((MAX(0,(0.5-((AVERAGE($T$30:T54)-$AY$22)/(IF(STDEV($T$30:T54)<0.01,0.01,STDEV($T$30:T54)))*SQRT(COUNT($T$30:T54))/(2*(COUNT($T$30:T54)-1))))))>1,1,(MAX(0,(0.5-((AVERAGE($T$30:T54)-$AY$22)/(IF(STDEV($T$30:T54)<0.01,0.01,STDEV($T$30:T54)))*SQRT(COUNT($T$30:T54))/(2*(COUNT($T$30:T54)-1))))))) ->  | AZ54: =IF((MAX(0,(0.5-((AVERAGE($AA$30:AA54)-$AZ$22)/(IF(STDEV($AA$30:AA54)<0.01,0.01,STDEV($AA$30:AA54)))*SQRT(COUNT($AA$30:AA54))/(2*(COUNT($AA$30:AA54)-1))))))>1,1,(MAX(0,(0.5-((AVERAGE($AA$30:AA54)-$AZ$22)/(IF(STDEV($AA$30:AA54)<0.01,0.01,STDEV($AA$30:AA54)))*SQRT(COUNT($AA$30:AA54))/(2*(COUNT($AA$30:AA54)-1))))))) ->  | BA54: =IF((MAX(0,(0.5-((AVERAGE($AB$30:AB54)-$BA$22)/(IF(STDEV($AB$30:AB54)<0.01,0.01,STDEV($AB$30:AB54)))*SQRT(COUNT($AB$30:AB54))/(2*(COUNT($AB$30:AB54)-1))))))>1,1,(MAX(0,(0.5-((AVERAGE($AB$30:AB54)-$BA$22)/(IF(STDEV($AB$30:AB54)<0.01,0.01,STDEV($AB$30:AB54)))*SQRT(COUNT($AB$30:AB54))/(2*(COUNT($AB$30:AB54)-1))))))) ->  | BE54: =(0.5 * ((100-(BETADIST(AL54,((COUNT(N$30:N54))/2)-1,((COUNT(N$30:N54))/2)-1))*100) + (100-(BETADIST(AW54,((COUNT(N$30:N54))/2)-1,((COUNT(N$30:N54))/2)-1))*100) - 100) + 55) / 100 ->  | BF54: =(0.5 * ((100-(BETADIST(AQ54,((COUNT(S$30:S54))/2)-1,((COUNT(S$30:S54))/2)-1))*100) + (100-(BETADIST(AX54,((COUNT(S$30:S54))/2)-1,((COUNT(S$30:S54))/2)-1))*100) - 100) + 55) / 100 ->  | BG54: =(0.5 * ((100-(BETADIST(AR54,((COUNT(T$30:T54))/2)-1,((COUNT(T$30:T54))/2)-1))*100) + (100-(BETADIST(AY54,((COUNT(T$30:T54))/2)-1,((COUNT(T$30:T54))/2)-1))*100) - 100) + 55) / 100 ->  | BH54: =(0.5 * ((100-(BETADIST(AS54,((COUNT(AA$30:AA54))/2)-1,((COUNT(AA$30:AA54))/2)-1))*100) + (100-(BETADIST(AZ54,((COUNT(AA$30:AA54))/2)-1,((COUNT(AA$30:AA54))/2)-1))*100) - 100) + 55) / 100 ->  | BI54: =(0.5 * ((100-(BETADIST(AT54,((COUNT(AB$30:AB54))/2)-1,((COUNT(AB$30:AB54))/2)-1))*100) + (100-(BETADIST(BA54,((COUNT(AB$30:AB54))/2)-1,((COUNT(AB$30:AB54))/2)-1))*100) - 100) + 55) / 100 -> 
AE55: 0 | AF55: 0 | AG55: 0 | AH55: 0 | AI55: 0 | AJ55: 0 | AK55: 0 | AL55: =IF((MAX(0,(0.5-(($AL$21-AVERAGE($N$30:N55))/(IF(STDEV($N$30:N55)<0.01,0.01,STDEV($N$30:N55)))*SQRT(COUNT($N$30:N55))/(2*(COUNT($N$30:N55)-1))))))>1,1,(MAX(0,(0.5-(($AL$21-AVERAGE($N$30:N55))/(IF(STDEV($N$30:N55)<0.01,0.01,STDEV($N$30:N55)))*SQRT(COUNT($N$30:N55))/(2*(COUNT($N$30:N55)-1))))))) ->  | AM55: 0 | AN55: 0 | AO55: 0 | AP55: 0 | AQ55: =IF((MAX(0,(0.5-(($AQ$21-AVERAGE($S$30:S55))/(IF(STDEV($S$30:S55)<0.01,0.01,STDEV($S$30:S55)))*SQRT(COUNT($S$30:S55))/(2*(COUNT($S$30:S55)-1))))))>1,1,(MAX(0,(0.5-(($AQ$21-AVERAGE($S$30:S55))/(IF(STDEV($S$30:S55)<0.01,0.01,STDEV($S$30:S55)))*SQRT(COUNT($S$30:S55))/(2*(COUNT($S$30:S55)-1))))))) ->  | AR55: =IF((MAX(0,(0.5-(($AR$21-AVERAGE($T$30:T55))/(IF(STDEV($T$30:T55)<0.01,0.01,STDEV($T$30:T55)))*SQRT(COUNT($T$30:T55))/(2*(COUNT($T$30:T55)-1))))))>1,1,(MAX(0,(0.5-(($AR$21-AVERAGE($T$30:T55))/(IF(STDEV($T$30:T55)<0.01,0.01,STDEV($T$30:T55)))*SQRT(COUNT($T$30:T55))/(2*(COUNT($T$30:T55)-1))))))) ->  | AS55: =IF((MAX(0,(0.5-(($AS$21-AVERAGE($AA$30:AA55))/(IF(STDEV($AA$30:AA55)<0.01,0.01,STDEV($AA$30:AA55)))*SQRT(COUNT($AA$30:AA55))/(2*(COUNT($AA$30:AA55)-1))))))>1,1,(MAX(0,(0.5-(($AS$21-AVERAGE($AA$30:AA55))/(IF(STDEV($AA$30:AA55)<0.01,0.01,STDEV($AA$30:AA55)))*SQRT(COUNT($AA$30:AA55))/(2*(COUNT($AA$30:AA55)-1))))))) ->  | AT55: =IF((MAX(0,(0.5-(($AT$21-AVERAGE($AB$30:AB55))/(IF(STDEV($AB$30:AB55)<0.01,0.01,STDEV($AB$30:AB55)))*SQRT(COUNT($AB$30:AB55))/(2*(COUNT($AB$30:AB55)-1))))))>1,1,(MAX(0,(0.5-(($AT$21-AVERAGE($AB$30:AB55))/(IF(STDEV($AB$30:AB55)<0.01,0.01,STDEV($AB$30:AB55)))*SQRT(COUNT($AB$30:AB55))/(2*(COUNT($AB$30:AB55)-1))))))) ->  | AW55: =IF((MAX(0,(0.5-((AVERAGE($N$30:N55)-$AW$22)/(IF(STDEV($N$30:N55)<0.01,0.01,STDEV($N$30:N55)))*SQRT(COUNT($N$30:N55))/(2*(COUNT($N$30:N55)-1))))))>1,1,(MAX(0,(0.5-((AVERAGE($N$30:N55)-$AW$22)/(IF(STDEV($N$30:N55)<0.01,0.01,STDEV($N$30:N55)))*SQRT(COUNT($N$30:N55))/(2*(COUNT($N$30:N55)-1))))))) ->  | AX55: =IF((MAX(0,(0.5-((AVERAGE($S$30:S55)-$AX$22)/(IF(STDEV($S$30:S55)<0.01,0.01,STDEV($S$30:S55)))*SQRT(COUNT($S$30:S55))/(2*(COUNT($S$30:S55)-1))))))>1,1,(MAX(0,(0.5-((AVERAGE($S$30:S55)-$AX$22)/(IF(STDEV($S$30:S55)<0.01,0.01,STDEV($S$30:S55)))*SQRT(COUNT($S$30:S55))/(2*(COUNT($S$30:S55)-1))))))) ->  | AY55: =IF((MAX(0,(0.5-((AVERAGE($T$30:T55)-$AY$22)/(IF(STDEV($T$30:T55)<0.01,0.01,STDEV($T$30:T55)))*SQRT(COUNT($T$30:T55))/(2*(COUNT($T$30:T55)-1))))))>1,1,(MAX(0,(0.5-((AVERAGE($T$30:T55)-$AY$22)/(IF(STDEV($T$30:T55)<0.01,0.01,STDEV($T$30:T55)))*SQRT(COUNT($T$30:T55))/(2*(COUNT($T$30:T55)-1))))))) ->  | AZ55: =IF((MAX(0,(0.5-((AVERAGE($AA$30:AA55)-$AZ$22)/(IF(STDEV($AA$30:AA55)<0.01,0.01,STDEV($AA$30:AA55)))*SQRT(COUNT($AA$30:AA55))/(2*(COUNT($AA$30:AA55)-1))))))>1,1,(MAX(0,(0.5-((AVERAGE($AA$30:AA55)-$AZ$22)/(IF(STDEV($AA$30:AA55)<0.01,0.01,STDEV($AA$30:AA55)))*SQRT(COUNT($AA$30:AA55))/(2*(COUNT($AA$30:AA55)-1))))))) ->  | BA55: =IF((MAX(0,(0.5-((AVERAGE($AB$30:AB55)-$BA$22)/(IF(STDEV($AB$30:AB55)<0.01,0.01,STDEV($AB$30:AB55)))*SQRT(COUNT($AB$30:AB55))/(2*(COUNT($AB$30:AB55)-1))))))>1,1,(MAX(0,(0.5-((AVERAGE($AB$30:AB55)-$BA$22)/(IF(STDEV($AB$30:AB55)<0.01,0.01,STDEV($AB$30:AB55)))*SQRT(COUNT($AB$30:AB55))/(2*(COUNT($AB$30:AB55)-1))))))) ->  | BE55: =(0.5 * ((100-(BETADIST(AL55,((COUNT(N$30:N55))/2)-1,((COUNT(N$30:N55))/2)-1))*100) + (100-(BETADIST(AW55,((COUNT(N$30:N55))/2)-1,((COUNT(N$30:N55))/2)-1))*100) - 100) + 55) / 100 ->  | BF55: =(0.5 * ((100-(BETADIST(AQ55,((COUNT(S$30:S55))/2)-1,((COUNT(S$30:S55))/2)-1))*100) + (100-(BETADIST(AX55,((COUNT(S$30:S55))/2)-1,((COUNT(S$30:S55))/2)-1))*100) - 100) + 55) / 100 ->  | BG55: =(0.5 * ((100-(BETADIST(AR55,((COUNT(T$30:T55))/2)-1,((COUNT(T$30:T55))/2)-1))*100) + (100-(BETADIST(AY55,((COUNT(T$30:T55))/2)-1,((COUNT(T$30:T55))/2)-1))*100) - 100) + 55) / 100 ->  | BH55: =(0.5 * ((100-(BETADIST(AS55,((COUNT(AA$30:AA55))/2)-1,((COUNT(AA$30:AA55))/2)-1))*100) + (100-(BETADIST(AZ55,((COUNT(AA$30:AA55))/2)-1,((COUNT(AA$30:AA55))/2)-1))*100) - 100) + 55) / 100 ->  | BI55: =(0.5 * ((100-(BETADIST(AT55,((COUNT(AB$30:AB55))/2)-1,((COUNT(AB$30:AB55))/2)-1))*100) + (100-(BETADIST(BA55,((COUNT(AB$30:AB55))/2)-1,((COUNT(AB$30:AB55))/2)-1))*100) - 100) + 55) / 100 -> 
AE56: 0 | AF56: 0 | AG56: 0 | AH56: 0 | AI56: 0 | AJ56: 0 | AK56: 0 | AL56: =IF((MAX(0,(0.5-(($AL$21-AVERAGE($N$30:N56))/(IF(STDEV($N$30:N56)<0.01,0.01,STDEV($N$30:N56)))*SQRT(COUNT($N$30:N56))/(2*(COUNT($N$30:N56)-1))))))>1,1,(MAX(0,(0.5-(($AL$21-AVERAGE($N$30:N56))/(IF(STDEV($N$30:N56)<0.01,0.01,STDEV($N$30:N56)))*SQRT(COUNT($N$30:N56))/(2*(COUNT($N$30:N56)-1))))))) ->  | AM56: 0 | AN56: 0 | AO56: 0 | AP56: 0 | AQ56: =IF((MAX(0,(0.5-(($AQ$21-AVERAGE($S$30:S56))/(IF(STDEV($S$30:S56)<0.01,0.01,STDEV($S$30:S56)))*SQRT(COUNT($S$30:S56))/(2*(COUNT($S$30:S56)-1))))))>1,1,(MAX(0,(0.5-(($AQ$21-AVERAGE($S$30:S56))/(IF(STDEV($S$30:S56)<0.01,0.01,STDEV($S$30:S56)))*SQRT(COUNT($S$30:S56))/(2*(COUNT($S$30:S56)-1))))))) ->  | AR56: =IF((MAX(0,(0.5-(($AR$21-AVERAGE($T$30:T56))/(IF(STDEV($T$30:T56)<0.01,0.01,STDEV($T$30:T56)))*SQRT(COUNT($T$30:T56))/(2*(COUNT($T$30:T56)-1))))))>1,1,(MAX(0,(0.5-(($AR$21-AVERAGE($T$30:T56))/(IF(STDEV($T$30:T56)<0.01,0.01,STDEV($T$30:T56)))*SQRT(COUNT($T$30:T56))/(2*(COUNT($T$30:T56)-1))))))) ->  | AS56: =IF((MAX(0,(0.5-(($AS$21-AVERAGE($AA$30:AA56))/(IF(STDEV($AA$30:AA56)<0.01,0.01,STDEV($AA$30:AA56)))*SQRT(COUNT($AA$30:AA56))/(2*(COUNT($AA$30:AA56)-1))))))>1,1,(MAX(0,(0.5-(($AS$21-AVERAGE($AA$30:AA56))/(IF(STDEV($AA$30:AA56)<0.01,0.01,STDEV($AA$30:AA56)))*SQRT(COUNT($AA$30:AA56))/(2*(COUNT($AA$30:AA56)-1))))))) ->  | AT56: =IF((MAX(0,(0.5-(($AT$21-AVERAGE($AB$30:AB56))/(IF(STDEV($AB$30:AB56)<0.01,0.01,STDEV($AB$30:AB56)))*SQRT(COUNT($AB$30:AB56))/(2*(COUNT($AB$30:AB56)-1))))))>1,1,(MAX(0,(0.5-(($AT$21-AVERAGE($AB$30:AB56))/(IF(STDEV($AB$30:AB56)<0.01,0.01,STDEV($AB$30:AB56)))*SQRT(COUNT($AB$30:AB56))/(2*(COUNT($AB$30:AB56)-1))))))) ->  | AW56: =IF((MAX(0,(0.5-((AVERAGE($N$30:N56)-$AW$22)/(IF(STDEV($N$30:N56)<0.01,0.01,STDEV($N$30:N56)))*SQRT(COUNT($N$30:N56))/(2*(COUNT($N$30:N56)-1))))))>1,1,(MAX(0,(0.5-((AVERAGE($N$30:N56)-$AW$22)/(IF(STDEV($N$30:N56)<0.01,0.01,STDEV($N$30:N56)))*SQRT(COUNT($N$30:N56))/(2*(COUNT($N$30:N56)-1))))))) ->  | AX56: =IF((MAX(0,(0.5-((AVERAGE($S$30:S56)-$AX$22)/(IF(STDEV($S$30:S56)<0.01,0.01,STDEV($S$30:S56)))*SQRT(COUNT($S$30:S56))/(2*(COUNT($S$30:S56)-1))))))>1,1,(MAX(0,(0.5-((AVERAGE($S$30:S56)-$AX$22)/(IF(STDEV($S$30:S56)<0.01,0.01,STDEV($S$30:S56)))*SQRT(COUNT($S$30:S56))/(2*(COUNT($S$30:S56)-1))))))) ->  | AY56: =IF((MAX(0,(0.5-((AVERAGE($T$30:T56)-$AY$22)/(IF(STDEV($T$30:T56)<0.01,0.01,STDEV($T$30:T56)))*SQRT(COUNT($T$30:T56))/(2*(COUNT($T$30:T56)-1))))))>1,1,(MAX(0,(0.5-((AVERAGE($T$30:T56)-$AY$22)/(IF(STDEV($T$30:T56)<0.01,0.01,STDEV($T$30:T56)))*SQRT(COUNT($T$30:T56))/(2*(COUNT($T$30:T56)-1))))))) ->  | AZ56: =IF((MAX(0,(0.5-((AVERAGE($AA$30:AA56)-$AZ$22)/(IF(STDEV($AA$30:AA56)<0.01,0.01,STDEV($AA$30:AA56)))*SQRT(COUNT($AA$30:AA56))/(2*(COUNT($AA$30:AA56)-1))))))>1,1,(MAX(0,(0.5-((AVERAGE($AA$30:AA56)-$AZ$22)/(IF(STDEV($AA$30:AA56)<0.01,0.01,STDEV($AA$30:AA56)))*SQRT(COUNT($AA$30:AA56))/(2*(COUNT($AA$30:AA56)-1))))))) ->  | BA56: =IF((MAX(0,(0.5-((AVERAGE($AB$30:AB56)-$BA$22)/(IF(STDEV($AB$30:AB56)<0.01,0.01,STDEV($AB$30:AB56)))*SQRT(COUNT($AB$30:AB56))/(2*(COUNT($AB$30:AB56)-1))))))>1,1,(MAX(0,(0.5-((AVERAGE($AB$30:AB56)-$BA$22)/(IF(STDEV($AB$30:AB56)<0.01,0.01,STDEV($AB$30:AB56)))*SQRT(COUNT($AB$30:AB56))/(2*(COUNT($AB$30:AB56)-1))))))) ->  | BE56: =(0.5 * ((100-(BETADIST(AL56,((COUNT(N$30:N56))/2)-1,((COUNT(N$30:N56))/2)-1))*100) + (100-(BETADIST(AW56,((COUNT(N$30:N56))/2)-1,((COUNT(N$30:N56))/2)-1))*100) - 100) + 55) / 100 ->  | BF56: =(0.5 * ((100-(BETADIST(AQ56,((COUNT(S$30:S56))/2)-1,((COUNT(S$30:S56))/2)-1))*100) + (100-(BETADIST(AX56,((COUNT(S$30:S56))/2)-1,((COUNT(S$30:S56))/2)-1))*100) - 100) + 55) / 100 ->  | BG56: =(0.5 * ((100-(BETADIST(AR56,((COUNT(T$30:T56))/2)-1,((COUNT(T$30:T56))/2)-1))*100) + (100-(BETADIST(AY56,((COUNT(T$30:T56))/2)-1,((COUNT(T$30:T56))/2)-1))*100) - 100) + 55) / 100 ->  | BH56: =(0.5 * ((100-(BETADIST(AS56,((COUNT(AA$30:AA56))/2)-1,((COUNT(AA$30:AA56))/2)-1))*100) + (100-(BETADIST(AZ56,((COUNT(AA$30:AA56))/2)-1,((COUNT(AA$30:AA56))/2)-1))*100) - 100) + 55) / 100 ->  | BI56: =(0.5 * ((100-(BETADIST(AT56,((COUNT(AB$30:AB56))/2)-1,((COUNT(AB$30:AB56))/2)-1))*100) + (100-(BETADIST(BA56,((COUNT(AB$30:AB56))/2)-1,((COUNT(AB$30:AB56))/2)-1))*100) - 100) + 55) / 100 -> 
H75: Note: PWL values calculated per the SPF specifications are based on FHWA provided formulas using a Beta Distribution. The normal distribution curves above are provided for information only.
I76: Note a Beta Distribution Curve can indicate 100 percent within limit (PWL) where the Normal Distribution Curve(s) plotted above can indicate less than 100 PWL.
BZ77: DATA BELOW IS FOR PLOTTING NORMAL DISTRIBUTION CURVES
BZ81: Chart Title | CA81: =IF(_n8<3,"No 8 Sieve","No 8 Sieve "&ROUND(100*CA85,2)&" PWL") -> No 8 Sieve | CE81: ="No 200 Sieve "&ROUND(100*CE85,2)&" PWL" ->  | CI81: ="Binder Content "&ROUND(100*CI85,2)&" PWL" ->  | CM81: ="% MTD "&ROUND(100*CM85,2)&" PWL" ->  | CQ81: ="% Air Voids "&ROUND(100*CQ85,2)&" PWL" -> 
CA83: No 8Sieve | CE83: No 200 Sieve | CI83: Binder Content | CM83: %MTD | CQ83: %AirVoids
BZ85: PWL | CA85: =(CA86-0.55)*2 ->  | CE85: =(CE86-0.55)*2 ->  | CI85: =(CI86-0.55)*2 ->  | CM85: =(CM86-0.55)*2 ->  | CQ85: =(CQ86-0.55)*2 -> 
BZ86: QFqc | CA86: =BE56 ->  | CE86: =BF56 ->  | CI86: =BG56 ->  | CM86: =BH56 ->  | CQ86: =BI56 -> 
BZ88: sd | CA88: =_sd8 ->  | CE88: =_sd200 ->  | CI88: =_sdBC ->  | CM88: =_sdMTD ->  | CQ88: =_sdAV -> 
BZ89: mean | CA89: =_mn8 ->  | CE89: =_mn200 ->  | CI89: =_mnBC ->  | CM89: =_mnMTD ->  | CQ89: =_mnAV -> 
BZ91: USL | CA91: =LotInfo!J30 ->  | CB91: Position> | CC91: =IF(ISNA(MATCH(CA91,CA101:CA300)),0,MATCH(CA91,CA101:CA300)) -> 200 | CE91: =LotInfo!O30 ->  | CF91: Position> | CG91: =IF(ISNA(MATCH(CE91,CE101:CE300)),0,MATCH(CE91,CE101:CE300)) -> 200 | CI91: =LotInfo!P30 ->  | CJ91: Position> | CK91: =IF(ISNA(MATCH(CI91,CI101:CI300)),0,MATCH(CI91,CI101:CI300)) -> 200 | CM91: =LotInfo!Q30 -> 96 | CN91: Position> | CO91: =IF(ISNA(MATCH(CM91,CM101:CM300)),0,MATCH(CM91,CM101:CM300)) -> 0 | CQ91: =LotInfo!R30 -> 5.5 | CR91: Position> | CS91: =IF(ISNA(MATCH(CQ91,CQ101:CQ300)),0,MATCH(CQ91,CQ101:CQ300)) -> 0
BZ92: LSL | CA92: =LotInfo!J31 ->  | CB92: Position> | CC92: =IF(ISNA(MATCH(CA92,CA101:CA300)),0,MATCH(CA92,CA101:CA300)) -> 200 | CE92: =LotInfo!O31 ->  | CF92: Position> | CG92: =IF(ISNA(MATCH(CE92,CE101:CE300)),0,MATCH(CE92,CE101:CE300)) -> 200 | CI92: =LotInfo!P31 ->  | CJ92: Position> | CK92: =IF(ISNA(MATCH(CI92,CI101:CI300)),0,MATCH(CI92,CI101:CI300)) -> 200 | CM92: =LotInfo!Q31 -> 92 | CN92: Position> | CO92: =IF(ISNA(MATCH(CM92,CM101:CM300)),0,MATCH(CM92,CM101:CM300)) -> 0 | CQ92: =LotInfo!R31 -> 2.5 | CR92: Position> | CS92: =IF(ISNA(MATCH(CQ92,CQ101:CQ300)),0,MATCH(CQ92,CQ101:CQ300)) -> 0
BZ93: highest pt | CB93: max ht | CC93: =MAX(CB101:CB300) ->  | CF93: max ht | CG93: =MAX(CF101:CF300) ->  | CJ93: max ht | CK93: =MAX(CJ101:CJ300) ->  | CN93: max ht | CO93: =MAX(CN101:CN300) ->  | CR93: max ht | CS93: =MAX(CR101:CR300) -> 
BZ95: -5 SDs | CA95: =MIN(_mn8-(5*_sd8),CA92) ->  | CE95: =MIN(_mn200-(5*_sd200),CE92-0.5) ->  | CI95: =MIN(_mnBC-(5*_sdBC),CI92-0.2) ->  | CM95: =MIN(_mnMTD-(5*_sdMTD),CM92) ->  | CQ95: =MIN(_mnAV-(3*_sdAV),CQ92-0.25) -> 
BZ96: diff/200 | CA96: =(CA97-CA95)/200 ->  | CE96: =(CE97-CE95)/200 ->  | CI96: =(CI97-CI95)/200 ->  | CM96: =(CM97-CM95)/200 ->  | CQ96: =(CQ97-CQ95)/200 -> 
BZ97: +5 SD's | CA97: =MAX(_mn8+(5*_sd8),CA91+1) ->  | CE97: =MAX(_mn200+(5*_sd200),CE91+0.5) ->  | CI97: =MAX(_mnBC+(5*_sdBC),CI91+0.2) ->  | CM97: =MAX(_mnMTD+(5*_sdMTD),CM91) ->  | CQ97: =MAX(_mnAV+(3*_sdAV),CQ91+0.25) -> 
CB99: QC's | CF99: QC's | CJ99: QC's | CN99: QC's | CR99: QC's
CA100: x-axis | CB100: norm-dist | CC100: spec | CE100: x-axis | CF100: norm-dist | CG100: spec | CI100: x-axis | CJ100: norm-dist | CK100: spec | CM100: x-axis | CN100: norm-dist | CO100: spec | CQ100: x-axis | CR100: norm-dist | CS100: spec
BZ101: 1 | CA101: =IF(ISNUMBER(CA$95),CA$95+($BZ101*CA$96),"") ->  | CB101: =NORMDIST(CA101,_mn8,_sd8,0) ->  | CC101: =IF(OR($BZ101=CC$91,$BZ101=CC$92),CC$93,0) -> 0 | CE101: =IF(ISNUMBER(CE$95),CE$95+(BZ101*CE$96),"") ->  | CF101: =NORMDIST(CE101,_mn200,_sd200,0) ->  | CG101: =IF(OR($BZ101=CG$91,$BZ101=CG$92),CG$93,0) -> 0 | CI101: =IF(ISNUMBER(CI$95),CI$95+($BZ101*CI$96),"") ->  | CJ101: =NORMDIST(CI101,_mnBC,_sdBC,0) ->  | CK101: =IF(OR($BZ101=CK$91,$BZ101=CK$92),CK$93,0) -> 0 | CM101: =IF(ISNUMBER(CM$95),CM$95+($BZ101*CM$96),"") ->  | CN101: =NORMDIST(CM101,_mnMTD,_sdMTD,0) ->  | CO101: =IF(OR($BZ101=CO$91,$BZ101=CO$92),CO$93,0) -> 0 | CQ101: =IF(ISNUMBER(CQ$95),CQ$95+($BZ101*CQ$96),"") ->  | CR101: =NORMDIST(CQ101,_mnAV,_sdAV,0) ->  | CS101: =IF(OR($BZ101=CS$91,$BZ101=CS$92),CS$93,0) -> 0
BZ102: 2 | CA102: =IF(ISNUMBER(CA$95),CA$95+(BZ102*CA$96),"") ->  | CC102: =IF(OR($BZ102=CC$91,$BZ102=CC$92),CC$93,0) -> 0 | CE102: =IF(ISNUMBER(CE$95),CE$95+(BZ102*CE$96),"") ->  | CG102: =IF(OR($BZ102=CG$91,$BZ102=CG$92),CG$93,0) -> 0 | CI102: =IF(ISNUMBER(CI$95),CI$95+($BZ102*CI$96),"") ->  | CK102: =IF(OR($BZ102=CK$91,$BZ102=CK$92),CK$93,0) -> 0 | CM102: =IF(ISNUMBER(CM$95),CM$95+($BZ102*CM$96),"") ->  | CO102: =IF(OR($BZ102=CO$91,$BZ102=CO$92),CO$93,0) -> 0 | CQ102: =IF(ISNUMBER(CQ$95),CQ$95+($BZ102*CQ$96),"") ->  | CS102: =IF(OR($BZ102=CS$91,$BZ102=CS$92),CS$93,0) -> 0
BZ103: 3 | CC103: 0 | CG103: 0 | CK103: 0 | CO103: 0 | CS103: 0
BZ104: 4 | CC104: 0 | CG104: 0 | CK104: 0 | CO104: 0 | CS104: 0
BZ105: 5 | CC105: 0 | CG105: 0 | CK105: 0 | CO105: 0 | CS105: 0
BZ106: 6 | CC106: 0 | CG106: 0 | CK106: 0 | CO106: 0 | CS106: 0
BZ107: 7 | CC107: 0 | CG107: 0 | CK107: 0 | CO107: 0 | CS107: 0
BZ108: 8 | CC108: 0 | CG108: 0 | CK108: 0 | CO108: 0 | CS108: =IF(OR($BZ108=CS$91,$BZ108=CS$92),CS$93,0) -> 0
BZ109: 9 | CC109: 0 | CG109: 0 | CK109: 0 | CO109: 0 | CS109: 0
BZ110: 10 | CC110: 0 | CG110: 0 | CK110: 0 | CO110: 0 | CS110: 0
BZ111: 11 | CC111: 0 | CG111: 0 | CK111: 0 | CO111: 0 | CS111: 0
BZ112: 12 | CC112: 0 | CG112: 0 | CK112: 0 | CO112: 0 | CS112: 0
BZ113: 13 | CC113: 0 | CG113: 0 | CK113: 0 | CO113: 0 | CS113: 0
BZ114: 14 | CC114: 0 | CG114: 0 | CK114: 0 | CO114: 0 | CS114: 0
BZ115: 15 | CC115: 0 | CG115: 0 | CK115: 0 | CO115: 0 | CS115: 0
BZ116: 16 | CC116: 0 | CG116: 0 | CK116: 0 | CO116: 0 | CS116: 0
BZ117: 17 | CC117: 0 | CG117: 0 | CK117: 0 | CO117: 0 | CS117: 0
BZ118: 18 | CC118: 0 | CG118: 0 | CK118: 0 | CO118: 0 | CS118: 0
BZ119: 19 | CC119: 0 | CG119: 0 | CK119: 0 | CO119: 0 | CS119: 0
BZ120: 20 | CC120: 0 | CG120: 0 | CK120: 0 | CO120: 0 | CS120: 0
BZ121: 21 | CC121: 0 | CG121: 0 | CK121: 0 | CO121: 0 | CS121: 0
BZ122: 22 | CC122: 0 | CG122: 0 | CK122: 0 | CO122: 0 | CS122: 0
BZ123: 23 | CC123: 0 | CG123: 0 | CK123: 0 | CO123: 0 | CS123: 0
BZ124: 24 | CC124: 0 | CG124: 0 | CK124: 0 | CO124: 0 | CS124: 0
BZ125: 25 | CC125: 0 | CG125: 0 | CK125: 0 | CO125: 0 | CS125: 0
BZ126: 26 | CC126: 0 | CG126: 0 | CK126: 0 | CO126: 0 | CS126: 0
BZ127: 27 | CC127: 0 | CG127: 0 | CK127: 0 | CO127: 0 | CS127: 0
BZ128: 28 | CC128: 0 | CG128: 0 | CK128: 0 | CO128: 0 | CS128: 0
BZ129: 29 | CC129: 0 | CG129: 0 | CK129: 0 | CO129: 0 | CS129: 0
BZ130: 30 | CC130: 0 | CG130: 0 | CK130: 0 | CO130: 0 | CS130: 0
BZ131: 31 | CC131: 0 | CG131: 0 | CK131: 0 | CO131: 0 | CS131: 0
BZ132: 32 | CC132: 0 | CG132: 0 | CK132: 0 | CO132: 0 | CS132: 0
BZ133: 33 | CB133: =NORMDIST(CA133,_mn8,_sd8,0) ->  | CC133: 0 | CF133: =NORMDIST(CE133,_mn200,_sd200,0) ->  | CG133: 0 | CJ133: =NORMDIST(CI133,_mnBC,_sdBC,0) ->  | CK133: 0 | CN133: =NORMDIST(CM133,_mnMTD,_sdMTD,0) ->  | CO133: 0 | CR133: =NORMDIST(CQ133,_mnAV,_sdAV,0) ->  | CS133: 0
BZ134: 34 | CC134: 0 | CG134: 0 | CK134: 0 | CO134: 0 | CS134: 0
BZ135: 35 | CC135: 0 | CG135: 0 | CK135: 0 | CO135: 0 | CS135: 0
BZ136: 36 | CC136: 0 | CG136: 0 | CK136: 0 | CO136: 0 | CS136: 0
BZ137: 37 | CC137: 0 | CG137: 0 | CK137: 0 | CO137: 0 | CS137: 0
BZ138: 38 | CC138: 0 | CG138: 0 | CK138: 0 | CO138: 0 | CS138: 0
BZ139: 39 | CC139: 0 | CG139: 0 | CK139: 0 | CO139: 0 | CS139: 0
BZ140: 40 | CC140: 0 | CG140: 0 | CK140: 0 | CO140: 0 | CS140: 0
BZ141: 41 | CC141: 0 | CG141: 0 | CK141: 0 | CO141: 0 | CS141: 0
BZ142: 42 | CC142: 0 | CG142: 0 | CK142: 0 | CO142: 0 | CS142: 0
BZ143: 43 | CC143: 0 | CG143: 0 | CK143: 0 | CO143: 0 | CS143: 0
BZ144: 44 | CC144: 0 | CG144: 0 | CK144: 0 | CO144: 0 | CS144: 0
BZ145: 45 | CC145: 0 | CG145: 0 | CK145: 0 | CO145: 0 | CS145: 0
BZ146: 46 | CC146: 0 | CG146: 0 | CK146: 0 | CO146: 0 | CS146: 0
BZ147: 47 | CC147: 0 | CG147: 0 | CK147: 0 | CO147: 0 | CS147: 0
BZ148: 48 | CC148: 0 | CG148: 0 | CK148: 0 | CO148: 0 | CS148: 0
BZ149: 49 | CC149: 0 | CG149: 0 | CK149: 0 | CO149: 0 | CS149: 0
BZ150: 50 | CC150: 0 | CG150: 0 | CK150: 0 | CO150: 0 | CS150: 0
BZ151: 51 | CC151: 0 | CG151: 0 | CK151: 0 | CO151: 0 | CS151: 0
BZ152: 52 | CC152: 0 | CG152: 0 | CK152: 0 | CO152: 0 | CS152: 0
BZ153: 53 | CC153: 0 | CG153: 0 | CK153: 0 | CO153: 0 | CS153: 0
BZ154: 54 | CC154: 0 | CG154: 0 | CK154: 0 | CO154: 0 | CS154: 0
BZ155: 55 | CC155: 0 | CG155: 0 | CK155: 0 | CO155: 0 | CS155: 0
BZ156: 56 | CC156: 0 | CG156: 0 | CK156: 0 | CO156: 0 | CS156: 0
BZ157: 57 | CC157: 0 | CG157: 0 | CK157: 0 | CO157: 0 | CS157: 0
BZ158: 58 | CC158: 0 | CG158: 0 | CK158: 0 | CO158: 0 | CS158: 0
BZ159: 59 | CC159: 0 | CG159: 0 | CK159: 0 | CO159: 0 | CS159: 0
BZ160: 60 | CC160: 0 | CG160: 0 | CK160: 0 | CO160: 0 | CS160: 0
BZ161: 61 | CC161: 0 | CG161: 0 | CK161: 0 | CO161: 0 | CS161: 0
BZ162: 62 | CC162: 0 | CG162: 0 | CK162: 0 | CO162: 0 | CS162: 0
BZ163: 63 | CC163: 0 | CG163: 0 | CK163: 0 | CO163: 0 | CS163: 0
BZ164: 64 | CC164: 0 | CG164: 0 | CK164: 0 | CO164: 0 | CS164: 0
BZ165: 65 | CB165: =NORMDIST(CA165,_mn8,_sd8,0) ->  | CC165: 0 | CF165: =NORMDIST(CE165,_mn200,_sd200,0) ->  | CG165: 0 | CJ165: =NORMDIST(CI165,_mnBC,_sdBC,0) ->  | CK165: 0 | CN165: =NORMDIST(CM165,_mnMTD,_sdMTD,0) ->  | CO165: 0 | CR165: =NORMDIST(CQ165,_mnAV,_sdAV,0) ->  | CS165: 0
BZ166: 66 | CA166: =IF(ISNUMBER(CA$95),CA$95+(BZ166*CA$96),"") ->  | CC166: =IF(OR($BZ166=CC$91,$BZ166=CC$92),CC$93,0) -> 0 | CE166: =IF(ISNUMBER(CE$95),CE$95+(BZ166*CE$96),"") ->  | CG166: =IF(OR($BZ166=CG$91,$BZ166=CG$92),CG$93,0) -> 0 | CI166: =IF(ISNUMBER(CI$95),CI$95+($BZ166*CI$96),"") ->  | CK166: =IF(OR($BZ166=CK$91,$BZ166=CK$92),CK$93,0) -> 0 | CM166: =IF(ISNUMBER(CM$95),CM$95+($BZ166*CM$96),"") ->  | CO166: =IF(OR($BZ166=CO$91,$BZ166=CO$92),CO$93,0) -> 0 | CQ166: =IF(ISNUMBER(CQ$95),CQ$95+($BZ166*CQ$96),"") ->  | CS166: =IF(OR($BZ166=CS$91,$BZ166=CS$92),CS$93,0) -> 0
BZ167: 67 | CC167: 0 | CG167: 0 | CK167: 0 | CO167: 0 | CS167: 0
BZ168: 68 | CC168: 0 | CG168: 0 | CK168: 0 | CO168: 0 | CS168: 0
BZ169: 69 | CC169: 0 | CG169: 0 | CK169: 0 | CO169: 0 | CS169: 0
BZ170: 70 | CC170: 0 | CG170: 0 | CK170: 0 | CO170: 0 | CS170: 0
BZ171: 71 | CC171: 0 | CG171: 0 | CK171: 0 | CO171: 0 | CS171: 0
BZ172: 72 | CC172: 0 | CG172: 0 | CK172: 0 | CO172: 0 | CS172: 0
BZ173: 73 | CC173: 0 | CG173: 0 | CK173: 0 | CO173: 0 | CS173: 0
BZ174: 74 | CC174: 0 | CG174: 0 | CK174: 0 | CO174: 0 | CS174: 0
BZ175: 75 | CC175: 0 | CG175: 0 | CK175: 0 | CO175: 0 | CS175: 0
BZ176: 76 | CC176: 0 | CG176: 0 | CK176: 0 | CO176: 0 | CS176: 0
BZ177: 77 | CC177: 0 | CG177: 0 | CK177: 0 | CO177: 0 | CS177: 0
BZ178: 78 | CC178: 0 | CG178: 0 | CK178: 0 | CO178: 0 | CS178: 0
BZ179: 79 | CC179: 0 | CG179: 0 | CK179: 0 | CO179: 0 | CS179: 0
BZ180: 80 | CC180: 0 | CG180: 0 | CK180: 0 | CO180: 0 | CS180: 0
BZ181: 81 | CC181: 0 | CG181: 0 | CK181: 0 | CO181: 0 | CS181: 0
BZ182: 82 | CC182: 0 | CG182: 0 | CK182: 0 | CO182: 0 | CS182: 0
BZ183: 83 | CC183: 0 | CG183: 0 | CK183: 0 | CO183: 0 | CS183: 0
BZ184: 84 | CC184: 0 | CG184: 0 | CK184: 0 | CO184: 0 | CS184: 0
BZ185: 85 | CC185: 0 | CG185: 0 | CK185: 0 | CO185: 0 | CS185: 0
BZ186: 86 | CC186: 0 | CG186: 0 | CK186: 0 | CO186: 0 | CS186: 0
BZ187: 87 | CC187: 0 | CG187: 0 | CK187: 0 | CO187: 0 | CS187: 0
BZ188: 88 | CC188: 0 | CG188: 0 | CK188: 0 | CO188: 0 | CS188: 0
BZ189: 89 | CC189: 0 | CG189: 0 | CK189: 0 | CO189: 0 | CS189: 0
BZ190: 90 | CC190: 0 | CG190: 0 | CK190: 0 | CO190: 0 | CS190: 0
BZ191: 91 | CC191: 0 | CG191: 0 | CK191: 0 | CO191: 0 | CS191: 0
BZ192: 92 | CC192: 0 | CG192: 0 | CK192: 0 | CO192: 0 | CS192: 0
BZ193: 93 | CC193: 0 | CG193: 0 | CK193: 0 | CO193: 0 | CS193: 0
BZ194: 94 | CC194: 0 | CG194: 0 | CK194: 0 | CO194: 0 | CS194: 0
BZ195: 95 | CC195: 0 | CG195: 0 | CK195: 0 | CO195: 0 | CS195: 0
BZ196: 96 | CC196: 0 | CG196: 0 | CK196: 0 | CO196: 0 | CS196: 0
BZ197: 97 | CB197: =NORMDIST(CA197,_mn8,_sd8,0) ->  | CC197: 0 | CF197: =NORMDIST(CE197,_mn200,_sd200,0) ->  | CG197: 0 | CJ197: =NORMDIST(CI197,_mnBC,_sdBC,0) ->  | CK197: 0 | CN197: =NORMDIST(CM197,_mnMTD,_sdMTD,0) ->  | CO197: 0 | CR197: =NORMDIST(CQ197,_mnAV,_sdAV,0) ->  | CS197: 0
BZ198: 98 | CC198: 0 | CG198: 0 | CK198: 0 | CO198: 0 | CS198: 0
BZ199: 99 | CC199: 0 | CG199: 0 | CK199: 0 | CO199: 0 | CS199: 0
BZ200: 100 | CC200: 0 | CG200: 0 | CK200: 0 | CO200: 0 | CS200: 0
BZ201: 101 | CC201: 0 | CG201: 0 | CK201: 0 | CO201: 0 | CS201: 0
BZ202: 102 | CC202: 0 | CG202: 0 | CK202: 0 | CO202: 0 | CS202: 0
BZ203: 103 | CC203: 0 | CG203: 0 | CK203: 0 | CO203: 0 | CS203: 0
BZ204: 104 | CC204: 0 | CG204: 0 | CK204: 0 | CO204: 0 | CS204: 0
BZ205: 105 | CC205: 0 | CG205: 0 | CK205: 0 | CO205: 0 | CS205: 0
BZ206: 106 | CC206: 0 | CG206: 0 | CK206: 0 | CO206: 0 | CS206: 0
BZ207: 107 | CC207: 0 | CG207: 0 | CK207: 0 | CO207: 0 | CS207: 0
BZ208: 108 | CC208: 0 | CG208: 0 | CK208: 0 | CO208: 0 | CS208: 0
BZ209: 109 | CC209: 0 | CG209: 0 | CK209: 0 | CO209: 0 | CS209: 0
BZ210: 110 | CC210: 0 | CG210: 0 | CK210: 0 | CO210: 0 | CS210: 0
BZ211: 111 | CC211: 0 | CG211: 0 | CK211: 0 | CO211: 0 | CS211: 0
BZ212: 112 | CC212: 0 | CG212: 0 | CK212: 0 | CO212: 0 | CS212: 0
BZ213: 113 | CC213: 0 | CG213: 0 | CK213: 0 | CO213: 0 | CS213: 0
BZ214: 114 | CC214: 0 | CG214: 0 | CK214: 0 | CO214: 0 | CS214: 0
BZ215: 115 | CC215: 0 | CG215: 0 | CK215: 0 | CO215: 0 | CS215: 0
BZ216: 116 | CC216: 0 | CG216: 0 | CK216: 0 | CO216: 0 | CS216: 0
BZ217: 117 | CC217: 0 | CG217: 0 | CK217: 0 | CO217: 0 | CS217: 0
BZ218: 118 | CC218: 0 | CG218: 0 | CK218: 0 | CO218: 0 | CS218: 0
BZ219: 119 | CC219: 0 | CG219: 0 | CK219: 0 | CO219: 0 | CS219: 0
BZ220: 120 | CC220: 0 | CG220: 0 | CK220: 0 | CO220: 0 | CS220: 0
BZ221: 121 | CC221: 0 | CG221: 0 | CK221: 0 | CO221: 0 | CS221: 0
BZ222: 122 | CC222: 0 | CG222: 0 | CK222: 0 | CO222: 0 | CS222: 0
BZ223: 123 | CC223: 0 | CG223: 0 | CK223: 0 | CO223: 0 | CS223: 0
BZ224: 124 | CC224: 0 | CG224: 0 | CK224: 0 | CO224: 0 | CS224: 0
BZ225: 125 | CC225: 0 | CG225: 0 | CK225: 0 | CO225: 0 | CS225: 0
BZ226: 126 | CC226: 0 | CG226: 0 | CK226: 0 | CO226: 0 | CS226: 0
BZ227: 127 | CC227: 0 | CG227: 0 | CK227: 0 | CO227: 0 | CS227: 0
BZ228: 128 | CC228: 0 | CG228: 0 | CK228: 0 | CO228: 0 | CS228: 0
BZ229: 129 | CB229: =NORMDIST(CA229,_mn8,_sd8,0) ->  | CC229: 0 | CF229: =NORMDIST(CE229,_mn200,_sd200,0) ->  | CG229: 0 | CJ229: =NORMDIST(CI229,_mnBC,_sdBC,0) ->  | CK229: 0 | CN229: =NORMDIST(CM229,_mnMTD,_sdMTD,0) ->  | CO229: 0 | CR229: =NORMDIST(CQ229,_mnAV,_sdAV,0) ->  | CS229: 0
... 71 more rows

Sheet Verification
A1: Verification and Payment Worksheet | J1: ="SPFPay Lot # "&lotno&", Contract "&dist_ea -> SPFPay Lot # , Contract
A2: (Engineer Enters Verification Test Results on Rows 45 to 72) | H2: © 2020 California Department of Transportation | J2: =IF(contractorname="","",contractorname) -> 
F3: Pay Factor Quality Charachteristic (JMF Targets, Upper and Lower Spec Limits, and weighting factors)
E4: Quality Characteristic | F4: #8 | G4: #200 | H4: Binder Content | I4: Field Compaction | J4: Air Voids
E5: Target Value | F5: =LotInfo!J27 -> 0 | G5: =LotInfo!O27 -> 0 | H5: =LotInfo!P27 -> 0 | I5: =LotInfo!Q27 -> 0 | J5: =LotInfo!R27 -> 4
E6: Production Tolerance | F6: =LotInfo!J29 -> 5 | G6: =LotInfo!O29 -> 2 | H6: =LotInfo!P29 -> 0.4 | I6: =LotInfo!Q29 -> 0 | J6: =LotInfo!R29 -> 1.5
E7: Upper Specification Limit | F7: =LotInfo!J30 ->  | G7: =LotInfo!O30 ->  | H7: =LotInfo!P30 ->  | I7: =LotInfo!Q30 -> 96 | J7: =LotInfo!R30 -> 5.5
E8: Lower Specification Limit | F8: =LotInfo!J31 ->  | G8: =LotInfo!O31 ->  | H8: =LotInfo!P31 ->  | I8: =LotInfo!Q31 -> 92 | J8: =LotInfo!R31 -> 2.5
E9: Weighting Factor (w) | F9: =LotInfo!J32 -> 0.05 | G9: =LotInfo!O32 -> 0.1 | H9: =LotInfo!P32 -> 0.25 | I9: =LotInfo!Q32 -> 0.4 | J9: =LotInfo!R32 -> 0.2
A10: Contractors QC Data from QCData Worksheet
E11: Averages; QC & Verification | F11: ="QC="&IFERROR(TEXT(ROUND(AVERAGE(F14:F40),1),"0.0"),"")&", Verif="&IFERROR(TEXT(ROUND(AVERAGE(F45:F71),1),"0.0"),"") -> QC=, Verif= | G11: ="QC="&IFERROR(TEXT(ROUND(AVERAGE(G14:G40),2),"0.00"),"")&", Verif="&IFERROR(TEXT(ROUND(AVERAGE(G45:G71),2),"0.00"),"") -> QC=, Verif= | H11: QC=, Verif= | I11: QC=, Verif= | J11: QC=, Verif=
E12: Std Deviations; QC & Verification | F12: ="QC="&IFERROR(TEXT(ROUND(STDEV(F15:F41),1),"0.0"),"")&", Verif="&IFERROR(TEXT(ROUND(STDEV(F46:F72),1),"0.0"),"") -> QC=, Verif= | G12: ="QC="&IFERROR(TEXT(ROUND(STDEV(G15:G41),2),"0.00"),"")&", Verif="&IFERROR(TEXT(ROUND(STDEV(G46:G72),2),"0.00"),"") -> QC=, Verif= | H12: QC=, Verif= | I12: QC=, Verif= | J12: QC=, Verif=
A13: TEST NO. | B13: Date | C13: Tons of Material in sublot with waived density paid to use a QF=1.00 | D13: Lot No. | E13: Sublot No. | F13: #8 | G13: #200 | H13: Binder Content | I13: Field Compaction | J13: Air Voids
A14: =IF((QCData!A30=""),"",QCData!A30) ->  | B14: =IF(QCData!B30="","",QCData!B30) ->  | C14: =IF((QCData!C30=""),"",QCData!C30) ->  | D14: =IF((QCData!D30=""),"",QCData!D30) ->  | E14: =IF((QCData!E30=""),"",QCData!E30) ->  | F14: =IF((QCData!N30=""),"",QCData!N30) ->  | G14: =IF((QCData!S30=""),"",QCData!S30) ->  | H14: =IF((QCData!T30=""),"",QCData!T30) ->  | I14: =IF((QCData!AA30=""),"",QCData!AA30) ->  | J14: =IF((QCData!AB30=""),"",QCData!AB30) -> 
A15: =IF((QCData!A31=""),"",QCData!A31) ->  | B15: =IF(QCData!B31="","",QCData!B31) ->  | C15: =IF((QCData!C31=""),"",QCData!C31) ->  | D15: =IF((QCData!D31=""),"",QCData!D31) ->  | E15: =IF((QCData!E31=""),"",QCData!E31) ->  | F15: =IF((QCData!N31=""),"",QCData!N31) ->  | G15: =IF((QCData!S31=""),"",QCData!S31) ->  | H15: =IF((QCData!T31=""),"",QCData!T31) ->  | I15: =IF((QCData!AA31=""),"",QCData!AA31) ->  | J15: =IF((QCData!AB31=""),"",QCData!AB31) -> 
A16: =IF((QCData!A32=""),"",QCData!A32) ->  | B16: =IF(QCData!B32="","",QCData!B32) ->  | C16: =IF((QCData!C32=""),"",QCData!C32) ->  | D16: =IF((QCData!D32=""),"",QCData!D32) ->  | E16: =IF((QCData!E32=""),"",QCData!E32) ->  | F16: =IF((QCData!N32=""),"",QCData!N32) ->  | G16: =IF((QCData!S32=""),"",QCData!S32) ->  | H16: =IF((QCData!T32=""),"",QCData!T32) ->  | I16: =IF((QCData!AA32=""),"",QCData!AA32) ->  | J16: =IF((QCData!AB32=""),"",QCData!AB32) -> 
A17: =IF((QCData!A33=""),"",QCData!A33) ->  | B17: =IF(QCData!B33="","",QCData!B33) ->  | C17: =IF((QCData!C33=""),"",QCData!C33) ->  | D17: =IF((QCData!D33=""),"",QCData!D33) ->  | E17: =IF((QCData!E33=""),"",QCData!E33) ->  | F17: =IF((QCData!N33=""),"",QCData!N33) ->  | G17: =IF((QCData!S33=""),"",QCData!S33) ->  | H17: =IF((QCData!T33=""),"",QCData!T33) ->  | I17: =IF((QCData!AA33=""),"",QCData!AA33) ->  | J17: =IF((QCData!AB33=""),"",QCData!AB33) -> 
A18: =IF((QCData!A34=""),"",QCData!A34) ->  | B18: =IF(QCData!B34="","",QCData!B34) ->  | C18: =IF((QCData!C34=""),"",QCData!C34) ->  | D18: =IF((QCData!D34=""),"",QCData!D34) ->  | E18: =IF((QCData!E34=""),"",QCData!E34) ->  | F18: =IF((QCData!N34=""),"",QCData!N34) ->  | G18: =IF((QCData!S34=""),"",QCData!S34) ->  | H18: =IF((QCData!T34=""),"",QCData!T34) ->  | I18: =IF((QCData!AA34=""),"",QCData!AA34) ->  | J18: =IF((QCData!AB34=""),"",QCData!AB34) -> 
A19: =IF((QCData!A35=""),"",QCData!A35) ->  | B19: =IF(QCData!B35="","",QCData!B35) ->  | C19: =IF((QCData!C35=""),"",QCData!C35) ->  | D19: =IF((QCData!D35=""),"",QCData!D35) ->  | E19: =IF((QCData!E35=""),"",QCData!E35) ->  | F19: =IF((QCData!N35=""),"",QCData!N35) ->  | G19: =IF((QCData!S35=""),"",QCData!S35) ->  | H19: =IF((QCData!T35=""),"",QCData!T35) ->  | I19: =IF((QCData!AA35=""),"",QCData!AA35) ->  | J19: =IF((QCData!AB35=""),"",QCData!AB35) -> 
A20: =IF((QCData!A36=""),"",QCData!A36) ->  | B20: =IF(QCData!B36="","",QCData!B36) ->  | C20: =IF((QCData!C36=""),"",QCData!C36) ->  | D20: =IF((QCData!D36=""),"",QCData!D36) ->  | E20: =IF((QCData!E36=""),"",QCData!E36) ->  | F20: =IF((QCData!N36=""),"",QCData!N36) ->  | G20: =IF((QCData!S36=""),"",QCData!S36) ->  | H20: =IF((QCData!T36=""),"",QCData!T36) ->  | I20: =IF((QCData!AA36=""),"",QCData!AA36) ->  | J20: =IF((QCData!AB36=""),"",QCData!AB36) -> 
A21: =IF((QCData!A37=""),"",QCData!A37) ->  | B21: =IF(QCData!B37="","",QCData!B37) ->  | C21: =IF((QCData!C37=""),"",QCData!C37) ->  | D21: =IF((QCData!D37=""),"",QCData!D37) ->  | E21: =IF((QCData!E37=""),"",QCData!E37) ->  | F21: =IF((QCData!N37=""),"",QCData!N37) ->  | G21: =IF((QCData!S37=""),"",QCData!S37) ->  | H21: =IF((QCData!T37=""),"",QCData!T37) ->  | I21: =IF((QCData!AA37=""),"",QCData!AA37) ->  | J21: =IF((QCData!AB37=""),"",QCData!AB37) -> 
A22: =IF((QCData!A38=""),"",QCData!A38) ->  | B22: =IF(QCData!B38="","",QCData!B38) ->  | C22: =IF((QCData!C38=""),"",QCData!C38) ->  | D22: =IF((QCData!D38=""),"",QCData!D38) ->  | E22: =IF((QCData!E38=""),"",QCData!E38) ->  | F22: =IF((QCData!N38=""),"",QCData!N38) ->  | G22: =IF((QCData!S38=""),"",QCData!S38) ->  | H22: =IF((QCData!T38=""),"",QCData!T38) ->  | I22: =IF((QCData!AA38=""),"",QCData!AA38) ->  | J22: =IF((QCData!AB38=""),"",QCData!AB38) -> 
A23: =IF((QCData!A39=""),"",QCData!A39) ->  | B23: =IF(QCData!B39="","",QCData!B39) ->  | C23: =IF((QCData!C39=""),"",QCData!C39) ->  | D23: =IF((QCData!D39=""),"",QCData!D39) ->  | E23: =IF((QCData!E39=""),"",QCData!E39) ->  | F23: =IF((QCData!N39=""),"",QCData!N39) ->  | G23: =IF((QCData!S39=""),"",QCData!S39) ->  | H23: =IF((QCData!T39=""),"",QCData!T39) ->  | I23: =IF((QCData!AA39=""),"",QCData!AA39) ->  | J23: =IF((QCData!AB39=""),"",QCData!AB39) -> 
A24: =IF((QCData!A40=""),"",QCData!A40) ->  | B24: =IF(QCData!B40="","",QCData!B40) ->  | C24: =IF((QCData!C40=""),"",QCData!C40) ->  | D24: =IF((QCData!D40=""),"",QCData!D40) ->  | E24: =IF((QCData!E40=""),"",QCData!E40) ->  | F24: =IF((QCData!N40=""),"",QCData!N40) ->  | G24: =IF((QCData!S40=""),"",QCData!S40) ->  | H24: =IF((QCData!T40=""),"",QCData!T40) ->  | I24: =IF((QCData!AA40=""),"",QCData!AA40) ->  | J24: =IF((QCData!AB40=""),"",QCData!AB40) -> 
A25: =IF((QCData!A41=""),"",QCData!A41) ->  | B25: =IF(QCData!B41="","",QCData!B41) ->  | C25: =IF((QCData!C41=""),"",QCData!C41) ->  | D25: =IF((QCData!D41=""),"",QCData!D41) ->  | E25: =IF((QCData!E41=""),"",QCData!E41) ->  | F25: =IF((QCData!N41=""),"",QCData!N41) ->  | G25: =IF((QCData!S41=""),"",QCData!S41) ->  | H25: =IF((QCData!T41=""),"",QCData!T41) ->  | I25: =IF((QCData!AA41=""),"",QCData!AA41) ->  | J25: =IF((QCData!AB41=""),"",QCData!AB41) -> 
A26: =IF((QCData!A42=""),"",QCData!A42) ->  | B26: =IF(QCData!B42="","",QCData!B42) ->  | C26: =IF((QCData!C42=""),"",QCData!C42) ->  | D26: =IF((QCData!D42=""),"",QCData!D42) ->  | E26: =IF((QCData!E42=""),"",QCData!E42) ->  | F26: =IF((QCData!N42=""),"",QCData!N42) ->  | G26: =IF((QCData!S42=""),"",QCData!S42) ->  | H26: =IF((QCData!T42=""),"",QCData!T42) ->  | I26: =IF((QCData!AA42=""),"",QCData!AA42) ->  | J26: =IF((QCData!AB42=""),"",QCData!AB42) -> 
A27: =IF((QCData!A43=""),"",QCData!A43) ->  | B27: =IF(QCData!B43="","",QCData!B43) ->  | C27: =IF((QCData!C43=""),"",QCData!C43) ->  | D27: =IF((QCData!D43=""),"",QCData!D43) ->  | E27: =IF((QCData!E43=""),"",QCData!E43) ->  | F27: =IF((QCData!N43=""),"",QCData!N43) ->  | G27: =IF((QCData!S43=""),"",QCData!S43) ->  | H27: =IF((QCData!T43=""),"",QCData!T43) ->  | I27: =IF((QCData!AA43=""),"",QCData!AA43) ->  | J27: =IF((QCData!AB43=""),"",QCData!AB43) -> 
A28: =IF((QCData!A44=""),"",QCData!A44) ->  | B28: =IF(QCData!B44="","",QCData!B44) ->  | C28: =IF((QCData!C44=""),"",QCData!C44) ->  | D28: =IF((QCData!D44=""),"",QCData!D44) ->  | E28: =IF((QCData!E44=""),"",QCData!E44) ->  | F28: =IF((QCData!N44=""),"",QCData!N44) ->  | G28: =IF((QCData!S44=""),"",QCData!S44) ->  | H28: =IF((QCData!T44=""),"",QCData!T44) ->  | I28: =IF((QCData!AA44=""),"",QCData!AA44) ->  | J28: =IF((QCData!AB44=""),"",QCData!AB44) -> 
A29: =IF((QCData!A45=""),"",QCData!A45) ->  | B29: =IF(QCData!B45="","",QCData!B45) ->  | C29: =IF((QCData!C45=""),"",QCData!C45) ->  | D29: =IF((QCData!D45=""),"",QCData!D45) ->  | E29: =IF((QCData!E45=""),"",QCData!E45) ->  | F29: =IF((QCData!N45=""),"",QCData!N45) ->  | G29: =IF((QCData!S45=""),"",QCData!S45) ->  | H29: =IF((QCData!T45=""),"",QCData!T45) ->  | I29: =IF((QCData!AA45=""),"",QCData!AA45) ->  | J29: =IF((QCData!AB45=""),"",QCData!AB45) -> 
A30: =IF((QCData!A46=""),"",QCData!A46) ->  | B30: =IF(QCData!B46="","",QCData!B46) ->  | C30: =IF((QCData!C46=""),"",QCData!C46) ->  | D30: =IF((QCData!D46=""),"",QCData!D46) ->  | E30: =IF((QCData!E46=""),"",QCData!E46) ->  | F30: =IF((QCData!N46=""),"",QCData!N46) ->  | G30: =IF((QCData!S46=""),"",QCData!S46) ->  | H30: =IF((QCData!T46=""),"",QCData!T46) ->  | I30: =IF((QCData!AA46=""),"",QCData!AA46) ->  | J30: =IF((QCData!AB46=""),"",QCData!AB46) ->  | K30: =IF(DK30="","",DK30) -> 
A31: =IF((QCData!A47=""),"",QCData!A47) ->  | B31: =IF(QCData!B47="","",QCData!B47) ->  | C31: =IF((QCData!C47=""),"",QCData!C47) ->  | D31: =IF((QCData!D47=""),"",QCData!D47) ->  | E31: =IF((QCData!E47=""),"",QCData!E47) ->  | F31: =IF((QCData!N47=""),"",QCData!N47) ->  | G31: =IF((QCData!S47=""),"",QCData!S47) ->  | H31: =IF((QCData!T47=""),"",QCData!T47) ->  | I31: =IF((QCData!AA47=""),"",QCData!AA47) ->  | J31: =IF((QCData!AB47=""),"",QCData!AB47) ->  | K31: =IF(DK31="","",DK31) ->  | L31: =IF(DL31="","",DL31) ->  | M31: =IF(DM31="","",DM31) ->  | N31: =IF(DN31="","",DN31) ->  | O31: =IF(DO31="","",DO31) ->  | P31: =IF(DP31="","",DP31) ->  | Q31: =IF(DQ31="","",DQ31) ->  | R31: =IF(DR31="","",DR31) ->  | S31: =IF(DS31="","",DS31) ->  | T31: =IF(DT31="","",DT31) ->  | U31: =IF(DU31="","",DU31) ->  | V31: =IF(DV31="","",DV31) ->  | W31: =IF(DW31="","",DW31) ->  | X31: =IF(DX31="","",DX31) ->  | Y31: =IF(DY31="","",DY31) ->  | Z31: =IF(DZ31="","",DZ31) -> 
A32: =IF((QCData!A48=""),"",QCData!A48) ->  | B32: =IF(QCData!B48="","",QCData!B48) ->  | C32: =IF((QCData!C48=""),"",QCData!C48) ->  | D32: =IF((QCData!D48=""),"",QCData!D48) ->  | E32: =IF((QCData!E48=""),"",QCData!E48) ->  | F32: =IF((QCData!N48=""),"",QCData!N48) ->  | G32: =IF((QCData!S48=""),"",QCData!S48) ->  | H32: =IF((QCData!T48=""),"",QCData!T48) ->  | I32: =IF((QCData!AA48=""),"",QCData!AA48) ->  | J32: =IF((QCData!AB48=""),"",QCData!AB48) -> 
A33: =IF((QCData!A49=""),"",QCData!A49) ->  | B33: =IF(QCData!B49="","",QCData!B49) ->  | C33: =IF((QCData!C49=""),"",QCData!C49) ->  | D33: =IF((QCData!D49=""),"",QCData!D49) ->  | E33: =IF((QCData!E49=""),"",QCData!E49) ->  | F33: =IF((QCData!N49=""),"",QCData!N49) ->  | G33: =IF((QCData!S49=""),"",QCData!S49) ->  | H33: =IF((QCData!T49=""),"",QCData!T49) ->  | I33: =IF((QCData!AA49=""),"",QCData!AA49) ->  | J33: =IF((QCData!AB49=""),"",QCData!AB49) -> 
A34: =IF((QCData!A50=""),"",QCData!A50) ->  | B34: =IF(QCData!B50="","",QCData!B50) ->  | C34: =IF((QCData!C50=""),"",QCData!C50) ->  | D34: =IF((QCData!D50=""),"",QCData!D50) ->  | E34: =IF((QCData!E50=""),"",QCData!E50) ->  | F34: =IF((QCData!N50=""),"",QCData!N50) ->  | G34: =IF((QCData!S50=""),"",QCData!S50) ->  | H34: =IF((QCData!T50=""),"",QCData!T50) ->  | I34: =IF((QCData!AA50=""),"",QCData!AA50) ->  | J34: =IF((QCData!AB50=""),"",QCData!AB50) -> 
A35: =IF((QCData!A51=""),"",QCData!A51) ->  | B35: =IF(QCData!B51="","",QCData!B51) ->  | C35: =IF((QCData!C51=""),"",QCData!C51) ->  | D35: =IF((QCData!D51=""),"",QCData!D51) ->  | E35: =IF((QCData!E51=""),"",QCData!E51) ->  | F35: =IF((QCData!N51=""),"",QCData!N51) ->  | G35: =IF((QCData!S51=""),"",QCData!S51) ->  | H35: =IF((QCData!T51=""),"",QCData!T51) ->  | I35: =IF((QCData!AA51=""),"",QCData!AA51) ->  | J35: =IF((QCData!AB51=""),"",QCData!AB51) -> 
A36: =IF((QCData!A52=""),"",QCData!A52) ->  | B36: =IF(QCData!B52="","",QCData!B52) ->  | C36: =IF((QCData!C52=""),"",QCData!C52) ->  | D36: =IF((QCData!D52=""),"",QCData!D52) ->  | E36: =IF((QCData!E52=""),"",QCData!E52) ->  | F36: =IF((QCData!N52=""),"",QCData!N52) ->  | G36: =IF((QCData!S52=""),"",QCData!S52) ->  | H36: =IF((QCData!T52=""),"",QCData!T52) ->  | I36: =IF((QCData!AA52=""),"",QCData!AA52) ->  | J36: =IF((QCData!AB52=""),"",QCData!AB52) -> 
A37: =IF((QCData!A53=""),"",QCData!A53) ->  | B37: =IF(QCData!B53="","",QCData!B53) ->  | C37: =IF((QCData!C53=""),"",QCData!C53) ->  | D37: =IF((QCData!D53=""),"",QCData!D53) ->  | E37: =IF((QCData!E53=""),"",QCData!E53) ->  | F37: =IF((QCData!N53=""),"",QCData!N53) ->  | G37: =IF((QCData!S53=""),"",QCData!S53) ->  | H37: =IF((QCData!T53=""),"",QCData!T53) ->  | I37: =IF((QCData!AA53=""),"",QCData!AA53) ->  | J37: =IF((QCData!AB53=""),"",QCData!AB53) -> 
A38: =IF((QCData!A54=""),"",QCData!A54) ->  | B38: =IF(QCData!B54="","",QCData!B54) ->  | C38: =IF((QCData!C54=""),"",QCData!C54) ->  | D38: =IF((QCData!D54=""),"",QCData!D54) ->  | E38: =IF((QCData!E54=""),"",QCData!E54) ->  | F38: =IF((QCData!N54=""),"",QCData!N54) ->  | G38: =IF((QCData!S54=""),"",QCData!S54) ->  | H38: =IF((QCData!T54=""),"",QCData!T54) ->  | I38: =IF((QCData!AA54=""),"",QCData!AA54) ->  | J38: =IF((QCData!AB54=""),"",QCData!AB54) -> 
A39: =IF((QCData!A55=""),"",QCData!A55) ->  | B39: =IF(QCData!B55="","",QCData!B55) ->  | C39: =IF((QCData!C55=""),"",QCData!C55) ->  | D39: =IF((QCData!D55=""),"",QCData!D55) ->  | E39: =IF((QCData!E55=""),"",QCData!E55) ->  | F39: =IF((QCData!N55=""),"",QCData!N55) ->  | G39: =IF((QCData!S55=""),"",QCData!S55) ->  | H39: =IF((QCData!T55=""),"",QCData!T55) ->  | I39: =IF((QCData!AA55=""),"",QCData!AA55) ->  | J39: =IF((QCData!AB55=""),"",QCData!AB55) -> 
A40: =IF((QCData!A56=""),"",QCData!A56) ->  | B40: =IF(QCData!B56="","",QCData!B56) ->  | C40: =IF((QCData!C56=""),"",QCData!C56) ->  | D40: =IF((QCData!D56=""),"",QCData!D56) ->  | E40: =IF((QCData!E56=""),"",QCData!E56) ->  | F40: =IF((QCData!N56=""),"",QCData!N56) ->  | G40: =IF((QCData!S56=""),"",QCData!S56) ->  | H40: =IF((QCData!T56=""),"",QCData!T56) ->  | I40: =IF((QCData!AA56=""),"",QCData!AA56) ->  | J40: =IF((QCData!AB56=""),"",QCData!AB56) -> 
C41: ="Total Waived Density Tons= "&SUM(C14:C40) -> Total Waived Density Tons= 0
C42: Note: PWL values calculated per the SPF specifications are based on FHWA provided formulas using a Beta Distribution. The normal distribution curves above are provided for information only.
A43: Engineers Pay Factor Verification Data (Using Random Sampling Plan, enter Verification Test Data on row with corresponding contractor sublot).
A44: TEST NO. | B44: Date | C44: Engineers Determination of Tons of Material in sublot with waived density paid to use a QF=1.00 | D44: Lot No. | E44: Sample from within Contractor Sublot No. | F44: #8 | G44: #200 | H44: Binder Content | I44: Field Compaction | J44: Air Voids
D45: =D14 ->  | E45: =E14 -> 
D46: =D15 -> 
D47: =D16 -> 
D48: =D17 -> 
D49: =D18 -> 
D50: =D19 -> 
D51: =D20 -> 
D52: =D21 -> 
D53: =D22 -> 
D54: =D23 -> 
D55: =D24 -> 
D56: =D25 -> 
D57: =D26 -> 
D58: =D27 -> 
D59: =D28 -> 
D60: =D29 -> 
D61: =D30 -> 
D62: =D31 -> 
D63: =D32 -> 
D64: =D33 -> 
D65: =D34 -> 
D66: =D35 -> 
D67: =D36 -> 
D68: =D37 -> 
D69: =D38 -> 
D70: =D39 -> 
D71: =D40 -> 
A74: Verification Report
E75: Quality Characteristic | F75: #8 | G75: #200 | H75: Binder Content | I75: Field Compaction | J75: Air Voids
C76: Sp | F76: =SQRT(( ( (STDEV(F14:F40)^2*(COUNT(F14:F40)-1)) + (STDEV(F45:F71)^2*(COUNT(F45:F71)-1)) ) / (COUNT(F14:F40)+COUNT(F45:F71)-2) )) ->  | G76: =SQRT(( ( (STDEV(G14:G40)^2*(COUNT(G14:G40)-1)) + (STDEV(G45:G71)^2*(COUNT(G45:G71)-1)) ) / (COUNT(G14:G40)+COUNT(G45:G71)-2) )) ->  | H76: =SQRT(( ( (STDEV(H14:H40)^2*(COUNT(H14:H40)-1)) + (STDEV(H45:H71)^2*(COUNT(H45:H71)-1)) ) / (COUNT(H14:H40)+COUNT(H45:H71)-2) )) -> 
C77: F value | F77: =IF(AND(ISNUMBER(STDEV(F14:F40)),(ISNUMBER(STDEV(F45:F71)))),STDEV(F45:F71)^2/STDEV(F14:F40)^2,"") ->  | G77: =IF(AND(ISNUMBER(STDEV(G14:G40)),(ISNUMBER(STDEV(G45:G71)))),STDEV(G45:G71)^2/STDEV(G14:G40)^2,"") ->  | H77: =IF(AND(ISNUMBER(STDEV(H14:H40)),(ISNUMBER(STDEV(H45:H71)))),STDEV(H45:H71)^2/STDEV(H14:H40)^2,"") -> 
C78: numerator (nv-1) for Fcrit Lookup | F78: =IF(ISNUMBER( COUNT(F45:F71) ), COUNT(F45:F71)-1,"") -> -1 | G78: =IF(ISNUMBER( COUNT(G45:G71) ), COUNT(G45:G71)-1,"") -> -1 | H78: =IF(ISNUMBER( COUNT(H45:H71) ), COUNT(H45:H71)-1,"") -> -1 | I78: -1 | J78: -1
C79: denominator (nc-1) for Fcrit Lookup | F79: =IF(ISNUMBER(COUNT(F14:F40)), COUNT(F14:F40)-1,"") -> -1 | G79: =IF(ISNUMBER(COUNT(G14:G40)), COUNT(G14:G40)-1,"") -> -1 | H79: =IF(ISNUMBER(COUNT(H14:H40)), COUNT(H14:H40)-1,"") -> -1 | I79: -1 | J79: -1
C80: F crit from table F Table | F80: =IF((AND(ISNUMBER(F78),ISNUMBER(F79))),VLOOKUP(F78,'F Table'!$C6:$AG27,Verification!F79+1,FALSE),"") ->  | G80: =IF((AND(ISNUMBER(G78),ISNUMBER(G79))),VLOOKUP(G78,'F Table'!$C6:$AG27,Verification!G79+1,FALSE),"") ->  | H80: =IF((AND(ISNUMBER(H78),ISNUMBER(H79))),VLOOKUP(H78,'F Table'!$C6:$AG27,Verification!H79+1,FALSE),"") ->  | I80: =IF((AND(ISNUMBER(I78),ISNUMBER(I79))),VLOOKUP(I78,'F Table'!$C6:$AG27,Verification!I79+1,FALSE),"") ->  | J80: =IF((AND(ISNUMBER(J78),ISNUMBER(J79))),VLOOKUP(J78,'F Table'!$C6:$AG27,Verification!J79+1,FALSE),"") -> 
C81: If F<Fcrit then "variances assumed equal" | F81: =IF(ISNUMBER(F80),(IF(F77<=F80,"variances equal","variances unequal")),"") ->  | G81: =IF(ISNUMBER(G80),(IF(G77<=G80,"variances equal","variances unequal")),"") ->  | H81: =IF(ISNUMBER(H80),(IF(H77<=H80,"variances equal","variances unequal")),"") ->  | I81: =IF(ISNUMBER(I80),(IF(I77<=I80,"variances equal","variances unequal")),"") ->  | J81: =IF(ISNUMBER(J80),(IF(J77<=J80,"variances equal","variances unequal")),"") -> 
C82: "t stat." | F82: =ROUND((IF(F81="variances equal", (ABS( AVERAGE(F14:F40) - AVERAGE(F45:F71) ))/ (F76 * SQRT(1/COUNT(F14:F40) + 1/COUNT(F45:F71))),(ABS(AVERAGE(F14:F40)-AVERAGE(F45:F71)))/SQRT((STDEV(F14:F40)^2/COUNT(F14:F40))+(STDEV(F45:F71)^2/COUNT(F45:F71))))),3) ->  | G82: =ROUND((IF(G81="variances equal", (ABS( AVERAGE(G14:G40) - AVERAGE(G45:G71) ))/ (G76 * SQRT(1/COUNT(G14:G40) + 1/COUNT(G45:G71))),(ABS(AVERAGE(G14:G40)-AVERAGE(G45:G71)))/SQRT((STDEV(G14:G40)^2/COUNT(G14:G40))+(STDEV(G45:G71)^2/COUNT(G45:G71))))),3) ->  | H82: =ROUND((IF(H81="variances equal", (ABS( AVERAGE(H14:H40) - AVERAGE(H45:H71) ))/ (H76 * SQRT(1/COUNT(H14:H40) + 1/COUNT(H45:H71))),(ABS(AVERAGE(H14:H40)-AVERAGE(H45:H71)))/SQRT((STDEV(H14:H40)^2/COUNT(H14:H40))+(STDEV(H45:H71)^2/COUNT(H45:H71))))),3) ->  | I82: =ROUND((IF(I81="variances equal", (ABS( AVERAGE(I14:I40) - AVERAGE(I45:I71) ))/ (I76 * SQRT(1/COUNT(I14:I40) + 1/COUNT(I45:I71))),(ABS(AVERAGE(I14:I40)-AVERAGE(I45:I71)))/SQRT((STDEV(I14:I40)^2/COUNT(I14:I40))+(STDEV(I45:I71)^2/COUNT(I45:I71))))),3) ->  | J82: =ROUND((IF(J81="variances equal", (ABS( AVERAGE(J14:J40) - AVERAGE(J45:J71) ))/ (J76 * SQRT(1/COUNT(J14:J40) + 1/COUNT(J45:J71))),(ABS(AVERAGE(J14:J40)-AVERAGE(J45:J71)))/SQRT((STDEV(J14:J40)^2/COUNT(J14:J40))+(STDEV(J45:J71)^2/COUNT(J45:J71))))),3) -> 
C83: effective degrees of freedom (f') | F83: =ROUNDDOWN(((((STDEV(F14:F40)^2/COUNT(F14:F40))+(STDEV(F45:F71)^2/COUNT(F45:F71)))^2)/((((STDEV(F14:F40)^2/COUNT(F14:F40))^2)/(COUNT(F14:F40)+1))+((((STDEV(F45:F71)^2)/COUNT(F45:F71))^2)/(COUNT(F45:F71)+1))))-2,0) ->  | G83: =ROUNDDOWN(((((STDEV(G14:G40)^2/COUNT(G14:G40))+(STDEV(G45:G71)^2/COUNT(G45:G71)))^2)/((((STDEV(G14:G40)^2/COUNT(G14:G40))^2)/(COUNT(G14:G40)+1))+((((STDEV(G45:G71)^2)/COUNT(G45:G71))^2)/(COUNT(G45:G71)+1))))-2,0) ->  | H83: =ROUNDDOWN(((((STDEV(H14:H40)^2/COUNT(H14:H40))+(STDEV(H45:H71)^2/COUNT(H45:H71)))^2)/((((STDEV(H14:H40)^2/COUNT(H14:H40))^2)/(COUNT(H14:H40)+1))+((((STDEV(H45:H71)^2)/COUNT(H45:H71))^2)/(COUNT(H45:H71)+1))))-2,0) -> 
C84: t crit. (variances equal; nc+nv-2) | F84: =LOOKUP((COUNT(F14:F40)+COUNT(F45:F71)-2),degreefreedom,tcrit) ->  | G84: =LOOKUP((COUNT(G14:G40)+COUNT(G45:G71)-2),degreefreedom,tcrit) ->  | H84: =LOOKUP((COUNT(H14:H40)+COUNT(H45:H71)-2),degreefreedom,tcrit) ->  | I84: =LOOKUP((COUNT(I14:I40)+COUNT(I45:I71)-2),degreefreedom,tcrit) ->  | J84: =LOOKUP((COUNT(J14:J40)+COUNT(J45:J71)-2),degreefreedom,tcrit) -> 
C85: t crit. (variances not equal; f') | F85: =LOOKUP(F83,degreefreedom,tcrit) ->  | G85: =LOOKUP(G83,degreefreedom,tcrit) ->  | H85: =LOOKUP(H83,degreefreedom,tcrit) ->  | I85: =LOOKUP(I83,degreefreedom,tcrit) ->  | J85: =LOOKUP(J83,degreefreedom,tcrit) -> 
C86: t crit | F86: =IF(F81="variances equal",F84,F85) ->  | G86: =IF(G81="variances equal",G84,G85) ->  | H86: =IF(H81="variances equal",H84,H85) -> 
C87: Check if enough data | F87: =(IF(AND(COUNT(F14:F40)<19.5,COUNT(F45:F71)>=3),"YES",IF(AND(COUNT(F14:F40)>19.5,COUNT(F14:F40)<24.5,COUNT(F45:F71)>=4),"YES",IF(AND(COUNT(F14:F40)>24.5,COUNT(F45:F71)>=5),"YES","NO")))) -> NO | G87: =(IF(AND(COUNT(G14:G40)<19.5,COUNT(G45:G71)>=3),"YES",IF(AND(COUNT(G14:G40)>19.5,COUNT(G14:G40)<24.5,COUNT(G45:G71)>=4),"YES",IF(AND(COUNT(G14:G40)>24.5,COUNT(G45:G71)>=5),"YES","NO")))) -> NO | H87: =(IF(AND(COUNT(H14:H40)<19.5,COUNT(H45:H71)>=3),"YES",IF(AND(COUNT(H14:H40)>19.5,COUNT(H14:H40)<24.5,COUNT(H45:H71)>=4),"YES",IF(AND(COUNT(H14:H40)>24.5,COUNT(H45:H71)>=5),"YES","NO")))) -> NO | I87: NO | J87: NO
C88: Is t<tcrit (Verification Pass) | F88: =IF(F87="YES",IF(F82<=F86,"PASS","FAIL"),IF(N105="NO","INS.DATA","")) ->  | G88: =IF(G87="YES",IF(G82<=G86,"PASS","FAIL"),IF(O105="NO","INS.DATA","")) ->  | H88: =IF(H87="YES",IF(H82<=H86,"PASS","FAIL"),IF(P105="NO","INS.DATA","")) ->  | I88: =IF(I87="YES",IF(I82<=I86,"PASS","FAIL"),IF(Q105="NO","INS.DATA","")) ->  | J88: =IF(J87="YES",IF(J82<=J86,"PASS","FAIL"),IF(R105="NO","INS.DATA","")) -> 
C89: 2nd check, is IXc-XvI < All.Diff. | F89: =IF(F88="INS.DATA","INS.DATA", IF(F88="FAIL", IF(ABS(AVERAGE(F14:F40)-AVERAGE(F45:F71))<=1, "PASS", "FAIL"),"")) ->  | G89: =IF(G88="INS.DATA","INS.DATA", IF(G88="FAIL", IF(ABS(AVERAGE(G14:G40)-AVERAGE(G45:G71))<=1, "PASS", "FAIL"),"")) ->  | H89: =IF(H88="INS.DATA","INS.DATA", IF(H88="FAIL", IF(ABS(AVERAGE(H14:H40)-AVERAGE(H45:H71))<=1, "PASS", "FAIL"),"")) -> 
C90: Verified? (Yes/No) | F90: =IF(F88="PASS","VERIFIED", IF(F88="INS.DATA", "NOT VERIFIED", IF(AND(F88="FAIL",F89="VERIFIED"),"YES", IF(AND(F88="FAIL",F89="FAIL"),"NOT VERIFIED","")))) ->  | G90: =IF(G88="PASS","VERIFIED", IF(G88="INS.DATA", "NOT VERIFIED", IF(AND(G88="FAIL",G89="PASS"),"VERIFIED", IF(AND(G88="FAIL",G89="FAIL"),"NOT VERIFIED","")))) ->  | H90: =IF(H88="PASS","VERIFIED", IF(H88="INS.DATA", "NOT VERIFIED", IF(AND(H88="FAIL",H89="PASS"),"VERIFIED", IF(AND(H88="FAIL",H89="FAIL"),"NOT VERIFIED","")))) ->  | I90: =IF(I88="PASS","VERIFIED", IF(I88="INS.DATA", "NNOT VERIFIED", IF(AND(I88="FAIL",I89="PASS"),"VERIFIED", IF(AND(I88="FAIL",I89="FAIL"),"NOT VERIFIED","")))) ->  | J90: =IF(J88="PASS","VERIFIED", IF(J88="INS.DATA", "NOT VERIFIED", IF(AND(J88="FAIL",J89="PASS"),"VERIFIED", IF(AND(J88="FAIL",J89="FAIL"),"NOT VERIFIED","")))) -> 
A92: Composite Pay Factors
E93: Quality Characteristic | F93: #8 | G93: #200 | H93: Binder Content | I93: Field Compaction | J93: Air Voids
E94: Weighting Factor (wi) | F94: 0.05 | G94: 0.1 | H94: 0.25 | I94: 0.4 | J94: 0.2
A95: Individual Quality Factors | F95: =IF(F90="VERIFIED",QCData!BE56,"Not Verified") -> Not Verified | G95: =IF(G90="VERIFIED",QCData!BF56,"Not Verified") -> Not Verified | H95: =IF(H90="VERIFIED",QCData!BG56,"Not Verified") -> Not Verified | I95: =IF(I90="VERIFIED",QCData!BH56,"Not Verified") -> Not Verified | J95: =IF(J90="VERIFIED",QCData!BI56,"Not Verified") -> Not Verified
A96: Composite Quality Factor
E98: Composite Factor (with method compaction) | F98: =ROUND(IF(OR(F95="Not Verified",G95="Not Verified",H95="Not Verified",J95="Not Verified"),"Not Verified",F94*F95+G94*G95+H94*H95+I94*1+J94*J95),2) ->  | G98: (waived density)
E99: Composite Factor (with density specifications) | F99: =ROUND(IF(OR(F95="Not Verified",G95="Not Verified",H95="Not Verified",I95="Not Verified",J95="Not Verified"),"Not Verified",F94*F95+G94*G95+H94*H95+I94*I95+J94*J95),2) ->  | G99: (with density)
A100: Payment
E101: ="HMA Total Tonage in Lot No "&lotno -> HMA Total Tonage in Lot No | F101: 17890.12 | G101: ="tons, of HMA at bid price= $"&unitprice&" per ton" -> tons, of HMA at bid price= $ per ton
E102: - Total Tonage (with waived density) | F102: 1142 | G102: ="tons. Payment Adustment (waived density testing)@; $"&ROUND((F98-1)*unitprice,2)&" per ton" ->  | I102: =ROUND((F98-1)*F102,2)*unitprice -> 
E103: HMA tonage (using density specifications) | F103: =F101-F102 -> 16748.12 | G103: ="tons. Payment Adustment (using density testing)@; $"&ROUND((F99-1)*unitprice,2)&" per ton" ->  | I103: =ROUND((F99-1)*unitprice,2)*F103 -> 
H104: ="Lot "&lotno&" Total Payment Adjustment" -> Lot Total Payment Adjustment | I104: =SUM(I102:I103) -> 

Sheet F Table (hidden)
B1: Note: to simplify using the vlookup function on the LotXPay worksheet the table was flipped diagonally. Typically this table has the denominator values along the left edge and the Numerator across the top.
D4: Degree of Freedom (nc-1) for Denominator
D5: 1 | E5: 2 | F5: 3 | G5: 4 | H5: 5 | I5: 6 | J5: 7 | K5: 8 | L5: 9 | M5: 10 | N5: 11 | O5: 12 | P5: 13 | Q5: 14 | R5: 15 | S5: 16 | T5: 17 | U5: 18 | V5: 19 | W5: 20 | X5: 21 | Y5: 22 | Z5: 23 | AA5: 24 | AB5: 25 | AC5: 26 | AD5: 27 | AE5: 28 | AF5: 29 | AG5: 30
B6: Degree of freedom ( (nv-1) for Numerator | C6: 1 | D6: 647.8 | E6: 38.51 | F6: 17.44 | G6: 12.22 | H6: 10.01 | I6: 8.81 | J6: 8.07 | K6: 7.57 | L6: 7.21 | M6: 6.94 | N6: 6.72 | O6: 6.55 | P6: 6.41 | Q6: 6.3 | R6: 6.2 | S6: 6.12 | T6: 6.04 | U6: 5.98 | V6: 5.92 | W6: 5.87 | X6: 5.83 | Y6: 5.79 | Z6: 5.75 | AA6: 5.72 | AB6: 5.69 | AC6: 5.66 | AD6: 5.63 | AE6: 5.61 | AF6: 5.59 | AG6: 5.57
C7: 2 | D7: 799.5 | E7: 39 | F7: 16.04 | G7: 10.65 | H7: 8.43 | I7: 7.26 | J7: 6.54 | K7: 6.06 | L7: 5.71 | M7: 5.46 | N7: 5.26 | O7: 5.1 | P7: 4.97 | Q7: 4.86 | R7: 4.77 | S7: 4.69 | T7: 4.62 | U7: 4.56 | V7: 4.51 | W7: 4.46 | X7: 4.42 | Y7: 4.38 | Z7: 4.35 | AA7: 4.32 | AB7: 4.29 | AC7: 4.27 | AD7: 4.24 | AE7: 4.22 | AF7: 4.2 | AG7: 4.18
C8: 3 | D8: 864.2 | E8: 39.17 | F8: 15.44 | G8: 9.98 | H8: 7.76 | I8: 6.6 | J8: 5.89 | K8: 5.42 | L8: 5.08 | M8: 4.83 | N8: 4.63 | O8: 4.47 | P8: 4.35 | Q8: 4.24 | R8: 4.15 | S8: 4.08 | T8: 4.01 | U8: 3.95 | V8: 3.9 | W8: 3.86 | X8: 3.82 | Y8: 3.78 | Z8: 3.75 | AA8: 3.72 | AB8: 3.69 | AC8: 3.67 | AD8: 3.65 | AE8: 3.63 | AF8: 3.61 | AG8: 3.59
C9: 4 | D9: 899.6 | E9: 39.25 | F9: 15.1 | G9: 9.6 | H9: 7.39 | I9: 6.23 | J9: 5.52 | K9: 5.05 | L9: 4.72 | M9: 4.47 | N9: 4.28 | O9: 4.12 | P9: 4 | Q9: 3.89 | R9: 3.8 | S9: 3.73 | T9: 3.66 | U9: 3.61 | V9: 3.56 | W9: 3.51 | X9: 3.48 | Y9: 3.44 | Z9: 3.41 | AA9: 3.38 | AB9: 3.35 | AC9: 3.33 | AD9: 3.31 | AE9: 3.29 | AF9: 3.27 | AG9: 3.25
C10: 5 | D10: 921.8 | E10: 39.3 | F10: 14.88 | G10: 9.36 | H10: 7.15 | I10: 5.99 | J10: 5.29 | K10: 4.82 | L10: 4.48 | M10: 4.24 | N10: 4.04 | O10: 3.89 | P10: 3.77 | Q10: 3.66 | R10: 3.58 | S10: 3.5 | T10: 3.44 | U10: 3.38 | V10: 3.33 | W10: 3.29 | X10: 3.25 | Y10: 3.22 | Z10: 3.18 | AA10: 3.15 | AB10: 3.13 | AC10: 3.1 | AD10: 3.08 | AE10: 3.06 | AF10: 3.04 | AG10: 3.03
C11: 6 | D11: 937.1 | E11: 39.33 | F11: 14.73 | G11: 9.2 | H11: 6.98 | I11: 5.82 | J11: 5.12 | K11: 4.65 | L11: 4.32 | M11: 4.07 | N11: 3.88 | O11: 3.73 | P11: 3.6 | Q11: 3.5 | R11: 3.41 | S11: 3.34 | T11: 3.28 | U11: 3.22 | V11: 3.17 | W11: 3.13 | X11: 3.09 | Y11: 3.05 | Z11: 3.02 | AA11: 2.99 | AB11: 2.97 | AC11: 2.94 | AD11: 2.92 | AE11: 2.9 | AF11: 2.88 | AG11: 2.87
C12: 7 | D12: 948.2 | E12: 39.36 | F12: 14.62 | G12: 9.07 | H12: 6.85 | I12: 5.7 | J12: 4.99 | K12: 4.53 | L12: 4.2 | M12: 3.95 | N12: 3.76 | O12: 3.61 | P12: 3.48 | Q12: 3.38 | R12: 3.29 | S12: 3.22 | T12: 3.16 | U12: 3.1 | V12: 3.05 | W12: 3.01 | X12: 2.97 | Y12: 2.93 | Z12: 2.9 | AA12: 2.87 | AB12: 2.85 | AC12: 2.82 | AD12: 2.8 | AE12: 2.78 | AF12: 2.76 | AG12: 2.75
C13: 8 | D13: 956.7 | E13: 39.37 | F13: 14.54 | G13: 8.98 | H13: 6.76 | I13: 5.6 | J13: 4.9 | K13: 4.43 | L13: 4.1 | M13: 3.85 | N13: 3.66 | O13: 3.51 | P13: 3.39 | Q13: 3.29 | R13: 3.2 | S13: 3.12 | T13: 3.06 | U13: 3.01 | V13: 2.96 | W13: 2.91 | X13: 2.87 | Y13: 2.84 | Z13: 2.81 | AA13: 2.78 | AB13: 2.75 | AC13: 2.73 | AD13: 2.71 | AE13: 2.69 | AF13: 2.67 | AG13: 2.65
C14: 9 | D14: 963.3 | E14: 39.39 | F14: 14.47 | G14: 8.9 | H14: 6.68 | I14: 5.52 | J14: 4.82 | K14: 4.36 | L14: 4.03 | M14: 3.78 | N14: 3.59 | O14: 3.44 | P14: 3.31 | Q14: 3.21 | R14: 3.12 | S14: 3.05 | T14: 2.98 | U14: 2.93 | V14: 2.88 | W14: 2.84 | X14: 2.8 | Y14: 2.76 | Z14: 2.73 | AA14: 2.7 | AB14: 2.68 | AC14: 2.65 | AD14: 2.63 | AE14: 2.61 | AF14: 2.59 | AG14: 2.57
C15: 10 | D15: 968.6 | E15: 39.4 | F15: 14.42 | G15: 8.84 | H15: 6.62 | I15: 5.46 | J15: 4.76 | K15: 4.3 | L15: 3.96 | M15: 3.72 | N15: 3.53 | O15: 3.37 | P15: 3.25 | Q15: 3.15 | R15: 3.06 | S15: 2.99 | T15: 2.92 | U15: 2.87 | V15: 2.82 | W15: 2.77 | X15: 2.73 | Y15: 2.7 | Z15: 2.67 | AA15: 2.64 | AB15: 2.61 | AC15: 2.59 | AD15: 2.57 | AE15: 2.55 | AF15: 2.53 | AG15: 2.51
C16: 11 | D16: =ROUND(AVERAGE(D15,D17),3) -> 972.65 | E16: =ROUND(AVERAGE(E15,E17),3) -> 39.405 | F16: 14.38 | G16: 8.795 | H16: 6.57 | I16: 5.415 | J16: 4.715 | K16: 4.25 | L16: 3.915 | M16: 3.67 | N16: 3.48 | O16: 3.325 | P16: 3.2 | Q16: 3.1 | R16: 3.01 | S16: 2.94 | T16: 2.87 | U16: 2.82 | V16: 2.77 | W16: 2.725 | X16: 2.685 | Y16: 2.65 | Z16: 2.62 | AA16: 2.59 | AB16: 2.56 | AC16: 2.54 | AD16: 2.52 | AE16: 2.5 | AF16: 2.48 | AG16: 2.46
C17: 12 | D17: 976.7 | E17: 39.41 | F17: 14.34 | G17: 8.75 | H17: 6.52 | I17: 5.37 | J17: 4.67 | K17: 4.2 | L17: 3.87 | M17: 3.62 | N17: 3.43 | O17: 3.28 | P17: 3.15 | Q17: 3.05 | R17: 2.96 | S17: 2.89 | T17: 2.82 | U17: 2.77 | V17: 2.72 | W17: 2.68 | X17: 2.64 | Y17: 2.6 | Z17: 2.57 | AA17: 2.54 | AB17: 2.51 | AC17: 2.49 | AD17: 2.47 | AE17: 2.45 | AF17: 2.43 | AG17: 2.41
C18: 13 | D18: =ROUND(D17+((D20-D17)*(1/3)),3) -> 979.433 | E18: =ROUND(E17+((E20-E17)*(1/3)),3) -> 39.417 | F18: 14.31 | G18: 8.72 | H18: 6.49 | I18: 5.337 | J18: 4.637 | K18: 4.167 | L18: 3.837 | M18: 3.587 | N18: 3.397 | O18: 3.247 | P18: 3.117 | Q18: 3.017 | R18: 2.927 | S18: 2.857 | T18: 2.787 | U18: 2.737 | V18: 2.687 | W18: 2.643 | X18: 2.603 | Y18: 2.567 | Z18: 2.537 | AA18: 2.507 | AB18: 2.477 | AC18: 2.457 | AD18: 2.433 | AE18: 2.413 | AF18: 2.393 | AG18: 2.377
C19: 14 | D19: =ROUND(D20-((D20-D17)*(1/3)),3) -> 982.167 | E19: =ROUND(E20-((E20-E17)*(1/3)),3) -> 39.423 | F19: 14.28 | G19: 8.69 | H19: 6.46 | I19: 5.303 | J19: 4.603 | K19: 4.133 | L19: 3.803 | M19: 3.553 | N19: 3.363 | O19: 3.213 | P19: 3.083 | Q19: 2.983 | R19: 2.893 | S19: 2.823 | T19: 2.753 | U19: 2.703 | V19: 2.653 | W19: 2.607 | X19: 2.567 | Y19: 2.533 | Z19: 2.503 | AA19: 2.473 | AB19: 2.443 | AC19: 2.423 | AD19: 2.397 | AE19: 2.377 | AF19: 2.357 | AG19: 2.343
C20: 15 | D20: 984.9 | E20: 39.43 | F20: 14.25 | G20: 8.66 | H20: 6.43 | I20: 5.27 | J20: 4.57 | K20: 4.1 | L20: 3.77 | M20: 3.52 | N20: 3.33 | O20: 3.18 | P20: 3.05 | Q20: 2.95 | R20: 2.86 | S20: 2.79 | T20: 2.72 | U20: 2.67 | V20: 2.62 | W20: 2.57 | X20: 2.53 | Y20: 2.5 | Z20: 2.47 | AA20: 2.44 | AB20: 2.41 | AC20: 2.39 | AD20: 2.36 | AE20: 2.34 | AF20: 2.32 | AG20: 2.31
C21: 16 | D21: =ROUND(D$20+((1/5)*(D$25-D$20)),3) -> 986.54 | E21: =ROUND(E$20+((1/5)*(E$25-E$20)),3) -> 39.434 | F21: 14.234 | G21: 8.64 | H21: 6.41 | I21: 5.25 | J21: 4.55 | K21: 4.08 | L21: 3.75 | M21: 3.5 | N21: 3.31 | O21: 3.158 | P21: 3.03 | Q21: 2.928 | R21: 2.84 | S21: 2.768 | T21: 2.7 | U21: 2.648 | V21: 2.598 | W21: 2.548 | X21: 2.508 | Y21: 2.478 | Z21: 2.448 | AA21: 2.418 | AB21: 2.388 | AC21: 2.368 | AD21: 2.338 | AE21: 2.318 | AF21: 2.298 | AG21: 2.288
C22: 17 | D22: =ROUND(D$20+((2/5)*(D$25-D$20)),3) -> 988.18 | E22: =ROUND(E$20+((2/5)*(E$25-E$20)),3) -> 39.438 | F22: 14.218 | G22: 8.62 | H22: 6.39 | I22: 5.23 | J22: 4.53 | K22: 4.06 | L22: 3.73 | M22: 3.48 | N22: 3.29 | O22: 3.136 | P22: 3.01 | Q22: 2.906 | R22: 2.82 | S22: 2.746 | T22: 2.68 | U22: 2.626 | V22: 2.576 | W22: 2.526 | X22: 2.486 | Y22: 2.456 | Z22: 2.426 | AA22: 2.396 | AB22: 2.366 | AC22: 2.346 | AD22: 2.316 | AE22: 2.296 | AF22: 2.276 | AG22: 2.266
C23: 18 | D23: =ROUND(D$20+((3/5)*(D$25-D$20)),3) -> 989.82 | E23: =ROUND(E$20+((3/5)*(E$25-E$20)),3) -> 39.442 | F23: 14.202 | G23: 8.6 | H23: 6.37 | I23: 5.21 | J23: 4.51 | K23: 4.04 | L23: 3.71 | M23: 3.46 | N23: 3.27 | O23: 3.114 | P23: 2.99 | Q23: 2.884 | R23: 2.8 | S23: 2.724 | T23: 2.66 | U23: 2.604 | V23: 2.554 | W23: 2.504 | X23: 2.464 | Y23: 2.434 | Z23: 2.404 | AA23: 2.374 | AB23: 2.344 | AC23: 2.324 | AD23: 2.294 | AE23: 2.274 | AF23: 2.254 | AG23: 2.244
C24: 19 | D24: =ROUND(D$20+((4/5)*(D$25-D$20)),3) -> 991.46 | E24: =ROUND(E$20+((4/5)*(E$25-E$20)),3) -> 39.446 | F24: 14.186 | G24: 8.58 | H24: 6.35 | I24: 5.19 | J24: 4.49 | K24: 4.02 | L24: 3.69 | M24: 3.44 | N24: 3.25 | O24: 3.092 | P24: 2.97 | Q24: 2.862 | R24: 2.78 | S24: 2.702 | T24: 2.64 | U24: 2.582 | V24: 2.532 | W24: 2.482 | X24: 2.442 | Y24: 2.412 | Z24: 2.382 | AA24: 2.352 | AB24: 2.322 | AC24: 2.302 | AD24: 2.272 | AE24: 2.252 | AF24: 2.232 | AG24: 2.222
C25: 20 | D25: 993.1 | E25: 39.45 | F25: 14.17 | G25: 8.56 | H25: 6.33 | I25: 5.17 | J25: 4.47 | K25: 4 | L25: 3.67 | M25: 3.42 | N25: 3.23 | O25: 3.07 | P25: 2.95 | Q25: 2.84 | R25: 2.76 | S25: 2.68 | T25: 2.62 | U25: 2.56 | V25: 2.51 | W25: 2.46 | X25: 2.42 | Y25: 2.39 | Z25: 2.36 | AA25: 2.33 | AB25: 2.3 | AC25: 2.28 | AD25: 2.25 | AE25: 2.23 | AF25: 2.21 | AG25: 2.2
C26: 24 | D26: 997.2 | E26: 39.46 | F26: 14.12 | G26: 8.51 | H26: 6.28 | I26: 5.12 | J26: 4.42 | K26: 3.95 | L26: 3.61 | M26: 3.37 | N26: 3.17 | O26: 3.02 | P26: 2.89 | Q26: 2.79 | R26: 2.7 | S26: 2.63 | T26: 2.56 | U26: 2.5 | V26: 2.45 | W26: 2.41 | X26: 2.37 | Y26: 2.33 | Z26: 2.3 | AA26: 2.27 | AB26: 2.24 | AC26: 2.22 | AD26: 2.19 | AE26: 2.17 | AF26: 2.15 | AG26: 2.14
C27: 30 | D27: 1001 | E27: 39.46 | F27: 14.08 | G27: 8.46 | H27: 6.23 | I27: 5.07 | J27: 4.36 | K27: 3.89 | L27: 3.56 | M27: 3.31 | N27: 3.12 | O27: 2.96 | P27: 2.84 | Q27: 2.73 | R27: 2.64 | S27: 2.57 | T27: 2.5 | U27: 2.44 | V27: 2.39 | W27: 2.35 | X27: 2.31 | Y27: 2.27 | Z27: 2.24 | AA27: 2.21 | AB27: 2.18 | AC27: 2.16 | AD27: 2.13 | AE27: 2.11 | AF27: 2.09 | AG27: 2.07
C31: Level of Confidence 0.025 (aka alpha, α)
C35: The green cells above indicate values that were developed using a straightline interpolation. Before taking this step, plots of the other values were reviewed and determined that a straightline interpretation was appropriate.

Sheet TCrit (hidden)
A1: Table 39-5 - CRITICAL t-VALUE FOR VERIFICATION OF QUALITY CONTROL TESTING
A4: (for  = 0.025)
A5: (nc+nv-2) | B5: tcrit
A7: 1 | B7: 24.452
A8: 2 | B8: 6.205
A9: 3 | B9: 4.177
A10: 4 | B10: 3.495
A11: 5 | B11: 3.163
A12: 6 | B12: 2.969
A13: 7 | B13: 2.841
A14: 8 | B14: 2.752
A15: 9 | B15: 2.685
A16: 10 | B16: 2.634
A17: 11 | B17: 2.593
A18: 12 | B18: 2.56
A19: 13 | B19: 2.533
A20: 14 | B20: 2.51
A21: 15 | B21: 2.49
A22: 16 | B22: 2.473
A23: 17 | B23: 2.458
A24: 18 | B24: 2.445
A25: 19 | B25: 2.433
A26: 20 | B26: 2.423
A27: 21 | B27: 2.414
A28: 22 | B28: 2.405
A29: 23 | B29: 2.398
A30: 24 | B30: 2.391
A31: 25 | B31: 2.385
A32: 26 | B32: 2.379
A33: 27 | B33: 2.373
A34: 28 | B34: 2.368
A35: 29 | B35: 2.364
A36: 30 | B36: 2.36
A37: 40 | B37: 2.329
A38: 60 | B38: 2.299
A39: 120 | B39: 2.27
A40: ∞ | B40: 2.241

Sheet Imported QCData (hidden)
C3: If accepted, data on this sheet will be used to replace the test data on the QCData worksheet
B9: Imported QCData versus Existing QC Data
A15: Instructions: Scroll Down and review highlighted data
B17: No Color Change indicates same data as aleady accepted into worksheet.
B18: Typically you should only see "new" data highlighted blue. Changed or Deleted Data should not be accepted without supporting reason acceptable to the Resident Engineer
FA19: S | FB19: <=Indicates same data
B20: Color Coding Legend: | FA20: N | FB20: <=Indicates new data
B21: Same | C21: <=Indicates new data | FA21: C | FB21: <=Indicates cell with changed data
B22: New | C22: <=Indicates new data | FA22: D | FB22: <=Indicates data was deleted
B23: Changed | C23: <=Indicates cell with changed data
B24: Deleted | C24: <=Indicates data was deleted
A27: TEST NO. | B27: Date | C27: Tons in sublot | D27: Lot No. | E27: Sublot No | F27: 3 Out | G27: 2" | H27: 1-1/2" | I27: 1" | J27: 3/4" | K27: 1/2" | L27: 3/8" | M27: #4 | N27: #8 | O27: #16 | P27: #30 | Q27: #50 | R27: #100 | S27: #200 | T27: B.C. | BA27: Import data to here (BA30:Z56)
C28: using "Method" | F28: in 1 Day? | U28: %MTD | V28: %MTD | W28: %MTD | X28: Briquette 1 | Y28: Briquette 2 | Z28: Briquette 3
C29: Compaction | F29: Yes or NO | U29: Core 1 | V29: Core 2 | W29: Core 3 | X29: Air Voids | Y29: Air Voids | Z29: Air Voids
A30: =IF(BA30="","",BA30) -> 1 | B30: =IF(BB30="","",BB30) -> 2008-09-11 | C30: 0 | D30: 1 | E30: 1 | F30: NO | I30: 100 | J30: 99 | K30: 84 | L30: 77 | M30: 46 | N30: 35 | O30: 29 | P30: 11 | S30: 5 | T30: 5.3 | U30: 93.1 | V30: 94.1 | W30: 95.1 | X30: 3.9 | Y30: 4 | Z30: 4.1 | BA30: 1 | BB30: 39702 | BC30: 0 | BD30: 1 | BE30: 1 | BF30: NO | BI30: 100 | BJ30: 99 | BK30: 84 | BL30: 77 | BM30: 46 | BN30: 35 | BO30: 29 | BP30: 11 | BS30: 5 | BT30: 5.3 | BU30: 93.1 | BV30: 94.1 | BW30: 95.1 | BX30: 3.9 | BY30: 4 | BZ30: 4.1 | FA30: =IF(A30=QCData!A30,"S",IF(AND(A30<>"",QCData!A30=""),"N",IF(AND(A30<>"",QCData!A30<>"",A30<>QCData!A30),"C",IF(AND(QCData!A30<>"",A30=""),"D","no cd er")))) -> N | FB30: =IF(B30=QCData!B30,"S",IF(AND(B30<>"",QCData!B30=""),"N",IF(AND(B30<>"",QCData!B30<>"",B30<>QCData!B30),"C",IF(AND(QCData!B30<>"",B30=""),"D","no cd er")))) -> N | FC30: =IF(C30=QCData!C30,"S",IF(AND(C30<>"",QCData!C30=""),"N",IF(AND(C30<>"",QCData!C30<>"",C30<>QCData!C30),"C",IF(AND(QCData!C30<>"",C30=""),"D","no cd er")))) -> S | FD30: =IF(D30=QCData!D30,"S",IF(AND(D30<>"",QCData!D30=""),"N",IF(AND(D30<>"",QCData!D30<>"",D30<>QCData!D30),"C",IF(AND(QCData!D30<>"",D30=""),"D","no cd er")))) -> N | FE30: =IF(E30=QCData!E30,"S",IF(AND(E30<>"",QCData!E30=""),"N",IF(AND(E30<>"",QCData!E30<>"",E30<>QCData!E30),"C",IF(AND(QCData!E30<>"",E30=""),"D","no cd er")))) -> N | FF30: =IF(F30=QCData!F30,"S",IF(AND(F30<>"",QCData!F30=""),"N",IF(AND(F30<>"",QCData!F30<>"",F30<>QCData!F30),"C",IF(AND(QCData!F30<>"",F30=""),"D","no cd er")))) -> N | FG30: =IF(G30=QCData!G30,"S",IF(AND(G30<>"",QCData!G30=""),"N",IF(AND(G30<>"",QCData!G30<>"",G30<>QCData!G30),"C",IF(AND(QCData!G30<>"",G30=""),"D","no cd er")))) -> S | FH30: =IF(H30=QCData!H30,"S",IF(AND(H30<>"",QCData!H30=""),"N",IF(AND(H30<>"",QCData!H30<>"",H30<>QCData!H30),"C",IF(AND(QCData!H30<>"",H30=""),"D","no cd er")))) -> S | FI30: =IF(I30=QCData!I30,"S",IF(AND(I30<>"",QCData!I30=""),"N",IF(AND(I30<>"",QCData!I30<>"",I30<>QCData!I30),"C",IF(AND(QCData!I30<>"",I30=""),"D","no cd er")))) -> N | FJ30: =IF(J30=QCData!J30,"S",IF(AND(J30<>"",QCData!J30=""),"N",IF(AND(J30<>"",QCData!J30<>"",J30<>QCData!J30),"C",IF(AND(QCData!J30<>"",J30=""),"D","no cd er")))) -> N | FK30: =IF(K30=QCData!K30,"S",IF(AND(K30<>"",QCData!K30=""),"N",IF(AND(K30<>"",QCData!K30<>"",K30<>QCData!K30),"C",IF(AND(QCData!K30<>"",K30=""),"D","no cd er")))) -> N | FL30: =IF(L30=QCData!L30,"S",IF(AND(L30<>"",QCData!L30=""),"N",IF(AND(L30<>"",QCData!L30<>"",L30<>QCData!L30),"C",IF(AND(QCData!L30<>"",L30=""),"D","no cd er")))) -> N | FM30: =IF(M30=QCData!M30,"S",IF(AND(M30<>"",QCData!M30=""),"N",IF(AND(M30<>"",QCData!M30<>"",M30<>QCData!M30),"C",IF(AND(QCData!M30<>"",M30=""),"D","no cd er")))) -> N | FN30: =IF(N30=QCData!N30,"S",IF(AND(N30<>"",QCData!N30=""),"N",IF(AND(N30<>"",QCData!N30<>"",N30<>QCData!N30),"C",IF(AND(QCData!N30<>"",N30=""),"D","no cd er")))) -> N | FO30: =IF(O30=QCData!O30,"S",IF(AND(O30<>"",QCData!O30=""),"N",IF(AND(O30<>"",QCData!O30<>"",O30<>QCData!O30),"C",IF(AND(QCData!O30<>"",O30=""),"D","no cd er")))) -> N | FP30: =IF(P30=QCData!P30,"S",IF(AND(P30<>"",QCData!P30=""),"N",IF(AND(P30<>"",QCData!P30<>"",P30<>QCData!P30),"C",IF(AND(QCData!P30<>"",P30=""),"D","no cd er")))) -> N | FQ30: =IF(Q30=QCData!Q30,"S",IF(AND(Q30<>"",QCData!Q30=""),"N",IF(AND(Q30<>"",QCData!Q30<>"",Q30<>QCData!Q30),"C",IF(AND(QCData!Q30<>"",Q30=""),"D","no cd er")))) -> S | FR30: =IF(R30=QCData!R30,"S",IF(AND(R30<>"",QCData!R30=""),"N",IF(AND(R30<>"",QCData!R30<>"",R30<>QCData!R30),"C",IF(AND(QCData!R30<>"",R30=""),"D","no cd er")))) -> S | FS30: =IF(S30=QCData!S30,"S",IF(AND(S30<>"",QCData!S30=""),"N",IF(AND(S30<>"",QCData!S30<>"",S30<>QCData!S30),"C",IF(AND(QCData!S30<>"",S30=""),"D","no cd er")))) -> N | FT30: =IF(T30=QCData!T30,"S",IF(AND(T30<>"",QCData!T30=""),"N",IF(AND(T30<>"",QCData!T30<>"",T30<>QCData!T30),"C",IF(AND(QCData!T30<>"",T30=""),"D","no cd er")))) -> N | FU30: =IF(U30=QCData!U30,"S",IF(AND(U30<>"",QCData!U30=""),"N",IF(AND(U30<>"",QCData!U30<>"",U30<>QCData!U30),"C",IF(AND(QCData!U30<>"",U30=""),"D","no cd er")))) -> N | FV30: =IF(V30=QCData!V30,"S",IF(AND(V30<>"",QCData!V30=""),"N",IF(AND(V30<>"",QCData!V30<>"",V30<>QCData!V30),"C",IF(AND(QCData!V30<>"",V30=""),"D","no cd er")))) -> N | FW30: =IF(W30=QCData!W30,"S",IF(AND(W30<>"",QCData!W30=""),"N",IF(AND(W30<>"",QCData!W30<>"",W30<>QCData!W30),"C",IF(AND(QCData!W30<>"",W30=""),"D","no cd er")))) -> N | FX30: =IF(X30=QCData!X30,"S",IF(AND(X30<>"",QCData!X30=""),"N",IF(AND(X30<>"",QCData!X30<>"",X30<>QCData!X30),"C",IF(AND(QCData!X30<>"",X30=""),"D","no cd er")))) -> N | FY30: =IF(Y30=QCData!Y30,"S",IF(AND(Y30<>"",QCData!Y30=""),"N",IF(AND(Y30<>"",QCData!Y30<>"",Y30<>QCData!Y30),"C",IF(AND(QCData!Y30<>"",Y30=""),"D","no cd er")))) -> N | FZ30: =IF(Z30=QCData!Z30,"S",IF(AND(Z30<>"",QCData!Z30=""),"N",IF(AND(Z30<>"",QCData!Z30<>"",Z30<>QCData!Z30),"C",IF(AND(QCData!Z30<>"",Z30=""),"D","no cd er")))) -> N
A31: =IF(BA31="","",BA31) -> 2 | B31: =IF(BB31="","",BB31) ->  | C31: =IF(BC31="","",BC31) -> 0 | D31: =IF(BD31="","",BD31) -> 1 | E31: =IF(BE31="","",BE31) -> 2 | F31: =IF(BF31="","",BF31) -> NO | G31: =IF(BG31="","",BG31) ->  | H31: =IF(BH31="","",BH31) ->  | I31: =IF(BI31="","",BI31) -> 100 | J31: =IF(BJ31="","",BJ31) -> 94 | K31: =IF(BK31="","",BK31) -> 82 | L31: =IF(BL31="","",BL31) -> 76 | M31: =IF(BM31="","",BM31) -> 46 | N31: =IF(BN31="","",BN31) -> 36 | O31: =IF(BO31="","",BO31) -> 23 | P31: =IF(BP31="","",BP31) -> 12 | Q31: =IF(BQ31="","",BQ31) ->  | R31: =IF(BR31="","",BR31) ->  | S31: =IF(BS31="","",BS31) -> 4.9 | T31: =IF(BT31="","",BT31) -> 5.2 | U31: =IF(BU31="","",BU31) -> 93.4 | V31: =IF(BV31="","",BV31) -> 92.1 | W31: =IF(BW31="","",BW31) -> 92.1 | X31: =IF(BX31="","",BX31) ->  | Y31: =IF(BY31="","",BY31) ->  | Z31: =IF(BZ31="","",BZ31) ->  | BA31: 2 | BC31: 0 | BD31: 1 | BE31: 2 | BF31: NO | BI31: 100 | BJ31: 94 | BK31: 82 | BL31: 76 | BM31: 46 | BN31: 36 | BO31: 23 | BP31: 12 | BS31: 4.9 | BT31: 5.2 | BU31: 93.4 | BV31: 92.1 | BW31: 92.1 | FA31: =IF(A31=QCData!A31,"S",IF(AND(A31<>"",QCData!A31=""),"N",IF(AND(A31<>"",QCData!A31<>"",A31<>QCData!A31),"C",IF(AND(QCData!A31<>"",A31=""),"D","no cd er")))) -> N | FB31: =IF(B31=QCData!B31,"S",IF(AND(B31<>"",QCData!B31=""),"N",IF(AND(B31<>"",QCData!B31<>"",B31<>QCData!B31),"C",IF(AND(QCData!B31<>"",B31=""),"D","no cd er")))) -> S | FC31: =IF(C31=QCData!C31,"S",IF(AND(C31<>"",QCData!C31=""),"N",IF(AND(C31<>"",QCData!C31<>"",C31<>QCData!C31),"C",IF(AND(QCData!C31<>"",C31=""),"D","no cd er")))) -> S | FD31: =IF(D31=QCData!D31,"S",IF(AND(D31<>"",QCData!D31=""),"N",IF(AND(D31<>"",QCData!D31<>"",D31<>QCData!D31),"C",IF(AND(QCData!D31<>"",D31=""),"D","no cd er")))) -> N | FE31: =IF(E31=QCData!E31,"S",IF(AND(E31<>"",QCData!E31=""),"N",IF(AND(E31<>"",QCData!E31<>"",E31<>QCData!E31),"C",IF(AND(QCData!E31<>"",E31=""),"D","no cd er")))) -> N | FF31: =IF(F31=QCData!F31,"S",IF(AND(F31<>"",QCData!F31=""),"N",IF(AND(F31<>"",QCData!F31<>"",F31<>QCData!F31),"C",IF(AND(QCData!F31<>"",F31=""),"D","no cd er")))) -> N | FG31: =IF(G31=QCData!G31,"S",IF(AND(G31<>"",QCData!G31=""),"N",IF(AND(G31<>"",QCData!G31<>"",G31<>QCData!G31),"C",IF(AND(QCData!G31<>"",G31=""),"D","no cd er")))) -> S | FH31: =IF(H31=QCData!H31,"S",IF(AND(H31<>"",QCData!H31=""),"N",IF(AND(H31<>"",QCData!H31<>"",H31<>QCData!H31),"C",IF(AND(QCData!H31<>"",H31=""),"D","no cd er")))) -> S | FI31: =IF(I31=QCData!I31,"S",IF(AND(I31<>"",QCData!I31=""),"N",IF(AND(I31<>"",QCData!I31<>"",I31<>QCData!I31),"C",IF(AND(QCData!I31<>"",I31=""),"D","no cd er")))) -> N | FJ31: =IF(J31=QCData!J31,"S",IF(AND(J31<>"",QCData!J31=""),"N",IF(AND(J31<>"",QCData!J31<>"",J31<>QCData!J31),"C",IF(AND(QCData!J31<>"",J31=""),"D","no cd er")))) -> N | FK31: =IF(K31=QCData!K31,"S",IF(AND(K31<>"",QCData!K31=""),"N",IF(AND(K31<>"",QCData!K31<>"",K31<>QCData!K31),"C",IF(AND(QCData!K31<>"",K31=""),"D","no cd er")))) -> N | FL31: =IF(L31=QCData!L31,"S",IF(AND(L31<>"",QCData!L31=""),"N",IF(AND(L31<>"",QCData!L31<>"",L31<>QCData!L31),"C",IF(AND(QCData!L31<>"",L31=""),"D","no cd er")))) -> N | FM31: =IF(M31=QCData!M31,"S",IF(AND(M31<>"",QCData!M31=""),"N",IF(AND(M31<>"",QCData!M31<>"",M31<>QCData!M31),"C",IF(AND(QCData!M31<>"",M31=""),"D","no cd er")))) -> N | FN31: =IF(N31=QCData!N31,"S",IF(AND(N31<>"",QCData!N31=""),"N",IF(AND(N31<>"",QCData!N31<>"",N31<>QCData!N31),"C",IF(AND(QCData!N31<>"",N31=""),"D","no cd er")))) -> N | FO31: =IF(O31=QCData!O31,"S",IF(AND(O31<>"",QCData!O31=""),"N",IF(AND(O31<>"",QCData!O31<>"",O31<>QCData!O31),"C",IF(AND(QCData!O31<>"",O31=""),"D","no cd er")))) -> N | FP31: =IF(P31=QCData!P31,"S",IF(AND(P31<>"",QCData!P31=""),"N",IF(AND(P31<>"",QCData!P31<>"",P31<>QCData!P31),"C",IF(AND(QCData!P31<>"",P31=""),"D","no cd er")))) -> N | FQ31: =IF(Q31=QCData!Q31,"S",IF(AND(Q31<>"",QCData!Q31=""),"N",IF(AND(Q31<>"",QCData!Q31<>"",Q31<>QCData!Q31),"C",IF(AND(QCData!Q31<>"",Q31=""),"D","no cd er")))) -> S | FR31: =IF(R31=QCData!R31,"S",IF(AND(R31<>"",QCData!R31=""),"N",IF(AND(R31<>"",QCData!R31<>"",R31<>QCData!R31),"C",IF(AND(QCData!R31<>"",R31=""),"D","no cd er")))) -> S | FS31: =IF(S31=QCData!S31,"S",IF(AND(S31<>"",QCData!S31=""),"N",IF(AND(S31<>"",QCData!S31<>"",S31<>QCData!S31),"C",IF(AND(QCData!S31<>"",S31=""),"D","no cd er")))) -> N | FT31: =IF(T31=QCData!T31,"S",IF(AND(T31<>"",QCData!T31=""),"N",IF(AND(T31<>"",QCData!T31<>"",T31<>QCData!T31),"C",IF(AND(QCData!T31<>"",T31=""),"D","no cd er")))) -> N | FU31: =IF(U31=QCData!U31,"S",IF(AND(U31<>"",QCData!U31=""),"N",IF(AND(U31<>"",QCData!U31<>"",U31<>QCData!U31),"C",IF(AND(QCData!U31<>"",U31=""),"D","no cd er")))) -> N | FV31: =IF(V31=QCData!V31,"S",IF(AND(V31<>"",QCData!V31=""),"N",IF(AND(V31<>"",QCData!V31<>"",V31<>QCData!V31),"C",IF(AND(QCData!V31<>"",V31=""),"D","no cd er")))) -> N | FW31: =IF(W31=QCData!W31,"S",IF(AND(W31<>"",QCData!W31=""),"N",IF(AND(W31<>"",QCData!W31<>"",W31<>QCData!W31),"C",IF(AND(QCData!W31<>"",W31=""),"D","no cd er")))) -> N | FX31: =IF(X31=QCData!X31,"S",IF(AND(X31<>"",QCData!X31=""),"N",IF(AND(X31<>"",QCData!X31<>"",X31<>QCData!X31),"C",IF(AND(QCData!X31<>"",X31=""),"D","no cd er")))) -> S | FY31: =IF(Y31=QCData!Y31,"S",IF(AND(Y31<>"",QCData!Y31=""),"N",IF(AND(Y31<>"",QCData!Y31<>"",Y31<>QCData!Y31),"C",IF(AND(QCData!Y31<>"",Y31=""),"D","no cd er")))) -> S | FZ31: =IF(Z31=QCData!Z31,"S",IF(AND(Z31<>"",QCData!Z31=""),"N",IF(AND(Z31<>"",QCData!Z31<>"",Z31<>QCData!Z31),"C",IF(AND(QCData!Z31<>"",Z31=""),"D","no cd er")))) -> S
A32: =IF(BA32="","",BA32) -> 3 | B32: =IF(BB32="","",BB32) ->  | C32: =IF(BC32="","",BC32) -> 0 | D32: =IF(BD32="","",BD32) -> 1 | E32: =IF(BE32="","",BE32) -> 3 | F32: =IF(BF32="","",BF32) -> NO | G32: =IF(BG32="","",BG32) ->  | H32: =IF(BH32="","",BH32) ->  | I32: =IF(BI32="","",BI32) -> 100 | J32: =IF(BJ32="","",BJ32) -> 93 | K32: =IF(BK32="","",BK32) -> 84 | L32: =IF(BL32="","",BL32) -> 76 | M32: =IF(BM32="","",BM32) -> 44 | N32: =IF(BN32="","",BN32) -> 42 | O32: =IF(BO32="","",BO32) -> 35 | P32: =IF(BP32="","",BP32) -> 13 | Q32: =IF(BQ32="","",BQ32) ->  | R32: =IF(BR32="","",BR32) ->  | S32: =IF(BS32="","",BS32) -> 4.9 | T32: =IF(BT32="","",BT32) -> 5.1 | U32: =IF(BU32="","",BU32) -> 92 | V32: =IF(BV32="","",BV32) -> 95 | W32: =IF(BW32="","",BW32) -> 96 | X32: =IF(BX32="","",BX32) -> 3.5 | Y32: =IF(BY32="","",BY32) -> 3.5 | Z32: =IF(BZ32="","",BZ32) -> 3.6 | BA32: 3 | BC32: 0 | BD32: 1 | BE32: 3 | BF32: NO | BI32: 100 | BJ32: 93 | BK32: 84 | BL32: 76 | BM32: 44 | BN32: 42 | BO32: 35 | BP32: 13 | BS32: 4.9 | BT32: 5.1 | BU32: 92 | BV32: 95 | BW32: 96 | BX32: 3.5 | BY32: 3.5 | BZ32: 3.6 | FA32: =IF(A32=QCData!A32,"S",IF(AND(A32<>"",QCData!A32=""),"N",IF(AND(A32<>"",QCData!A32<>"",A32<>QCData!A32),"C",IF(AND(QCData!A32<>"",A32=""),"D","no cd er")))) -> N | FB32: =IF(B32=QCData!B32,"S",IF(AND(B32<>"",QCData!B32=""),"N",IF(AND(B32<>"",QCData!B32<>"",B32<>QCData!B32),"C",IF(AND(QCData!B32<>"",B32=""),"D","no cd er")))) -> S | FC32: =IF(C32=QCData!C32,"S",IF(AND(C32<>"",QCData!C32=""),"N",IF(AND(C32<>"",QCData!C32<>"",C32<>QCData!C32),"C",IF(AND(QCData!C32<>"",C32=""),"D","no cd er")))) -> S | FD32: =IF(D32=QCData!D32,"S",IF(AND(D32<>"",QCData!D32=""),"N",IF(AND(D32<>"",QCData!D32<>"",D32<>QCData!D32),"C",IF(AND(QCData!D32<>"",D32=""),"D","no cd er")))) -> N | FE32: =IF(E32=QCData!E32,"S",IF(AND(E32<>"",QCData!E32=""),"N",IF(AND(E32<>"",QCData!E32<>"",E32<>QCData!E32),"C",IF(AND(QCData!E32<>"",E32=""),"D","no cd er")))) -> N | FF32: =IF(F32=QCData!F32,"S",IF(AND(F32<>"",QCData!F32=""),"N",IF(AND(F32<>"",QCData!F32<>"",F32<>QCData!F32),"C",IF(AND(QCData!F32<>"",F32=""),"D","no cd er")))) -> N | FG32: =IF(G32=QCData!G32,"S",IF(AND(G32<>"",QCData!G32=""),"N",IF(AND(G32<>"",QCData!G32<>"",G32<>QCData!G32),"C",IF(AND(QCData!G32<>"",G32=""),"D","no cd er")))) -> S | FH32: =IF(H32=QCData!H32,"S",IF(AND(H32<>"",QCData!H32=""),"N",IF(AND(H32<>"",QCData!H32<>"",H32<>QCData!H32),"C",IF(AND(QCData!H32<>"",H32=""),"D","no cd er")))) -> S | FI32: =IF(I32=QCData!I32,"S",IF(AND(I32<>"",QCData!I32=""),"N",IF(AND(I32<>"",QCData!I32<>"",I32<>QCData!I32),"C",IF(AND(QCData!I32<>"",I32=""),"D","no cd er")))) -> N | FJ32: =IF(J32=QCData!J32,"S",IF(AND(J32<>"",QCData!J32=""),"N",IF(AND(J32<>"",QCData!J32<>"",J32<>QCData!J32),"C",IF(AND(QCData!J32<>"",J32=""),"D","no cd er")))) -> N | FK32: =IF(K32=QCData!K32,"S",IF(AND(K32<>"",QCData!K32=""),"N",IF(AND(K32<>"",QCData!K32<>"",K32<>QCData!K32),"C",IF(AND(QCData!K32<>"",K32=""),"D","no cd er")))) -> N | FL32: =IF(L32=QCData!L32,"S",IF(AND(L32<>"",QCData!L32=""),"N",IF(AND(L32<>"",QCData!L32<>"",L32<>QCData!L32),"C",IF(AND(QCData!L32<>"",L32=""),"D","no cd er")))) -> N | FM32: =IF(M32=QCData!M32,"S",IF(AND(M32<>"",QCData!M32=""),"N",IF(AND(M32<>"",QCData!M32<>"",M32<>QCData!M32),"C",IF(AND(QCData!M32<>"",M32=""),"D","no cd er")))) -> N | FN32: =IF(N32=QCData!N32,"S",IF(AND(N32<>"",QCData!N32=""),"N",IF(AND(N32<>"",QCData!N32<>"",N32<>QCData!N32),"C",IF(AND(QCData!N32<>"",N32=""),"D","no cd er")))) -> N | FO32: =IF(O32=QCData!O32,"S",IF(AND(O32<>"",QCData!O32=""),"N",IF(AND(O32<>"",QCData!O32<>"",O32<>QCData!O32),"C",IF(AND(QCData!O32<>"",O32=""),"D","no cd er")))) -> N | FP32: =IF(P32=QCData!P32,"S",IF(AND(P32<>"",QCData!P32=""),"N",IF(AND(P32<>"",QCData!P32<>"",P32<>QCData!P32),"C",IF(AND(QCData!P32<>"",P32=""),"D","no cd er")))) -> N | FQ32: =IF(Q32=QCData!Q32,"S",IF(AND(Q32<>"",QCData!Q32=""),"N",IF(AND(Q32<>"",QCData!Q32<>"",Q32<>QCData!Q32),"C",IF(AND(QCData!Q32<>"",Q32=""),"D","no cd er")))) -> S | FR32: =IF(R32=QCData!R32,"S",IF(AND(R32<>"",QCData!R32=""),"N",IF(AND(R32<>"",QCData!R32<>"",R32<>QCData!R32),"C",IF(AND(QCData!R32<>"",R32=""),"D","no cd er")))) -> S | FS32: =IF(S32=QCData!S32,"S",IF(AND(S32<>"",QCData!S32=""),"N",IF(AND(S32<>"",QCData!S32<>"",S32<>QCData!S32),"C",IF(AND(QCData!S32<>"",S32=""),"D","no cd er")))) -> N | FT32: =IF(T32=QCData!T32,"S",IF(AND(T32<>"",QCData!T32=""),"N",IF(AND(T32<>"",QCData!T32<>"",T32<>QCData!T32),"C",IF(AND(QCData!T32<>"",T32=""),"D","no cd er")))) -> N | FU32: =IF(U32=QCData!U32,"S",IF(AND(U32<>"",QCData!U32=""),"N",IF(AND(U32<>"",QCData!U32<>"",U32<>QCData!U32),"C",IF(AND(QCData!U32<>"",U32=""),"D","no cd er")))) -> N | FV32: =IF(V32=QCData!V32,"S",IF(AND(V32<>"",QCData!V32=""),"N",IF(AND(V32<>"",QCData!V32<>"",V32<>QCData!V32),"C",IF(AND(QCData!V32<>"",V32=""),"D","no cd er")))) -> N | FW32: =IF(W32=QCData!W32,"S",IF(AND(W32<>"",QCData!W32=""),"N",IF(AND(W32<>"",QCData!W32<>"",W32<>QCData!W32),"C",IF(AND(QCData!W32<>"",W32=""),"D","no cd er")))) -> N | FX32: =IF(X32=QCData!X32,"S",IF(AND(X32<>"",QCData!X32=""),"N",IF(AND(X32<>"",QCData!X32<>"",X32<>QCData!X32),"C",IF(AND(QCData!X32<>"",X32=""),"D","no cd er")))) -> N | FY32: =IF(Y32=QCData!Y32,"S",IF(AND(Y32<>"",QCData!Y32=""),"N",IF(AND(Y32<>"",QCData!Y32<>"",Y32<>QCData!Y32),"C",IF(AND(QCData!Y32<>"",Y32=""),"D","no cd er")))) -> N | FZ32: =IF(Z32=QCData!Z32,"S",IF(AND(Z32<>"",QCData!Z32=""),"N",IF(AND(Z32<>"",QCData!Z32<>"",Z32<>QCData!Z32),"C",IF(AND(QCData!Z32<>"",Z32=""),"D","no cd er")))) -> N
A33: 4 | C33: 0 | D33: 1 | E33: 4 | F33: NO | I33: 100 | J33: 92 | K33: 84 | M33: 55 | N33: 42 | O33: 36 | P33: 14 | S33: 5.1 | T33: 5.4 | U33: 93.1 | V33: 94.1 | W33: 95.1 | BA33: 4 | BC33: 0 | BD33: 1 | BE33: 4 | BF33: NO | BI33: 100 | BJ33: 92 | BK33: 84 | BM33: 55 | BN33: 42 | BO33: 36 | BP33: 14 | BS33: 5.1 | BT33: 5.4 | BU33: 93.1 | BV33: 94.1 | BW33: 95.1 | FA33: =IF(A33=QCData!A33,"S",IF(AND(A33<>"",QCData!A33=""),"N",IF(AND(A33<>"",QCData!A33<>"",A33<>QCData!A33),"C",IF(AND(QCData!A33<>"",A33=""),"D","no cd er")))) -> N | FB33: =IF(B33=QCData!B33,"S",IF(AND(B33<>"",QCData!B33=""),"N",IF(AND(B33<>"",QCData!B33<>"",B33<>QCData!B33),"C",IF(AND(QCData!B33<>"",B33=""),"D","no cd er")))) -> S | FC33: =IF(C33=QCData!C33,"S",IF(AND(C33<>"",QCData!C33=""),"N",IF(AND(C33<>"",QCData!C33<>"",C33<>QCData!C33),"C",IF(AND(QCData!C33<>"",C33=""),"D","no cd er")))) -> S | FD33: =IF(D33=QCData!D33,"S",IF(AND(D33<>"",QCData!D33=""),"N",IF(AND(D33<>"",QCData!D33<>"",D33<>QCData!D33),"C",IF(AND(QCData!D33<>"",D33=""),"D","no cd er")))) -> N | FE33: =IF(E33=QCData!E33,"S",IF(AND(E33<>"",QCData!E33=""),"N",IF(AND(E33<>"",QCData!E33<>"",E33<>QCData!E33),"C",IF(AND(QCData!E33<>"",E33=""),"D","no cd er")))) -> N | FF33: =IF(F33=QCData!F33,"S",IF(AND(F33<>"",QCData!F33=""),"N",IF(AND(F33<>"",QCData!F33<>"",F33<>QCData!F33),"C",IF(AND(QCData!F33<>"",F33=""),"D","no cd er")))) -> N | FG33: =IF(G33=QCData!G33,"S",IF(AND(G33<>"",QCData!G33=""),"N",IF(AND(G33<>"",QCData!G33<>"",G33<>QCData!G33),"C",IF(AND(QCData!G33<>"",G33=""),"D","no cd er")))) -> S | FH33: =IF(H33=QCData!H33,"S",IF(AND(H33<>"",QCData!H33=""),"N",IF(AND(H33<>"",QCData!H33<>"",H33<>QCData!H33),"C",IF(AND(QCData!H33<>"",H33=""),"D","no cd er")))) -> S | FI33: =IF(I33=QCData!I33,"S",IF(AND(I33<>"",QCData!I33=""),"N",IF(AND(I33<>"",QCData!I33<>"",I33<>QCData!I33),"C",IF(AND(QCData!I33<>"",I33=""),"D","no cd er")))) -> N | FJ33: =IF(J33=QCData!J33,"S",IF(AND(J33<>"",QCData!J33=""),"N",IF(AND(J33<>"",QCData!J33<>"",J33<>QCData!J33),"C",IF(AND(QCData!J33<>"",J33=""),"D","no cd er")))) -> N | FK33: =IF(K33=QCData!K33,"S",IF(AND(K33<>"",QCData!K33=""),"N",IF(AND(K33<>"",QCData!K33<>"",K33<>QCData!K33),"C",IF(AND(QCData!K33<>"",K33=""),"D","no cd er")))) -> N | FL33: =IF(L33=QCData!L33,"S",IF(AND(L33<>"",QCData!L33=""),"N",IF(AND(L33<>"",QCData!L33<>"",L33<>QCData!L33),"C",IF(AND(QCData!L33<>"",L33=""),"D","no cd er")))) -> N | FM33: =IF(M33=QCData!M33,"S",IF(AND(M33<>"",QCData!M33=""),"N",IF(AND(M33<>"",QCData!M33<>"",M33<>QCData!M33),"C",IF(AND(QCData!M33<>"",M33=""),"D","no cd er")))) -> N | FN33: =IF(N33=QCData!N33,"S",IF(AND(N33<>"",QCData!N33=""),"N",IF(AND(N33<>"",QCData!N33<>"",N33<>QCData!N33),"C",IF(AND(QCData!N33<>"",N33=""),"D","no cd er")))) -> N | FO33: =IF(O33=QCData!O33,"S",IF(AND(O33<>"",QCData!O33=""),"N",IF(AND(O33<>"",QCData!O33<>"",O33<>QCData!O33),"C",IF(AND(QCData!O33<>"",O33=""),"D","no cd er")))) -> N | FP33: =IF(P33=QCData!P33,"S",IF(AND(P33<>"",QCData!P33=""),"N",IF(AND(P33<>"",QCData!P33<>"",P33<>QCData!P33),"C",IF(AND(QCData!P33<>"",P33=""),"D","no cd er")))) -> N | FQ33: =IF(Q33=QCData!Q33,"S",IF(AND(Q33<>"",QCData!Q33=""),"N",IF(AND(Q33<>"",QCData!Q33<>"",Q33<>QCData!Q33),"C",IF(AND(QCData!Q33<>"",Q33=""),"D","no cd er")))) -> S | FR33: =IF(R33=QCData!R33,"S",IF(AND(R33<>"",QCData!R33=""),"N",IF(AND(R33<>"",QCData!R33<>"",R33<>QCData!R33),"C",IF(AND(QCData!R33<>"",R33=""),"D","no cd er")))) -> S | FS33: =IF(S33=QCData!S33,"S",IF(AND(S33<>"",QCData!S33=""),"N",IF(AND(S33<>"",QCData!S33<>"",S33<>QCData!S33),"C",IF(AND(QCData!S33<>"",S33=""),"D","no cd er")))) -> N | FT33: =IF(T33=QCData!T33,"S",IF(AND(T33<>"",QCData!T33=""),"N",IF(AND(T33<>"",QCData!T33<>"",T33<>QCData!T33),"C",IF(AND(QCData!T33<>"",T33=""),"D","no cd er")))) -> N | FU33: =IF(U33=QCData!U33,"S",IF(AND(U33<>"",QCData!U33=""),"N",IF(AND(U33<>"",QCData!U33<>"",U33<>QCData!U33),"C",IF(AND(QCData!U33<>"",U33=""),"D","no cd er")))) -> N | FV33: =IF(V33=QCData!V33,"S",IF(AND(V33<>"",QCData!V33=""),"N",IF(AND(V33<>"",QCData!V33<>"",V33<>QCData!V33),"C",IF(AND(QCData!V33<>"",V33=""),"D","no cd er")))) -> N | FW33: =IF(W33=QCData!W33,"S",IF(AND(W33<>"",QCData!W33=""),"N",IF(AND(W33<>"",QCData!W33<>"",W33<>QCData!W33),"C",IF(AND(QCData!W33<>"",W33=""),"D","no cd er")))) -> N | FX33: =IF(X33=QCData!X33,"S",IF(AND(X33<>"",QCData!X33=""),"N",IF(AND(X33<>"",QCData!X33<>"",X33<>QCData!X33),"C",IF(AND(QCData!X33<>"",X33=""),"D","no cd er")))) -> S | FY33: =IF(Y33=QCData!Y33,"S",IF(AND(Y33<>"",QCData!Y33=""),"N",IF(AND(Y33<>"",QCData!Y33<>"",Y33<>QCData!Y33),"C",IF(AND(QCData!Y33<>"",Y33=""),"D","no cd er")))) -> S | FZ33: =IF(Z33=QCData!Z33,"S",IF(AND(Z33<>"",QCData!Z33=""),"N",IF(AND(Z33<>"",QCData!Z33<>"",Z33<>QCData!Z33),"C",IF(AND(QCData!Z33<>"",Z33=""),"D","no cd er")))) -> S
A34: 5 | B34: 2008-11-12 | C34: 0 | D34: 1 | E34: 5 | F34: NO | I34: 100 | J34: 91 | K34: 85 | L34: 69 | M34: 51 | N34: 35 | O34: 22 | P34: 15 | S34: 4.8 | T34: 5.2 | U34: 93.4 | V34: 92.1 | W34: 92.1 | X34: 3.9 | Y34: 4 | Z34: 4.1 | BA34: 5 | BB34: 39764 | BC34: 0 | BD34: 1 | BE34: 5 | BF34: NO | BI34: 100 | BJ34: 91 | BK34: 85 | BL34: 69 | BM34: 51 | BN34: 35 | BO34: 22 | BP34: 15 | BS34: 4.8 | BT34: 5.2 | BU34: 93.4 | BV34: 92.1 | BW34: 92.1 | BX34: 3.9 | BY34: 4 | BZ34: 4.1 | FA34: =IF(A34=QCData!A34,"S",IF(AND(A34<>"",QCData!A34=""),"N",IF(AND(A34<>"",QCData!A34<>"",A34<>QCData!A34),"C",IF(AND(QCData!A34<>"",A34=""),"D","no cd er")))) -> N | FB34: =IF(B34=QCData!B34,"S",IF(AND(B34<>"",QCData!B34=""),"N",IF(AND(B34<>"",QCData!B34<>"",B34<>QCData!B34),"C",IF(AND(QCData!B34<>"",B34=""),"D","no cd er")))) -> N | FC34: =IF(C34=QCData!C34,"S",IF(AND(C34<>"",QCData!C34=""),"N",IF(AND(C34<>"",QCData!C34<>"",C34<>QCData!C34),"C",IF(AND(QCData!C34<>"",C34=""),"D","no cd er")))) -> S | FD34: =IF(D34=QCData!D34,"S",IF(AND(D34<>"",QCData!D34=""),"N",IF(AND(D34<>"",QCData!D34<>"",D34<>QCData!D34),"C",IF(AND(QCData!D34<>"",D34=""),"D","no cd er")))) -> N | FE34: =IF(E34=QCData!E34,"S",IF(AND(E34<>"",QCData!E34=""),"N",IF(AND(E34<>"",QCData!E34<>"",E34<>QCData!E34),"C",IF(AND(QCData!E34<>"",E34=""),"D","no cd er")))) -> N | FF34: =IF(F34=QCData!F34,"S",IF(AND(F34<>"",QCData!F34=""),"N",IF(AND(F34<>"",QCData!F34<>"",F34<>QCData!F34),"C",IF(AND(QCData!F34<>"",F34=""),"D","no cd er")))) -> N | FG34: =IF(G34=QCData!G34,"S",IF(AND(G34<>"",QCData!G34=""),"N",IF(AND(G34<>"",QCData!G34<>"",G34<>QCData!G34),"C",IF(AND(QCData!G34<>"",G34=""),"D","no cd er")))) -> S | FH34: =IF(H34=QCData!H34,"S",IF(AND(H34<>"",QCData!H34=""),"N",IF(AND(H34<>"",QCData!H34<>"",H34<>QCData!H34),"C",IF(AND(QCData!H34<>"",H34=""),"D","no cd er")))) -> S | FI34: =IF(I34=QCData!I34,"S",IF(AND(I34<>"",QCData!I34=""),"N",IF(AND(I34<>"",QCData!I34<>"",I34<>QCData!I34),"C",IF(AND(QCData!I34<>"",I34=""),"D","no cd er")))) -> N | FJ34: =IF(J34=QCData!J34,"S",IF(AND(J34<>"",QCData!J34=""),"N",IF(AND(J34<>"",QCData!J34<>"",J34<>QCData!J34),"C",IF(AND(QCData!J34<>"",J34=""),"D","no cd er")))) -> N | FK34: =IF(K34=QCData!K34,"S",IF(AND(K34<>"",QCData!K34=""),"N",IF(AND(K34<>"",QCData!K34<>"",K34<>QCData!K34),"C",IF(AND(QCData!K34<>"",K34=""),"D","no cd er")))) -> N | FL34: =IF(L34=QCData!L34,"S",IF(AND(L34<>"",QCData!L34=""),"N",IF(AND(L34<>"",QCData!L34<>"",L34<>QCData!L34),"C",IF(AND(QCData!L34<>"",L34=""),"D","no cd er")))) -> N | FM34: =IF(M34=QCData!M34,"S",IF(AND(M34<>"",QCData!M34=""),"N",IF(AND(M34<>"",QCData!M34<>"",M34<>QCData!M34),"C",IF(AND(QCData!M34<>"",M34=""),"D","no cd er")))) -> N | FN34: =IF(N34=QCData!N34,"S",IF(AND(N34<>"",QCData!N34=""),"N",IF(AND(N34<>"",QCData!N34<>"",N34<>QCData!N34),"C",IF(AND(QCData!N34<>"",N34=""),"D","no cd er")))) -> N | FO34: =IF(O34=QCData!O34,"S",IF(AND(O34<>"",QCData!O34=""),"N",IF(AND(O34<>"",QCData!O34<>"",O34<>QCData!O34),"C",IF(AND(QCData!O34<>"",O34=""),"D","no cd er")))) -> N | FP34: =IF(P34=QCData!P34,"S",IF(AND(P34<>"",QCData!P34=""),"N",IF(AND(P34<>"",QCData!P34<>"",P34<>QCData!P34),"C",IF(AND(QCData!P34<>"",P34=""),"D","no cd er")))) -> N | FQ34: =IF(Q34=QCData!Q34,"S",IF(AND(Q34<>"",QCData!Q34=""),"N",IF(AND(Q34<>"",QCData!Q34<>"",Q34<>QCData!Q34),"C",IF(AND(QCData!Q34<>"",Q34=""),"D","no cd er")))) -> S | FR34: =IF(R34=QCData!R34,"S",IF(AND(R34<>"",QCData!R34=""),"N",IF(AND(R34<>"",QCData!R34<>"",R34<>QCData!R34),"C",IF(AND(QCData!R34<>"",R34=""),"D","no cd er")))) -> S | FS34: =IF(S34=QCData!S34,"S",IF(AND(S34<>"",QCData!S34=""),"N",IF(AND(S34<>"",QCData!S34<>"",S34<>QCData!S34),"C",IF(AND(QCData!S34<>"",S34=""),"D","no cd er")))) -> N | FT34: =IF(T34=QCData!T34,"S",IF(AND(T34<>"",QCData!T34=""),"N",IF(AND(T34<>"",QCData!T34<>"",T34<>QCData!T34),"C",IF(AND(QCData!T34<>"",T34=""),"D","no cd er")))) -> N | FU34: =IF(U34=QCData!U34,"S",IF(AND(U34<>"",QCData!U34=""),"N",IF(AND(U34<>"",QCData!U34<>"",U34<>QCData!U34),"C",IF(AND(QCData!U34<>"",U34=""),"D","no cd er")))) -> N | FV34: =IF(V34=QCData!V34,"S",IF(AND(V34<>"",QCData!V34=""),"N",IF(AND(V34<>"",QCData!V34<>"",V34<>QCData!V34),"C",IF(AND(QCData!V34<>"",V34=""),"D","no cd er")))) -> N | FW34: =IF(W34=QCData!W34,"S",IF(AND(W34<>"",QCData!W34=""),"N",IF(AND(W34<>"",QCData!W34<>"",W34<>QCData!W34),"C",IF(AND(QCData!W34<>"",W34=""),"D","no cd er")))) -> N | FX34: =IF(X34=QCData!X34,"S",IF(AND(X34<>"",QCData!X34=""),"N",IF(AND(X34<>"",QCData!X34<>"",X34<>QCData!X34),"C",IF(AND(QCData!X34<>"",X34=""),"D","no cd er")))) -> N | FY34: =IF(Y34=QCData!Y34,"S",IF(AND(Y34<>"",QCData!Y34=""),"N",IF(AND(Y34<>"",QCData!Y34<>"",Y34<>QCData!Y34),"C",IF(AND(QCData!Y34<>"",Y34=""),"D","no cd er")))) -> N | FZ34: =IF(Z34=QCData!Z34,"S",IF(AND(Z34<>"",QCData!Z34=""),"N",IF(AND(Z34<>"",QCData!Z34<>"",Z34<>QCData!Z34),"C",IF(AND(QCData!Z34<>"",Z34=""),"D","no cd er")))) -> N
A35: 6 | B35: 2009-07-16 | C35: 555 | D35: 1 | E35: 6 | F35: NO | I35: 100 | J35: 90 | K35: 84 | L35: 70 | M35: 46 | N35: 40 | O35: 29 | P35: 16 | S35: 6.8 | T35: 5.09 | U35: 93.4 | V35: 92.1 | W35: 92.1 | BA35: 6 | BB35: 40010 | BC35: 555 | BD35: 1 | BE35: 6 | BF35: NO | BI35: 100 | BJ35: 90 | BK35: 84 | BL35: 70 | BM35: 46 | BN35: 40 | BO35: 29 | BP35: 16 | BS35: 6.8 | BT35: 5.09 | BU35: 93.4 | BV35: 92.1 | BW35: 92.1 | FA35: =IF(A35=QCData!A35,"S",IF(AND(A35<>"",QCData!A35=""),"N",IF(AND(A35<>"",QCData!A35<>"",A35<>QCData!A35),"C",IF(AND(QCData!A35<>"",A35=""),"D","no cd er")))) -> N | FB35: =IF(B35=QCData!B35,"S",IF(AND(B35<>"",QCData!B35=""),"N",IF(AND(B35<>"",QCData!B35<>"",B35<>QCData!B35),"C",IF(AND(QCData!B35<>"",B35=""),"D","no cd er")))) -> N | FC35: =IF(C35=QCData!C35,"S",IF(AND(C35<>"",QCData!C35=""),"N",IF(AND(C35<>"",QCData!C35<>"",C35<>QCData!C35),"C",IF(AND(QCData!C35<>"",C35=""),"D","no cd er")))) -> N | FD35: =IF(D35=QCData!D35,"S",IF(AND(D35<>"",QCData!D35=""),"N",IF(AND(D35<>"",QCData!D35<>"",D35<>QCData!D35),"C",IF(AND(QCData!D35<>"",D35=""),"D","no cd er")))) -> N | FE35: =IF(E35=QCData!E35,"S",IF(AND(E35<>"",QCData!E35=""),"N",IF(AND(E35<>"",QCData!E35<>"",E35<>QCData!E35),"C",IF(AND(QCData!E35<>"",E35=""),"D","no cd er")))) -> N | FF35: =IF(F35=QCData!F35,"S",IF(AND(F35<>"",QCData!F35=""),"N",IF(AND(F35<>"",QCData!F35<>"",F35<>QCData!F35),"C",IF(AND(QCData!F35<>"",F35=""),"D","no cd er")))) -> N | FG35: =IF(G35=QCData!G35,"S",IF(AND(G35<>"",QCData!G35=""),"N",IF(AND(G35<>"",QCData!G35<>"",G35<>QCData!G35),"C",IF(AND(QCData!G35<>"",G35=""),"D","no cd er")))) -> S | FH35: =IF(H35=QCData!H35,"S",IF(AND(H35<>"",QCData!H35=""),"N",IF(AND(H35<>"",QCData!H35<>"",H35<>QCData!H35),"C",IF(AND(QCData!H35<>"",H35=""),"D","no cd er")))) -> S | FI35: =IF(I35=QCData!I35,"S",IF(AND(I35<>"",QCData!I35=""),"N",IF(AND(I35<>"",QCData!I35<>"",I35<>QCData!I35),"C",IF(AND(QCData!I35<>"",I35=""),"D","no cd er")))) -> N | FJ35: =IF(J35=QCData!J35,"S",IF(AND(J35<>"",QCData!J35=""),"N",IF(AND(J35<>"",QCData!J35<>"",J35<>QCData!J35),"C",IF(AND(QCData!J35<>"",J35=""),"D","no cd er")))) -> N | FK35: =IF(K35=QCData!K35,"S",IF(AND(K35<>"",QCData!K35=""),"N",IF(AND(K35<>"",QCData!K35<>"",K35<>QCData!K35),"C",IF(AND(QCData!K35<>"",K35=""),"D","no cd er")))) -> N | FL35: =IF(L35=QCData!L35,"S",IF(AND(L35<>"",QCData!L35=""),"N",IF(AND(L35<>"",QCData!L35<>"",L35<>QCData!L35),"C",IF(AND(QCData!L35<>"",L35=""),"D","no cd er")))) -> N | FM35: =IF(M35=QCData!M35,"S",IF(AND(M35<>"",QCData!M35=""),"N",IF(AND(M35<>"",QCData!M35<>"",M35<>QCData!M35),"C",IF(AND(QCData!M35<>"",M35=""),"D","no cd er")))) -> N | FN35: =IF(N35=QCData!N35,"S",IF(AND(N35<>"",QCData!N35=""),"N",IF(AND(N35<>"",QCData!N35<>"",N35<>QCData!N35),"C",IF(AND(QCData!N35<>"",N35=""),"D","no cd er")))) -> N | FO35: =IF(O35=QCData!O35,"S",IF(AND(O35<>"",QCData!O35=""),"N",IF(AND(O35<>"",QCData!O35<>"",O35<>QCData!O35),"C",IF(AND(QCData!O35<>"",O35=""),"D","no cd er")))) -> N | FP35: =IF(P35=QCData!P35,"S",IF(AND(P35<>"",QCData!P35=""),"N",IF(AND(P35<>"",QCData!P35<>"",P35<>QCData!P35),"C",IF(AND(QCData!P35<>"",P35=""),"D","no cd er")))) -> N | FQ35: =IF(Q35=QCData!Q35,"S",IF(AND(Q35<>"",QCData!Q35=""),"N",IF(AND(Q35<>"",QCData!Q35<>"",Q35<>QCData!Q35),"C",IF(AND(QCData!Q35<>"",Q35=""),"D","no cd er")))) -> S | FR35: =IF(R35=QCData!R35,"S",IF(AND(R35<>"",QCData!R35=""),"N",IF(AND(R35<>"",QCData!R35<>"",R35<>QCData!R35),"C",IF(AND(QCData!R35<>"",R35=""),"D","no cd er")))) -> S | FS35: =IF(S35=QCData!S35,"S",IF(AND(S35<>"",QCData!S35=""),"N",IF(AND(S35<>"",QCData!S35<>"",S35<>QCData!S35),"C",IF(AND(QCData!S35<>"",S35=""),"D","no cd er")))) -> N | FT35: =IF(T35=QCData!T35,"S",IF(AND(T35<>"",QCData!T35=""),"N",IF(AND(T35<>"",QCData!T35<>"",T35<>QCData!T35),"C",IF(AND(QCData!T35<>"",T35=""),"D","no cd er")))) -> N | FU35: =IF(U35=QCData!U35,"S",IF(AND(U35<>"",QCData!U35=""),"N",IF(AND(U35<>"",QCData!U35<>"",U35<>QCData!U35),"C",IF(AND(QCData!U35<>"",U35=""),"D","no cd er")))) -> N | FV35: =IF(V35=QCData!V35,"S",IF(AND(V35<>"",QCData!V35=""),"N",IF(AND(V35<>"",QCData!V35<>"",V35<>QCData!V35),"C",IF(AND(QCData!V35<>"",V35=""),"D","no cd er")))) -> N | FW35: =IF(W35=QCData!W35,"S",IF(AND(W35<>"",QCData!W35=""),"N",IF(AND(W35<>"",QCData!W35<>"",W35<>QCData!W35),"C",IF(AND(QCData!W35<>"",W35=""),"D","no cd er")))) -> N | FX35: =IF(X35=QCData!X35,"S",IF(AND(X35<>"",QCData!X35=""),"N",IF(AND(X35<>"",QCData!X35<>"",X35<>QCData!X35),"C",IF(AND(QCData!X35<>"",X35=""),"D","no cd er")))) -> S | FY35: =IF(Y35=QCData!Y35,"S",IF(AND(Y35<>"",QCData!Y35=""),"N",IF(AND(Y35<>"",QCData!Y35<>"",Y35<>QCData!Y35),"C",IF(AND(QCData!Y35<>"",Y35=""),"D","no cd er")))) -> S | FZ35: =IF(Z35=QCData!Z35,"S",IF(AND(Z35<>"",QCData!Z35=""),"N",IF(AND(Z35<>"",QCData!Z35<>"",Z35<>QCData!Z35),"C",IF(AND(QCData!Z35<>"",Z35=""),"D","no cd er")))) -> S
A36: 7 | C36: 0 | D36: 1 | E36: 7 | F36: NO | I36: 100 | J36: 91 | K36: 84 | L36: 71 | M36: 46 | N36: 40 | O36: 23 | P36: 17 | S36: 5.8 | T36: 5.04 | U36: 92 | V36: 95 | W36: 96 | X36: 3.5 | Y36: 1 | Z36: 3.6 | BA36: 7 | BC36: 0 | BD36: 1 | BE36: 7 | BF36: NO | BI36: 100 | BJ36: 91 | BK36: 84 | BL36: 71 | BM36: 46 | BN36: 40 | BO36: 23 | BP36: 17 | BS36: 5.8 | BT36: 5.04 | BU36: 92 | BV36: 95 | BW36: 96 | BX36: 3.5 | BY36: 1 | BZ36: 3.6 | FA36: =IF(A36=QCData!A36,"S",IF(AND(A36<>"",QCData!A36=""),"N",IF(AND(A36<>"",QCData!A36<>"",A36<>QCData!A36),"C",IF(AND(QCData!A36<>"",A36=""),"D","no cd er")))) -> N | FB36: =IF(B36=QCData!B36,"S",IF(AND(B36<>"",QCData!B36=""),"N",IF(AND(B36<>"",QCData!B36<>"",B36<>QCData!B36),"C",IF(AND(QCData!B36<>"",B36=""),"D","no cd er")))) -> S | FC36: =IF(C36=QCData!C36,"S",IF(AND(C36<>"",QCData!C36=""),"N",IF(AND(C36<>"",QCData!C36<>"",C36<>QCData!C36),"C",IF(AND(QCData!C36<>"",C36=""),"D","no cd er")))) -> S | FD36: =IF(D36=QCData!D36,"S",IF(AND(D36<>"",QCData!D36=""),"N",IF(AND(D36<>"",QCData!D36<>"",D36<>QCData!D36),"C",IF(AND(QCData!D36<>"",D36=""),"D","no cd er")))) -> N | FE36: =IF(E36=QCData!E36,"S",IF(AND(E36<>"",QCData!E36=""),"N",IF(AND(E36<>"",QCData!E36<>"",E36<>QCData!E36),"C",IF(AND(QCData!E36<>"",E36=""),"D","no cd er")))) -> N | FF36: =IF(F36=QCData!F36,"S",IF(AND(F36<>"",QCData!F36=""),"N",IF(AND(F36<>"",QCData!F36<>"",F36<>QCData!F36),"C",IF(AND(QCData!F36<>"",F36=""),"D","no cd er")))) -> N | FG36: =IF(G36=QCData!G36,"S",IF(AND(G36<>"",QCData!G36=""),"N",IF(AND(G36<>"",QCData!G36<>"",G36<>QCData!G36),"C",IF(AND(QCData!G36<>"",G36=""),"D","no cd er")))) -> S | FH36: =IF(H36=QCData!H36,"S",IF(AND(H36<>"",QCData!H36=""),"N",IF(AND(H36<>"",QCData!H36<>"",H36<>QCData!H36),"C",IF(AND(QCData!H36<>"",H36=""),"D","no cd er")))) -> S | FI36: =IF(I36=QCData!I36,"S",IF(AND(I36<>"",QCData!I36=""),"N",IF(AND(I36<>"",QCData!I36<>"",I36<>QCData!I36),"C",IF(AND(QCData!I36<>"",I36=""),"D","no cd er")))) -> N | FJ36: =IF(J36=QCData!J36,"S",IF(AND(J36<>"",QCData!J36=""),"N",IF(AND(J36<>"",QCData!J36<>"",J36<>QCData!J36),"C",IF(AND(QCData!J36<>"",J36=""),"D","no cd er")))) -> N | FK36: =IF(K36=QCData!K36,"S",IF(AND(K36<>"",QCData!K36=""),"N",IF(AND(K36<>"",QCData!K36<>"",K36<>QCData!K36),"C",IF(AND(QCData!K36<>"",K36=""),"D","no cd er")))) -> N | FL36: =IF(L36=QCData!L36,"S",IF(AND(L36<>"",QCData!L36=""),"N",IF(AND(L36<>"",QCData!L36<>"",L36<>QCData!L36),"C",IF(AND(QCData!L36<>"",L36=""),"D","no cd er")))) -> N | FM36: =IF(M36=QCData!M36,"S",IF(AND(M36<>"",QCData!M36=""),"N",IF(AND(M36<>"",QCData!M36<>"",M36<>QCData!M36),"C",IF(AND(QCData!M36<>"",M36=""),"D","no cd er")))) -> N | FN36: =IF(N36=QCData!N36,"S",IF(AND(N36<>"",QCData!N36=""),"N",IF(AND(N36<>"",QCData!N36<>"",N36<>QCData!N36),"C",IF(AND(QCData!N36<>"",N36=""),"D","no cd er")))) -> N | FO36: =IF(O36=QCData!O36,"S",IF(AND(O36<>"",QCData!O36=""),"N",IF(AND(O36<>"",QCData!O36<>"",O36<>QCData!O36),"C",IF(AND(QCData!O36<>"",O36=""),"D","no cd er")))) -> N | FP36: =IF(P36=QCData!P36,"S",IF(AND(P36<>"",QCData!P36=""),"N",IF(AND(P36<>"",QCData!P36<>"",P36<>QCData!P36),"C",IF(AND(QCData!P36<>"",P36=""),"D","no cd er")))) -> N | FQ36: =IF(Q36=QCData!Q36,"S",IF(AND(Q36<>"",QCData!Q36=""),"N",IF(AND(Q36<>"",QCData!Q36<>"",Q36<>QCData!Q36),"C",IF(AND(QCData!Q36<>"",Q36=""),"D","no cd er")))) -> S | FR36: =IF(R36=QCData!R36,"S",IF(AND(R36<>"",QCData!R36=""),"N",IF(AND(R36<>"",QCData!R36<>"",R36<>QCData!R36),"C",IF(AND(QCData!R36<>"",R36=""),"D","no cd er")))) -> S | FS36: =IF(S36=QCData!S36,"S",IF(AND(S36<>"",QCData!S36=""),"N",IF(AND(S36<>"",QCData!S36<>"",S36<>QCData!S36),"C",IF(AND(QCData!S36<>"",S36=""),"D","no cd er")))) -> N | FT36: =IF(T36=QCData!T36,"S",IF(AND(T36<>"",QCData!T36=""),"N",IF(AND(T36<>"",QCData!T36<>"",T36<>QCData!T36),"C",IF(AND(QCData!T36<>"",T36=""),"D","no cd er")))) -> N | FU36: =IF(U36=QCData!U36,"S",IF(AND(U36<>"",QCData!U36=""),"N",IF(AND(U36<>"",QCData!U36<>"",U36<>QCData!U36),"C",IF(AND(QCData!U36<>"",U36=""),"D","no cd er")))) -> N | FV36: =IF(V36=QCData!V36,"S",IF(AND(V36<>"",QCData!V36=""),"N",IF(AND(V36<>"",QCData!V36<>"",V36<>QCData!V36),"C",IF(AND(QCData!V36<>"",V36=""),"D","no cd er")))) -> N | FW36: =IF(W36=QCData!W36,"S",IF(AND(W36<>"",QCData!W36=""),"N",IF(AND(W36<>"",QCData!W36<>"",W36<>QCData!W36),"C",IF(AND(QCData!W36<>"",W36=""),"D","no cd er")))) -> N | FX36: =IF(X36=QCData!X36,"S",IF(AND(X36<>"",QCData!X36=""),"N",IF(AND(X36<>"",QCData!X36<>"",X36<>QCData!X36),"C",IF(AND(QCData!X36<>"",X36=""),"D","no cd er")))) -> N | FY36: =IF(Y36=QCData!Y36,"S",IF(AND(Y36<>"",QCData!Y36=""),"N",IF(AND(Y36<>"",QCData!Y36<>"",Y36<>QCData!Y36),"C",IF(AND(QCData!Y36<>"",Y36=""),"D","no cd er")))) -> N | FZ36: =IF(Z36=QCData!Z36,"S",IF(AND(Z36<>"",QCData!Z36=""),"N",IF(AND(Z36<>"",QCData!Z36<>"",Z36<>QCData!Z36),"C",IF(AND(QCData!Z36<>"",Z36=""),"D","no cd er")))) -> N
A37: 8 | C37: 0 | D37: 1 | E37: 8 | F37: NO | I37: 100 | J37: 90 | K37: 86 | L37: 63 | M37: 38 | N37: 40 | O37: 35 | P37: 18 | S37: 4.9 | T37: 4.98 | U37: 93.1 | V37: 94.1 | W37: 95.1 | BA37: 8 | BC37: 0 | BD37: 1 | BE37: 8 | BF37: NO | BI37: 100 | BJ37: 90 | BK37: 86 | BL37: 63 | BM37: 38 | BN37: 40 | BO37: 35 | BP37: 18 | BS37: 4.9 | BT37: 4.98 | BU37: 93.1 | BV37: 94.1 | BW37: 95.1 | FA37: =IF(A37=QCData!A37,"S",IF(AND(A37<>"",QCData!A37=""),"N",IF(AND(A37<>"",QCData!A37<>"",A37<>QCData!A37),"C",IF(AND(QCData!A37<>"",A37=""),"D","no cd er")))) -> N | FB37: =IF(B37=QCData!B37,"S",IF(AND(B37<>"",QCData!B37=""),"N",IF(AND(B37<>"",QCData!B37<>"",B37<>QCData!B37),"C",IF(AND(QCData!B37<>"",B37=""),"D","no cd er")))) -> S | FC37: =IF(C37=QCData!C37,"S",IF(AND(C37<>"",QCData!C37=""),"N",IF(AND(C37<>"",QCData!C37<>"",C37<>QCData!C37),"C",IF(AND(QCData!C37<>"",C37=""),"D","no cd er")))) -> S | FD37: =IF(D37=QCData!D37,"S",IF(AND(D37<>"",QCData!D37=""),"N",IF(AND(D37<>"",QCData!D37<>"",D37<>QCData!D37),"C",IF(AND(QCData!D37<>"",D37=""),"D","no cd er")))) -> N | FE37: =IF(E37=QCData!E37,"S",IF(AND(E37<>"",QCData!E37=""),"N",IF(AND(E37<>"",QCData!E37<>"",E37<>QCData!E37),"C",IF(AND(QCData!E37<>"",E37=""),"D","no cd er")))) -> N | FF37: =IF(F37=QCData!F37,"S",IF(AND(F37<>"",QCData!F37=""),"N",IF(AND(F37<>"",QCData!F37<>"",F37<>QCData!F37),"C",IF(AND(QCData!F37<>"",F37=""),"D","no cd er")))) -> N | FG37: =IF(G37=QCData!G37,"S",IF(AND(G37<>"",QCData!G37=""),"N",IF(AND(G37<>"",QCData!G37<>"",G37<>QCData!G37),"C",IF(AND(QCData!G37<>"",G37=""),"D","no cd er")))) -> S | FH37: =IF(H37=QCData!H37,"S",IF(AND(H37<>"",QCData!H37=""),"N",IF(AND(H37<>"",QCData!H37<>"",H37<>QCData!H37),"C",IF(AND(QCData!H37<>"",H37=""),"D","no cd er")))) -> S | FI37: =IF(I37=QCData!I37,"S",IF(AND(I37<>"",QCData!I37=""),"N",IF(AND(I37<>"",QCData!I37<>"",I37<>QCData!I37),"C",IF(AND(QCData!I37<>"",I37=""),"D","no cd er")))) -> N | FJ37: =IF(J37=QCData!J37,"S",IF(AND(J37<>"",QCData!J37=""),"N",IF(AND(J37<>"",QCData!J37<>"",J37<>QCData!J37),"C",IF(AND(QCData!J37<>"",J37=""),"D","no cd er")))) -> N | FK37: =IF(K37=QCData!K37,"S",IF(AND(K37<>"",QCData!K37=""),"N",IF(AND(K37<>"",QCData!K37<>"",K37<>QCData!K37),"C",IF(AND(QCData!K37<>"",K37=""),"D","no cd er")))) -> N | FL37: =IF(L37=QCData!L37,"S",IF(AND(L37<>"",QCData!L37=""),"N",IF(AND(L37<>"",QCData!L37<>"",L37<>QCData!L37),"C",IF(AND(QCData!L37<>"",L37=""),"D","no cd er")))) -> N | FM37: =IF(M37=QCData!M37,"S",IF(AND(M37<>"",QCData!M37=""),"N",IF(AND(M37<>"",QCData!M37<>"",M37<>QCData!M37),"C",IF(AND(QCData!M37<>"",M37=""),"D","no cd er")))) -> N | FN37: =IF(N37=QCData!N37,"S",IF(AND(N37<>"",QCData!N37=""),"N",IF(AND(N37<>"",QCData!N37<>"",N37<>QCData!N37),"C",IF(AND(QCData!N37<>"",N37=""),"D","no cd er")))) -> N | FO37: =IF(O37=QCData!O37,"S",IF(AND(O37<>"",QCData!O37=""),"N",IF(AND(O37<>"",QCData!O37<>"",O37<>QCData!O37),"C",IF(AND(QCData!O37<>"",O37=""),"D","no cd er")))) -> N | FP37: =IF(P37=QCData!P37,"S",IF(AND(P37<>"",QCData!P37=""),"N",IF(AND(P37<>"",QCData!P37<>"",P37<>QCData!P37),"C",IF(AND(QCData!P37<>"",P37=""),"D","no cd er")))) -> N | FQ37: =IF(Q37=QCData!Q37,"S",IF(AND(Q37<>"",QCData!Q37=""),"N",IF(AND(Q37<>"",QCData!Q37<>"",Q37<>QCData!Q37),"C",IF(AND(QCData!Q37<>"",Q37=""),"D","no cd er")))) -> S | FR37: =IF(R37=QCData!R37,"S",IF(AND(R37<>"",QCData!R37=""),"N",IF(AND(R37<>"",QCData!R37<>"",R37<>QCData!R37),"C",IF(AND(QCData!R37<>"",R37=""),"D","no cd er")))) -> S | FS37: =IF(S37=QCData!S37,"S",IF(AND(S37<>"",QCData!S37=""),"N",IF(AND(S37<>"",QCData!S37<>"",S37<>QCData!S37),"C",IF(AND(QCData!S37<>"",S37=""),"D","no cd er")))) -> N | FT37: =IF(T37=QCData!T37,"S",IF(AND(T37<>"",QCData!T37=""),"N",IF(AND(T37<>"",QCData!T37<>"",T37<>QCData!T37),"C",IF(AND(QCData!T37<>"",T37=""),"D","no cd er")))) -> N | FU37: =IF(U37=QCData!U37,"S",IF(AND(U37<>"",QCData!U37=""),"N",IF(AND(U37<>"",QCData!U37<>"",U37<>QCData!U37),"C",IF(AND(QCData!U37<>"",U37=""),"D","no cd er")))) -> N | FV37: =IF(V37=QCData!V37,"S",IF(AND(V37<>"",QCData!V37=""),"N",IF(AND(V37<>"",QCData!V37<>"",V37<>QCData!V37),"C",IF(AND(QCData!V37<>"",V37=""),"D","no cd er")))) -> N | FW37: =IF(W37=QCData!W37,"S",IF(AND(W37<>"",QCData!W37=""),"N",IF(AND(W37<>"",QCData!W37<>"",W37<>QCData!W37),"C",IF(AND(QCData!W37<>"",W37=""),"D","no cd er")))) -> N | FX37: =IF(X37=QCData!X37,"S",IF(AND(X37<>"",QCData!X37=""),"N",IF(AND(X37<>"",QCData!X37<>"",X37<>QCData!X37),"C",IF(AND(QCData!X37<>"",X37=""),"D","no cd er")))) -> S | FY37: =IF(Y37=QCData!Y37,"S",IF(AND(Y37<>"",QCData!Y37=""),"N",IF(AND(Y37<>"",QCData!Y37<>"",Y37<>QCData!Y37),"C",IF(AND(QCData!Y37<>"",Y37=""),"D","no cd er")))) -> S | FZ37: =IF(Z37=QCData!Z37,"S",IF(AND(Z37<>"",QCData!Z37=""),"N",IF(AND(Z37<>"",QCData!Z37<>"",Z37<>QCData!Z37),"C",IF(AND(QCData!Z37<>"",Z37=""),"D","no cd er")))) -> S
A38: 9 | B38: 2009-07-17 | C38: 0 | D38: 1 | E38: 9 | F38: NO | I38: 100 | J38: 91 | K38: 84 | L38: 80 | M38: 43 | N38: 40 | O38: 36 | P38: 19 | S38: 7 | T38: 5.1 | U38: 93.4 | V38: 92.1 | W38: 92.1 | X38: 4 | Y38: 4 | Z38: 4 | BA38: 9 | BB38: 40011 | BC38: 0 | BD38: 1 | BE38: 9 | BF38: NO | BI38: 100 | BJ38: 91 | BK38: 84 | BL38: 80 | BM38: 43 | BN38: 40 | BO38: 36 | BP38: 19 | BS38: 7 | BT38: 5.1 | BU38: 93.4 | BV38: 92.1 | BW38: 92.1 | BX38: 4 | BY38: 4 | BZ38: 4 | FA38: =IF(A38=QCData!A38,"S",IF(AND(A38<>"",QCData!A38=""),"N",IF(AND(A38<>"",QCData!A38<>"",A38<>QCData!A38),"C",IF(AND(QCData!A38<>"",A38=""),"D","no cd er")))) -> N | FB38: =IF(B38=QCData!B38,"S",IF(AND(B38<>"",QCData!B38=""),"N",IF(AND(B38<>"",QCData!B38<>"",B38<>QCData!B38),"C",IF(AND(QCData!B38<>"",B38=""),"D","no cd er")))) -> N | FC38: =IF(C38=QCData!C38,"S",IF(AND(C38<>"",QCData!C38=""),"N",IF(AND(C38<>"",QCData!C38<>"",C38<>QCData!C38),"C",IF(AND(QCData!C38<>"",C38=""),"D","no cd er")))) -> S | FD38: =IF(D38=QCData!D38,"S",IF(AND(D38<>"",QCData!D38=""),"N",IF(AND(D38<>"",QCData!D38<>"",D38<>QCData!D38),"C",IF(AND(QCData!D38<>"",D38=""),"D","no cd er")))) -> N | FE38: =IF(E38=QCData!E38,"S",IF(AND(E38<>"",QCData!E38=""),"N",IF(AND(E38<>"",QCData!E38<>"",E38<>QCData!E38),"C",IF(AND(QCData!E38<>"",E38=""),"D","no cd er")))) -> N | FF38: =IF(F38=QCData!F38,"S",IF(AND(F38<>"",QCData!F38=""),"N",IF(AND(F38<>"",QCData!F38<>"",F38<>QCData!F38),"C",IF(AND(QCData!F38<>"",F38=""),"D","no cd er")))) -> N | FG38: =IF(G38=QCData!G38,"S",IF(AND(G38<>"",QCData!G38=""),"N",IF(AND(G38<>"",QCData!G38<>"",G38<>QCData!G38),"C",IF(AND(QCData!G38<>"",G38=""),"D","no cd er")))) -> S | FH38: =IF(H38=QCData!H38,"S",IF(AND(H38<>"",QCData!H38=""),"N",IF(AND(H38<>"",QCData!H38<>"",H38<>QCData!H38),"C",IF(AND(QCData!H38<>"",H38=""),"D","no cd er")))) -> S | FI38: =IF(I38=QCData!I38,"S",IF(AND(I38<>"",QCData!I38=""),"N",IF(AND(I38<>"",QCData!I38<>"",I38<>QCData!I38),"C",IF(AND(QCData!I38<>"",I38=""),"D","no cd er")))) -> N | FJ38: =IF(J38=QCData!J38,"S",IF(AND(J38<>"",QCData!J38=""),"N",IF(AND(J38<>"",QCData!J38<>"",J38<>QCData!J38),"C",IF(AND(QCData!J38<>"",J38=""),"D","no cd er")))) -> N | FK38: =IF(K38=QCData!K38,"S",IF(AND(K38<>"",QCData!K38=""),"N",IF(AND(K38<>"",QCData!K38<>"",K38<>QCData!K38),"C",IF(AND(QCData!K38<>"",K38=""),"D","no cd er")))) -> N | FL38: =IF(L38=QCData!L38,"S",IF(AND(L38<>"",QCData!L38=""),"N",IF(AND(L38<>"",QCData!L38<>"",L38<>QCData!L38),"C",IF(AND(QCData!L38<>"",L38=""),"D","no cd er")))) -> N | FM38: =IF(M38=QCData!M38,"S",IF(AND(M38<>"",QCData!M38=""),"N",IF(AND(M38<>"",QCData!M38<>"",M38<>QCData!M38),"C",IF(AND(QCData!M38<>"",M38=""),"D","no cd er")))) -> N | FN38: =IF(N38=QCData!N38,"S",IF(AND(N38<>"",QCData!N38=""),"N",IF(AND(N38<>"",QCData!N38<>"",N38<>QCData!N38),"C",IF(AND(QCData!N38<>"",N38=""),"D","no cd er")))) -> N | FO38: =IF(O38=QCData!O38,"S",IF(AND(O38<>"",QCData!O38=""),"N",IF(AND(O38<>"",QCData!O38<>"",O38<>QCData!O38),"C",IF(AND(QCData!O38<>"",O38=""),"D","no cd er")))) -> N | FP38: =IF(P38=QCData!P38,"S",IF(AND(P38<>"",QCData!P38=""),"N",IF(AND(P38<>"",QCData!P38<>"",P38<>QCData!P38),"C",IF(AND(QCData!P38<>"",P38=""),"D","no cd er")))) -> N | FQ38: =IF(Q38=QCData!Q38,"S",IF(AND(Q38<>"",QCData!Q38=""),"N",IF(AND(Q38<>"",QCData!Q38<>"",Q38<>QCData!Q38),"C",IF(AND(QCData!Q38<>"",Q38=""),"D","no cd er")))) -> S | FR38: =IF(R38=QCData!R38,"S",IF(AND(R38<>"",QCData!R38=""),"N",IF(AND(R38<>"",QCData!R38<>"",R38<>QCData!R38),"C",IF(AND(QCData!R38<>"",R38=""),"D","no cd er")))) -> S | FS38: =IF(S38=QCData!S38,"S",IF(AND(S38<>"",QCData!S38=""),"N",IF(AND(S38<>"",QCData!S38<>"",S38<>QCData!S38),"C",IF(AND(QCData!S38<>"",S38=""),"D","no cd er")))) -> N | FT38: =IF(T38=QCData!T38,"S",IF(AND(T38<>"",QCData!T38=""),"N",IF(AND(T38<>"",QCData!T38<>"",T38<>QCData!T38),"C",IF(AND(QCData!T38<>"",T38=""),"D","no cd er")))) -> N | FU38: =IF(U38=QCData!U38,"S",IF(AND(U38<>"",QCData!U38=""),"N",IF(AND(U38<>"",QCData!U38<>"",U38<>QCData!U38),"C",IF(AND(QCData!U38<>"",U38=""),"D","no cd er")))) -> N | FV38: =IF(V38=QCData!V38,"S",IF(AND(V38<>"",QCData!V38=""),"N",IF(AND(V38<>"",QCData!V38<>"",V38<>QCData!V38),"C",IF(AND(QCData!V38<>"",V38=""),"D","no cd er")))) -> N | FW38: =IF(W38=QCData!W38,"S",IF(AND(W38<>"",QCData!W38=""),"N",IF(AND(W38<>"",QCData!W38<>"",W38<>QCData!W38),"C",IF(AND(QCData!W38<>"",W38=""),"D","no cd er")))) -> N | FX38: =IF(X38=QCData!X38,"S",IF(AND(X38<>"",QCData!X38=""),"N",IF(AND(X38<>"",QCData!X38<>"",X38<>QCData!X38),"C",IF(AND(QCData!X38<>"",X38=""),"D","no cd er")))) -> N | FY38: =IF(Y38=QCData!Y38,"S",IF(AND(Y38<>"",QCData!Y38=""),"N",IF(AND(Y38<>"",QCData!Y38<>"",Y38<>QCData!Y38),"C",IF(AND(QCData!Y38<>"",Y38=""),"D","no cd er")))) -> N | FZ38: =IF(Z38=QCData!Z38,"S",IF(AND(Z38<>"",QCData!Z38=""),"N",IF(AND(Z38<>"",QCData!Z38<>"",Z38<>QCData!Z38),"C",IF(AND(QCData!Z38<>"",Z38=""),"D","no cd er")))) -> N
A39: 10 | C39: 0 | D39: 1 | E39: 10 | F39: NO | I39: 100 | J39: 90 | K39: 86 | L39: 63 | M39: 41 | N39: 41 | O39: 29 | P39: 19 | S39: 8 | T39: 5.19 | U39: 92 | V39: 95 | W39: 96 | BA39: 10 | BC39: 0 | BD39: 1 | BE39: 10 | BF39: NO | BI39: 100 | BJ39: 90 | BK39: 86 | BL39: 63 | BM39: 41 | BN39: 41 | BO39: 29 | BP39: 19 | BS39: 8 | BT39: 5.19 | BU39: 92 | BV39: 95 | BW39: 96 | FA39: =IF(A39=QCData!A39,"S",IF(AND(A39<>"",QCData!A39=""),"N",IF(AND(A39<>"",QCData!A39<>"",A39<>QCData!A39),"C",IF(AND(QCData!A39<>"",A39=""),"D","no cd er")))) -> N | FB39: =IF(B39=QCData!B39,"S",IF(AND(B39<>"",QCData!B39=""),"N",IF(AND(B39<>"",QCData!B39<>"",B39<>QCData!B39),"C",IF(AND(QCData!B39<>"",B39=""),"D","no cd er")))) -> S | FC39: =IF(C39=QCData!C39,"S",IF(AND(C39<>"",QCData!C39=""),"N",IF(AND(C39<>"",QCData!C39<>"",C39<>QCData!C39),"C",IF(AND(QCData!C39<>"",C39=""),"D","no cd er")))) -> S | FD39: =IF(D39=QCData!D39,"S",IF(AND(D39<>"",QCData!D39=""),"N",IF(AND(D39<>"",QCData!D39<>"",D39<>QCData!D39),"C",IF(AND(QCData!D39<>"",D39=""),"D","no cd er")))) -> N | FE39: =IF(E39=QCData!E39,"S",IF(AND(E39<>"",QCData!E39=""),"N",IF(AND(E39<>"",QCData!E39<>"",E39<>QCData!E39),"C",IF(AND(QCData!E39<>"",E39=""),"D","no cd er")))) -> N | FF39: =IF(F39=QCData!F39,"S",IF(AND(F39<>"",QCData!F39=""),"N",IF(AND(F39<>"",QCData!F39<>"",F39<>QCData!F39),"C",IF(AND(QCData!F39<>"",F39=""),"D","no cd er")))) -> N | FG39: =IF(G39=QCData!G39,"S",IF(AND(G39<>"",QCData!G39=""),"N",IF(AND(G39<>"",QCData!G39<>"",G39<>QCData!G39),"C",IF(AND(QCData!G39<>"",G39=""),"D","no cd er")))) -> S | FH39: =IF(H39=QCData!H39,"S",IF(AND(H39<>"",QCData!H39=""),"N",IF(AND(H39<>"",QCData!H39<>"",H39<>QCData!H39),"C",IF(AND(QCData!H39<>"",H39=""),"D","no cd er")))) -> S | FI39: =IF(I39=QCData!I39,"S",IF(AND(I39<>"",QCData!I39=""),"N",IF(AND(I39<>"",QCData!I39<>"",I39<>QCData!I39),"C",IF(AND(QCData!I39<>"",I39=""),"D","no cd er")))) -> N | FJ39: =IF(J39=QCData!J39,"S",IF(AND(J39<>"",QCData!J39=""),"N",IF(AND(J39<>"",QCData!J39<>"",J39<>QCData!J39),"C",IF(AND(QCData!J39<>"",J39=""),"D","no cd er")))) -> N | FK39: =IF(K39=QCData!K39,"S",IF(AND(K39<>"",QCData!K39=""),"N",IF(AND(K39<>"",QCData!K39<>"",K39<>QCData!K39),"C",IF(AND(QCData!K39<>"",K39=""),"D","no cd er")))) -> N | FL39: =IF(L39=QCData!L39,"S",IF(AND(L39<>"",QCData!L39=""),"N",IF(AND(L39<>"",QCData!L39<>"",L39<>QCData!L39),"C",IF(AND(QCData!L39<>"",L39=""),"D","no cd er")))) -> N | FM39: =IF(M39=QCData!M39,"S",IF(AND(M39<>"",QCData!M39=""),"N",IF(AND(M39<>"",QCData!M39<>"",M39<>QCData!M39),"C",IF(AND(QCData!M39<>"",M39=""),"D","no cd er")))) -> N | FN39: =IF(N39=QCData!N39,"S",IF(AND(N39<>"",QCData!N39=""),"N",IF(AND(N39<>"",QCData!N39<>"",N39<>QCData!N39),"C",IF(AND(QCData!N39<>"",N39=""),"D","no cd er")))) -> N | FO39: =IF(O39=QCData!O39,"S",IF(AND(O39<>"",QCData!O39=""),"N",IF(AND(O39<>"",QCData!O39<>"",O39<>QCData!O39),"C",IF(AND(QCData!O39<>"",O39=""),"D","no cd er")))) -> N | FP39: =IF(P39=QCData!P39,"S",IF(AND(P39<>"",QCData!P39=""),"N",IF(AND(P39<>"",QCData!P39<>"",P39<>QCData!P39),"C",IF(AND(QCData!P39<>"",P39=""),"D","no cd er")))) -> N | FQ39: =IF(Q39=QCData!Q39,"S",IF(AND(Q39<>"",QCData!Q39=""),"N",IF(AND(Q39<>"",QCData!Q39<>"",Q39<>QCData!Q39),"C",IF(AND(QCData!Q39<>"",Q39=""),"D","no cd er")))) -> S | FR39: =IF(R39=QCData!R39,"S",IF(AND(R39<>"",QCData!R39=""),"N",IF(AND(R39<>"",QCData!R39<>"",R39<>QCData!R39),"C",IF(AND(QCData!R39<>"",R39=""),"D","no cd er")))) -> S | FS39: =IF(S39=QCData!S39,"S",IF(AND(S39<>"",QCData!S39=""),"N",IF(AND(S39<>"",QCData!S39<>"",S39<>QCData!S39),"C",IF(AND(QCData!S39<>"",S39=""),"D","no cd er")))) -> N | FT39: =IF(T39=QCData!T39,"S",IF(AND(T39<>"",QCData!T39=""),"N",IF(AND(T39<>"",QCData!T39<>"",T39<>QCData!T39),"C",IF(AND(QCData!T39<>"",T39=""),"D","no cd er")))) -> N | FU39: =IF(U39=QCData!U39,"S",IF(AND(U39<>"",QCData!U39=""),"N",IF(AND(U39<>"",QCData!U39<>"",U39<>QCData!U39),"C",IF(AND(QCData!U39<>"",U39=""),"D","no cd er")))) -> N | FV39: =IF(V39=QCData!V39,"S",IF(AND(V39<>"",QCData!V39=""),"N",IF(AND(V39<>"",QCData!V39<>"",V39<>QCData!V39),"C",IF(AND(QCData!V39<>"",V39=""),"D","no cd er")))) -> N | FW39: =IF(W39=QCData!W39,"S",IF(AND(W39<>"",QCData!W39=""),"N",IF(AND(W39<>"",QCData!W39<>"",W39<>QCData!W39),"C",IF(AND(QCData!W39<>"",W39=""),"D","no cd er")))) -> N | FX39: =IF(X39=QCData!X39,"S",IF(AND(X39<>"",QCData!X39=""),"N",IF(AND(X39<>"",QCData!X39<>"",X39<>QCData!X39),"C",IF(AND(QCData!X39<>"",X39=""),"D","no cd er")))) -> S | FY39: =IF(Y39=QCData!Y39,"S",IF(AND(Y39<>"",QCData!Y39=""),"N",IF(AND(Y39<>"",QCData!Y39<>"",Y39<>QCData!Y39),"C",IF(AND(QCData!Y39<>"",Y39=""),"D","no cd er")))) -> S | FZ39: =IF(Z39=QCData!Z39,"S",IF(AND(Z39<>"",QCData!Z39=""),"N",IF(AND(Z39<>"",QCData!Z39<>"",Z39<>QCData!Z39),"C",IF(AND(QCData!Z39<>"",Z39=""),"D","no cd er")))) -> S
A40: 11 | C40: 333 | D40: 1 | E40: 11 | F40: NO | I40: 100 | J40: 92 | K40: 86 | L40: 70 | M40: 44 | N40: 41 | O40: 23 | P40: 18 | S40: 9 | T40: 5.1 | U40: 93.1 | V40: 94.1 | W40: 95.1 | X40: 4.2 | Y40: 4.3 | Z40: 4.4 | BA40: 11 | BC40: 333 | BD40: 1 | BE40: 11 | BF40: NO | BI40: 100 | BJ40: 92 | BK40: 86 | BL40: 70 | BM40: 44 | BN40: 41 | BO40: 23 | BP40: 18 | BS40: 9 | BT40: 5.1 | BU40: 93.1 | BV40: 94.1 | BW40: 95.1 | BX40: 4.2 | BY40: 4.3 | BZ40: 4.4 | FA40: =IF(A40=QCData!A40,"S",IF(AND(A40<>"",QCData!A40=""),"N",IF(AND(A40<>"",QCData!A40<>"",A40<>QCData!A40),"C",IF(AND(QCData!A40<>"",A40=""),"D","no cd er")))) -> N | FB40: =IF(B40=QCData!B40,"S",IF(AND(B40<>"",QCData!B40=""),"N",IF(AND(B40<>"",QCData!B40<>"",B40<>QCData!B40),"C",IF(AND(QCData!B40<>"",B40=""),"D","no cd er")))) -> S | FC40: =IF(C40=QCData!C40,"S",IF(AND(C40<>"",QCData!C40=""),"N",IF(AND(C40<>"",QCData!C40<>"",C40<>QCData!C40),"C",IF(AND(QCData!C40<>"",C40=""),"D","no cd er")))) -> N | FD40: =IF(D40=QCData!D40,"S",IF(AND(D40<>"",QCData!D40=""),"N",IF(AND(D40<>"",QCData!D40<>"",D40<>QCData!D40),"C",IF(AND(QCData!D40<>"",D40=""),"D","no cd er")))) -> N | FE40: =IF(E40=QCData!E40,"S",IF(AND(E40<>"",QCData!E40=""),"N",IF(AND(E40<>"",QCData!E40<>"",E40<>QCData!E40),"C",IF(AND(QCData!E40<>"",E40=""),"D","no cd er")))) -> N | FF40: =IF(F40=QCData!F40,"S",IF(AND(F40<>"",QCData!F40=""),"N",IF(AND(F40<>"",QCData!F40<>"",F40<>QCData!F40),"C",IF(AND(QCData!F40<>"",F40=""),"D","no cd er")))) -> N | FG40: =IF(G40=QCData!G40,"S",IF(AND(G40<>"",QCData!G40=""),"N",IF(AND(G40<>"",QCData!G40<>"",G40<>QCData!G40),"C",IF(AND(QCData!G40<>"",G40=""),"D","no cd er")))) -> S | FH40: =IF(H40=QCData!H40,"S",IF(AND(H40<>"",QCData!H40=""),"N",IF(AND(H40<>"",QCData!H40<>"",H40<>QCData!H40),"C",IF(AND(QCData!H40<>"",H40=""),"D","no cd er")))) -> S | FI40: =IF(I40=QCData!I40,"S",IF(AND(I40<>"",QCData!I40=""),"N",IF(AND(I40<>"",QCData!I40<>"",I40<>QCData!I40),"C",IF(AND(QCData!I40<>"",I40=""),"D","no cd er")))) -> N | FJ40: =IF(J40=QCData!J40,"S",IF(AND(J40<>"",QCData!J40=""),"N",IF(AND(J40<>"",QCData!J40<>"",J40<>QCData!J40),"C",IF(AND(QCData!J40<>"",J40=""),"D","no cd er")))) -> N | FK40: =IF(K40=QCData!K40,"S",IF(AND(K40<>"",QCData!K40=""),"N",IF(AND(K40<>"",QCData!K40<>"",K40<>QCData!K40),"C",IF(AND(QCData!K40<>"",K40=""),"D","no cd er")))) -> N | FL40: =IF(L40=QCData!L40,"S",IF(AND(L40<>"",QCData!L40=""),"N",IF(AND(L40<>"",QCData!L40<>"",L40<>QCData!L40),"C",IF(AND(QCData!L40<>"",L40=""),"D","no cd er")))) -> N | FM40: =IF(M40=QCData!M40,"S",IF(AND(M40<>"",QCData!M40=""),"N",IF(AND(M40<>"",QCData!M40<>"",M40<>QCData!M40),"C",IF(AND(QCData!M40<>"",M40=""),"D","no cd er")))) -> N | FN40: =IF(N40=QCData!N40,"S",IF(AND(N40<>"",QCData!N40=""),"N",IF(AND(N40<>"",QCData!N40<>"",N40<>QCData!N40),"C",IF(AND(QCData!N40<>"",N40=""),"D","no cd er")))) -> N | FO40: =IF(O40=QCData!O40,"S",IF(AND(O40<>"",QCData!O40=""),"N",IF(AND(O40<>"",QCData!O40<>"",O40<>QCData!O40),"C",IF(AND(QCData!O40<>"",O40=""),"D","no cd er")))) -> N | FP40: =IF(P40=QCData!P40,"S",IF(AND(P40<>"",QCData!P40=""),"N",IF(AND(P40<>"",QCData!P40<>"",P40<>QCData!P40),"C",IF(AND(QCData!P40<>"",P40=""),"D","no cd er")))) -> N | FQ40: =IF(Q40=QCData!Q40,"S",IF(AND(Q40<>"",QCData!Q40=""),"N",IF(AND(Q40<>"",QCData!Q40<>"",Q40<>QCData!Q40),"C",IF(AND(QCData!Q40<>"",Q40=""),"D","no cd er")))) -> S | FR40: =IF(R40=QCData!R40,"S",IF(AND(R40<>"",QCData!R40=""),"N",IF(AND(R40<>"",QCData!R40<>"",R40<>QCData!R40),"C",IF(AND(QCData!R40<>"",R40=""),"D","no cd er")))) -> S | FS40: =IF(S40=QCData!S40,"S",IF(AND(S40<>"",QCData!S40=""),"N",IF(AND(S40<>"",QCData!S40<>"",S40<>QCData!S40),"C",IF(AND(QCData!S40<>"",S40=""),"D","no cd er")))) -> N | FT40: =IF(T40=QCData!T40,"S",IF(AND(T40<>"",QCData!T40=""),"N",IF(AND(T40<>"",QCData!T40<>"",T40<>QCData!T40),"C",IF(AND(QCData!T40<>"",T40=""),"D","no cd er")))) -> N | FU40: =IF(U40=QCData!U40,"S",IF(AND(U40<>"",QCData!U40=""),"N",IF(AND(U40<>"",QCData!U40<>"",U40<>QCData!U40),"C",IF(AND(QCData!U40<>"",U40=""),"D","no cd er")))) -> N | FV40: =IF(V40=QCData!V40,"S",IF(AND(V40<>"",QCData!V40=""),"N",IF(AND(V40<>"",QCData!V40<>"",V40<>QCData!V40),"C",IF(AND(QCData!V40<>"",V40=""),"D","no cd er")))) -> N | FW40: =IF(W40=QCData!W40,"S",IF(AND(W40<>"",QCData!W40=""),"N",IF(AND(W40<>"",QCData!W40<>"",W40<>QCData!W40),"C",IF(AND(QCData!W40<>"",W40=""),"D","no cd er")))) -> N | FX40: =IF(X40=QCData!X40,"S",IF(AND(X40<>"",QCData!X40=""),"N",IF(AND(X40<>"",QCData!X40<>"",X40<>QCData!X40),"C",IF(AND(QCData!X40<>"",X40=""),"D","no cd er")))) -> N | FY40: =IF(Y40=QCData!Y40,"S",IF(AND(Y40<>"",QCData!Y40=""),"N",IF(AND(Y40<>"",QCData!Y40<>"",Y40<>QCData!Y40),"C",IF(AND(QCData!Y40<>"",Y40=""),"D","no cd er")))) -> N | FZ40: =IF(Z40=QCData!Z40,"S",IF(AND(Z40<>"",QCData!Z40=""),"N",IF(AND(Z40<>"",QCData!Z40<>"",Z40<>QCData!Z40),"C",IF(AND(QCData!Z40<>"",Z40=""),"D","no cd er")))) -> N
A41: 12 | C41: 0 | D41: 1 | E41: 12 | F41: NO | I41: 100 | J41: 90 | K41: 84 | L41: 71 | M41: 43 | N41: 38 | O41: 35 | P41: 17 | S41: 6 | T41: 5.2 | U41: 93.4 | V41: 92.1 | W41: 92.1 | BA41: 12 | BC41: 0 | BD41: 1 | BE41: 12 | BF41: NO | BI41: 100 | BJ41: 90 | BK41: 84 | BL41: 71 | BM41: 43 | BN41: 38 | BO41: 35 | BP41: 17 | BS41: 6 | BT41: 5.2 | BU41: 93.4 | BV41: 92.1 | BW41: 92.1 | FA41: =IF(A41=QCData!A41,"S",IF(AND(A41<>"",QCData!A41=""),"N",IF(AND(A41<>"",QCData!A41<>"",A41<>QCData!A41),"C",IF(AND(QCData!A41<>"",A41=""),"D","no cd er")))) -> N | FB41: =IF(B41=QCData!B41,"S",IF(AND(B41<>"",QCData!B41=""),"N",IF(AND(B41<>"",QCData!B41<>"",B41<>QCData!B41),"C",IF(AND(QCData!B41<>"",B41=""),"D","no cd er")))) -> S | FC41: =IF(C41=QCData!C41,"S",IF(AND(C41<>"",QCData!C41=""),"N",IF(AND(C41<>"",QCData!C41<>"",C41<>QCData!C41),"C",IF(AND(QCData!C41<>"",C41=""),"D","no cd er")))) -> S | FD41: =IF(D41=QCData!D41,"S",IF(AND(D41<>"",QCData!D41=""),"N",IF(AND(D41<>"",QCData!D41<>"",D41<>QCData!D41),"C",IF(AND(QCData!D41<>"",D41=""),"D","no cd er")))) -> N | FE41: =IF(E41=QCData!E41,"S",IF(AND(E41<>"",QCData!E41=""),"N",IF(AND(E41<>"",QCData!E41<>"",E41<>QCData!E41),"C",IF(AND(QCData!E41<>"",E41=""),"D","no cd er")))) -> N | FF41: =IF(F41=QCData!F41,"S",IF(AND(F41<>"",QCData!F41=""),"N",IF(AND(F41<>"",QCData!F41<>"",F41<>QCData!F41),"C",IF(AND(QCData!F41<>"",F41=""),"D","no cd er")))) -> N | FG41: =IF(G41=QCData!G41,"S",IF(AND(G41<>"",QCData!G41=""),"N",IF(AND(G41<>"",QCData!G41<>"",G41<>QCData!G41),"C",IF(AND(QCData!G41<>"",G41=""),"D","no cd er")))) -> S | FH41: =IF(H41=QCData!H41,"S",IF(AND(H41<>"",QCData!H41=""),"N",IF(AND(H41<>"",QCData!H41<>"",H41<>QCData!H41),"C",IF(AND(QCData!H41<>"",H41=""),"D","no cd er")))) -> S | FI41: =IF(I41=QCData!I41,"S",IF(AND(I41<>"",QCData!I41=""),"N",IF(AND(I41<>"",QCData!I41<>"",I41<>QCData!I41),"C",IF(AND(QCData!I41<>"",I41=""),"D","no cd er")))) -> N | FJ41: =IF(J41=QCData!J41,"S",IF(AND(J41<>"",QCData!J41=""),"N",IF(AND(J41<>"",QCData!J41<>"",J41<>QCData!J41),"C",IF(AND(QCData!J41<>"",J41=""),"D","no cd er")))) -> N | FK41: =IF(K41=QCData!K41,"S",IF(AND(K41<>"",QCData!K41=""),"N",IF(AND(K41<>"",QCData!K41<>"",K41<>QCData!K41),"C",IF(AND(QCData!K41<>"",K41=""),"D","no cd er")))) -> N | FL41: =IF(L41=QCData!L41,"S",IF(AND(L41<>"",QCData!L41=""),"N",IF(AND(L41<>"",QCData!L41<>"",L41<>QCData!L41),"C",IF(AND(QCData!L41<>"",L41=""),"D","no cd er")))) -> N | FM41: =IF(M41=QCData!M41,"S",IF(AND(M41<>"",QCData!M41=""),"N",IF(AND(M41<>"",QCData!M41<>"",M41<>QCData!M41),"C",IF(AND(QCData!M41<>"",M41=""),"D","no cd er")))) -> N | FN41: =IF(N41=QCData!N41,"S",IF(AND(N41<>"",QCData!N41=""),"N",IF(AND(N41<>"",QCData!N41<>"",N41<>QCData!N41),"C",IF(AND(QCData!N41<>"",N41=""),"D","no cd er")))) -> N | FO41: =IF(O41=QCData!O41,"S",IF(AND(O41<>"",QCData!O41=""),"N",IF(AND(O41<>"",QCData!O41<>"",O41<>QCData!O41),"C",IF(AND(QCData!O41<>"",O41=""),"D","no cd er")))) -> N | FP41: =IF(P41=QCData!P41,"S",IF(AND(P41<>"",QCData!P41=""),"N",IF(AND(P41<>"",QCData!P41<>"",P41<>QCData!P41),"C",IF(AND(QCData!P41<>"",P41=""),"D","no cd er")))) -> N | FQ41: =IF(Q41=QCData!Q41,"S",IF(AND(Q41<>"",QCData!Q41=""),"N",IF(AND(Q41<>"",QCData!Q41<>"",Q41<>QCData!Q41),"C",IF(AND(QCData!Q41<>"",Q41=""),"D","no cd er")))) -> S | FR41: =IF(R41=QCData!R41,"S",IF(AND(R41<>"",QCData!R41=""),"N",IF(AND(R41<>"",QCData!R41<>"",R41<>QCData!R41),"C",IF(AND(QCData!R41<>"",R41=""),"D","no cd er")))) -> S | FS41: =IF(S41=QCData!S41,"S",IF(AND(S41<>"",QCData!S41=""),"N",IF(AND(S41<>"",QCData!S41<>"",S41<>QCData!S41),"C",IF(AND(QCData!S41<>"",S41=""),"D","no cd er")))) -> N | FT41: =IF(T41=QCData!T41,"S",IF(AND(T41<>"",QCData!T41=""),"N",IF(AND(T41<>"",QCData!T41<>"",T41<>QCData!T41),"C",IF(AND(QCData!T41<>"",T41=""),"D","no cd er")))) -> N | FU41: =IF(U41=QCData!U41,"S",IF(AND(U41<>"",QCData!U41=""),"N",IF(AND(U41<>"",QCData!U41<>"",U41<>QCData!U41),"C",IF(AND(QCData!U41<>"",U41=""),"D","no cd er")))) -> N | FV41: =IF(V41=QCData!V41,"S",IF(AND(V41<>"",QCData!V41=""),"N",IF(AND(V41<>"",QCData!V41<>"",V41<>QCData!V41),"C",IF(AND(QCData!V41<>"",V41=""),"D","no cd er")))) -> N | FW41: =IF(W41=QCData!W41,"S",IF(AND(W41<>"",QCData!W41=""),"N",IF(AND(W41<>"",QCData!W41<>"",W41<>QCData!W41),"C",IF(AND(QCData!W41<>"",W41=""),"D","no cd er")))) -> N | FX41: =IF(X41=QCData!X41,"S",IF(AND(X41<>"",QCData!X41=""),"N",IF(AND(X41<>"",QCData!X41<>"",X41<>QCData!X41),"C",IF(AND(QCData!X41<>"",X41=""),"D","no cd er")))) -> S | FY41: =IF(Y41=QCData!Y41,"S",IF(AND(Y41<>"",QCData!Y41=""),"N",IF(AND(Y41<>"",QCData!Y41<>"",Y41<>QCData!Y41),"C",IF(AND(QCData!Y41<>"",Y41=""),"D","no cd er")))) -> S | FZ41: =IF(Z41=QCData!Z41,"S",IF(AND(Z41<>"",QCData!Z41=""),"N",IF(AND(Z41<>"",QCData!Z41<>"",Z41<>QCData!Z41),"C",IF(AND(QCData!Z41<>"",Z41=""),"D","no cd er")))) -> S
A42: 13 | B42: 2009-07-20 | C42: 0 | D42: 1 | E42: 13 | F42: NO | I42: 100 | J42: 91 | K42: 86 | L42: 75 | M42: 40 | N42: 33 | O42: 36 | P42: 19 | S42: 5.4 | T42: 5.14 | U42: 93.4 | V42: 92.1 | W42: 92.1 | X42: 3.8 | Y42: 3.9 | Z42: 4 | BA42: 13 | BB42: 40014 | BC42: 0 | BD42: 1 | BE42: 13 | BF42: NO | BI42: 100 | BJ42: 91 | BK42: 86 | BL42: 75 | BM42: 40 | BN42: 33 | BO42: 36 | BP42: 19 | BS42: 5.4 | BT42: 5.14 | BU42: 93.4 | BV42: 92.1 | BW42: 92.1 | BX42: 3.8 | BY42: 3.9 | BZ42: 4 | FA42: =IF(A42=QCData!A42,"S",IF(AND(A42<>"",QCData!A42=""),"N",IF(AND(A42<>"",QCData!A42<>"",A42<>QCData!A42),"C",IF(AND(QCData!A42<>"",A42=""),"D","no cd er")))) -> N | FB42: =IF(B42=QCData!B42,"S",IF(AND(B42<>"",QCData!B42=""),"N",IF(AND(B42<>"",QCData!B42<>"",B42<>QCData!B42),"C",IF(AND(QCData!B42<>"",B42=""),"D","no cd er")))) -> N | FC42: =IF(C42=QCData!C42,"S",IF(AND(C42<>"",QCData!C42=""),"N",IF(AND(C42<>"",QCData!C42<>"",C42<>QCData!C42),"C",IF(AND(QCData!C42<>"",C42=""),"D","no cd er")))) -> S | FD42: =IF(D42=QCData!D42,"S",IF(AND(D42<>"",QCData!D42=""),"N",IF(AND(D42<>"",QCData!D42<>"",D42<>QCData!D42),"C",IF(AND(QCData!D42<>"",D42=""),"D","no cd er")))) -> N | FE42: =IF(E42=QCData!E42,"S",IF(AND(E42<>"",QCData!E42=""),"N",IF(AND(E42<>"",QCData!E42<>"",E42<>QCData!E42),"C",IF(AND(QCData!E42<>"",E42=""),"D","no cd er")))) -> N | FF42: =IF(F42=QCData!F42,"S",IF(AND(F42<>"",QCData!F42=""),"N",IF(AND(F42<>"",QCData!F42<>"",F42<>QCData!F42),"C",IF(AND(QCData!F42<>"",F42=""),"D","no cd er")))) -> N | FG42: =IF(G42=QCData!G42,"S",IF(AND(G42<>"",QCData!G42=""),"N",IF(AND(G42<>"",QCData!G42<>"",G42<>QCData!G42),"C",IF(AND(QCData!G42<>"",G42=""),"D","no cd er")))) -> S | FH42: =IF(H42=QCData!H42,"S",IF(AND(H42<>"",QCData!H42=""),"N",IF(AND(H42<>"",QCData!H42<>"",H42<>QCData!H42),"C",IF(AND(QCData!H42<>"",H42=""),"D","no cd er")))) -> S | FI42: =IF(I42=QCData!I42,"S",IF(AND(I42<>"",QCData!I42=""),"N",IF(AND(I42<>"",QCData!I42<>"",I42<>QCData!I42),"C",IF(AND(QCData!I42<>"",I42=""),"D","no cd er")))) -> N | FJ42: =IF(J42=QCData!J42,"S",IF(AND(J42<>"",QCData!J42=""),"N",IF(AND(J42<>"",QCData!J42<>"",J42<>QCData!J42),"C",IF(AND(QCData!J42<>"",J42=""),"D","no cd er")))) -> N | FK42: =IF(K42=QCData!K42,"S",IF(AND(K42<>"",QCData!K42=""),"N",IF(AND(K42<>"",QCData!K42<>"",K42<>QCData!K42),"C",IF(AND(QCData!K42<>"",K42=""),"D","no cd er")))) -> N | FL42: =IF(L42=QCData!L42,"S",IF(AND(L42<>"",QCData!L42=""),"N",IF(AND(L42<>"",QCData!L42<>"",L42<>QCData!L42),"C",IF(AND(QCData!L42<>"",L42=""),"D","no cd er")))) -> N | FM42: =IF(M42=QCData!M42,"S",IF(AND(M42<>"",QCData!M42=""),"N",IF(AND(M42<>"",QCData!M42<>"",M42<>QCData!M42),"C",IF(AND(QCData!M42<>"",M42=""),"D","no cd er")))) -> N | FN42: =IF(N42=QCData!N42,"S",IF(AND(N42<>"",QCData!N42=""),"N",IF(AND(N42<>"",QCData!N42<>"",N42<>QCData!N42),"C",IF(AND(QCData!N42<>"",N42=""),"D","no cd er")))) -> N | FO42: =IF(O42=QCData!O42,"S",IF(AND(O42<>"",QCData!O42=""),"N",IF(AND(O42<>"",QCData!O42<>"",O42<>QCData!O42),"C",IF(AND(QCData!O42<>"",O42=""),"D","no cd er")))) -> N | FP42: =IF(P42=QCData!P42,"S",IF(AND(P42<>"",QCData!P42=""),"N",IF(AND(P42<>"",QCData!P42<>"",P42<>QCData!P42),"C",IF(AND(QCData!P42<>"",P42=""),"D","no cd er")))) -> N | FQ42: =IF(Q42=QCData!Q42,"S",IF(AND(Q42<>"",QCData!Q42=""),"N",IF(AND(Q42<>"",QCData!Q42<>"",Q42<>QCData!Q42),"C",IF(AND(QCData!Q42<>"",Q42=""),"D","no cd er")))) -> S | FR42: =IF(R42=QCData!R42,"S",IF(AND(R42<>"",QCData!R42=""),"N",IF(AND(R42<>"",QCData!R42<>"",R42<>QCData!R42),"C",IF(AND(QCData!R42<>"",R42=""),"D","no cd er")))) -> S | FS42: =IF(S42=QCData!S42,"S",IF(AND(S42<>"",QCData!S42=""),"N",IF(AND(S42<>"",QCData!S42<>"",S42<>QCData!S42),"C",IF(AND(QCData!S42<>"",S42=""),"D","no cd er")))) -> N | FT42: =IF(T42=QCData!T42,"S",IF(AND(T42<>"",QCData!T42=""),"N",IF(AND(T42<>"",QCData!T42<>"",T42<>QCData!T42),"C",IF(AND(QCData!T42<>"",T42=""),"D","no cd er")))) -> N | FU42: =IF(U42=QCData!U42,"S",IF(AND(U42<>"",QCData!U42=""),"N",IF(AND(U42<>"",QCData!U42<>"",U42<>QCData!U42),"C",IF(AND(QCData!U42<>"",U42=""),"D","no cd er")))) -> N | FV42: =IF(V42=QCData!V42,"S",IF(AND(V42<>"",QCData!V42=""),"N",IF(AND(V42<>"",QCData!V42<>"",V42<>QCData!V42),"C",IF(AND(QCData!V42<>"",V42=""),"D","no cd er")))) -> N | FW42: =IF(W42=QCData!W42,"S",IF(AND(W42<>"",QCData!W42=""),"N",IF(AND(W42<>"",QCData!W42<>"",W42<>QCData!W42),"C",IF(AND(QCData!W42<>"",W42=""),"D","no cd er")))) -> N | FX42: =IF(X42=QCData!X42,"S",IF(AND(X42<>"",QCData!X42=""),"N",IF(AND(X42<>"",QCData!X42<>"",X42<>QCData!X42),"C",IF(AND(QCData!X42<>"",X42=""),"D","no cd er")))) -> N | FY42: =IF(Y42=QCData!Y42,"S",IF(AND(Y42<>"",QCData!Y42=""),"N",IF(AND(Y42<>"",QCData!Y42<>"",Y42<>QCData!Y42),"C",IF(AND(QCData!Y42<>"",Y42=""),"D","no cd er")))) -> N | FZ42: =IF(Z42=QCData!Z42,"S",IF(AND(Z42<>"",QCData!Z42=""),"N",IF(AND(Z42<>"",QCData!Z42<>"",Z42<>QCData!Z42),"C",IF(AND(QCData!Z42<>"",Z42=""),"D","no cd er")))) -> N
A43: 14 | C43: 0 | D43: 1 | E43: 14 | F43: NO | I43: 100 | J43: 94 | K43: 87 | L43: 77 | M43: 41 | N43: 33 | O43: 22 | P43: 18 | S43: 5.8 | T43: 5.2 | U43: 92 | V43: 95 | W43: 96 | BA43: 14 | BC43: 0 | BD43: 1 | BE43: 14 | BF43: NO | BI43: 100 | BJ43: 94 | BK43: 87 | BL43: 77 | BM43: 41 | BN43: 33 | BO43: 22 | BP43: 18 | BS43: 5.8 | BT43: 5.2 | BU43: 92 | BV43: 95 | BW43: 96 | FA43: =IF(A43=QCData!A43,"S",IF(AND(A43<>"",QCData!A43=""),"N",IF(AND(A43<>"",QCData!A43<>"",A43<>QCData!A43),"C",IF(AND(QCData!A43<>"",A43=""),"D","no cd er")))) -> N | FB43: =IF(B43=QCData!B43,"S",IF(AND(B43<>"",QCData!B43=""),"N",IF(AND(B43<>"",QCData!B43<>"",B43<>QCData!B43),"C",IF(AND(QCData!B43<>"",B43=""),"D","no cd er")))) -> S | FC43: =IF(C43=QCData!C43,"S",IF(AND(C43<>"",QCData!C43=""),"N",IF(AND(C43<>"",QCData!C43<>"",C43<>QCData!C43),"C",IF(AND(QCData!C43<>"",C43=""),"D","no cd er")))) -> S | FD43: =IF(D43=QCData!D43,"S",IF(AND(D43<>"",QCData!D43=""),"N",IF(AND(D43<>"",QCData!D43<>"",D43<>QCData!D43),"C",IF(AND(QCData!D43<>"",D43=""),"D","no cd er")))) -> N | FE43: =IF(E43=QCData!E43,"S",IF(AND(E43<>"",QCData!E43=""),"N",IF(AND(E43<>"",QCData!E43<>"",E43<>QCData!E43),"C",IF(AND(QCData!E43<>"",E43=""),"D","no cd er")))) -> N | FF43: =IF(F43=QCData!F43,"S",IF(AND(F43<>"",QCData!F43=""),"N",IF(AND(F43<>"",QCData!F43<>"",F43<>QCData!F43),"C",IF(AND(QCData!F43<>"",F43=""),"D","no cd er")))) -> N | FG43: =IF(G43=QCData!G43,"S",IF(AND(G43<>"",QCData!G43=""),"N",IF(AND(G43<>"",QCData!G43<>"",G43<>QCData!G43),"C",IF(AND(QCData!G43<>"",G43=""),"D","no cd er")))) -> S | FH43: =IF(H43=QCData!H43,"S",IF(AND(H43<>"",QCData!H43=""),"N",IF(AND(H43<>"",QCData!H43<>"",H43<>QCData!H43),"C",IF(AND(QCData!H43<>"",H43=""),"D","no cd er")))) -> S | FI43: =IF(I43=QCData!I43,"S",IF(AND(I43<>"",QCData!I43=""),"N",IF(AND(I43<>"",QCData!I43<>"",I43<>QCData!I43),"C",IF(AND(QCData!I43<>"",I43=""),"D","no cd er")))) -> N | FJ43: =IF(J43=QCData!J43,"S",IF(AND(J43<>"",QCData!J43=""),"N",IF(AND(J43<>"",QCData!J43<>"",J43<>QCData!J43),"C",IF(AND(QCData!J43<>"",J43=""),"D","no cd er")))) -> N | FK43: =IF(K43=QCData!K43,"S",IF(AND(K43<>"",QCData!K43=""),"N",IF(AND(K43<>"",QCData!K43<>"",K43<>QCData!K43),"C",IF(AND(QCData!K43<>"",K43=""),"D","no cd er")))) -> N | FL43: =IF(L43=QCData!L43,"S",IF(AND(L43<>"",QCData!L43=""),"N",IF(AND(L43<>"",QCData!L43<>"",L43<>QCData!L43),"C",IF(AND(QCData!L43<>"",L43=""),"D","no cd er")))) -> N | FM43: =IF(M43=QCData!M43,"S",IF(AND(M43<>"",QCData!M43=""),"N",IF(AND(M43<>"",QCData!M43<>"",M43<>QCData!M43),"C",IF(AND(QCData!M43<>"",M43=""),"D","no cd er")))) -> N | FN43: =IF(N43=QCData!N43,"S",IF(AND(N43<>"",QCData!N43=""),"N",IF(AND(N43<>"",QCData!N43<>"",N43<>QCData!N43),"C",IF(AND(QCData!N43<>"",N43=""),"D","no cd er")))) -> N | FO43: =IF(O43=QCData!O43,"S",IF(AND(O43<>"",QCData!O43=""),"N",IF(AND(O43<>"",QCData!O43<>"",O43<>QCData!O43),"C",IF(AND(QCData!O43<>"",O43=""),"D","no cd er")))) -> N | FP43: =IF(P43=QCData!P43,"S",IF(AND(P43<>"",QCData!P43=""),"N",IF(AND(P43<>"",QCData!P43<>"",P43<>QCData!P43),"C",IF(AND(QCData!P43<>"",P43=""),"D","no cd er")))) -> N | FQ43: =IF(Q43=QCData!Q43,"S",IF(AND(Q43<>"",QCData!Q43=""),"N",IF(AND(Q43<>"",QCData!Q43<>"",Q43<>QCData!Q43),"C",IF(AND(QCData!Q43<>"",Q43=""),"D","no cd er")))) -> S | FR43: =IF(R43=QCData!R43,"S",IF(AND(R43<>"",QCData!R43=""),"N",IF(AND(R43<>"",QCData!R43<>"",R43<>QCData!R43),"C",IF(AND(QCData!R43<>"",R43=""),"D","no cd er")))) -> S | FS43: =IF(S43=QCData!S43,"S",IF(AND(S43<>"",QCData!S43=""),"N",IF(AND(S43<>"",QCData!S43<>"",S43<>QCData!S43),"C",IF(AND(QCData!S43<>"",S43=""),"D","no cd er")))) -> N | FT43: =IF(T43=QCData!T43,"S",IF(AND(T43<>"",QCData!T43=""),"N",IF(AND(T43<>"",QCData!T43<>"",T43<>QCData!T43),"C",IF(AND(QCData!T43<>"",T43=""),"D","no cd er")))) -> N | FU43: =IF(U43=QCData!U43,"S",IF(AND(U43<>"",QCData!U43=""),"N",IF(AND(U43<>"",QCData!U43<>"",U43<>QCData!U43),"C",IF(AND(QCData!U43<>"",U43=""),"D","no cd er")))) -> N | FV43: =IF(V43=QCData!V43,"S",IF(AND(V43<>"",QCData!V43=""),"N",IF(AND(V43<>"",QCData!V43<>"",V43<>QCData!V43),"C",IF(AND(QCData!V43<>"",V43=""),"D","no cd er")))) -> N | FW43: =IF(W43=QCData!W43,"S",IF(AND(W43<>"",QCData!W43=""),"N",IF(AND(W43<>"",QCData!W43<>"",W43<>QCData!W43),"C",IF(AND(QCData!W43<>"",W43=""),"D","no cd er")))) -> N | FX43: =IF(X43=QCData!X43,"S",IF(AND(X43<>"",QCData!X43=""),"N",IF(AND(X43<>"",QCData!X43<>"",X43<>QCData!X43),"C",IF(AND(QCData!X43<>"",X43=""),"D","no cd er")))) -> S | FY43: =IF(Y43=QCData!Y43,"S",IF(AND(Y43<>"",QCData!Y43=""),"N",IF(AND(Y43<>"",QCData!Y43<>"",Y43<>QCData!Y43),"C",IF(AND(QCData!Y43<>"",Y43=""),"D","no cd er")))) -> S | FZ43: =IF(Z43=QCData!Z43,"S",IF(AND(Z43<>"",QCData!Z43=""),"N",IF(AND(Z43<>"",QCData!Z43<>"",Z43<>QCData!Z43),"C",IF(AND(QCData!Z43<>"",Z43=""),"D","no cd er")))) -> S
A44: 15 | B44: 2009-07-24 | C44: 0 | D44: 1 | E44: 15 | F44: NO | I44: 100 | J44: 93 | K44: 87 | L44: 77 | M44: 46 | N44: 39 | O44: 29 | P44: 17 | S44: 4.9 | T44: 5.24 | U44: 93.1 | V44: 94.1 | W44: 95.1 | X44: 4.5 | Y44: 4.6 | Z44: 4.7 | BA44: 15 | BB44: 40018 | BC44: 0 | BD44: 1 | BE44: 15 | BF44: NO | BI44: 100 | BJ44: 93 | BK44: 87 | BL44: 77 | BM44: 46 | BN44: 39 | BO44: 29 | BP44: 17 | BS44: 4.9 | BT44: 5.24 | BU44: 93.1 | BV44: 94.1 | BW44: 95.1 | BX44: 4.5 | BY44: 4.6 | BZ44: 4.7 | FA44: =IF(A44=QCData!A44,"S",IF(AND(A44<>"",QCData!A44=""),"N",IF(AND(A44<>"",QCData!A44<>"",A44<>QCData!A44),"C",IF(AND(QCData!A44<>"",A44=""),"D","no cd er")))) -> N | FB44: =IF(B44=QCData!B44,"S",IF(AND(B44<>"",QCData!B44=""),"N",IF(AND(B44<>"",QCData!B44<>"",B44<>QCData!B44),"C",IF(AND(QCData!B44<>"",B44=""),"D","no cd er")))) -> N | FC44: =IF(C44=QCData!C44,"S",IF(AND(C44<>"",QCData!C44=""),"N",IF(AND(C44<>"",QCData!C44<>"",C44<>QCData!C44),"C",IF(AND(QCData!C44<>"",C44=""),"D","no cd er")))) -> S | FD44: =IF(D44=QCData!D44,"S",IF(AND(D44<>"",QCData!D44=""),"N",IF(AND(D44<>"",QCData!D44<>"",D44<>QCData!D44),"C",IF(AND(QCData!D44<>"",D44=""),"D","no cd er")))) -> N | FE44: =IF(E44=QCData!E44,"S",IF(AND(E44<>"",QCData!E44=""),"N",IF(AND(E44<>"",QCData!E44<>"",E44<>QCData!E44),"C",IF(AND(QCData!E44<>"",E44=""),"D","no cd er")))) -> N | FF44: =IF(F44=QCData!F44,"S",IF(AND(F44<>"",QCData!F44=""),"N",IF(AND(F44<>"",QCData!F44<>"",F44<>QCData!F44),"C",IF(AND(QCData!F44<>"",F44=""),"D","no cd er")))) -> N | FG44: =IF(G44=QCData!G44,"S",IF(AND(G44<>"",QCData!G44=""),"N",IF(AND(G44<>"",QCData!G44<>"",G44<>QCData!G44),"C",IF(AND(QCData!G44<>"",G44=""),"D","no cd er")))) -> S | FH44: =IF(H44=QCData!H44,"S",IF(AND(H44<>"",QCData!H44=""),"N",IF(AND(H44<>"",QCData!H44<>"",H44<>QCData!H44),"C",IF(AND(QCData!H44<>"",H44=""),"D","no cd er")))) -> S | FI44: =IF(I44=QCData!I44,"S",IF(AND(I44<>"",QCData!I44=""),"N",IF(AND(I44<>"",QCData!I44<>"",I44<>QCData!I44),"C",IF(AND(QCData!I44<>"",I44=""),"D","no cd er")))) -> N | FJ44: =IF(J44=QCData!J44,"S",IF(AND(J44<>"",QCData!J44=""),"N",IF(AND(J44<>"",QCData!J44<>"",J44<>QCData!J44),"C",IF(AND(QCData!J44<>"",J44=""),"D","no cd er")))) -> N | FK44: =IF(K44=QCData!K44,"S",IF(AND(K44<>"",QCData!K44=""),"N",IF(AND(K44<>"",QCData!K44<>"",K44<>QCData!K44),"C",IF(AND(QCData!K44<>"",K44=""),"D","no cd er")))) -> N | FL44: =IF(L44=QCData!L44,"S",IF(AND(L44<>"",QCData!L44=""),"N",IF(AND(L44<>"",QCData!L44<>"",L44<>QCData!L44),"C",IF(AND(QCData!L44<>"",L44=""),"D","no cd er")))) -> N | FM44: =IF(M44=QCData!M44,"S",IF(AND(M44<>"",QCData!M44=""),"N",IF(AND(M44<>"",QCData!M44<>"",M44<>QCData!M44),"C",IF(AND(QCData!M44<>"",M44=""),"D","no cd er")))) -> N | FN44: =IF(N44=QCData!N44,"S",IF(AND(N44<>"",QCData!N44=""),"N",IF(AND(N44<>"",QCData!N44<>"",N44<>QCData!N44),"C",IF(AND(QCData!N44<>"",N44=""),"D","no cd er")))) -> N | FO44: =IF(O44=QCData!O44,"S",IF(AND(O44<>"",QCData!O44=""),"N",IF(AND(O44<>"",QCData!O44<>"",O44<>QCData!O44),"C",IF(AND(QCData!O44<>"",O44=""),"D","no cd er")))) -> N | FP44: =IF(P44=QCData!P44,"S",IF(AND(P44<>"",QCData!P44=""),"N",IF(AND(P44<>"",QCData!P44<>"",P44<>QCData!P44),"C",IF(AND(QCData!P44<>"",P44=""),"D","no cd er")))) -> N | FQ44: =IF(Q44=QCData!Q44,"S",IF(AND(Q44<>"",QCData!Q44=""),"N",IF(AND(Q44<>"",QCData!Q44<>"",Q44<>QCData!Q44),"C",IF(AND(QCData!Q44<>"",Q44=""),"D","no cd er")))) -> S | FR44: =IF(R44=QCData!R44,"S",IF(AND(R44<>"",QCData!R44=""),"N",IF(AND(R44<>"",QCData!R44<>"",R44<>QCData!R44),"C",IF(AND(QCData!R44<>"",R44=""),"D","no cd er")))) -> S | FS44: =IF(S44=QCData!S44,"S",IF(AND(S44<>"",QCData!S44=""),"N",IF(AND(S44<>"",QCData!S44<>"",S44<>QCData!S44),"C",IF(AND(QCData!S44<>"",S44=""),"D","no cd er")))) -> N | FT44: =IF(T44=QCData!T44,"S",IF(AND(T44<>"",QCData!T44=""),"N",IF(AND(T44<>"",QCData!T44<>"",T44<>QCData!T44),"C",IF(AND(QCData!T44<>"",T44=""),"D","no cd er")))) -> N | FU44: =IF(U44=QCData!U44,"S",IF(AND(U44<>"",QCData!U44=""),"N",IF(AND(U44<>"",QCData!U44<>"",U44<>QCData!U44),"C",IF(AND(QCData!U44<>"",U44=""),"D","no cd er")))) -> N | FV44: =IF(V44=QCData!V44,"S",IF(AND(V44<>"",QCData!V44=""),"N",IF(AND(V44<>"",QCData!V44<>"",V44<>QCData!V44),"C",IF(AND(QCData!V44<>"",V44=""),"D","no cd er")))) -> N | FW44: =IF(W44=QCData!W44,"S",IF(AND(W44<>"",QCData!W44=""),"N",IF(AND(W44<>"",QCData!W44<>"",W44<>QCData!W44),"C",IF(AND(QCData!W44<>"",W44=""),"D","no cd er")))) -> N | FX44: =IF(X44=QCData!X44,"S",IF(AND(X44<>"",QCData!X44=""),"N",IF(AND(X44<>"",QCData!X44<>"",X44<>QCData!X44),"C",IF(AND(QCData!X44<>"",X44=""),"D","no cd er")))) -> N | FY44: =IF(Y44=QCData!Y44,"S",IF(AND(Y44<>"",QCData!Y44=""),"N",IF(AND(Y44<>"",QCData!Y44<>"",Y44<>QCData!Y44),"C",IF(AND(QCData!Y44<>"",Y44=""),"D","no cd er")))) -> N | FZ44: =IF(Z44=QCData!Z44,"S",IF(AND(Z44<>"",QCData!Z44=""),"N",IF(AND(Z44<>"",QCData!Z44<>"",Z44<>QCData!Z44),"C",IF(AND(QCData!Z44<>"",Z44=""),"D","no cd er")))) -> N
A45: 16 | B45: 2009-08-23 | C45: 0 | D45: 1 | E45: 16 | F45: NO | I45: 100 | J45: 99 | K45: 86 | L45: 77 | M45: 46 | N45: 38 | O45: 23 | P45: 16 | S45: 6.8 | T45: 4.91 | U45: 93.1 | V45: 94.1 | W45: 95.1 | BA45: 16 | BB45: 40048 | BC45: 0 | BD45: 1 | BE45: 16 | BF45: NO | BI45: 100 | BJ45: 99 | BK45: 86 | BL45: 77 | BM45: 46 | BN45: 38 | BO45: 23 | BP45: 16 | BS45: 6.8 | BT45: 4.91 | BU45: 93.1 | BV45: 94.1 | BW45: 95.1 | FA45: =IF(A45=QCData!A45,"S",IF(AND(A45<>"",QCData!A45=""),"N",IF(AND(A45<>"",QCData!A45<>"",A45<>QCData!A45),"C",IF(AND(QCData!A45<>"",A45=""),"D","no cd er")))) -> N | FB45: =IF(B45=QCData!B45,"S",IF(AND(B45<>"",QCData!B45=""),"N",IF(AND(B45<>"",QCData!B45<>"",B45<>QCData!B45),"C",IF(AND(QCData!B45<>"",B45=""),"D","no cd er")))) -> N | FC45: =IF(C45=QCData!C45,"S",IF(AND(C45<>"",QCData!C45=""),"N",IF(AND(C45<>"",QCData!C45<>"",C45<>QCData!C45),"C",IF(AND(QCData!C45<>"",C45=""),"D","no cd er")))) -> S | FD45: =IF(D45=QCData!D45,"S",IF(AND(D45<>"",QCData!D45=""),"N",IF(AND(D45<>"",QCData!D45<>"",D45<>QCData!D45),"C",IF(AND(QCData!D45<>"",D45=""),"D","no cd er")))) -> N | FE45: =IF(E45=QCData!E45,"S",IF(AND(E45<>"",QCData!E45=""),"N",IF(AND(E45<>"",QCData!E45<>"",E45<>QCData!E45),"C",IF(AND(QCData!E45<>"",E45=""),"D","no cd er")))) -> N | FF45: =IF(F45=QCData!F45,"S",IF(AND(F45<>"",QCData!F45=""),"N",IF(AND(F45<>"",QCData!F45<>"",F45<>QCData!F45),"C",IF(AND(QCData!F45<>"",F45=""),"D","no cd er")))) -> N | FG45: =IF(G45=QCData!G45,"S",IF(AND(G45<>"",QCData!G45=""),"N",IF(AND(G45<>"",QCData!G45<>"",G45<>QCData!G45),"C",IF(AND(QCData!G45<>"",G45=""),"D","no cd er")))) -> S | FH45: =IF(H45=QCData!H45,"S",IF(AND(H45<>"",QCData!H45=""),"N",IF(AND(H45<>"",QCData!H45<>"",H45<>QCData!H45),"C",IF(AND(QCData!H45<>"",H45=""),"D","no cd er")))) -> S | FI45: =IF(I45=QCData!I45,"S",IF(AND(I45<>"",QCData!I45=""),"N",IF(AND(I45<>"",QCData!I45<>"",I45<>QCData!I45),"C",IF(AND(QCData!I45<>"",I45=""),"D","no cd er")))) -> N | FJ45: =IF(J45=QCData!J45,"S",IF(AND(J45<>"",QCData!J45=""),"N",IF(AND(J45<>"",QCData!J45<>"",J45<>QCData!J45),"C",IF(AND(QCData!J45<>"",J45=""),"D","no cd er")))) -> N | FK45: =IF(K45=QCData!K45,"S",IF(AND(K45<>"",QCData!K45=""),"N",IF(AND(K45<>"",QCData!K45<>"",K45<>QCData!K45),"C",IF(AND(QCData!K45<>"",K45=""),"D","no cd er")))) -> N | FL45: =IF(L45=QCData!L45,"S",IF(AND(L45<>"",QCData!L45=""),"N",IF(AND(L45<>"",QCData!L45<>"",L45<>QCData!L45),"C",IF(AND(QCData!L45<>"",L45=""),"D","no cd er")))) -> N | FM45: =IF(M45=QCData!M45,"S",IF(AND(M45<>"",QCData!M45=""),"N",IF(AND(M45<>"",QCData!M45<>"",M45<>QCData!M45),"C",IF(AND(QCData!M45<>"",M45=""),"D","no cd er")))) -> N | FN45: =IF(N45=QCData!N45,"S",IF(AND(N45<>"",QCData!N45=""),"N",IF(AND(N45<>"",QCData!N45<>"",N45<>QCData!N45),"C",IF(AND(QCData!N45<>"",N45=""),"D","no cd er")))) -> N | FO45: =IF(O45=QCData!O45,"S",IF(AND(O45<>"",QCData!O45=""),"N",IF(AND(O45<>"",QCData!O45<>"",O45<>QCData!O45),"C",IF(AND(QCData!O45<>"",O45=""),"D","no cd er")))) -> N | FP45: =IF(P45=QCData!P45,"S",IF(AND(P45<>"",QCData!P45=""),"N",IF(AND(P45<>"",QCData!P45<>"",P45<>QCData!P45),"C",IF(AND(QCData!P45<>"",P45=""),"D","no cd er")))) -> N | FQ45: =IF(Q45=QCData!Q45,"S",IF(AND(Q45<>"",QCData!Q45=""),"N",IF(AND(Q45<>"",QCData!Q45<>"",Q45<>QCData!Q45),"C",IF(AND(QCData!Q45<>"",Q45=""),"D","no cd er")))) -> S | FR45: =IF(R45=QCData!R45,"S",IF(AND(R45<>"",QCData!R45=""),"N",IF(AND(R45<>"",QCData!R45<>"",R45<>QCData!R45),"C",IF(AND(QCData!R45<>"",R45=""),"D","no cd er")))) -> S | FS45: =IF(S45=QCData!S45,"S",IF(AND(S45<>"",QCData!S45=""),"N",IF(AND(S45<>"",QCData!S45<>"",S45<>QCData!S45),"C",IF(AND(QCData!S45<>"",S45=""),"D","no cd er")))) -> N | FT45: =IF(T45=QCData!T45,"S",IF(AND(T45<>"",QCData!T45=""),"N",IF(AND(T45<>"",QCData!T45<>"",T45<>QCData!T45),"C",IF(AND(QCData!T45<>"",T45=""),"D","no cd er")))) -> N | FU45: =IF(U45=QCData!U45,"S",IF(AND(U45<>"",QCData!U45=""),"N",IF(AND(U45<>"",QCData!U45<>"",U45<>QCData!U45),"C",IF(AND(QCData!U45<>"",U45=""),"D","no cd er")))) -> N | FV45: =IF(V45=QCData!V45,"S",IF(AND(V45<>"",QCData!V45=""),"N",IF(AND(V45<>"",QCData!V45<>"",V45<>QCData!V45),"C",IF(AND(QCData!V45<>"",V45=""),"D","no cd er")))) -> N | FW45: =IF(W45=QCData!W45,"S",IF(AND(W45<>"",QCData!W45=""),"N",IF(AND(W45<>"",QCData!W45<>"",W45<>QCData!W45),"C",IF(AND(QCData!W45<>"",W45=""),"D","no cd er")))) -> N | FX45: =IF(X45=QCData!X45,"S",IF(AND(X45<>"",QCData!X45=""),"N",IF(AND(X45<>"",QCData!X45<>"",X45<>QCData!X45),"C",IF(AND(QCData!X45<>"",X45=""),"D","no cd er")))) -> S | FY45: =IF(Y45=QCData!Y45,"S",IF(AND(Y45<>"",QCData!Y45=""),"N",IF(AND(Y45<>"",QCData!Y45<>"",Y45<>QCData!Y45),"C",IF(AND(QCData!Y45<>"",Y45=""),"D","no cd er")))) -> S | FZ45: =IF(Z45=QCData!Z45,"S",IF(AND(Z45<>"",QCData!Z45=""),"N",IF(AND(Z45<>"",QCData!Z45<>"",Z45<>QCData!Z45),"C",IF(AND(QCData!Z45<>"",Z45=""),"D","no cd er")))) -> S
A46: 17 | C46: 0 | D46: 1 | E46: 17 | F46: NO | I46: 100 | J46: 93 | K46: 85 | L46: 77 | M46: 44 | N46: 36 | O46: 35 | P46: 15 | S46: 6.5 | T46: 5.05 | U46: 93.4 | V46: 92.1 | W46: 92.1 | X46: 3.2 | Y46: 3.3 | Z46: 3.4 | BA46: 17 | BC46: 0 | BD46: 1 | BE46: 17 | BF46: NO | BI46: 100 | BJ46: 93 | BK46: 85 | BL46: 77 | BM46: 44 | BN46: 36 | BO46: 35 | BP46: 15 | BS46: 6.5 | BT46: 5.05 | BU46: 93.4 | BV46: 92.1 | BW46: 92.1 | BX46: 3.2 | BY46: 3.3 | BZ46: 3.4 | FA46: =IF(A46=QCData!A46,"S",IF(AND(A46<>"",QCData!A46=""),"N",IF(AND(A46<>"",QCData!A46<>"",A46<>QCData!A46),"C",IF(AND(QCData!A46<>"",A46=""),"D","no cd er")))) -> N | FB46: =IF(B46=QCData!B46,"S",IF(AND(B46<>"",QCData!B46=""),"N",IF(AND(B46<>"",QCData!B46<>"",B46<>QCData!B46),"C",IF(AND(QCData!B46<>"",B46=""),"D","no cd er")))) -> S | FC46: =IF(C46=QCData!C46,"S",IF(AND(C46<>"",QCData!C46=""),"N",IF(AND(C46<>"",QCData!C46<>"",C46<>QCData!C46),"C",IF(AND(QCData!C46<>"",C46=""),"D","no cd er")))) -> S | FD46: =IF(D46=QCData!D46,"S",IF(AND(D46<>"",QCData!D46=""),"N",IF(AND(D46<>"",QCData!D46<>"",D46<>QCData!D46),"C",IF(AND(QCData!D46<>"",D46=""),"D","no cd er")))) -> N | FE46: =IF(E46=QCData!E46,"S",IF(AND(E46<>"",QCData!E46=""),"N",IF(AND(E46<>"",QCData!E46<>"",E46<>QCData!E46),"C",IF(AND(QCData!E46<>"",E46=""),"D","no cd er")))) -> N | FF46: =IF(F46=QCData!F46,"S",IF(AND(F46<>"",QCData!F46=""),"N",IF(AND(F46<>"",QCData!F46<>"",F46<>QCData!F46),"C",IF(AND(QCData!F46<>"",F46=""),"D","no cd er")))) -> N | FG46: =IF(G46=QCData!G46,"S",IF(AND(G46<>"",QCData!G46=""),"N",IF(AND(G46<>"",QCData!G46<>"",G46<>QCData!G46),"C",IF(AND(QCData!G46<>"",G46=""),"D","no cd er")))) -> S | FH46: =IF(H46=QCData!H46,"S",IF(AND(H46<>"",QCData!H46=""),"N",IF(AND(H46<>"",QCData!H46<>"",H46<>QCData!H46),"C",IF(AND(QCData!H46<>"",H46=""),"D","no cd er")))) -> S | FI46: =IF(I46=QCData!I46,"S",IF(AND(I46<>"",QCData!I46=""),"N",IF(AND(I46<>"",QCData!I46<>"",I46<>QCData!I46),"C",IF(AND(QCData!I46<>"",I46=""),"D","no cd er")))) -> N | FJ46: =IF(J46=QCData!J46,"S",IF(AND(J46<>"",QCData!J46=""),"N",IF(AND(J46<>"",QCData!J46<>"",J46<>QCData!J46),"C",IF(AND(QCData!J46<>"",J46=""),"D","no cd er")))) -> N | FK46: =IF(K46=QCData!K46,"S",IF(AND(K46<>"",QCData!K46=""),"N",IF(AND(K46<>"",QCData!K46<>"",K46<>QCData!K46),"C",IF(AND(QCData!K46<>"",K46=""),"D","no cd er")))) -> N | FL46: =IF(L46=QCData!L46,"S",IF(AND(L46<>"",QCData!L46=""),"N",IF(AND(L46<>"",QCData!L46<>"",L46<>QCData!L46),"C",IF(AND(QCData!L46<>"",L46=""),"D","no cd er")))) -> N | FM46: =IF(M46=QCData!M46,"S",IF(AND(M46<>"",QCData!M46=""),"N",IF(AND(M46<>"",QCData!M46<>"",M46<>QCData!M46),"C",IF(AND(QCData!M46<>"",M46=""),"D","no cd er")))) -> N | FN46: =IF(N46=QCData!N46,"S",IF(AND(N46<>"",QCData!N46=""),"N",IF(AND(N46<>"",QCData!N46<>"",N46<>QCData!N46),"C",IF(AND(QCData!N46<>"",N46=""),"D","no cd er")))) -> N | FO46: =IF(O46=QCData!O46,"S",IF(AND(O46<>"",QCData!O46=""),"N",IF(AND(O46<>"",QCData!O46<>"",O46<>QCData!O46),"C",IF(AND(QCData!O46<>"",O46=""),"D","no cd er")))) -> N | FP46: =IF(P46=QCData!P46,"S",IF(AND(P46<>"",QCData!P46=""),"N",IF(AND(P46<>"",QCData!P46<>"",P46<>QCData!P46),"C",IF(AND(QCData!P46<>"",P46=""),"D","no cd er")))) -> N | FQ46: =IF(Q46=QCData!Q46,"S",IF(AND(Q46<>"",QCData!Q46=""),"N",IF(AND(Q46<>"",QCData!Q46<>"",Q46<>QCData!Q46),"C",IF(AND(QCData!Q46<>"",Q46=""),"D","no cd er")))) -> S | FR46: =IF(R46=QCData!R46,"S",IF(AND(R46<>"",QCData!R46=""),"N",IF(AND(R46<>"",QCData!R46<>"",R46<>QCData!R46),"C",IF(AND(QCData!R46<>"",R46=""),"D","no cd er")))) -> S | FS46: =IF(S46=QCData!S46,"S",IF(AND(S46<>"",QCData!S46=""),"N",IF(AND(S46<>"",QCData!S46<>"",S46<>QCData!S46),"C",IF(AND(QCData!S46<>"",S46=""),"D","no cd er")))) -> N | FT46: =IF(T46=QCData!T46,"S",IF(AND(T46<>"",QCData!T46=""),"N",IF(AND(T46<>"",QCData!T46<>"",T46<>QCData!T46),"C",IF(AND(QCData!T46<>"",T46=""),"D","no cd er")))) -> N | FU46: =IF(U46=QCData!U46,"S",IF(AND(U46<>"",QCData!U46=""),"N",IF(AND(U46<>"",QCData!U46<>"",U46<>QCData!U46),"C",IF(AND(QCData!U46<>"",U46=""),"D","no cd er")))) -> N | FV46: =IF(V46=QCData!V46,"S",IF(AND(V46<>"",QCData!V46=""),"N",IF(AND(V46<>"",QCData!V46<>"",V46<>QCData!V46),"C",IF(AND(QCData!V46<>"",V46=""),"D","no cd er")))) -> N | FW46: =IF(W46=QCData!W46,"S",IF(AND(W46<>"",QCData!W46=""),"N",IF(AND(W46<>"",QCData!W46<>"",W46<>QCData!W46),"C",IF(AND(QCData!W46<>"",W46=""),"D","no cd er")))) -> N | FX46: =IF(X46=QCData!X46,"S",IF(AND(X46<>"",QCData!X46=""),"N",IF(AND(X46<>"",QCData!X46<>"",X46<>QCData!X46),"C",IF(AND(QCData!X46<>"",X46=""),"D","no cd er")))) -> N | FY46: =IF(Y46=QCData!Y46,"S",IF(AND(Y46<>"",QCData!Y46=""),"N",IF(AND(Y46<>"",QCData!Y46<>"",Y46<>QCData!Y46),"C",IF(AND(QCData!Y46<>"",Y46=""),"D","no cd er")))) -> N | FZ46: =IF(Z46=QCData!Z46,"S",IF(AND(Z46<>"",QCData!Z46=""),"N",IF(AND(Z46<>"",QCData!Z46<>"",Z46<>QCData!Z46),"C",IF(AND(QCData!Z46<>"",Z46=""),"D","no cd er")))) -> N
A47: 18 | C47: 0 | D47: 1 | E47: 18 | F47: NO | I47: 100 | J47: 90 | K47: 84 | L47: 71 | M47: 46 | N47: 37 | O47: 36 | P47: 14 | S47: 6.6 | T47: 5.03 | U47: 92 | V47: 95 | W47: 96 | BA47: 18 | BC47: 0 | BD47: 1 | BE47: 18 | BF47: NO | BI47: 100 | BJ47: 90 | BK47: 84 | BL47: 71 | BM47: 46 | BN47: 37 | BO47: 36 | BP47: 14 | BS47: 6.6 | BT47: 5.03 | BU47: 92 | BV47: 95 | BW47: 96 | FA47: =IF(A47=QCData!A47,"S",IF(AND(A47<>"",QCData!A47=""),"N",IF(AND(A47<>"",QCData!A47<>"",A47<>QCData!A47),"C",IF(AND(QCData!A47<>"",A47=""),"D","no cd er")))) -> N | FB47: =IF(B47=QCData!B47,"S",IF(AND(B47<>"",QCData!B47=""),"N",IF(AND(B47<>"",QCData!B47<>"",B47<>QCData!B47),"C",IF(AND(QCData!B47<>"",B47=""),"D","no cd er")))) -> S | FC47: =IF(C47=QCData!C47,"S",IF(AND(C47<>"",QCData!C47=""),"N",IF(AND(C47<>"",QCData!C47<>"",C47<>QCData!C47),"C",IF(AND(QCData!C47<>"",C47=""),"D","no cd er")))) -> S | FD47: =IF(D47=QCData!D47,"S",IF(AND(D47<>"",QCData!D47=""),"N",IF(AND(D47<>"",QCData!D47<>"",D47<>QCData!D47),"C",IF(AND(QCData!D47<>"",D47=""),"D","no cd er")))) -> N | FE47: =IF(E47=QCData!E47,"S",IF(AND(E47<>"",QCData!E47=""),"N",IF(AND(E47<>"",QCData!E47<>"",E47<>QCData!E47),"C",IF(AND(QCData!E47<>"",E47=""),"D","no cd er")))) -> N | FF47: =IF(F47=QCData!F47,"S",IF(AND(F47<>"",QCData!F47=""),"N",IF(AND(F47<>"",QCData!F47<>"",F47<>QCData!F47),"C",IF(AND(QCData!F47<>"",F47=""),"D","no cd er")))) -> N | FG47: =IF(G47=QCData!G47,"S",IF(AND(G47<>"",QCData!G47=""),"N",IF(AND(G47<>"",QCData!G47<>"",G47<>QCData!G47),"C",IF(AND(QCData!G47<>"",G47=""),"D","no cd er")))) -> S | FH47: =IF(H47=QCData!H47,"S",IF(AND(H47<>"",QCData!H47=""),"N",IF(AND(H47<>"",QCData!H47<>"",H47<>QCData!H47),"C",IF(AND(QCData!H47<>"",H47=""),"D","no cd er")))) -> S | FI47: =IF(I47=QCData!I47,"S",IF(AND(I47<>"",QCData!I47=""),"N",IF(AND(I47<>"",QCData!I47<>"",I47<>QCData!I47),"C",IF(AND(QCData!I47<>"",I47=""),"D","no cd er")))) -> N | FJ47: =IF(J47=QCData!J47,"S",IF(AND(J47<>"",QCData!J47=""),"N",IF(AND(J47<>"",QCData!J47<>"",J47<>QCData!J47),"C",IF(AND(QCData!J47<>"",J47=""),"D","no cd er")))) -> N | FK47: =IF(K47=QCData!K47,"S",IF(AND(K47<>"",QCData!K47=""),"N",IF(AND(K47<>"",QCData!K47<>"",K47<>QCData!K47),"C",IF(AND(QCData!K47<>"",K47=""),"D","no cd er")))) -> N | FL47: =IF(L47=QCData!L47,"S",IF(AND(L47<>"",QCData!L47=""),"N",IF(AND(L47<>"",QCData!L47<>"",L47<>QCData!L47),"C",IF(AND(QCData!L47<>"",L47=""),"D","no cd er")))) -> N | FM47: =IF(M47=QCData!M47,"S",IF(AND(M47<>"",QCData!M47=""),"N",IF(AND(M47<>"",QCData!M47<>"",M47<>QCData!M47),"C",IF(AND(QCData!M47<>"",M47=""),"D","no cd er")))) -> N | FN47: =IF(N47=QCData!N47,"S",IF(AND(N47<>"",QCData!N47=""),"N",IF(AND(N47<>"",QCData!N47<>"",N47<>QCData!N47),"C",IF(AND(QCData!N47<>"",N47=""),"D","no cd er")))) -> N | FO47: =IF(O47=QCData!O47,"S",IF(AND(O47<>"",QCData!O47=""),"N",IF(AND(O47<>"",QCData!O47<>"",O47<>QCData!O47),"C",IF(AND(QCData!O47<>"",O47=""),"D","no cd er")))) -> N | FP47: =IF(P47=QCData!P47,"S",IF(AND(P47<>"",QCData!P47=""),"N",IF(AND(P47<>"",QCData!P47<>"",P47<>QCData!P47),"C",IF(AND(QCData!P47<>"",P47=""),"D","no cd er")))) -> N | FQ47: =IF(Q47=QCData!Q47,"S",IF(AND(Q47<>"",QCData!Q47=""),"N",IF(AND(Q47<>"",QCData!Q47<>"",Q47<>QCData!Q47),"C",IF(AND(QCData!Q47<>"",Q47=""),"D","no cd er")))) -> S | FR47: =IF(R47=QCData!R47,"S",IF(AND(R47<>"",QCData!R47=""),"N",IF(AND(R47<>"",QCData!R47<>"",R47<>QCData!R47),"C",IF(AND(QCData!R47<>"",R47=""),"D","no cd er")))) -> S | FS47: =IF(S47=QCData!S47,"S",IF(AND(S47<>"",QCData!S47=""),"N",IF(AND(S47<>"",QCData!S47<>"",S47<>QCData!S47),"C",IF(AND(QCData!S47<>"",S47=""),"D","no cd er")))) -> N | FT47: =IF(T47=QCData!T47,"S",IF(AND(T47<>"",QCData!T47=""),"N",IF(AND(T47<>"",QCData!T47<>"",T47<>QCData!T47),"C",IF(AND(QCData!T47<>"",T47=""),"D","no cd er")))) -> N | FU47: =IF(U47=QCData!U47,"S",IF(AND(U47<>"",QCData!U47=""),"N",IF(AND(U47<>"",QCData!U47<>"",U47<>QCData!U47),"C",IF(AND(QCData!U47<>"",U47=""),"D","no cd er")))) -> N | FV47: =IF(V47=QCData!V47,"S",IF(AND(V47<>"",QCData!V47=""),"N",IF(AND(V47<>"",QCData!V47<>"",V47<>QCData!V47),"C",IF(AND(QCData!V47<>"",V47=""),"D","no cd er")))) -> N | FW47: =IF(W47=QCData!W47,"S",IF(AND(W47<>"",QCData!W47=""),"N",IF(AND(W47<>"",QCData!W47<>"",W47<>QCData!W47),"C",IF(AND(QCData!W47<>"",W47=""),"D","no cd er")))) -> N | FX47: =IF(X47=QCData!X47,"S",IF(AND(X47<>"",QCData!X47=""),"N",IF(AND(X47<>"",QCData!X47<>"",X47<>QCData!X47),"C",IF(AND(QCData!X47<>"",X47=""),"D","no cd er")))) -> S | FY47: =IF(Y47=QCData!Y47,"S",IF(AND(Y47<>"",QCData!Y47=""),"N",IF(AND(Y47<>"",QCData!Y47<>"",Y47<>QCData!Y47),"C",IF(AND(QCData!Y47<>"",Y47=""),"D","no cd er")))) -> S | FZ47: =IF(Z47=QCData!Z47,"S",IF(AND(Z47<>"",QCData!Z47=""),"N",IF(AND(Z47<>"",QCData!Z47<>"",Z47<>QCData!Z47),"C",IF(AND(QCData!Z47<>"",Z47=""),"D","no cd er")))) -> S
A48: 19 | B48: 2009-08-30 | C48: 0 | D48: 1 | E48: 19 | F48: NO | I48: 100 | J48: 89 | K48: 84 | L48: 75 | M48: 45 | N48: 38 | O48: 22 | P48: 13 | S48: 7 | T48: 5.15 | U48: 93.1 | V48: 94.1 | W48: 95.1 | X48: 3 | Y48: 2.9 | Z48: 2.8 | BA48: 19 | BB48: 40055 | BC48: 0 | BD48: 1 | BE48: 19 | BF48: NO | BI48: 100 | BJ48: 89 | BK48: 84 | BL48: 75 | BM48: 45 | BN48: 38 | BO48: 22 | BP48: 13 | BS48: 7 | BT48: 5.15 | BU48: 93.1 | BV48: 94.1 | BW48: 95.1 | BX48: 3 | BY48: 2.9 | BZ48: 2.8 | FA48: =IF(A48=QCData!A48,"S",IF(AND(A48<>"",QCData!A48=""),"N",IF(AND(A48<>"",QCData!A48<>"",A48<>QCData!A48),"C",IF(AND(QCData!A48<>"",A48=""),"D","no cd er")))) -> N | FB48: =IF(B48=QCData!B48,"S",IF(AND(B48<>"",QCData!B48=""),"N",IF(AND(B48<>"",QCData!B48<>"",B48<>QCData!B48),"C",IF(AND(QCData!B48<>"",B48=""),"D","no cd er")))) -> N | FC48: =IF(C48=QCData!C48,"S",IF(AND(C48<>"",QCData!C48=""),"N",IF(AND(C48<>"",QCData!C48<>"",C48<>QCData!C48),"C",IF(AND(QCData!C48<>"",C48=""),"D","no cd er")))) -> S | FD48: =IF(D48=QCData!D48,"S",IF(AND(D48<>"",QCData!D48=""),"N",IF(AND(D48<>"",QCData!D48<>"",D48<>QCData!D48),"C",IF(AND(QCData!D48<>"",D48=""),"D","no cd er")))) -> N | FE48: =IF(E48=QCData!E48,"S",IF(AND(E48<>"",QCData!E48=""),"N",IF(AND(E48<>"",QCData!E48<>"",E48<>QCData!E48),"C",IF(AND(QCData!E48<>"",E48=""),"D","no cd er")))) -> N | FF48: =IF(F48=QCData!F48,"S",IF(AND(F48<>"",QCData!F48=""),"N",IF(AND(F48<>"",QCData!F48<>"",F48<>QCData!F48),"C",IF(AND(QCData!F48<>"",F48=""),"D","no cd er")))) -> N | FG48: =IF(G48=QCData!G48,"S",IF(AND(G48<>"",QCData!G48=""),"N",IF(AND(G48<>"",QCData!G48<>"",G48<>QCData!G48),"C",IF(AND(QCData!G48<>"",G48=""),"D","no cd er")))) -> S | FH48: =IF(H48=QCData!H48,"S",IF(AND(H48<>"",QCData!H48=""),"N",IF(AND(H48<>"",QCData!H48<>"",H48<>QCData!H48),"C",IF(AND(QCData!H48<>"",H48=""),"D","no cd er")))) -> S | FI48: =IF(I48=QCData!I48,"S",IF(AND(I48<>"",QCData!I48=""),"N",IF(AND(I48<>"",QCData!I48<>"",I48<>QCData!I48),"C",IF(AND(QCData!I48<>"",I48=""),"D","no cd er")))) -> N | FJ48: =IF(J48=QCData!J48,"S",IF(AND(J48<>"",QCData!J48=""),"N",IF(AND(J48<>"",QCData!J48<>"",J48<>QCData!J48),"C",IF(AND(QCData!J48<>"",J48=""),"D","no cd er")))) -> N | FK48: =IF(K48=QCData!K48,"S",IF(AND(K48<>"",QCData!K48=""),"N",IF(AND(K48<>"",QCData!K48<>"",K48<>QCData!K48),"C",IF(AND(QCData!K48<>"",K48=""),"D","no cd er")))) -> N | FL48: =IF(L48=QCData!L48,"S",IF(AND(L48<>"",QCData!L48=""),"N",IF(AND(L48<>"",QCData!L48<>"",L48<>QCData!L48),"C",IF(AND(QCData!L48<>"",L48=""),"D","no cd er")))) -> N | FM48: =IF(M48=QCData!M48,"S",IF(AND(M48<>"",QCData!M48=""),"N",IF(AND(M48<>"",QCData!M48<>"",M48<>QCData!M48),"C",IF(AND(QCData!M48<>"",M48=""),"D","no cd er")))) -> N | FN48: =IF(N48=QCData!N48,"S",IF(AND(N48<>"",QCData!N48=""),"N",IF(AND(N48<>"",QCData!N48<>"",N48<>QCData!N48),"C",IF(AND(QCData!N48<>"",N48=""),"D","no cd er")))) -> N | FO48: =IF(O48=QCData!O48,"S",IF(AND(O48<>"",QCData!O48=""),"N",IF(AND(O48<>"",QCData!O48<>"",O48<>QCData!O48),"C",IF(AND(QCData!O48<>"",O48=""),"D","no cd er")))) -> N | FP48: =IF(P48=QCData!P48,"S",IF(AND(P48<>"",QCData!P48=""),"N",IF(AND(P48<>"",QCData!P48<>"",P48<>QCData!P48),"C",IF(AND(QCData!P48<>"",P48=""),"D","no cd er")))) -> N | FQ48: =IF(Q48=QCData!Q48,"S",IF(AND(Q48<>"",QCData!Q48=""),"N",IF(AND(Q48<>"",QCData!Q48<>"",Q48<>QCData!Q48),"C",IF(AND(QCData!Q48<>"",Q48=""),"D","no cd er")))) -> S | FR48: =IF(R48=QCData!R48,"S",IF(AND(R48<>"",QCData!R48=""),"N",IF(AND(R48<>"",QCData!R48<>"",R48<>QCData!R48),"C",IF(AND(QCData!R48<>"",R48=""),"D","no cd er")))) -> S | FS48: =IF(S48=QCData!S48,"S",IF(AND(S48<>"",QCData!S48=""),"N",IF(AND(S48<>"",QCData!S48<>"",S48<>QCData!S48),"C",IF(AND(QCData!S48<>"",S48=""),"D","no cd er")))) -> N | FT48: =IF(T48=QCData!T48,"S",IF(AND(T48<>"",QCData!T48=""),"N",IF(AND(T48<>"",QCData!T48<>"",T48<>QCData!T48),"C",IF(AND(QCData!T48<>"",T48=""),"D","no cd er")))) -> N | FU48: =IF(U48=QCData!U48,"S",IF(AND(U48<>"",QCData!U48=""),"N",IF(AND(U48<>"",QCData!U48<>"",U48<>QCData!U48),"C",IF(AND(QCData!U48<>"",U48=""),"D","no cd er")))) -> N | FV48: =IF(V48=QCData!V48,"S",IF(AND(V48<>"",QCData!V48=""),"N",IF(AND(V48<>"",QCData!V48<>"",V48<>QCData!V48),"C",IF(AND(QCData!V48<>"",V48=""),"D","no cd er")))) -> N | FW48: =IF(W48=QCData!W48,"S",IF(AND(W48<>"",QCData!W48=""),"N",IF(AND(W48<>"",QCData!W48<>"",W48<>QCData!W48),"C",IF(AND(QCData!W48<>"",W48=""),"D","no cd er")))) -> N | FX48: =IF(X48=QCData!X48,"S",IF(AND(X48<>"",QCData!X48=""),"N",IF(AND(X48<>"",QCData!X48<>"",X48<>QCData!X48),"C",IF(AND(QCData!X48<>"",X48=""),"D","no cd er")))) -> N | FY48: =IF(Y48=QCData!Y48,"S",IF(AND(Y48<>"",QCData!Y48=""),"N",IF(AND(Y48<>"",QCData!Y48<>"",Y48<>QCData!Y48),"C",IF(AND(QCData!Y48<>"",Y48=""),"D","no cd er")))) -> N | FZ48: =IF(Z48=QCData!Z48,"S",IF(AND(Z48<>"",QCData!Z48=""),"N",IF(AND(Z48<>"",QCData!Z48<>"",Z48<>QCData!Z48),"C",IF(AND(QCData!Z48<>"",Z48=""),"D","no cd er")))) -> N
A49: 20 | C49: 0 | D49: 1 | E49: 20 | F49: NO | I49: 100 | J49: 90 | K49: 84 | L49: 75 | M49: 48 | N49: 32 | O49: 29 | P49: 12 | S49: 5.2 | T49: 4.8 | U49: 93.4 | V49: 92.1 | W49: 92.1 | BA49: 20 | BC49: 0 | BD49: 1 | BE49: 20 | BF49: NO | BI49: 100 | BJ49: 90 | BK49: 84 | BL49: 75 | BM49: 48 | BN49: 32 | BO49: 29 | BP49: 12 | BS49: 5.2 | BT49: 4.8 | BU49: 93.4 | BV49: 92.1 | BW49: 92.1 | FA49: =IF(A49=QCData!A49,"S",IF(AND(A49<>"",QCData!A49=""),"N",IF(AND(A49<>"",QCData!A49<>"",A49<>QCData!A49),"C",IF(AND(QCData!A49<>"",A49=""),"D","no cd er")))) -> N | FB49: =IF(B49=QCData!B49,"S",IF(AND(B49<>"",QCData!B49=""),"N",IF(AND(B49<>"",QCData!B49<>"",B49<>QCData!B49),"C",IF(AND(QCData!B49<>"",B49=""),"D","no cd er")))) -> S | FC49: =IF(C49=QCData!C49,"S",IF(AND(C49<>"",QCData!C49=""),"N",IF(AND(C49<>"",QCData!C49<>"",C49<>QCData!C49),"C",IF(AND(QCData!C49<>"",C49=""),"D","no cd er")))) -> S | FD49: =IF(D49=QCData!D49,"S",IF(AND(D49<>"",QCData!D49=""),"N",IF(AND(D49<>"",QCData!D49<>"",D49<>QCData!D49),"C",IF(AND(QCData!D49<>"",D49=""),"D","no cd er")))) -> N | FE49: =IF(E49=QCData!E49,"S",IF(AND(E49<>"",QCData!E49=""),"N",IF(AND(E49<>"",QCData!E49<>"",E49<>QCData!E49),"C",IF(AND(QCData!E49<>"",E49=""),"D","no cd er")))) -> N | FF49: =IF(F49=QCData!F49,"S",IF(AND(F49<>"",QCData!F49=""),"N",IF(AND(F49<>"",QCData!F49<>"",F49<>QCData!F49),"C",IF(AND(QCData!F49<>"",F49=""),"D","no cd er")))) -> N | FG49: =IF(G49=QCData!G49,"S",IF(AND(G49<>"",QCData!G49=""),"N",IF(AND(G49<>"",QCData!G49<>"",G49<>QCData!G49),"C",IF(AND(QCData!G49<>"",G49=""),"D","no cd er")))) -> S | FH49: =IF(H49=QCData!H49,"S",IF(AND(H49<>"",QCData!H49=""),"N",IF(AND(H49<>"",QCData!H49<>"",H49<>QCData!H49),"C",IF(AND(QCData!H49<>"",H49=""),"D","no cd er")))) -> S | FI49: =IF(I49=QCData!I49,"S",IF(AND(I49<>"",QCData!I49=""),"N",IF(AND(I49<>"",QCData!I49<>"",I49<>QCData!I49),"C",IF(AND(QCData!I49<>"",I49=""),"D","no cd er")))) -> N | FJ49: =IF(J49=QCData!J49,"S",IF(AND(J49<>"",QCData!J49=""),"N",IF(AND(J49<>"",QCData!J49<>"",J49<>QCData!J49),"C",IF(AND(QCData!J49<>"",J49=""),"D","no cd er")))) -> N | FK49: =IF(K49=QCData!K49,"S",IF(AND(K49<>"",QCData!K49=""),"N",IF(AND(K49<>"",QCData!K49<>"",K49<>QCData!K49),"C",IF(AND(QCData!K49<>"",K49=""),"D","no cd er")))) -> N | FL49: =IF(L49=QCData!L49,"S",IF(AND(L49<>"",QCData!L49=""),"N",IF(AND(L49<>"",QCData!L49<>"",L49<>QCData!L49),"C",IF(AND(QCData!L49<>"",L49=""),"D","no cd er")))) -> N | FM49: =IF(M49=QCData!M49,"S",IF(AND(M49<>"",QCData!M49=""),"N",IF(AND(M49<>"",QCData!M49<>"",M49<>QCData!M49),"C",IF(AND(QCData!M49<>"",M49=""),"D","no cd er")))) -> N | FN49: =IF(N49=QCData!N49,"S",IF(AND(N49<>"",QCData!N49=""),"N",IF(AND(N49<>"",QCData!N49<>"",N49<>QCData!N49),"C",IF(AND(QCData!N49<>"",N49=""),"D","no cd er")))) -> N | FO49: =IF(O49=QCData!O49,"S",IF(AND(O49<>"",QCData!O49=""),"N",IF(AND(O49<>"",QCData!O49<>"",O49<>QCData!O49),"C",IF(AND(QCData!O49<>"",O49=""),"D","no cd er")))) -> N | FP49: =IF(P49=QCData!P49,"S",IF(AND(P49<>"",QCData!P49=""),"N",IF(AND(P49<>"",QCData!P49<>"",P49<>QCData!P49),"C",IF(AND(QCData!P49<>"",P49=""),"D","no cd er")))) -> N | FQ49: =IF(Q49=QCData!Q49,"S",IF(AND(Q49<>"",QCData!Q49=""),"N",IF(AND(Q49<>"",QCData!Q49<>"",Q49<>QCData!Q49),"C",IF(AND(QCData!Q49<>"",Q49=""),"D","no cd er")))) -> S | FR49: =IF(R49=QCData!R49,"S",IF(AND(R49<>"",QCData!R49=""),"N",IF(AND(R49<>"",QCData!R49<>"",R49<>QCData!R49),"C",IF(AND(QCData!R49<>"",R49=""),"D","no cd er")))) -> S | FS49: =IF(S49=QCData!S49,"S",IF(AND(S49<>"",QCData!S49=""),"N",IF(AND(S49<>"",QCData!S49<>"",S49<>QCData!S49),"C",IF(AND(QCData!S49<>"",S49=""),"D","no cd er")))) -> N | FT49: =IF(T49=QCData!T49,"S",IF(AND(T49<>"",QCData!T49=""),"N",IF(AND(T49<>"",QCData!T49<>"",T49<>QCData!T49),"C",IF(AND(QCData!T49<>"",T49=""),"D","no cd er")))) -> N | FU49: =IF(U49=QCData!U49,"S",IF(AND(U49<>"",QCData!U49=""),"N",IF(AND(U49<>"",QCData!U49<>"",U49<>QCData!U49),"C",IF(AND(QCData!U49<>"",U49=""),"D","no cd er")))) -> N | FV49: =IF(V49=QCData!V49,"S",IF(AND(V49<>"",QCData!V49=""),"N",IF(AND(V49<>"",QCData!V49<>"",V49<>QCData!V49),"C",IF(AND(QCData!V49<>"",V49=""),"D","no cd er")))) -> N | FW49: =IF(W49=QCData!W49,"S",IF(AND(W49<>"",QCData!W49=""),"N",IF(AND(W49<>"",QCData!W49<>"",W49<>QCData!W49),"C",IF(AND(QCData!W49<>"",W49=""),"D","no cd er")))) -> N | FX49: =IF(X49=QCData!X49,"S",IF(AND(X49<>"",QCData!X49=""),"N",IF(AND(X49<>"",QCData!X49<>"",X49<>QCData!X49),"C",IF(AND(QCData!X49<>"",X49=""),"D","no cd er")))) -> S | FY49: =IF(Y49=QCData!Y49,"S",IF(AND(Y49<>"",QCData!Y49=""),"N",IF(AND(Y49<>"",QCData!Y49<>"",Y49<>QCData!Y49),"C",IF(AND(QCData!Y49<>"",Y49=""),"D","no cd er")))) -> S | FZ49: =IF(Z49=QCData!Z49,"S",IF(AND(Z49<>"",QCData!Z49=""),"N",IF(AND(Z49<>"",QCData!Z49<>"",Z49<>QCData!Z49),"C",IF(AND(QCData!Z49<>"",Z49=""),"D","no cd er")))) -> S
A50: 21 | C50: 0 | D50: 1 | E50: 21 | F50: NO | I50: 100 | J50: 92 | K50: 85 | L50: 75 | M50: 42 | N50: 41 | O50: 23 | P50: 10 | S50: 7.3 | T50: 4.7 | U50: 93.4 | V50: 92.1 | W50: 92.1 | X50: 2.2 | Y50: 2.3 | Z50: 2.3 | BA50: 21 | BC50: 0 | BD50: 1 | BE50: 21 | BF50: NO | BI50: 100 | BJ50: 92 | BK50: 85 | BL50: 75 | BM50: 42 | BN50: 41 | BO50: 23 | BP50: 10 | BS50: 7.3 | BT50: 4.7 | BU50: 93.4 | BV50: 92.1 | BW50: 92.1 | BX50: 2.2 | BY50: 2.3 | BZ50: 2.3 | FA50: =IF(A50=QCData!A50,"S",IF(AND(A50<>"",QCData!A50=""),"N",IF(AND(A50<>"",QCData!A50<>"",A50<>QCData!A50),"C",IF(AND(QCData!A50<>"",A50=""),"D","no cd er")))) -> N | FB50: =IF(B50=QCData!B50,"S",IF(AND(B50<>"",QCData!B50=""),"N",IF(AND(B50<>"",QCData!B50<>"",B50<>QCData!B50),"C",IF(AND(QCData!B50<>"",B50=""),"D","no cd er")))) -> S | FC50: =IF(C50=QCData!C50,"S",IF(AND(C50<>"",QCData!C50=""),"N",IF(AND(C50<>"",QCData!C50<>"",C50<>QCData!C50),"C",IF(AND(QCData!C50<>"",C50=""),"D","no cd er")))) -> S | FD50: =IF(D50=QCData!D50,"S",IF(AND(D50<>"",QCData!D50=""),"N",IF(AND(D50<>"",QCData!D50<>"",D50<>QCData!D50),"C",IF(AND(QCData!D50<>"",D50=""),"D","no cd er")))) -> N | FE50: =IF(E50=QCData!E50,"S",IF(AND(E50<>"",QCData!E50=""),"N",IF(AND(E50<>"",QCData!E50<>"",E50<>QCData!E50),"C",IF(AND(QCData!E50<>"",E50=""),"D","no cd er")))) -> N | FF50: =IF(F50=QCData!F50,"S",IF(AND(F50<>"",QCData!F50=""),"N",IF(AND(F50<>"",QCData!F50<>"",F50<>QCData!F50),"C",IF(AND(QCData!F50<>"",F50=""),"D","no cd er")))) -> N | FG50: =IF(G50=QCData!G50,"S",IF(AND(G50<>"",QCData!G50=""),"N",IF(AND(G50<>"",QCData!G50<>"",G50<>QCData!G50),"C",IF(AND(QCData!G50<>"",G50=""),"D","no cd er")))) -> S | FH50: =IF(H50=QCData!H50,"S",IF(AND(H50<>"",QCData!H50=""),"N",IF(AND(H50<>"",QCData!H50<>"",H50<>QCData!H50),"C",IF(AND(QCData!H50<>"",H50=""),"D","no cd er")))) -> S | FI50: =IF(I50=QCData!I50,"S",IF(AND(I50<>"",QCData!I50=""),"N",IF(AND(I50<>"",QCData!I50<>"",I50<>QCData!I50),"C",IF(AND(QCData!I50<>"",I50=""),"D","no cd er")))) -> N | FJ50: =IF(J50=QCData!J50,"S",IF(AND(J50<>"",QCData!J50=""),"N",IF(AND(J50<>"",QCData!J50<>"",J50<>QCData!J50),"C",IF(AND(QCData!J50<>"",J50=""),"D","no cd er")))) -> N | FK50: =IF(K50=QCData!K50,"S",IF(AND(K50<>"",QCData!K50=""),"N",IF(AND(K50<>"",QCData!K50<>"",K50<>QCData!K50),"C",IF(AND(QCData!K50<>"",K50=""),"D","no cd er")))) -> N | FL50: =IF(L50=QCData!L50,"S",IF(AND(L50<>"",QCData!L50=""),"N",IF(AND(L50<>"",QCData!L50<>"",L50<>QCData!L50),"C",IF(AND(QCData!L50<>"",L50=""),"D","no cd er")))) -> N | FM50: =IF(M50=QCData!M50,"S",IF(AND(M50<>"",QCData!M50=""),"N",IF(AND(M50<>"",QCData!M50<>"",M50<>QCData!M50),"C",IF(AND(QCData!M50<>"",M50=""),"D","no cd er")))) -> N | FN50: =IF(N50=QCData!N50,"S",IF(AND(N50<>"",QCData!N50=""),"N",IF(AND(N50<>"",QCData!N50<>"",N50<>QCData!N50),"C",IF(AND(QCData!N50<>"",N50=""),"D","no cd er")))) -> N | FO50: =IF(O50=QCData!O50,"S",IF(AND(O50<>"",QCData!O50=""),"N",IF(AND(O50<>"",QCData!O50<>"",O50<>QCData!O50),"C",IF(AND(QCData!O50<>"",O50=""),"D","no cd er")))) -> N | FP50: =IF(P50=QCData!P50,"S",IF(AND(P50<>"",QCData!P50=""),"N",IF(AND(P50<>"",QCData!P50<>"",P50<>QCData!P50),"C",IF(AND(QCData!P50<>"",P50=""),"D","no cd er")))) -> N | FQ50: =IF(Q50=QCData!Q50,"S",IF(AND(Q50<>"",QCData!Q50=""),"N",IF(AND(Q50<>"",QCData!Q50<>"",Q50<>QCData!Q50),"C",IF(AND(QCData!Q50<>"",Q50=""),"D","no cd er")))) -> S | FR50: =IF(R50=QCData!R50,"S",IF(AND(R50<>"",QCData!R50=""),"N",IF(AND(R50<>"",QCData!R50<>"",R50<>QCData!R50),"C",IF(AND(QCData!R50<>"",R50=""),"D","no cd er")))) -> S | FS50: =IF(S50=QCData!S50,"S",IF(AND(S50<>"",QCData!S50=""),"N",IF(AND(S50<>"",QCData!S50<>"",S50<>QCData!S50),"C",IF(AND(QCData!S50<>"",S50=""),"D","no cd er")))) -> N | FT50: =IF(T50=QCData!T50,"S",IF(AND(T50<>"",QCData!T50=""),"N",IF(AND(T50<>"",QCData!T50<>"",T50<>QCData!T50),"C",IF(AND(QCData!T50<>"",T50=""),"D","no cd er")))) -> N | FU50: =IF(U50=QCData!U50,"S",IF(AND(U50<>"",QCData!U50=""),"N",IF(AND(U50<>"",QCData!U50<>"",U50<>QCData!U50),"C",IF(AND(QCData!U50<>"",U50=""),"D","no cd er")))) -> N | FV50: =IF(V50=QCData!V50,"S",IF(AND(V50<>"",QCData!V50=""),"N",IF(AND(V50<>"",QCData!V50<>"",V50<>QCData!V50),"C",IF(AND(QCData!V50<>"",V50=""),"D","no cd er")))) -> N | FW50: =IF(W50=QCData!W50,"S",IF(AND(W50<>"",QCData!W50=""),"N",IF(AND(W50<>"",QCData!W50<>"",W50<>QCData!W50),"C",IF(AND(QCData!W50<>"",W50=""),"D","no cd er")))) -> N | FX50: =IF(X50=QCData!X50,"S",IF(AND(X50<>"",QCData!X50=""),"N",IF(AND(X50<>"",QCData!X50<>"",X50<>QCData!X50),"C",IF(AND(QCData!X50<>"",X50=""),"D","no cd er")))) -> N | FY50: =IF(Y50=QCData!Y50,"S",IF(AND(Y50<>"",QCData!Y50=""),"N",IF(AND(Y50<>"",QCData!Y50<>"",Y50<>QCData!Y50),"C",IF(AND(QCData!Y50<>"",Y50=""),"D","no cd er")))) -> N | FZ50: =IF(Z50=QCData!Z50,"S",IF(AND(Z50<>"",QCData!Z50=""),"N",IF(AND(Z50<>"",QCData!Z50<>"",Z50<>QCData!Z50),"C",IF(AND(QCData!Z50<>"",Z50=""),"D","no cd er")))) -> N
